Workbook

Sheet Сбор показателей - случ (hidden)
A3: УЧАСТНИК | C3: ЗОНА УПРАВЛЕНИЯ | E3: РЕЗУЛЬТАТИВНОСТЬ | G3: ПРОАКТИВНОСТЬ | M3: ПРОФЕССИОНАЛЬНОЕ РАЗВИТИЕ | T3: ЭФФЕКТИВНОЕ ВЗАИМОДЕЙСТВИЕ
A4: ФИО | B4: ТИП | C4: Число сотрудников в прямом подчинении | D4: Число сотрудников в подразделении | E4: Выполнение УПЦ | F4: Множитель | G4: Поданные инициативы | J4: Инициативы, одобренные к реализации | M4: Выполнение ИПР самим участником | N4: Выполнение ИПР непосредственными подчиненными | O4: Наполнение Кадрового резерва функции | Q4: Управление знаниями функции | T4: Обратная связь от подрядчиков | U4: Обратная связь от прямых подчиненных | V4: Работа кросс-функциональных команд
G5: ЛИНиЯ | H5: И.Д.Е.Я. | I5: Другие | J5: ЛИНиЯ | K5: И.Д.Е.Я. | L5: Другие | O5: Оперативный кадровый резерв | P5: Перспективный кадровый резерв | Q5: Число внутренних тренеров | R5: Число курсов внутренних тренеров вне Института Закупки | S5: Число курсов внутренних тренеров в рамках Института Закупки | V5: Инициация кросс-функциональных команд | W5: Участие в кросс-функциональных командах
A6: Андреева Анна | B6: ОКР | C6: =RANDBETWEEN(3,7) -> 3 | D6: =RANDBETWEEN(C6,IF(B6="окр",20,IF(B6="Згд",40,10))+C6) -> 4 | E6: =RANDBETWEEN(95,110)/100 -> 1.03 | F6: =RANDBETWEEN(1,3) -> 2 | G6: =RANDBETWEEN(0,50) -> 0 | H6: =RANDBETWEEN(0,50) -> 26 | I6: =RANDBETWEEN(0,50) -> 11 | J6: =RANDBETWEEN(0,G6) -> 0 | K6: =RANDBETWEEN(0,H6) -> 15 | L6: =RANDBETWEEN(0,I6) -> 1 | M6: =RANDBETWEEN(50,100)/100 -> 0.91 | N6: =MEDIAN(RANDBETWEEN(50,100),RANDBETWEEN(50,100),RANDBETWEEN(50,100))/100 -> 0.59 | O6: =RANDBETWEEN(0,3) -> 3 | P6: =RANDBETWEEN(0,5) -> 5 | Q6: =RANDBETWEEN(0,D6*0.5) -> 0 | R6: =RANDBETWEEN(0,20) -> 15 | S6: =RANDBETWEEN(0,7) -> 6 | T6: =RANDBETWEEN(50,99)/100 -> 0.9 | U6: =RANDBETWEEN(50,99)/100 -> 0.92 | V6: =RANDBETWEEN(0,20) -> 0 | W6: =RANDBETWEEN(0,D6*0.5) -> 0
A7: Анисимова Марина | B7: ОКР | C7: =RANDBETWEEN(3,7) -> 3 | D7: =RANDBETWEEN(C7,IF(B7="окр",20,IF(B7="Згд",40,10))+C7) -> 12 | E7: =RANDBETWEEN(95,110)/100 -> 1.06 | F7: =RANDBETWEEN(1,3) -> 2 | G7: =RANDBETWEEN(0,50) -> 40 | H7: 19 | I7: 0 | J7: 32 | K7: 0 | L7: 0 | M7: =RANDBETWEEN(50,100)/100 -> 0.85 | N7: =MEDIAN(RANDBETWEEN(50,100),RANDBETWEEN(50,100),RANDBETWEEN(50,100))/100 -> 0.59 | O7: =RANDBETWEEN(0,3) -> 1 | P7: =RANDBETWEEN(0,5) -> 1 | Q7: 0 | R7: =RANDBETWEEN(0,20) -> 12 | S7: =RANDBETWEEN(0,7) -> 5 | T7: =RANDBETWEEN(50,99)/100 -> 0.85 | U7: 0.8 | V7: =RANDBETWEEN(0,20) -> 17 | W7: 5
A8: Билый Александр | B8: ОКР | C8: 7 | D8: 19 | E8: 1 | F8: 3 | G8: 27 | H8: 22 | I8: 7 | J8: 3 | K8: 4 | L8: 4 | M8: 0.61 | N8: 0.65 | O8: 3 | P8: 2 | Q8: 1 | R8: 8 | S8: 4 | T8: 0.57 | U8: 0.84 | V8: 16 | W8: 0
A9: Бильвина Валерия | B9: ОКР | C9: 3 | D9: 5 | E9: 0.99 | F9: 1 | G9: 45 | H9: 13 | I9: 23 | J9: 9 | K9: 8 | L9: 22 | M9: 0.81 | N9: 0.62 | O9: 1 | P9: 2 | Q9: 1 | R9: 10 | S9: 2 | T9: 0.72 | U9: 0.58 | V9: 9 | W9: 1
A10: Борисов Сергей | B10: ОКР | C10: 3 | D10: 11 | E10: 1.1 | F10: 1 | G10: 40 | H10: 44 | I10: 32 | J10: 7 | K10: 33 | L10: 8 | M10: 0.7 | N10: 0.58 | O10: 0 | P10: 1 | Q10: 0 | R10: 2 | S10: 1 | T10: 0.82 | U10: 0.53 | V10: 17 | W10: 3
A11: Булковский Сергей | B11: ЗГД | C11: 4 | D11: 37 | E11: 1.09 | F11: 3 | G11: 23 | H11: 20 | I11: 3 | J11: 8 | K11: 9 | L11: 2 | M11: 0.76 | N11: 0.83 | O11: 2 | P11: 4 | Q11: 4 | R11: 11 | S11: 1 | T11: 0.76 | U11: 0.95 | V11: 18 | W11: 14
A12: Винокурова Елена | B12: КЦ | C12: 5 | D12: 12 | E12: 1.07 | F12: 2 | G12: 16 | H12: 2 | I12: 16 | J12: 8 | K12: 0 | L12: 4 | M12: 0.72 | N12: 0.72 | O12: 1 | P12: 3 | Q12: 0 | R12: 5 | S12: 5 | T12: 0.85 | U12: 0.81 | V12: 14 | W12: 0
A13: Войтюк Юлия | B13: ОКР | C13: 3 | D13: 20 | E13: 1 | F13: 1 | G13: 21 | H13: 17 | I13: 23 | J13: 12 | K13: 17 | L13: 8 | M13: 0.93 | N13: 0.51 | O13: 2 | P13: 0 | Q13: 10 | R13: 18 | S13: 5 | T13: 0.71 | U13: 0.55 | V13: 16 | W13: 6
A14: Горбунова Татьяна | B14: КЦ | C14: 5 | D14: 14 | E14: 1 | F14: 3 | G14: 3 | H14: 21 | I14: 23 | J14: 0 | K14: 14 | L14: 17 | M14: 0.91 | N14: 0.66 | O14: 1 | P14: 5 | Q14: 2 | R14: 9 | S14: 3 | T14: 0.6 | U14: 0.52 | V14: 13 | W14: 4
A15: Гудкова Людмила | B15: ОКР (КЦ) | C15: 3 | D15: 8 | E15: 1.09 | F15: 1 | G15: 16 | H15: 32 | I15: 48 | J15: 1 | K15: 11 | L15: 22 | M15: 0.92 | N15: 0.92 | O15: 0 | P15: 1 | Q15: 1 | R15: 16 | S15: 3 | T15: 0.68 | U15: 0.82 | V15: 20 | W15: 3
A16: Гулиев Рагим | B16: ЗГД | C16: 4 | D16: 11 | E16: 1.03 | F16: 1 | G16: 7 | H16: 18 | I16: 1 | J16: 2 | K16: 7 | L16: 0 | M16: 0.71 | N16: 0.58 | O16: 3 | P16: 3 | Q16: 0 | R16: 1 | S16: 5 | T16: 0.77 | U16: 0.63 | V16: 15 | W16: 2
A17: Давыденков Евгений | B17: КЦ | C17: 4 | D17: 8 | E17: 1.09 | F17: 2 | G17: 28 | H17: 50 | I17: 31 | J17: 10 | K17: 23 | L17: 2 | M17: 0.59 | N17: 0.55 | O17: 3 | P17: 1 | Q17: 3 | R17: 8 | S17: 2 | T17: 0.89 | U17: 0.82 | V17: 4 | W17: 1
A18: Журавлев Сергей | B18: КЦ | C18: 7 | D18: 10 | E18: 1.05 | F18: 1 | G18: 28 | H18: 20 | I18: 12 | J18: 4 | K18: 10 | L18: 0 | M18: 1 | N18: 0.78 | O18: 0 | P18: 3 | Q18: 2 | R18: 12 | S18: 4 | T18: 0.69 | U18: 0.6 | V18: 16 | W18: 0
A19: Завьялов Василий | B19: ЗГД | C19: 7 | D19: 45 | E19: 1.01 | F19: 2 | G19: 36 | H19: 44 | I19: 26 | J19: 36 | K19: 32 | L19: 4 | M19: 0.71 | N19: 0.69 | O19: 3 | P19: 0 | Q19: 20 | R19: 2 | S19: 2 | T19: 0.61 | U19: 0.79 | V19: 4 | W19: 7
A20: Коваленко Тамара | B20: ОКР | C20: 5 | D20: 21 | E20: 1.08 | F20: 2 | G20: 48 | H20: 37 | I20: 23 | J20: 48 | K20: 21 | L20: 1 | M20: 0.57 | N20: 0.82 | O20: 1 | P20: 2 | Q20: 1 | R20: 0 | S20: 5 | T20: 0.67 | U20: 0.78 | V20: 15 | W20: 3
A21: Колесников Сергей | B21: ОКР | C21: 4 | D21: 18 | E21: 0.98 | F21: 2 | G21: 7 | H21: 39 | I21: 10 | J21: 3 | K21: 30 | L21: 7 | M21: 0.75 | N21: 0.79 | O21: 1 | P21: 2 | Q21: 5 | R21: 1 | S21: 0 | T21: 0.76 | U21: 0.77 | V21: 15 | W21: 9
A22: Коробейников Павел | B22: ЗГД | C22: 5 | D22: 18 | E22: 1 | F22: 1 | G22: 25 | H22: 40 | I22: 17 | J22: 10 | K22: 11 | L22: 15 | M22: 0.58 | N22: 0.54 | O22: 1 | P22: 2 | Q22: 7 | R22: 6 | S22: 2 | T22: 0.84 | U22: 0.82 | V22: 16 | W22: 1
A23: Марченко Лариса | B23: ОКР | C23: 3 | D23: 20 | E23: 1.03 | F23: 2 | G23: 9 | H23: 22 | I23: 6 | J23: 9 | K23: 5 | L23: 5 | M23: 0.97 | N23: 0.65 | O23: 0 | P23: 2 | Q23: 10 | R23: 4 | S23: 7 | T23: 0.71 | U23: 0.87 | V23: 7 | W23: 10
A24: Мелёхин Денис | B24: ОКР (КЦ) | C24: 3 | D24: 13 | E24: 0.98 | F24: 1 | G24: 37 | H24: 18 | I24: 20 | J24: 5 | K24: 5 | L24: 16 | M24: 0.54 | N24: 0.8 | O24: 3 | P24: 2 | Q24: 5 | R24: 13 | S24: 1 | T24: 0.67 | U24: 0.67 | V24: 6 | W24: 5
A25: Миняева Ирина | B25: ОКР (КЦ) | C25: 7 | D25: 13 | E25: 1 | F25: 1 | G25: 44 | H25: 4 | I25: 28 | J25: 42 | K25: 1 | L25: 3 | M25: 0.9 | N25: 0.82 | O25: 2 | P25: 1 | Q25: 1 | R25: 5 | S25: 1 | T25: 0.55 | U25: 0.78 | V25: 11 | W25: 0
A26: Мирсаитов Дмитрий | B26: ЗГД | C26: 4 | D26: 13 | E26: 0.99 | F26: 2 | G26: 3 | H26: 38 | I26: 34 | J26: 1 | K26: 21 | L26: 12 | M26: 0.65 | N26: 0.98 | O26: 2 | P26: 4 | Q26: 0 | R26: 2 | S26: 3 | T26: 0.85 | U26: 0.71 | V26: 6 | W26: 3
A27: Навальнева Евгения | B27: ЗГД | C27: 5 | D27: 9 | E27: 0.99 | F27: 2 | G27: 11 | H27: 27 | I27: 30 | J27: 6 | K27: 12 | L27: 6 | M27: 0.64 | N27: 0.71 | O27: 3 | P27: 4 | Q27: 0 | R27: 19 | S27: 6 | T27: 0.76 | U27: 0.61 | V27: 4 | W27: 1
A28: Османов Руслан | B28: ЗГД | C28: 5 | D28: 14 | E28: 0.96 | F28: 2 | G28: 9 | H28: 44 | I28: 16 | J28: 9 | K28: 32 | L28: 4 | M28: 0.9 | N28: 0.82 | O28: 3 | P28: 5 | Q28: 7 | R28: 20 | S28: 5 | T28: 0.6 | U28: 0.88 | V28: 7 | W28: 2
A29: Приймак Андрей | B29: ЗГД | C29: 3 | D29: 39 | E29: 0.99 | F29: 3 | G29: 43 | H29: 40 | I29: 3 | J29: 29 | K29: 40 | L29: 2 | M29: 0.87 | N29: 0.61 | O29: 1 | P29: 0 | Q29: 11 | R29: 17 | S29: 5 | T29: 0.5 | U29: 0.77 | V29: 10 | W29: 9
A30: Проскуряков Алексей | B30: ОКР | C30: 5 | D30: 18 | E30: 1.1 | F30: 1 | G30: 22 | H30: 41 | I30: 3 | J30: 21 | K30: 17 | L30: 0 | M30: 0.51 | N30: 0.78 | O30: 3 | P30: 5 | Q30: 4 | R30: 4 | S30: 0 | T30: 0.67 | U30: 0.75 | V30: 6 | W30: 9
A31: Савченко Яна | B31: ОКР (КЦ) | C31: 5 | D31: 8 | E31: 0.96 | F31: 1 | G31: 50 | H31: 23 | I31: 49 | J31: 31 | K31: 19 | L31: 4 | M31: 0.5 | N31: 0.74 | O31: 1 | P31: 5 | Q31: 1 | R31: 4 | S31: 3 | T31: 0.54 | U31: 0.51 | V31: 2 | W31: 3
A32: Сафиуллин Наиль | B32: ОКР (КЦ) | C32: 4 | D32: 11 | E32: 0.96 | F32: 2 | G32: 25 | H32: 3 | I32: 16 | J32: 1 | K32: 0 | L32: 2 | M32: 0.98 | N32: 0.71 | O32: 3 | P32: 1 | Q32: 4 | R32: 15 | S32: 7 | T32: 0.52 | U32: 0.66 | V32: 12 | W32: 3
A33: Сметанин Павел | B33: ОКР | C33: 3 | D33: 22 | E33: 0.97 | F33: 1 | G33: 36 | H33: 18 | I33: 26 | J33: 8 | K33: 2 | L33: 21 | M33: 0.76 | N33: 0.71 | O33: 0 | P33: 0 | Q33: 3 | R33: 0 | S33: 6 | T33: 0.63 | U33: 0.88 | V33: 11 | W33: 4
A34: Степин Константин | B34: ОКР (КЦ) | C34: 3 | D34: 12 | E34: 0.96 | F34: 3 | G34: 38 | H34: 41 | I34: 15 | J34: 30 | K34: 17 | L34: 11 | M34: 0.81 | N34: 0.73 | O34: 0 | P34: 4 | Q34: 1 | R34: 6 | S34: 2 | T34: 0.98 | U34: 0.84 | V34: 16 | W34: 2
A35: Титов Александр | B35: ЗГД | C35: 7 | D35: 24 | E35: 1.04 | F35: 2 | G35: 37 | H35: 28 | I35: 11 | J35: 34 | K35: 20 | L35: 10 | M35: 0.86 | N35: 0.75 | O35: 3 | P35: 0 | Q35: 2 | R35: 18 | S35: 5 | T35: 0.69 | U35: 0.88 | V35: 10 | W35: 0
A36: Ульданов Динар | B36: КЦ | C36: 7 | D36: 7 | E36: 1.05 | F36: 3 | G36: 16 | H36: 42 | I36: 42 | J36: 3 | K36: 16 | L36: 23 | M36: 0.97 | N36: 0.92 | O36: 3 | P36: 1 | Q36: 0 | R36: 5 | S36: 1 | T36: 0.95 | U36: 0.86 | V36: 10 | W36: 0
A37: Фирсов Владимир | B37: ОКР | C37: 3 | D37: 11 | E37: 1.08 | F37: 3 | G37: 39 | H37: 17 | I37: 15 | J37: 16 | K37: 0 | L37: 9 | M37: 0.85 | N37: 0.71 | O37: 2 | P37: 0 | Q37: 5 | R37: 6 | S37: 6 | T37: 0.82 | U37: 0.52 | V37: 20 | W37: 4
A38: Шепляков Алексей | B38: ЗГД | C38: 3 | D38: 5 | E38: 1.02 | F38: 1 | G38: 47 | H38: 1 | I38: 20 | J38: 0 | K38: 1 | L38: 9 | M38: 0.51 | N38: 0.88 | O38: 2 | P38: 1 | Q38: 1 | R38: 12 | S38: 0 | T38: 0.67 | U38: 0.91 | V38: 17 | W38: 0
A39: Шестаков Антон | B39: ЗГД | C39: 5 | D39: 22 | E39: 0.95 | F39: 3 | G39: 25 | H39: 7 | I39: 45 | J39: 4 | K39: 4 | L39: 37 | M39: 0.9 | N39: 0.56 | O39: 2 | P39: 3 | Q39: 8 | R39: 5 | S39: 3 | T39: 0.56 | U39: 0.65 | V39: 5 | W39: 3
A40: Ялымов Денис | B40: ОКР | C40: 6 | D40: 9 | E40: 1.07 | F40: 3 | G40: 39 | H40: 0 | I40: 26 | J40: 33 | K40: 0 | L40: 12 | M40: 0.68 | N40: 0.67 | O40: 1 | P40: 2 | Q40: 2 | R40: 2 | S40: 6 | T40: 0.52 | U40: 0.81 | V40: 13 | W40: 2
A41: Чунц Илья | B41: ЗГД | C41: 5 | D41: 17 | E41: 0.95 | F41: 2 | G41: 46 | H41: 33 | I41: 48 | J41: 4 | K41: 9 | L41: 2 | M41: 0.78 | N41: 0.65 | O41: 3 | P41: 1 | Q41: 1 | R41: 13 | S41: 0 | T41: 0.65 | U41: 0.92 | V41: 5 | W41: 6

Sheet Графики (hidden)
A1: Рейтинг
A2: =VLOOKUP('Карточка участника'!F3,'Данные для карточки'!A4:BS125,67,FALSE) -> 6 | B2: =A4-A2 -> 4
A3: =A4-A2 -> 4
A4: =10 -> 10
A6: Оценка лидерских компетенций
A7: =VLOOKUP('Карточка участника'!F3,'Данные для карточки'!A4:BT125,72,FALSE) -> 8 | B7: =A8-A7 -> 4
A8: 12
A10: Самооценка управленческих навыков
B11: Постановка целей и задач | C11: Планирование и решение проблем | D11: Создание необходимых условий для выполнения работы | E11: Обеспечение обратной связи | F11: Позитивный контроль | G11: Признание заслуг | H11: Эффективное взаимодействие с подчиненными | I11: Создание мотивирующей рабочей среды
A12: Медиана по России | B12: 5 | C12: 5.5 | D12: 5.6 | E12: 4.3 | F12: 5.1 | G12: 5.4 | H12: 5.4 | I12: 5
A13: Результат | B13: =VLOOKUP('Карточка участника'!F3,'Данные для карточки'!A1:BT125,23,FALSE) -> 6.4 | C13: =VLOOKUP('Карточка участника'!F3,'Данные для карточки'!A1:BT125,24,FALSE) -> 5.63 | D13: =VLOOKUP('Карточка участника'!F3,'Данные для карточки'!A1:BT125,25,FALSE) -> 6.2 | E13: =VLOOKUP('Карточка участника'!F3,'Данные для карточки'!A1:BT125,26,FALSE) -> 6.8 | F13: =VLOOKUP('Карточка участника'!F3,'Данные для карточки'!A1:BT125,27,FALSE) -> 5.23 | G13: =VLOOKUP('Карточка участника'!F3,'Данные для карточки'!A1:BT125,28,FALSE) -> 6.9 | H13: =VLOOKUP('Карточка участника'!F3,'Данные для карточки'!A1:BT125,29,FALSE) -> 6.6 | I13: =VLOOKUP('Карточка участника'!F3,'Данные для карточки'!A1:BT125,30,FALSE) -> 5.99
A14: Медиана по участникам | B14: 5.8 | C14: 5.6 | D14: 6 | E14: 5.4 | F14: 4.6 | G14: 6.1 | H14: 6.2 | I14: 5.3
A17: ИНТЕГРАЛЬНЫЙ РЕЙТИНГ
A18: РЕЗУЛЬТАТИВНОСТЬ
A19: ПРОАКТИВНОСТЬ
A20: ПРОФЕССИОНАЛЬНОЕ РАЗВИТИЕ
A21: ЭФФЕКТИВНОЕ ВЗАИМОДЕЙСТВИЕ
A23: ВОЗМОЖНЫЕ ГОРОДА
A24: НАКОПЛЕННЫЙ РЕЙТИНГ
A25: ОЦЕНКА ЛИДЕРСКИХ КОМПЕТЕНЦИЙ по Lominger

Sheet СОДЕРЖАНИЕ (hidden)
C3: СОДЕРЖАНИЕ | E3: ОПИСАНИЕ
C5: Отбор участников | E5: База участников программы "Энергия" с установленными фильтрами для отбора по параметрам
C6: Карточка участника | E6: Индивидуальная карточка на каждого участника программы Энергия
C9: Паспорт показателей | E9: По ссылке - описание методики сбора и подсчета показателей, их вес, сроки сбора
C12: Сбор показателей
C13: За I квартал | E13: Формы для внесения сырых данных по показателям для проведения расчетов
C14: За II квартал
C15: За III квартал
C16: За IV квартал
C18: Результаты рейтингований
C19: РЕЙТИНГ | E19: Общая таблица с рейтингом участников (кроме КЦ) по всем шкалам, по кварталам и по году
C20: ИНТЕГРАЛЬНЫЙ РЕЙТИНГ | E20: Рейтинг участников (кроме КЦ) совокупно по всем показателям по кварталам и году
C21: РЕЙТИНГ Результативность | E21: Рейтинг участников (кроме КЦ) по шкале РЕЗУЛЬТАТИВНОСТЬ по кварталам и по году
C22: РЕЙТИНГ Проактивность | E22: Рейтинг участников (кроме КЦ) по шкале ПРОАКТИВНОСТЬ по кварталам и по году
C23: РЕЙТИНГ Развитие | E23: Рейтинг участников (кроме КЦ) по шкале ПРОФЕССИОНАЛЬНОЕ РАЗВИТИЕ по кварталам и по году
C24: РЕЙТИНГ Взаимодействие | E24: Рейтинг участников (кроме КЦ) по шкале ЭФФЕКТИВНОЕ ВЗАИМОДЕЙСТВИЕ по кварталам и по году
C25: РЕЙТИНГ КЦ Общий | E25: Общая таблица с рейтингом участников из КЦ по всем шкалам, по кварталам и по году
C26: РЕЙТИНГ КЦ Шкалы | E26: Рейтинги участников из КЦ разбитые по шкалам, по кварталам и по году

Sheet Отбор участников
C3: ФИЛЬТРЫ ДЛЯ ОТБОРА УЧАСТНИКОВ ПО ПАРАМЕТРАМ
C5: Место работы | D5: (Все)
C6: Уровень должности | D6: (Все)
C7: Город проживания | D7: (Все)
C8: Город переезда | D8: (Все)
C9: Уровень владения Английским языком | D9: (Все)
D10: РЕЗУЛЬТАТ ОТБОРА | G10: выбор содержания - аспекты оценки | H10: выбор содержания - Блок рейтингования
C11: ФИО | D11: ОБЩАЯ ИНФОРМАЦИЯ__________________ | F11: НАКОПЛЕННЫЙ РЕЙТИНГ | H11: ИНТЕГРАЛЬНЫЙ РЕЙТИНГ
C12: Василий Леонтьев | D12: =IF(C12="","","Место работы: "&CHAR(10)&CHAR(10)&"Должность: "&CHAR(10)&CHAR(10)&"Срок в должности: ") -> Место работы: Должность: Срок в должности: | E12: =IF(C12="","",(VLOOKUP(C12,'Данные для карточки'!$A$4:$BS$175,3,FALSE)&CHAR(10)&CHAR(10)&VLOOKUP(C12,'Данные для карточки'!$A$4:$BS$175,4,FALSE)&CHAR(10))&CHAR(10)&IF(INT(YEARFRAC(VLOOKUP(C12,'Данные для карточки'!A4:EG175,77,FALSE),TODAY()))=0,"",INT(YEARFRAC(VLOOKUP(C12,'Данные для карточки'!A4:EG175,77,FALSE),TODAY()))&IF(INT(YEARFRAC(VLOOKUP(C12,'Данные для карточки'!A4:EG175,77,FALSE),TODAY()))=1," год",IF(INT(YEARFRAC(VLOOKUP(C12,'Данные для карточки'!A4:EG175,77,FALSE),TODAY()))=2," года",IF(INT(YEARFRAC(VLOOKUP(C12,'Данные для карточки'!A4:EG175,77,FALSE),TODAY()))=3," года",IF(INT(YEARFRAC(VLOOKUP(C12,'Данные для карточки'!A4:EG175,77,FALSE),TODAY()))=4," года",IF(INT(YEARFRAC(VLOOKUP(C12,'Данные для карточки'!A4:EG175,77,FALSE),TODAY()))>4," лет"))))))&" "&IF(DATEDIF(VLOOKUP(C12,'Данные для карточки'!A4:EG175,77,0),TODAY(),"YM")=0,"",(DATEDIF(VLOOKUP(C12,'Данные для карточки'!A4:EG175,77,0),TODAY(),"YM")&" мес."))) -> Johnson & Johnson Начальник управления межотраслевого анализа 7 лет 5 мес. | F12: =IF(C12="","",IF(F$11=Графики!$A$24,("Интегральный: "&CHAR(10)&"Результативность: "&CHAR(10)&"Проактивность: "&CHAR(10)&"Профессиональное и лидерское развитие: "&CHAR(10)&"Межкомандное взаимодействие: "),IF(F$10=Графики!$A$23,"",IF(F$11=Графики!$A$25,("Общий результат: "&CHAR(10)&"Стратегическое видение: "&CHAR(10)&"Создание эффективной команды: "&CHAR(10)&"Руководящие навыки: "&CHAR(10)&"Способность действовать в условиях неопределенности: "))))) -> Интегральный: Результативность: Проактивность: Профессиональное и лидерское развитие: Межкомандное взаимодействие: | G12: =IF(C12="","", IF(F$11=Графики!$A$24, (VLOOKUP(C12,'Данные для карточки'!$A$4:$BS$175,67,FALSE)&" место из 10"&CHAR(10)&VLOOKUP(C12,'Данные для карточки'!$A$4:$BS$175,68,FALSE)&" место из 10"&CHAR(10)&VLOOKUP(C12,'Данные для карточки'!$A$4:$BS$175,69,FALSE)&" место из 10"&CHAR(10)&VLOOKUP(C12,'Данные для карточки'!$A$4:$BS$175,70,FALSE)&" место из 10"&CHAR(10)&VLOOKUP(C12,'Данные для карточки'!$A$4:$BS$175,71,FALSE)&" место из 10"), IF(F$11=Графики!$A$25,(VLOOKUP(C12,'Данные для карточки'!$A$4:$BS$175,18,FALSE)&CHAR(10)&VLOOKUP(C12,'Данные для карточки'!$A$4:$BS$175,20,FALSE)&CHAR(10)&VLOOKUP(C12,'Данные для карточки'!$A$4:$BS$175,19,FALSE)&CHAR(10)&VLOOKUP(C12,'Данные для карточки'!$A$4:$BS$175,21,FALSE)&CHAR(10)&VLOOKUP(C12,'Данные для карточки'!$A$4:$BS$175,22,FALSE)))) ) -> 10 место из 10 3 место из 10 9 место из 10 7 место из 10 10 место из 10 | H12: =IF(C12="","",IF($H$11="ИНТЕГРАЛЬНЫЙ РЕЙТИНГ",VLOOKUP(C12,'Данные для карточки'!$A$4:$BS$175,67,FALSE),IF($H$11="РЕЗУЛЬТАТИВНОСТЬ",VLOOKUP(C12,'Данные для карточки'!$A$4:$BS$175,68,FALSE),IF($H$11="ПРОАКТИВНОСТЬ",VLOOKUP(C12,'Данные для карточки'!$A$4:$BS$175,69,FALSE),IF($H$11="ПРОФЕССИОНАЛЬНОЕ РАЗВИТИЕ",VLOOKUP(C12,'Данные для карточки'!$A$4:$BS$175,70,FALSE),IF($H$11="ЭФФЕКТИВНОЕ ВЗАИМОДЕЙСТВИЕ",VLOOKUP(C12,'Данные для карточки'!$A$4:$BS$175,71,FALSE))))))&" место из 10") -> 10 место из 10
C13: Гуннар Мюрдаль | D13: =IF(C13="",CHAR(10)&CHAR(10)&CHAR(10)&CHAR(10),"Место работы: "&CHAR(10)&CHAR(10)&"Должность: "&CHAR(10)&CHAR(10)&"Срок в должности: ") -> Место работы: Должность: Срок в должности: | E13: =IF(C13="","",(VLOOKUP(C13,'Данные для карточки'!$A$4:$BS$175,3,FALSE)&CHAR(10)&CHAR(10)&VLOOKUP(C13,'Данные для карточки'!$A$4:$BS$175,4,FALSE)&CHAR(10))&CHAR(10)&IF(INT(YEARFRAC(VLOOKUP(C13,'Данные для карточки'!A5:EG176,77,FALSE),TODAY()))=0,"",INT(YEARFRAC(VLOOKUP(C13,'Данные для карточки'!A5:EG176,77,FALSE),TODAY()))&IF(INT(YEARFRAC(VLOOKUP(C13,'Данные для карточки'!A5:EG176,77,FALSE),TODAY()))=1," год",IF(INT(YEARFRAC(VLOOKUP(C13,'Данные для карточки'!A5:EG176,77,FALSE),TODAY()))=2," года",IF(INT(YEARFRAC(VLOOKUP(C13,'Данные для карточки'!A5:EG176,77,FALSE),TODAY()))=3," года",IF(INT(YEARFRAC(VLOOKUP(C13,'Данные для карточки'!A5:EG176,77,FALSE),TODAY()))=4," года",IF(INT(YEARFRAC(VLOOKUP(C13,'Данные для карточки'!A5:EG176,77,FALSE),TODAY()))>4," лет"))))))&" "&IF(DATEDIF(VLOOKUP(C13,'Данные для карточки'!A5:EG176,77,0),TODAY(),"YM")=0,"",(DATEDIF(VLOOKUP(C13,'Данные для карточки'!A5:EG176,77,0),TODAY(),"YM")&" мес."))) -> Chrysler Начальник департамента взаимозависимости явлений 10 мес. | F13: =IF(C13="","",IF(F$11=Графики!$A$24,("Интегральный: "&CHAR(10)&"Результативность: "&CHAR(10)&"Проактивность: "&CHAR(10)&"Профессиональное и лидерское развитие: "&CHAR(10)&"Межкомандное взаимодействие: "),IF(F$10=Графики!$A$23,"",IF(F$11=Графики!$A$25,("Общий результат: "&CHAR(10)&"Стратегическое видение: "&CHAR(10)&"Создание эффективной команды: "&CHAR(10)&"Руководящие навыки: "&CHAR(10)&"Способность действовать в условиях неопределенности: "))))) -> Интегральный: Результативность: Проактивность: Профессиональное и лидерское развитие: Межкомандное взаимодействие: | G13: =IF(C13="","", IF(F$11=Графики!$A$24, (VLOOKUP(C13,'Данные для карточки'!$A$4:$BS$175,67,FALSE)&" место из 10"&CHAR(10)&VLOOKUP(C13,'Данные для карточки'!$A$4:$BS$175,68,FALSE)&" место из 10"&CHAR(10)&VLOOKUP(C13,'Данные для карточки'!$A$4:$BS$175,69,FALSE)&" место из 10"&CHAR(10)&VLOOKUP(C13,'Данные для карточки'!$A$4:$BS$175,70,FALSE)&" место из 10"&CHAR(10)&VLOOKUP(C13,'Данные для карточки'!$A$4:$BS$175,71,FALSE)&" место из 10"), IF(F$11=Графики!$A$25,(VLOOKUP(C13,'Данные для карточки'!$A$4:$BS$175,18,FALSE)&CHAR(10)&VLOOKUP(C13,'Данные для карточки'!$A$4:$BS$175,20,FALSE)&CHAR(10)&VLOOKUP(C13,'Данные для карточки'!$A$4:$BS$175,19,FALSE)&CHAR(10)&VLOOKUP(C13,'Данные для карточки'!$A$4:$BS$175,21,FALSE)&CHAR(10)&VLOOKUP(C13,'Данные для карточки'!$A$4:$BS$175,22,FALSE)))) ) -> 9 место из 10 2 место из 10 8 место из 10 8 место из 10 9 место из 10 | H13: =IF(C13="","",IF($H$11="ИНТЕГРАЛЬНЫЙ РЕЙТИНГ",VLOOKUP(C13,'Данные для карточки'!$A$4:$BS$175,67,FALSE),IF($H$11="РЕЗУЛЬТАТИВНОСТЬ",VLOOKUP(C13,'Данные для карточки'!$A$4:$BS$175,68,FALSE),IF($H$11="ПРОАКТИВНОСТЬ",VLOOKUP(C13,'Данные для карточки'!$A$4:$BS$175,69,FALSE),IF($H$11="ПРОФЕССИОНАЛЬНОЕ РАЗВИТИЕ",VLOOKUP(C13,'Данные для карточки'!$A$4:$BS$175,70,FALSE),IF($H$11="ЭФФЕКТИВНОЕ ВЗАИМОДЕЙСТВИЕ",VLOOKUP(C13,'Данные для карточки'!$A$4:$BS$175,71,FALSE))))))&" место из 10") -> 9 место из 10
C14: Джон Ричард Хикс | D14: =IF(C14="",CHAR(10)&CHAR(10)&CHAR(10)&CHAR(10),"Место работы: "&CHAR(10)&CHAR(10)&"Должность: "&CHAR(10)&CHAR(10)&"Срок в должности: ") -> Место работы: Должность: Срок в должности: | E14: =IF(C14="","",(VLOOKUP(C14,'Данные для карточки'!$A$4:$BS$175,3,FALSE)&CHAR(10)&CHAR(10)&VLOOKUP(C14,'Данные для карточки'!$A$4:$BS$175,4,FALSE)&CHAR(10))&CHAR(10)&IF(INT(YEARFRAC(VLOOKUP(C14,'Данные для карточки'!A6:EG177,77,FALSE),TODAY()))=0,"",INT(YEARFRAC(VLOOKUP(C14,'Данные для карточки'!A6:EG177,77,FALSE),TODAY()))&IF(INT(YEARFRAC(VLOOKUP(C14,'Данные для карточки'!A6:EG177,77,FALSE),TODAY()))=1," год",IF(INT(YEARFRAC(VLOOKUP(C14,'Данные для карточки'!A6:EG177,77,FALSE),TODAY()))=2," года",IF(INT(YEARFRAC(VLOOKUP(C14,'Данные для карточки'!A6:EG177,77,FALSE),TODAY()))=3," года",IF(INT(YEARFRAC(VLOOKUP(C14,'Данные для карточки'!A6:EG177,77,FALSE),TODAY()))=4," года",IF(INT(YEARFRAC(VLOOKUP(C14,'Данные для карточки'!A6:EG177,77,FALSE),TODAY()))>4," лет"))))))&" "&IF(DATEDIF(VLOOKUP(C14,'Данные для карточки'!A6:EG177,77,0),TODAY(),"YM")=0,"",(DATEDIF(VLOOKUP(C14,'Данные для карточки'!A6:EG177,77,0),TODAY(),"YM")&" мес."))) -> Chevron Corporation Руководитель направления равновесия и благосостояния 8 лет 9 мес. | F14: =IF(C14="","",IF(F$11=Графики!$A$24,("Интегральный: "&CHAR(10)&"Результативность: "&CHAR(10)&"Проактивность: "&CHAR(10)&"Профессиональное и лидерское развитие: "&CHAR(10)&"Межкомандное взаимодействие: "),IF(F$10=Графики!$A$23,"",IF(F$11=Графики!$A$25,("Общий результат: "&CHAR(10)&"Стратегическое видение: "&CHAR(10)&"Создание эффективной команды: "&CHAR(10)&"Руководящие навыки: "&CHAR(10)&"Способность действовать в условиях неопределенности: "))))) -> Интегральный: Результативность: Проактивность: Профессиональное и лидерское развитие: Межкомандное взаимодействие: | G14: =IF(C14="","", IF(F$11=Графики!$A$24, (VLOOKUP(C14,'Данные для карточки'!$A$4:$BS$175,67,FALSE)&" место из 10"&CHAR(10)&VLOOKUP(C14,'Данные для карточки'!$A$4:$BS$175,68,FALSE)&" место из 10"&CHAR(10)&VLOOKUP(C14,'Данные для карточки'!$A$4:$BS$175,69,FALSE)&" место из 10"&CHAR(10)&VLOOKUP(C14,'Данные для карточки'!$A$4:$BS$175,70,FALSE)&" место из 10"&CHAR(10)&VLOOKUP(C14,'Данные для карточки'!$A$4:$BS$175,71,FALSE)&" место из 10"), IF(F$11=Графики!$A$25,(VLOOKUP(C14,'Данные для карточки'!$A$4:$BS$175,18,FALSE)&CHAR(10)&VLOOKUP(C14,'Данные для карточки'!$A$4:$BS$175,20,FALSE)&CHAR(10)&VLOOKUP(C14,'Данные для карточки'!$A$4:$BS$175,19,FALSE)&CHAR(10)&VLOOKUP(C14,'Данные для карточки'!$A$4:$BS$175,21,FALSE)&CHAR(10)&VLOOKUP(C14,'Данные для карточки'!$A$4:$BS$175,22,FALSE)))) ) -> 5 место из 10 10 место из 10 1 место из 10 10 место из 10 7 место из 10 | H14: =IF(C14="","",IF($H$11="ИНТЕГРАЛЬНЫЙ РЕЙТИНГ",VLOOKUP(C14,'Данные для карточки'!$A$4:$BS$175,67,FALSE),IF($H$11="РЕЗУЛЬТАТИВНОСТЬ",VLOOKUP(C14,'Данные для карточки'!$A$4:$BS$175,68,FALSE),IF($H$11="ПРОАКТИВНОСТЬ",VLOOKUP(C14,'Данные для карточки'!$A$4:$BS$175,69,FALSE),IF($H$11="ПРОФЕССИОНАЛЬНОЕ РАЗВИТИЕ",VLOOKUP(C14,'Данные для карточки'!$A$4:$BS$175,70,FALSE),IF($H$11="ЭФФЕКТИВНОЕ ВЗАИМОДЕЙСТВИЕ",VLOOKUP(C14,'Данные для карточки'!$A$4:$BS$175,71,FALSE))))))&" место из 10") -> 5 место из 10
C15: Кеннет Эрроу | D15: =IF(C15="",CHAR(10)&CHAR(10)&CHAR(10)&CHAR(10),"Место работы: "&CHAR(10)&CHAR(10)&"Должность: "&CHAR(10)&CHAR(10)&"Срок в должности: ") -> Место работы: Должность: Срок в должности: | E15: =IF(C15="","",(VLOOKUP(C15,'Данные для карточки'!$A$4:$BS$175,3,FALSE)&CHAR(10)&CHAR(10)&VLOOKUP(C15,'Данные для карточки'!$A$4:$BS$175,4,FALSE)&CHAR(10))&CHAR(10)&IF(INT(YEARFRAC(VLOOKUP(C15,'Данные для карточки'!A7:EG178,77,FALSE),TODAY()))=0,"",INT(YEARFRAC(VLOOKUP(C15,'Данные для карточки'!A7:EG178,77,FALSE),TODAY()))&IF(INT(YEARFRAC(VLOOKUP(C15,'Данные для карточки'!A7:EG178,77,FALSE),TODAY()))=1," год",IF(INT(YEARFRAC(VLOOKUP(C15,'Данные для карточки'!A7:EG178,77,FALSE),TODAY()))=2," года",IF(INT(YEARFRAC(VLOOKUP(C15,'Данные для карточки'!A7:EG178,77,FALSE),TODAY()))=3," года",IF(INT(YEARFRAC(VLOOKUP(C15,'Данные для карточки'!A7:EG178,77,FALSE),TODAY()))=4," года",IF(INT(YEARFRAC(VLOOKUP(C15,'Данные для карточки'!A7:EG178,77,FALSE),TODAY()))>4," лет"))))))&" "&IF(DATEDIF(VLOOKUP(C15,'Данные для карточки'!A7:EG178,77,0),TODAY(),"YM")=0,"",(DATEDIF(VLOOKUP(C15,'Данные для карточки'!A7:EG178,77,0),TODAY(),"YM")&" мес."))) -> Pan American Начальник управления равновесия и благосостояния 5 лет 8 мес. | F15: =IF(C15="","",IF(F$11=Графики!$A$24,("Интегральный: "&CHAR(10)&"Результативность: "&CHAR(10)&"Проактивность: "&CHAR(10)&"Профессиональное и лидерское развитие: "&CHAR(10)&"Межкомандное взаимодействие: "),IF(F$10=Графики!$A$23,"",IF(F$11=Графики!$A$25,("Общий результат: "&CHAR(10)&"Стратегическое видение: "&CHAR(10)&"Создание эффективной команды: "&CHAR(10)&"Руководящие навыки: "&CHAR(10)&"Способность действовать в условиях неопределенности: "))))) -> Интегральный: Результативность: Проактивность: Профессиональное и лидерское развитие: Межкомандное взаимодействие: | G15: =IF(C15="","", IF(F$11=Графики!$A$24, (VLOOKUP(C15,'Данные для карточки'!$A$4:$BS$175,67,FALSE)&" место из 10"&CHAR(10)&VLOOKUP(C15,'Данные для карточки'!$A$4:$BS$175,68,FALSE)&" место из 10"&CHAR(10)&VLOOKUP(C15,'Данные для карточки'!$A$4:$BS$175,69,FALSE)&" место из 10"&CHAR(10)&VLOOKUP(C15,'Данные для карточки'!$A$4:$BS$175,70,FALSE)&" место из 10"&CHAR(10)&VLOOKUP(C15,'Данные для карточки'!$A$4:$BS$175,71,FALSE)&" место из 10"), IF(F$11=Графики!$A$25,(VLOOKUP(C15,'Данные для карточки'!$A$4:$BS$175,18,FALSE)&CHAR(10)&VLOOKUP(C15,'Данные для карточки'!$A$4:$BS$175,20,FALSE)&CHAR(10)&VLOOKUP(C15,'Данные для карточки'!$A$4:$BS$175,19,FALSE)&CHAR(10)&VLOOKUP(C15,'Данные для карточки'!$A$4:$BS$175,21,FALSE)&CHAR(10)&VLOOKUP(C15,'Данные для карточки'!$A$4:$BS$175,22,FALSE)))) ) -> 6 место из 10 5 место из 10 6 место из 10 6 место из 10 4 место из 10 | H15: =IF(C15="","",IF($H$11="ИНТЕГРАЛЬНЫЙ РЕЙТИНГ",VLOOKUP(C15,'Данные для карточки'!$A$4:$BS$175,67,FALSE),IF($H$11="РЕЗУЛЬТАТИВНОСТЬ",VLOOKUP(C15,'Данные для карточки'!$A$4:$BS$175,68,FALSE),IF($H$11="ПРОАКТИВНОСТЬ",VLOOKUP(C15,'Данные для карточки'!$A$4:$BS$175,69,FALSE),IF($H$11="ПРОФЕССИОНАЛЬНОЕ РАЗВИТИЕ",VLOOKUP(C15,'Данные для карточки'!$A$4:$BS$175,70,FALSE),IF($H$11="ЭФФЕКТИВНОЕ ВЗАИМОДЕЙСТВИЕ",VLOOKUP(C15,'Данные для карточки'!$A$4:$BS$175,71,FALSE))))))&" место из 10") -> 6 место из 10
C16: Кэрол Грейдер | D16: =IF(C16="",CHAR(10)&CHAR(10)&CHAR(10)&CHAR(10),"Место работы: "&CHAR(10)&CHAR(10)&"Должность: "&CHAR(10)&CHAR(10)&"Срок в должности: ") -> Место работы: Должность: Срок в должности: | E16: =IF(C16="","",(VLOOKUP(C16,'Данные для карточки'!$A$4:$BS$175,3,FALSE)&CHAR(10)&CHAR(10)&VLOOKUP(C16,'Данные для карточки'!$A$4:$BS$175,4,FALSE)&CHAR(10))&CHAR(10)&IF(INT(YEARFRAC(VLOOKUP(C16,'Данные для карточки'!A8:EG179,77,FALSE),TODAY()))=0,"",INT(YEARFRAC(VLOOKUP(C16,'Данные для карточки'!A8:EG179,77,FALSE),TODAY()))&IF(INT(YEARFRAC(VLOOKUP(C16,'Данные для карточки'!A8:EG179,77,FALSE),TODAY()))=1," год",IF(INT(YEARFRAC(VLOOKUP(C16,'Данные для карточки'!A8:EG179,77,FALSE),TODAY()))=2," года",IF(INT(YEARFRAC(VLOOKUP(C16,'Данные для карточки'!A8:EG179,77,FALSE),TODAY()))=3," года",IF(INT(YEARFRAC(VLOOKUP(C16,'Данные для карточки'!A8:EG179,77,FALSE),TODAY()))=4," года",IF(INT(YEARFRAC(VLOOKUP(C16,'Данные для карточки'!A8:EG179,77,FALSE),TODAY()))>4," лет"))))))&" "&IF(DATEDIF(VLOOKUP(C16,'Данные для карточки'!A8:EG179,77,0),TODAY(),"YM")=0,"",(DATEDIF(VLOOKUP(C16,'Данные для карточки'!A8:EG179,77,0),TODAY(),"YM")&" мес."))) -> Boing Начальник департамента защиты хромосом теломерами 3 года 2 мес. | F16: =IF(C16="","",IF(F$11=Графики!$A$24,("Интегральный: "&CHAR(10)&"Результативность: "&CHAR(10)&"Проактивность: "&CHAR(10)&"Профессиональное и лидерское развитие: "&CHAR(10)&"Межкомандное взаимодействие: "),IF(F$10=Графики!$A$23,"",IF(F$11=Графики!$A$25,("Общий результат: "&CHAR(10)&"Стратегическое видение: "&CHAR(10)&"Создание эффективной команды: "&CHAR(10)&"Руководящие навыки: "&CHAR(10)&"Способность действовать в условиях неопределенности: "))))) -> Интегральный: Результативность: Проактивность: Профессиональное и лидерское развитие: Межкомандное взаимодействие: | G16: =IF(C16="","", IF(F$11=Графики!$A$24, (VLOOKUP(C16,'Данные для карточки'!$A$4:$BS$175,67,FALSE)&" место из 10"&CHAR(10)&VLOOKUP(C16,'Данные для карточки'!$A$4:$BS$175,68,FALSE)&" место из 10"&CHAR(10)&VLOOKUP(C16,'Данные для карточки'!$A$4:$BS$175,69,FALSE)&" место из 10"&CHAR(10)&VLOOKUP(C16,'Данные для карточки'!$A$4:$BS$175,70,FALSE)&" место из 10"&CHAR(10)&VLOOKUP(C16,'Данные для карточки'!$A$4:$BS$175,71,FALSE)&" место из 10"), IF(F$11=Графики!$A$25,(VLOOKUP(C16,'Данные для карточки'!$A$4:$BS$175,18,FALSE)&CHAR(10)&VLOOKUP(C16,'Данные для карточки'!$A$4:$BS$175,20,FALSE)&CHAR(10)&VLOOKUP(C16,'Данные для карточки'!$A$4:$BS$175,19,FALSE)&CHAR(10)&VLOOKUP(C16,'Данные для карточки'!$A$4:$BS$175,21,FALSE)&CHAR(10)&VLOOKUP(C16,'Данные для карточки'!$A$4:$BS$175,22,FALSE)))) ) -> 7 место из 10 9 место из 10 5 место из 10 1 место из 10 8 место из 10 | H16: =IF(C16="","",IF($H$11="ИНТЕГРАЛЬНЫЙ РЕЙТИНГ",VLOOKUP(C16,'Данные для карточки'!$A$4:$BS$175,67,FALSE),IF($H$11="РЕЗУЛЬТАТИВНОСТЬ",VLOOKUP(C16,'Данные для карточки'!$A$4:$BS$175,68,FALSE),IF($H$11="ПРОАКТИВНОСТЬ",VLOOKUP(C16,'Данные для карточки'!$A$4:$BS$175,69,FALSE),IF($H$11="ПРОФЕССИОНАЛЬНОЕ РАЗВИТИЕ",VLOOKUP(C16,'Данные для карточки'!$A$4:$BS$175,70,FALSE),IF($H$11="ЭФФЕКТИВНОЕ ВЗАИМОДЕЙСТВИЕ",VLOOKUP(C16,'Данные для карточки'!$A$4:$BS$175,71,FALSE))))))&" место из 10") -> 7 место из 10
C17: Линда Бак | D17: =IF(C17="",CHAR(10)&CHAR(10)&CHAR(10)&CHAR(10),"Место работы: "&CHAR(10)&CHAR(10)&"Должность: "&CHAR(10)&CHAR(10)&"Срок в должности: ") -> Место работы: Должность: Срок в должности: | E17: =IF(C17="","",(VLOOKUP(C17,'Данные для карточки'!$A$4:$BS$175,3,FALSE)&CHAR(10)&CHAR(10)&VLOOKUP(C17,'Данные для карточки'!$A$4:$BS$175,4,FALSE)&CHAR(10))&CHAR(10)&IF(INT(YEARFRAC(VLOOKUP(C17,'Данные для карточки'!A9:EG180,77,FALSE),TODAY()))=0,"",INT(YEARFRAC(VLOOKUP(C17,'Данные для карточки'!A9:EG180,77,FALSE),TODAY()))&IF(INT(YEARFRAC(VLOOKUP(C17,'Данные для карточки'!A9:EG180,77,FALSE),TODAY()))=1," год",IF(INT(YEARFRAC(VLOOKUP(C17,'Данные для карточки'!A9:EG180,77,FALSE),TODAY()))=2," года",IF(INT(YEARFRAC(VLOOKUP(C17,'Данные для карточки'!A9:EG180,77,FALSE),TODAY()))=3," года",IF(INT(YEARFRAC(VLOOKUP(C17,'Данные для карточки'!A9:EG180,77,FALSE),TODAY()))=4," года",IF(INT(YEARFRAC(VLOOKUP(C17,'Данные для карточки'!A9:EG180,77,FALSE),TODAY()))>4," лет"))))))&" "&IF(DATEDIF(VLOOKUP(C17,'Данные для карточки'!A9:EG180,77,0),TODAY(),"YM")=0,"",(DATEDIF(VLOOKUP(C17,'Данные для карточки'!A9:EG180,77,0),TODAY(),"YM")&" мес."))) -> General Electrics Начальник управления организации органов обоняния 1 год 10 мес. | F17: =IF(C17="","",IF(F$11=Графики!$A$24,("Интегральный: "&CHAR(10)&"Результативность: "&CHAR(10)&"Проактивность: "&CHAR(10)&"Профессиональное и лидерское развитие: "&CHAR(10)&"Межкомандное взаимодействие: "),IF(F$10=Графики!$A$23,"",IF(F$11=Графики!$A$25,("Общий результат: "&CHAR(10)&"Стратегическое видение: "&CHAR(10)&"Создание эффективной команды: "&CHAR(10)&"Руководящие навыки: "&CHAR(10)&"Способность действовать в условиях неопределенности: "))))) -> Интегральный: Результативность: Проактивность: Профессиональное и лидерское развитие: Межкомандное взаимодействие: | G17: =IF(C17="","", IF(F$11=Графики!$A$24, (VLOOKUP(C17,'Данные для карточки'!$A$4:$BS$175,67,FALSE)&" место из 10"&CHAR(10)&VLOOKUP(C17,'Данные для карточки'!$A$4:$BS$175,68,FALSE)&" место из 10"&CHAR(10)&VLOOKUP(C17,'Данные для карточки'!$A$4:$BS$175,69,FALSE)&" место из 10"&CHAR(10)&VLOOKUP(C17,'Данные для карточки'!$A$4:$BS$175,70,FALSE)&" место из 10"&CHAR(10)&VLOOKUP(C17,'Данные для карточки'!$A$4:$BS$175,71,FALSE)&" место из 10"), IF(F$11=Графики!$A$25,(VLOOKUP(C17,'Данные для карточки'!$A$4:$BS$175,18,FALSE)&CHAR(10)&VLOOKUP(C17,'Данные для карточки'!$A$4:$BS$175,20,FALSE)&CHAR(10)&VLOOKUP(C17,'Данные для карточки'!$A$4:$BS$175,19,FALSE)&CHAR(10)&VLOOKUP(C17,'Данные для карточки'!$A$4:$BS$175,21,FALSE)&CHAR(10)&VLOOKUP(C17,'Данные для карточки'!$A$4:$BS$175,22,FALSE)))) ) -> 3 место из 10 1 место из 10 10 место из 10 4 место из 10 2 место из 10 | H17: =IF(C17="","",IF($H$11="ИНТЕГРАЛЬНЫЙ РЕЙТИНГ",VLOOKUP(C17,'Данные для карточки'!$A$4:$BS$175,67,FALSE),IF($H$11="РЕЗУЛЬТАТИВНОСТЬ",VLOOKUP(C17,'Данные для карточки'!$A$4:$BS$175,68,FALSE),IF($H$11="ПРОАКТИВНОСТЬ",VLOOKUP(C17,'Данные для карточки'!$A$4:$BS$175,69,FALSE),IF($H$11="ПРОФЕССИОНАЛЬНОЕ РАЗВИТИЕ",VLOOKUP(C17,'Данные для карточки'!$A$4:$BS$175,70,FALSE),IF($H$11="ЭФФЕКТИВНОЕ ВЗАИМОДЕЙСТВИЕ",VLOOKUP(C17,'Данные для карточки'!$A$4:$BS$175,71,FALSE))))))&" место из 10") -> 3 место из 10
C18: Мэй-Брит Мозер | D18: =IF(C18="",CHAR(10)&CHAR(10)&CHAR(10)&CHAR(10),"Место работы: "&CHAR(10)&CHAR(10)&"Должность: "&CHAR(10)&CHAR(10)&"Срок в должности: ") -> Место работы: Должность: Срок в должности: | E18: =IF(C18="","",(VLOOKUP(C18,'Данные для карточки'!$A$4:$BS$175,3,FALSE)&CHAR(10)&CHAR(10)&VLOOKUP(C18,'Данные для карточки'!$A$4:$BS$175,4,FALSE)&CHAR(10))&CHAR(10)&IF(INT(YEARFRAC(VLOOKUP(C18,'Данные для карточки'!A10:EG181,77,FALSE),TODAY()))=0,"",INT(YEARFRAC(VLOOKUP(C18,'Данные для карточки'!A10:EG181,77,FALSE),TODAY()))&IF(INT(YEARFRAC(VLOOKUP(C18,'Данные для карточки'!A10:EG181,77,FALSE),TODAY()))=1," год",IF(INT(YEARFRAC(VLOOKUP(C18,'Данные для карточки'!A10:EG181,77,FALSE),TODAY()))=2," года",IF(INT(YEARFRAC(VLOOKUP(C18,'Данные для карточки'!A10:EG181,77,FALSE),TODAY()))=3," года",IF(INT(YEARFRAC(VLOOKUP(C18,'Данные для карточки'!A10:EG181,77,FALSE),TODAY()))=4," года",IF(INT(YEARFRAC(VLOOKUP(C18,'Данные для карточки'!A10:EG181,77,FALSE),TODAY()))>4," лет"))))))&" "&IF(DATEDIF(VLOOKUP(C18,'Данные для карточки'!A10:EG181,77,0),TODAY(),"YM")=0,"",(DATEDIF(VLOOKUP(C18,'Данные для карточки'!A10:EG181,77,0),TODAY(),"YM")&" мес."))) -> Pan American Начальник департамента систем позиционирования 5 лет 2 мес. | F18: =IF(C18="","",IF(F$11=Графики!$A$24,("Интегральный: "&CHAR(10)&"Результативность: "&CHAR(10)&"Проактивность: "&CHAR(10)&"Профессиональное и лидерское развитие: "&CHAR(10)&"Межкомандное взаимодействие: "),IF(F$10=Графики!$A$23,"",IF(F$11=Графики!$A$25,("Общий результат: "&CHAR(10)&"Стратегическое видение: "&CHAR(10)&"Создание эффективной команды: "&CHAR(10)&"Руководящие навыки: "&CHAR(10)&"Способность действовать в условиях неопределенности: "))))) -> Интегральный: Результативность: Проактивность: Профессиональное и лидерское развитие: Межкомандное взаимодействие: | G18: =IF(C18="","", IF(F$11=Графики!$A$24, (VLOOKUP(C18,'Данные для карточки'!$A$4:$BS$175,67,FALSE)&" место из 10"&CHAR(10)&VLOOKUP(C18,'Данные для карточки'!$A$4:$BS$175,68,FALSE)&" место из 10"&CHAR(10)&VLOOKUP(C18,'Данные для карточки'!$A$4:$BS$175,69,FALSE)&" место из 10"&CHAR(10)&VLOOKUP(C18,'Данные для карточки'!$A$4:$BS$175,70,FALSE)&" место из 10"&CHAR(10)&VLOOKUP(C18,'Данные для карточки'!$A$4:$BS$175,71,FALSE)&" место из 10"), IF(F$11=Графики!$A$25,(VLOOKUP(C18,'Данные для карточки'!$A$4:$BS$175,18,FALSE)&CHAR(10)&VLOOKUP(C18,'Данные для карточки'!$A$4:$BS$175,20,FALSE)&CHAR(10)&VLOOKUP(C18,'Данные для карточки'!$A$4:$BS$175,19,FALSE)&CHAR(10)&VLOOKUP(C18,'Данные для карточки'!$A$4:$BS$175,21,FALSE)&CHAR(10)&VLOOKUP(C18,'Данные для карточки'!$A$4:$BS$175,22,FALSE)))) ) -> 4 место из 10 7 место из 10 4 место из 10 5 место из 10 3 место из 10 | H18: =IF(C18="","",IF($H$11="ИНТЕГРАЛЬНЫЙ РЕЙТИНГ",VLOOKUP(C18,'Данные для карточки'!$A$4:$BS$175,67,FALSE),IF($H$11="РЕЗУЛЬТАТИВНОСТЬ",VLOOKUP(C18,'Данные для карточки'!$A$4:$BS$175,68,FALSE),IF($H$11="ПРОАКТИВНОСТЬ",VLOOKUP(C18,'Данные для карточки'!$A$4:$BS$175,69,FALSE),IF($H$11="ПРОФЕССИОНАЛЬНОЕ РАЗВИТИЕ",VLOOKUP(C18,'Данные для карточки'!$A$4:$BS$175,70,FALSE),IF($H$11="ЭФФЕКТИВНОЕ ВЗАИМОДЕЙСТВИЕ",VLOOKUP(C18,'Данные для карточки'!$A$4:$BS$175,71,FALSE))))))&" место из 10") -> 4 место из 10
C19: Саймон Кузнец | D19: =IF(C19="",CHAR(10)&CHAR(10)&CHAR(10)&CHAR(10),"Место работы: "&CHAR(10)&CHAR(10)&"Должность: "&CHAR(10)&CHAR(10)&"Срок в должности: ") -> Место работы: Должность: Срок в должности: | E19: =IF(C19="","",(VLOOKUP(C19,'Данные для карточки'!$A$4:$BS$175,3,FALSE)&CHAR(10)&CHAR(10)&VLOOKUP(C19,'Данные для карточки'!$A$4:$BS$175,4,FALSE)&CHAR(10))&CHAR(10)&IF(INT(YEARFRAC(VLOOKUP(C19,'Данные для карточки'!A11:EG182,77,FALSE),TODAY()))=0,"",INT(YEARFRAC(VLOOKUP(C19,'Данные для карточки'!A11:EG182,77,FALSE),TODAY()))&IF(INT(YEARFRAC(VLOOKUP(C19,'Данные для карточки'!A11:EG182,77,FALSE),TODAY()))=1," год",IF(INT(YEARFRAC(VLOOKUP(C19,'Данные для карточки'!A11:EG182,77,FALSE),TODAY()))=2," года",IF(INT(YEARFRAC(VLOOKUP(C19,'Данные для карточки'!A11:EG182,77,FALSE),TODAY()))=3," года",IF(INT(YEARFRAC(VLOOKUP(C19,'Данные для карточки'!A11:EG182,77,FALSE),TODAY()))=4," года",IF(INT(YEARFRAC(VLOOKUP(C19,'Данные для карточки'!A11:EG182,77,FALSE),TODAY()))>4," лет"))))))&" "&IF(DATEDIF(VLOOKUP(C19,'Данные для карточки'!A11:EG182,77,0),TODAY(),"YM")=0,"",(DATEDIF(VLOOKUP(C19,'Данные для карточки'!A11:EG182,77,0),TODAY(),"YM")&" мес."))) -> Chrysler Руководитель направления социальной структуры 7 лет 5 мес. | F19: =IF(C19="","",IF(F$11=Графики!$A$24,("Интегральный: "&CHAR(10)&"Результативность: "&CHAR(10)&"Проактивность: "&CHAR(10)&"Профессиональное и лидерское развитие: "&CHAR(10)&"Межкомандное взаимодействие: "),IF(F$10=Графики!$A$23,"",IF(F$11=Графики!$A$25,("Общий результат: "&CHAR(10)&"Стратегическое видение: "&CHAR(10)&"Создание эффективной команды: "&CHAR(10)&"Руководящие навыки: "&CHAR(10)&"Способность действовать в условиях неопределенности: "))))) -> Интегральный: Результативность: Проактивность: Профессиональное и лидерское развитие: Межкомандное взаимодействие: | G19: =IF(C19="","", IF(F$11=Графики!$A$24, (VLOOKUP(C19,'Данные для карточки'!$A$4:$BS$175,67,FALSE)&" место из 10"&CHAR(10)&VLOOKUP(C19,'Данные для карточки'!$A$4:$BS$175,68,FALSE)&" место из 10"&CHAR(10)&VLOOKUP(C19,'Данные для карточки'!$A$4:$BS$175,69,FALSE)&" место из 10"&CHAR(10)&VLOOKUP(C19,'Данные для карточки'!$A$4:$BS$175,70,FALSE)&" место из 10"&CHAR(10)&VLOOKUP(C19,'Данные для карточки'!$A$4:$BS$175,71,FALSE)&" место из 10"), IF(F$11=Графики!$A$25,(VLOOKUP(C19,'Данные для карточки'!$A$4:$BS$175,18,FALSE)&CHAR(10)&VLOOKUP(C19,'Данные для карточки'!$A$4:$BS$175,20,FALSE)&CHAR(10)&VLOOKUP(C19,'Данные для карточки'!$A$4:$BS$175,19,FALSE)&CHAR(10)&VLOOKUP(C19,'Данные для карточки'!$A$4:$BS$175,21,FALSE)&CHAR(10)&VLOOKUP(C19,'Данные для карточки'!$A$4:$BS$175,22,FALSE)))) ) -> 1 место из 10 6 место из 10 2 место из 10 3 место из 10 1 место из 10 | H19: =IF(C19="","",IF($H$11="ИНТЕГРАЛЬНЫЙ РЕЙТИНГ",VLOOKUP(C19,'Данные для карточки'!$A$4:$BS$175,67,FALSE),IF($H$11="РЕЗУЛЬТАТИВНОСТЬ",VLOOKUP(C19,'Данные для карточки'!$A$4:$BS$175,68,FALSE),IF($H$11="ПРОАКТИВНОСТЬ",VLOOKUP(C19,'Данные для карточки'!$A$4:$BS$175,69,FALSE),IF($H$11="ПРОФЕССИОНАЛЬНОЕ РАЗВИТИЕ",VLOOKUP(C19,'Данные для карточки'!$A$4:$BS$175,70,FALSE),IF($H$11="ЭФФЕКТИВНОЕ ВЗАИМОДЕЙСТВИЕ",VLOOKUP(C19,'Данные для карточки'!$A$4:$BS$175,71,FALSE))))))&" место из 10") -> 1 место из 10
C20: Светлана Алексеевич | D20: =IF(C20="",CHAR(10)&CHAR(10)&CHAR(10)&CHAR(10),"Место работы: "&CHAR(10)&CHAR(10)&"Должность: "&CHAR(10)&CHAR(10)&"Срок в должности: ") -> Место работы: Должность: Срок в должности: | E20: =IF(C20="","",(VLOOKUP(C20,'Данные для карточки'!$A$4:$BS$175,3,FALSE)&CHAR(10)&CHAR(10)&VLOOKUP(C20,'Данные для карточки'!$A$4:$BS$175,4,FALSE)&CHAR(10))&CHAR(10)&IF(INT(YEARFRAC(VLOOKUP(C20,'Данные для карточки'!A12:EG183,77,FALSE),TODAY()))=0,"",INT(YEARFRAC(VLOOKUP(C20,'Данные для карточки'!A12:EG183,77,FALSE),TODAY()))&IF(INT(YEARFRAC(VLOOKUP(C20,'Данные для карточки'!A12:EG183,77,FALSE),TODAY()))=1," год",IF(INT(YEARFRAC(VLOOKUP(C20,'Данные для карточки'!A12:EG183,77,FALSE),TODAY()))=2," года",IF(INT(YEARFRAC(VLOOKUP(C20,'Данные для карточки'!A12:EG183,77,FALSE),TODAY()))=3," года",IF(INT(YEARFRAC(VLOOKUP(C20,'Данные для карточки'!A12:EG183,77,FALSE),TODAY()))=4," года",IF(INT(YEARFRAC(VLOOKUP(C20,'Данные для карточки'!A12:EG183,77,FALSE),TODAY()))>4," лет"))))))&" "&IF(DATEDIF(VLOOKUP(C20,'Данные для карточки'!A12:EG183,77,0),TODAY(),"YM")=0,"",(DATEDIF(VLOOKUP(C20,'Данные для карточки'!A12:EG183,77,0),TODAY(),"YM")&" мес."))) -> General Electrics Начальник управления многогласного творчества 6 лет 11 мес. | F20: =IF(C20="","",IF(F$11=Графики!$A$24,("Интегральный: "&CHAR(10)&"Результативность: "&CHAR(10)&"Проактивность: "&CHAR(10)&"Профессиональное и лидерское развитие: "&CHAR(10)&"Межкомандное взаимодействие: "),IF(F$10=Графики!$A$23,"",IF(F$11=Графики!$A$25,("Общий результат: "&CHAR(10)&"Стратегическое видение: "&CHAR(10)&"Создание эффективной команды: "&CHAR(10)&"Руководящие навыки: "&CHAR(10)&"Способность действовать в условиях неопределенности: "))))) -> Интегральный: Результативность: Проактивность: Профессиональное и лидерское развитие: Межкомандное взаимодействие: | G20: =IF(C20="","", IF(F$11=Графики!$A$24, (VLOOKUP(C20,'Данные для карточки'!$A$4:$BS$175,67,FALSE)&" место из 10"&CHAR(10)&VLOOKUP(C20,'Данные для карточки'!$A$4:$BS$175,68,FALSE)&" место из 10"&CHAR(10)&VLOOKUP(C20,'Данные для карточки'!$A$4:$BS$175,69,FALSE)&" место из 10"&CHAR(10)&VLOOKUP(C20,'Данные для карточки'!$A$4:$BS$175,70,FALSE)&" место из 10"&CHAR(10)&VLOOKUP(C20,'Данные для карточки'!$A$4:$BS$175,71,FALSE)&" место из 10"), IF(F$11=Графики!$A$25,(VLOOKUP(C20,'Данные для карточки'!$A$4:$BS$175,18,FALSE)&CHAR(10)&VLOOKUP(C20,'Данные для карточки'!$A$4:$BS$175,20,FALSE)&CHAR(10)&VLOOKUP(C20,'Данные для карточки'!$A$4:$BS$175,19,FALSE)&CHAR(10)&VLOOKUP(C20,'Данные для карточки'!$A$4:$BS$175,21,FALSE)&CHAR(10)&VLOOKUP(C20,'Данные для карточки'!$A$4:$BS$175,22,FALSE)))) ) -> 8 место из 10 8 место из 10 7 место из 10 9 место из 10 6 место из 10 | H20: =IF(C20="","",IF($H$11="ИНТЕГРАЛЬНЫЙ РЕЙТИНГ",VLOOKUP(C20,'Данные для карточки'!$A$4:$BS$175,67,FALSE),IF($H$11="РЕЗУЛЬТАТИВНОСТЬ",VLOOKUP(C20,'Данные для карточки'!$A$4:$BS$175,68,FALSE),IF($H$11="ПРОАКТИВНОСТЬ",VLOOKUP(C20,'Данные для карточки'!$A$4:$BS$175,69,FALSE),IF($H$11="ПРОФЕССИОНАЛЬНОЕ РАЗВИТИЕ",VLOOKUP(C20,'Данные для карточки'!$A$4:$BS$175,70,FALSE),IF($H$11="ЭФФЕКТИВНОЕ ВЗАИМОДЕЙСТВИЕ",VLOOKUP(C20,'Данные для карточки'!$A$4:$BS$175,71,FALSE))))))&" место из 10") -> 8 место из 10
C21: Эстер Дюфло | D21: =IF(C21="",CHAR(10)&CHAR(10)&CHAR(10)&CHAR(10),"Место работы: "&CHAR(10)&CHAR(10)&"Должность: "&CHAR(10)&CHAR(10)&"Срок в должности: ") -> Место работы: Должность: Срок в должности: | E21: =IF(C21="","",(VLOOKUP(C21,'Данные для карточки'!$A$4:$BS$175,3,FALSE)&CHAR(10)&CHAR(10)&VLOOKUP(C21,'Данные для карточки'!$A$4:$BS$175,4,FALSE)&CHAR(10))&CHAR(10)&IF(INT(YEARFRAC(VLOOKUP(C21,'Данные для карточки'!A13:EG184,77,FALSE),TODAY()))=0,"",INT(YEARFRAC(VLOOKUP(C21,'Данные для карточки'!A13:EG184,77,FALSE),TODAY()))&IF(INT(YEARFRAC(VLOOKUP(C21,'Данные для карточки'!A13:EG184,77,FALSE),TODAY()))=1," год",IF(INT(YEARFRAC(VLOOKUP(C21,'Данные для карточки'!A13:EG184,77,FALSE),TODAY()))=2," года",IF(INT(YEARFRAC(VLOOKUP(C21,'Данные для карточки'!A13:EG184,77,FALSE),TODAY()))=3," года",IF(INT(YEARFRAC(VLOOKUP(C21,'Данные для карточки'!A13:EG184,77,FALSE),TODAY()))=4," года",IF(INT(YEARFRAC(VLOOKUP(C21,'Данные для карточки'!A13:EG184,77,FALSE),TODAY()))>4," лет"))))))&" "&IF(DATEDIF(VLOOKUP(C21,'Данные для карточки'!A13:EG184,77,0),TODAY(),"YM")=0,"",(DATEDIF(VLOOKUP(C21,'Данные для карточки'!A13:EG184,77,0),TODAY(),"YM")&" мес."))) -> Johnson & Johnson Начальник департамента борьбы с глобальной бедностью 2 года 7 мес. | F21: =IF(C21="","",IF(F$11=Графики!$A$24,("Интегральный: "&CHAR(10)&"Результативность: "&CHAR(10)&"Проактивность: "&CHAR(10)&"Профессиональное и лидерское развитие: "&CHAR(10)&"Межкомандное взаимодействие: "),IF(F$10=Графики!$A$23,"",IF(F$11=Графики!$A$25,("Общий результат: "&CHAR(10)&"Стратегическое видение: "&CHAR(10)&"Создание эффективной команды: "&CHAR(10)&"Руководящие навыки: "&CHAR(10)&"Способность действовать в условиях неопределенности: "))))) -> Интегральный: Результативность: Проактивность: Профессиональное и лидерское развитие: Межкомандное взаимодействие: | G21: =IF(C21="","", IF(F$11=Графики!$A$24, (VLOOKUP(C21,'Данные для карточки'!$A$4:$BS$175,67,FALSE)&" место из 10"&CHAR(10)&VLOOKUP(C21,'Данные для карточки'!$A$4:$BS$175,68,FALSE)&" место из 10"&CHAR(10)&VLOOKUP(C21,'Данные для карточки'!$A$4:$BS$175,69,FALSE)&" место из 10"&CHAR(10)&VLOOKUP(C21,'Данные для карточки'!$A$4:$BS$175,70,FALSE)&" место из 10"&CHAR(10)&VLOOKUP(C21,'Данные для карточки'!$A$4:$BS$175,71,FALSE)&" место из 10"), IF(F$11=Графики!$A$25,(VLOOKUP(C21,'Данные для карточки'!$A$4:$BS$175,18,FALSE)&CHAR(10)&VLOOKUP(C21,'Данные для карточки'!$A$4:$BS$175,20,FALSE)&CHAR(10)&VLOOKUP(C21,'Данные для карточки'!$A$4:$BS$175,19,FALSE)&CHAR(10)&VLOOKUP(C21,'Данные для карточки'!$A$4:$BS$175,21,FALSE)&CHAR(10)&VLOOKUP(C21,'Данные для карточки'!$A$4:$BS$175,22,FALSE)))) ) -> 2 место из 10 4 место из 10 3 место из 10 2 место из 10 5 место из 10 | H21: =IF(C21="","",IF($H$11="ИНТЕГРАЛЬНЫЙ РЕЙТИНГ",VLOOKUP(C21,'Данные для карточки'!$A$4:$BS$175,67,FALSE),IF($H$11="РЕЗУЛЬТАТИВНОСТЬ",VLOOKUP(C21,'Данные для карточки'!$A$4:$BS$175,68,FALSE),IF($H$11="ПРОАКТИВНОСТЬ",VLOOKUP(C21,'Данные для карточки'!$A$4:$BS$175,69,FALSE),IF($H$11="ПРОФЕССИОНАЛЬНОЕ РАЗВИТИЕ",VLOOKUP(C21,'Данные для карточки'!$A$4:$BS$175,70,FALSE),IF($H$11="ЭФФЕКТИВНОЕ ВЗАИМОДЕЙСТВИЕ",VLOOKUP(C21,'Данные для карточки'!$A$4:$BS$175,71,FALSE))))))&" место из 10") -> 2 место из 10

Sheet Данные для фильтра (hidden)
B1: 2 | C1: 3 | D1: 4 | E1: 74 | F1: 77 | G1: 67 | H1: 68 | I1: 69 | J1: 70 | K1: 71 | L1: 72 | M1: 5 | N1: 6 | O1: 7 | P1: 8 | Q1: 9 | R1: 10 | S1: 11 | T1: 12 | U1: 13 | V1: 14 | W1: 15 | X1: 16 | Y1: 17 | Z1: 18 | AA1: 19 | AB1: 20 | AC1: 21 | AD1: 22 | AE1: 23 | AF1: 24 | AG1: 25 | AH1: 26 | AI1: 27 | AJ1: 28 | AK1: 29 | AL1: 30 | AM1: 31 | AN1: 32 | AO1: 33 | AP1: 34 | AQ1: 35 | AR1: 36 | AS1: 37 | AT1: 38 | AU1: 39 | AV1: 40 | AW1: 41 | AX1: 42 | AY1: 43 | AZ1: 44 | BA1: 45 | BB1: 46 | BC1: 47 | BD1: 48 | BE1: 49 | BF1: 50 | BG1: 51 | BH1: 52 | BI1: 53 | BJ1: 54 | BK1: 55 | BL1: 56 | BM1: 57 | BN1: 58 | BO1: 59 | BP1: 60 | BQ1: 61 | BR1: 62 | BS1: 63 | BT1: 64 | BU1: 65 | BV1: 66 | BW1: 67 | BX1: 68 | BY1: 69 | BZ1: 70 | CA1: 78 | CB1: 79 | CC1: 80 | CD1: 81 | CE1: 82 | CF1: 83 | CG1: 84 | CH1: 85 | CI1: 86 | CJ1: 87 | CK1: 88 | CL1: 89 | CM1: 90 | CN1: 91 | CO1: 92 | CP1: 93 | CQ1: 94 | CR1: 95 | CS1: 96 | CT1: 97 | CU1: 98 | CV1: 99 | CW1: 100 | CX1: 101 | CY1: 102 | CZ1: 103 | DA1: 104 | DB1: 105 | DC1: 106 | DD1: 107 | DE1: 108 | DF1: 109 | DG1: 110 | DH1: 111 | DI1: 112 | DJ1: 113 | DK1: 114 | DL1: 115 | DM1: 116 | DN1: 117 | DO1: 118 | DP1: 119 | DQ1: 120 | DR1: 121 | DS1: 122 | DT1: 123 | DU1: 124 | DV1: 125 | DW1: 126 | DX1: 127 | DY1: 128 | DZ1: 129 | EA1: 130 | EB1: 131 | EC1: 132 | ED1: 133 | EE1: 134 | EF1: 135 | EG1: 136 | EH1: 137 | EI1: 138 | EJ1: 139 | EK1: 140 | EL1: 141 | EM1: 142 | EN1: 143 | EO1: 144 | EP1: 145 | EQ1: 146
B2: Данные | G2: Диалоги о развитии | R2: Профиль компетенций ЗГД по закупкам (Lominger) min - 0 баллов max - 3 балла | W2: Индивидуальный профиль руководителя ОЦЕНКИ ПО БЛОКАМ НАВЫКОВ min - 1 max -7 | AE2: Индивидуальный профиль руководителя ОЦЕНКИ ПО ОТДЕЛЬНЫМ ШКАЛАМ min - 1 max -7 | BB2: Личностный опросник | BK2: Впечатления карьерного консультанта | BO2: Рейтингование
A3: ФИО | B3: Город проживания | C3: Место работы | D3: Должность | E3: Уровень должности | F3: Уровень владения Английским языком | G3: Ближайшие зоны развития | H3: Способы развития | I3: Предпочитаемая позиция | J3: Перейти в КЦ или продолжить в ДО? | K3: Возможная зона экспертизы | L3: Желаемый уровень должности | M3: Возможная Функция (Если не Закупки) | N3: География возможного переезда | O3: Мотивация для переезда | P3: Семейные обстоятельства, возможные ограничения | Q3: Альтернативный сценарий развития | R3: Общая оценка по профилю компетенций | S3: Создание эффективной команды | T3: Стратегическое видение | U3: Руководящие навыки | V3: Способность действовать в условиях неопределенности | W3: Блок I. Постановка целей и задач | X3: Блок II. Планирование и решение проблем | Y3: Блок III. Создание необходимых условий для выполнения работы | Z3: Блок IV. Обеспечение обратной связи | AA3: Блок V. Позитивный контроль | AB3: Блок VI. Признание заслуг | AC3: Блок VII. Эффективное взаимодействие с подчиненными | AD3: Блок VIII. Создание мотивирующей рабочей среды | AE3: A. Разъяснение целей и задач | AF3: B. Коммуникация с подчиненными | AG3: C. Тщательное планирование рабочего процесса | AH3: D. Знание особенностей конкретной компании | AI3: E. Обеспечение подчиненных ресурсами и информацией | AJ3: F. Предоставление обратной связи | AK3: G. Контроль времени (своевременное достижение поставленных задач) | AL3: H. Контроль деталей | AM3: I. Мотивация подчиненных на достижение целей | AN3: J. Делегирование полномочий | AO3: K. Поощрение за хорошо выполненную работу | AP3: L. Ориентация на людей (открытость и дружелюбие) | AQ3: M. Координация работы подчиненных | AR3: N. Создание условий для профессионального роста подчиненных | AS3: O. Наличие доверия подчиненных и руководства | AT3: P. Умение сделать работу интересной для подчиненных | AU3: Q. Профессиональная компетентность подчиненных | AV3: R. Создание сплоченной команды | AW3: S. Создание условий для должностного роста подчиненных | AX3: T. Уровень напряженности в коллективе | AY3: U. Забота о подчиненных | AZ3: V. Нематериальная мотивация | BA3: W. Мотивация подчиненных на качественное выполнение работы | BB3: Роль | BC3: E (Экстраверсия) человек получает энергию из внешнего мира через общение с людьми или совместную деятельность | BD3: I (Интроверсия) человек получает энергию из своего внутреннего мира: размышлений и визуализации | BE3: S (Ощущение) человек склонен обращать внимание на факты, детали окружающую действительность | BF3: N (Интуиция) человек склонен обращать внимание на взаимосвязи, теории и будущие возможности | BG3: T (Мышление) человек принимает решения, исходя из логического, объективного анализа | BH3: F (Чувство) человек склонен принимать решения, ориентируясь на личностные ценности, чтобы достичь гармонии | BI3: J (Суждение) человек склонен к организованности, порядку и быстрому принятию решений | BJ3: P (Восприятие) человек склонен к гибкости, адаптируется к изменениям и оттягивает принятие окончательного решения | BK3: Самая яркая черта участника | BL3: Сильные стороны участника, его возможности и перспективы | BM3: Зоны риска (короткими бизнесовыми предложениями. Если есть лишь предположение/гипотеза об участнике, используйте слова "возможно" и т.п.) | BN3: Зоны развития (то, что попало в ИПР, описать буллитами) | BO3: ИНТЕГРАЛЬНЫЙ | BP3: РЕЗУЛЬТАТИВНОСТЬ | BQ3: ПРОАКТИВНОСТЬ | BR3: ПРОФЕССИОНАЛЬНОЕ РАЗВИТИЕ | BS3: ЭФФЕКТИВНОЕ ВЗАИМОДЕЙСТВИЕ | BT3: Общее значение компетенции | BU3: Город переезда | BV3: Роль | BW3: Состав | BX3: Описание | BY3: Дата вступления в должность | BZ3: Дата рождения
A4: Василий Леонтьев | B4: Лондон | C4: Johnson & Johnson | D4: Начальник управления межотраслевого анализа | E4: ГД-3 | F4: Средний | G4: коммуникации, эмоциональная устойчивость, самомотивация, "освежить" лидерство и мотивацию людей. А также разбираться лучше в логистике и складском учете. | H4: тренинги, коучинг, обмен опытом, книги | I4: Лидер | J4: Дочернее общество | K4: - | L4: руководитель | M4: кросс- функции, бизнес-девеломпент, HR, консалтинг, проектное управление, HSE | N4: Санкт-Петербург, НЕ регионы | O4: - | P4: нет | Q4: может продолжить в своей функции, так и рассматривает другие варианты. Интересно- кросс-функции, консалтинг, проектное управление , бизнес-девеломпент, HR, HSE | R4: 6 из 12 | S4: 1 из 3 | T4: 0 из 3 | U4: 2 из 3 | V4: 3 из 3 | W4: 4.3 | X4: 4.63 | Y4: 5.7 | Z4: 4.8 | AA4: 3.85 | AB4: 5.6 | AC4: 5.75 | AD4: 4.64 | AE4: 4.3 | AF4: 5.3 | AG4: 3.6 | AH4: 5 | AI4: 5.7 | AJ4: 4.8 | AK4: 4.3 | AL4: 2.6 | AM4: 3.2 | AN4: 5.3 | AO4: 5.6 | AP4: 6.2 | AQ4: 6 | AR4: 5.3 | AS4: 5.5 | AT4: 4.8 | AU4: 5.5 | AV4: 6.2 | AW4: 3.3 | AX4: 3.5 | AY4: 3.6 | AZ4: 5.2 | BA4: 5 | BB4: МАСТЕР / УМЕЛЕЦ / ВИРТУОЗ ISTP: интроверт, сенсорик, логик, иррационал | BC4: 10 | BD4: 19 | BE4: 13 | BF4: 12 | BG4: 11 | BH4: 7 | BI4: 11 | BJ4: 18 | BK4: Консервативный лидер. Очень опытный, сбалансированный, спокойный. | BL4: Ответственный. Способен выстраивать хорошие отношения с командой. Четкий, структурированный, устойчивый и в хорошем смысле предсказуемый. «Нет предела совершенству» - всегда готов учиться и развиваться. | BM4: Иногда излишне контролирует подчиненных, чтобы не приходилось их наказывать за ошибки. Эмоционален. Вероятно, иногда отстаивает свое мнение слишком настойчиво. Считает своей зоной развития - гибкость. | BN4: 0 | BO4: 10 | BP4: 3 | BQ4: 9 | BR4: 7 | BS4: 10 | BT4: 6 | BU4: Париж | BV4: МАСТЕР / УМЕЛЕЦ / ВИРТУОЗ | BW4: ISTP: интроверт, сенсорик, логик, иррационал | BX4: Люди с данной ролью, более расположены выжидать, анализировать ситуацию, нежели сразу предлагать свое решение и бросаться в бой. Сосредоточенные на себе, склонные к объективности в принятии решений. Проявляют эмпатию, тонко чувствуют других людей, отвергают искусственность и фальшь. Отличаются техническим складом ума, любят работать руками, при этом всегда укладываясь в нужные сроки. Обычно бывают терпеливы, аккуратны. Свято верят в принцип экономии усилий; большим достоинством является умение тщательно рассчитать, сколько усилий необходимо затратить, и поступить в соответствии с ситуацией. | BY4: 2013-04-19 | BZ4: 1986-07-23
A5: Василий Леонтьев | B5: Лондон | C5: Johnson & Johnson | D5: Начальник управления межотраслевого анализа | E5: ГД-3 | F5: Средний | G5: коммуникации, эмоциональная устойчивость, самомотивация, "освежить" лидерство и мотивацию людей. А также разбираться лучше в логистике и складском учете. | H5: тренинги, коучинг, обмен опытом, книги | I5: Лидер | J5: Дочернее общество | K5: - | L5: руководитель | M5: кросс- функции, бизнес-девеломпент, HR, консалтинг, проектное управление, HSE | N5: Санкт-Петербург, НЕ регионы | O5: - | P5: нет | Q5: может продолжить в своей функции, так и рассматривает другие варианты. Интересно- кросс-функции, консалтинг, проектное управление , бизнес-девеломпент, HR, HSE | R5: 6 из 12 | S5: 1 из 3 | T5: 0 из 3 | U5: 2 из 3 | V5: 3 из 3 | W5: 4.3 | X5: 4.63 | Y5: 5.7 | Z5: 4.8 | AA5: 3.85 | AB5: 5.6 | AC5: 5.75 | AD5: 4.64 | AE5: 4.3 | AF5: 5.3 | AG5: 3.6 | AH5: 5 | AI5: 5.7 | AJ5: 4.8 | AK5: 4.3 | AL5: 2.6 | AM5: 3.2 | AN5: 5.3 | AO5: 5.6 | AP5: 6.2 | AQ5: 6 | AR5: 5.3 | AS5: 5.5 | AT5: 4.8 | AU5: 5.5 | AV5: 6.2 | AW5: 3.3 | AX5: 3.5 | AY5: 3.6 | AZ5: 5.2 | BA5: 5 | BB5: МАСТЕР / УМЕЛЕЦ / ВИРТУОЗ ISTP: интроверт, сенсорик, логик, иррационал | BC5: 10 | BD5: 19 | BE5: 13 | BF5: 12 | BG5: 11 | BH5: 7 | BI5: 11 | BJ5: 18 | BK5: Консервативный лидер. Очень опытный, сбалансированный, спокойный. | BL5: Ответственный. Способен выстраивать хорошие отношения с командой. Четкий, структурированный, устойчивый и в хорошем смысле предсказуемый. «Нет предела совершенству» - всегда готов учиться и развиваться. | BM5: Иногда излишне контролирует подчиненных, чтобы не приходилось их наказывать за ошибки. Эмоционален. Вероятно, иногда отстаивает свое мнение слишком настойчиво. Считает своей зоной развития - гибкость. | BN5: 0 | BO5: 10 | BP5: 3 | BQ5: 9 | BR5: 7 | BS5: 10 | BT5: 6 | BU5: Варшава | BV5: МАСТЕР / УМЕЛЕЦ / ВИРТУОЗ | BW5: ISTP: интроверт, сенсорик, логик, иррационал | BX5: Люди с данной ролью, более расположены выжидать, анализировать ситуацию, нежели сразу предлагать свое решение и бросаться в бой. Сосредоточенные на себе, склонные к объективности в принятии решений. Проявляют эмпатию, тонко чувствуют других людей, отвергают искусственность и фальшь. Отличаются техническим складом ума, любят работать руками, при этом всегда укладываясь в нужные сроки. Обычно бывают терпеливы, аккуратны. Свято верят в принцип экономии усилий; большим достоинством является умение тщательно рассчитать, сколько усилий необходимо затратить, и поступить в соответствии с ситуацией. | BY5: 2013-04-19 | BZ5: 1986-07-23
A6: Василий Леонтьев | B6: Лондон | C6: Johnson & Johnson | D6: Начальник управления межотраслевого анализа | E6: ГД-3 | F6: Средний | G6: коммуникации, эмоциональная устойчивость, самомотивация, "освежить" лидерство и мотивацию людей. А также разбираться лучше в логистике и складском учете. | H6: тренинги, коучинг, обмен опытом, книги | I6: Лидер | J6: Дочернее общество | K6: - | L6: руководитель | M6: кросс- функции, бизнес-девеломпент, HR, консалтинг, проектное управление, HSE | N6: Санкт-Петербург, НЕ регионы | O6: - | P6: нет | Q6: может продолжить в своей функции, так и рассматривает другие варианты. Интересно- кросс-функции, консалтинг, проектное управление , бизнес-девеломпент, HR, HSE | R6: 6 из 12 | S6: 1 из 3 | T6: 0 из 3 | U6: 2 из 3 | V6: 3 из 3 | W6: 4.3 | X6: 4.63 | Y6: 5.7 | Z6: 4.8 | AA6: 3.85 | AB6: 5.6 | AC6: 5.75 | AD6: 4.64 | AE6: 4.3 | AF6: 5.3 | AG6: 3.6 | AH6: 5 | AI6: 5.7 | AJ6: 4.8 | AK6: 4.3 | AL6: 2.6 | AM6: 3.2 | AN6: 5.3 | AO6: 5.6 | AP6: 6.2 | AQ6: 6 | AR6: 5.3 | AS6: 5.5 | AT6: 4.8 | AU6: 5.5 | AV6: 6.2 | AW6: 3.3 | AX6: 3.5 | AY6: 3.6 | AZ6: 5.2 | BA6: 5 | BB6: МАСТЕР / УМЕЛЕЦ / ВИРТУОЗ ISTP: интроверт, сенсорик, логик, иррационал | BC6: 10 | BD6: 19 | BE6: 13 | BF6: 12 | BG6: 11 | BH6: 7 | BI6: 11 | BJ6: 18 | BK6: Консервативный лидер. Очень опытный, сбалансированный, спокойный. | BL6: Ответственный. Способен выстраивать хорошие отношения с командой. Четкий, структурированный, устойчивый и в хорошем смысле предсказуемый. «Нет предела совершенству» - всегда готов учиться и развиваться. | BM6: Иногда излишне контролирует подчиненных, чтобы не приходилось их наказывать за ошибки. Эмоционален. Вероятно, иногда отстаивает свое мнение слишком настойчиво. Считает своей зоной развития - гибкость. | BN6: 0 | BO6: 10 | BP6: 3 | BQ6: 9 | BR6: 7 | BS6: 10 | BT6: 6 | BU6: Мадрид | BV6: МАСТЕР / УМЕЛЕЦ / ВИРТУОЗ | BW6: ISTP: интроверт, сенсорик, логик, иррационал | BX6: Люди с данной ролью, более расположены выжидать, анализировать ситуацию, нежели сразу предлагать свое решение и бросаться в бой. Сосредоточенные на себе, склонные к объективности в принятии решений. Проявляют эмпатию, тонко чувствуют других людей, отвергают искусственность и фальшь. Отличаются техническим складом ума, любят работать руками, при этом всегда укладываясь в нужные сроки. Обычно бывают терпеливы, аккуратны. Свято верят в принцип экономии усилий; большим достоинством является умение тщательно рассчитать, сколько усилий необходимо затратить, и поступить в соответствии с ситуацией. | BY6: 2013-04-19 | BZ6: 1986-07-23
A7: Гуннар Мюрдаль | B7: Париж | C7: Chrysler | D7: Начальник департамента взаимозависимости явлений | E7: ГД-2 | F7: Средний | G7: Отчетливого запроса нет. Любит нестандартные неповторяющиеся задачи и развивается по ходу выполнения | H7: Интересно учиться в диалоге, во взаимодействии. Много читает для саморазвития | I7: Менеджер | J7: Не имеет значения | K7: - | L7: Ориентирована на повышение до следующего уровня. В данной должности видит смысл максимум на год | M7: Продажи. Управление услугами. Цифровизация. Использование РИД | N7: "Не где, а с кем и насколько интересно". (Работала в Москве, в англоязычных странах). | O7: Интересный кейс, возможность проявить себя | P7: Ребенок 4 года. Климат локации важен. Новый Порт и аналогичные локации не привлекают | Q7: Мыслит трехлетними периодами. В целом лояльна, но готова к смене карьеры в случае, если здесь станет недостаточно интересных новых задач | R7: 8 из 12 | S7: 2 из 3 | T7: 1 из 3 | U7: 2 из 3 | V7: 3 из 3 | W7: 5.7 | X7: 5.2 | Y7: 6.3 | Z7: 5.6 | AA7: 4.78 | AB7: 5.9 | AC7: 6.05 | AD7: 5.13 | AE7: 5.7 | AF7: 5.5 | AG7: 5 | AH7: 5.1 | AI7: 6.3 | AJ7: 5.6 | AK7: 5.2 | AL7: 3.6 | AM7: 4.5 | AN7: 5.8 | AO7: 5.9 | AP7: 5.8 | AQ7: 6.5 | AR7: 5.8 | AS7: 6.1 | AT7: 5.8 | AU7: 5 | AV7: 6 | AW7: 5.2 | AX7: 3.5 | AY7: 4.8 | AZ7: 5.2 | BA7: 5.5 | BB7: МАРШАЛ / ДЕЛЕЦ / НЕПОСЕДА ESTP: экстраверт, сенсорик, логик, иррационал | BC7: 20 | BD7: 9 | BE7: 17 | BF7: 8 | BG7: 20 | BH7: 4 | BI7: 9 | BJ7: 21 | BK7: Уравновешен, умеет слышать другого, но в ситуациях стресса и неопределенности может теряться, с его слов, ему необходимо взять паузу, чтобы разобраться с фактами | BL7: Взвешенность, конструктивность, готовность слышать и учитывать точки зрения других | BM7: Навыки влияния в коммуникации, особенно с вышестоящими, Стрессоустойчивость в ситуации публичных выступлений. Умение быстро действовать в условиях неопределенности. Возможно - поддержание эмоционального климата в коллективе. | BN7: 0 | BO7: 9 | BP7: 2 | BQ7: 8 | BR7: 8 | BS7: 9 | BT7: 8 | BU7: Мадрид | BV7: МАРШАЛ / ДЕЛЕЦ / НЕПОСЕДА | BW7: ESTP: экстраверт, сенсорик, логик, иррационал | BX7: Люди с данной ролью изобретательны. Дружелюбны, привлекательны, с заметным элементом театральности. Социально искусны, прекрасно манипулируют людьми и ситуациями. Все действия рассчитаны на аудиторию. Остроумны, умеют пошутить. Увлекаются рискованными затеями. Безудержные прагматисты – цель оправдывает средства. Незаменимы в организации деятельности многих людей, требующей согласования, переговоров. Отношения с другими непредсказуемы и очень зависят от того, что от них можно получить. Плохо переносят беспокойство и стремятся избегать ситуаций напряженных отношений. | BY7: 2019-11-06 | BZ7: 1963-07-24
A8: Гуннар Мюрдаль | B8: Париж | C8: Chrysler | D8: Начальник департамента взаимозависимости явлений | E8: ГД-2 | F8: Средний | G8: Отчетливого запроса нет. Любит нестандартные неповторяющиеся задачи и развивается по ходу выполнения | H8: Интересно учиться в диалоге, во взаимодействии. Много читает для саморазвития | I8: Менеджер | J8: Не имеет значения | K8: - | L8: Ориентирована на повышение до следующего уровня. В данной должности видит смысл максимум на год | M8: Продажи. Управление услугами. Цифровизация. Использование РИД | N8: "Не где, а с кем и насколько интересно". (Работала в Москве, в англоязычных странах). | O8: Интересный кейс, возможность проявить себя | P8: Ребенок 4 года. Климат локации важен. Новый Порт и аналогичные локации не привлекают | Q8: Мыслит трехлетними периодами. В целом лояльна, но готова к смене карьеры в случае, если здесь станет недостаточно интересных новых задач | R8: 8 из 12 | S8: 2 из 3 | T8: 1 из 3 | U8: 2 из 3 | V8: 3 из 3 | W8: 5.7 | X8: 5.2 | Y8: 6.3 | Z8: 5.6 | AA8: 4.78 | AB8: 5.9 | AC8: 6.05 | AD8: 5.13 | AE8: 5.7 | AF8: 5.5 | AG8: 5 | AH8: 5.1 | AI8: 6.3 | AJ8: 5.6 | AK8: 5.2 | AL8: 3.6 | AM8: 4.5 | AN8: 5.8 | AO8: 5.9 | AP8: 5.8 | AQ8: 6.5 | AR8: 5.8 | AS8: 6.1 | AT8: 5.8 | AU8: 5 | AV8: 6 | AW8: 5.2 | AX8: 3.5 | AY8: 4.8 | AZ8: 5.2 | BA8: 5.5 | BB8: МАРШАЛ / ДЕЛЕЦ / НЕПОСЕДА ESTP: экстраверт, сенсорик, логик, иррационал | BC8: 20 | BD8: 9 | BE8: 17 | BF8: 8 | BG8: 20 | BH8: 4 | BI8: 9 | BJ8: 21 | BK8: Уравновешен, умеет слышать другого, но в ситуациях стресса и неопределенности может теряться, с его слов, ему необходимо взять паузу, чтобы разобраться с фактами | BL8: Взвешенность, конструктивность, готовность слышать и учитывать точки зрения других | BM8: Навыки влияния в коммуникации, особенно с вышестоящими, Стрессоустойчивость в ситуации публичных выступлений. Умение быстро действовать в условиях неопределенности. Возможно - поддержание эмоционального климата в коллективе. | BN8: 0 | BO8: 9 | BP8: 2 | BQ8: 8 | BR8: 8 | BS8: 9 | BT8: 8 | BU8: Афины | BV8: МАРШАЛ / ДЕЛЕЦ / НЕПОСЕДА | BW8: ESTP: экстраверт, сенсорик, логик, иррационал | BX8: Люди с данной ролью изобретательны. Дружелюбны, привлекательны, с заметным элементом театральности. Социально искусны, прекрасно манипулируют людьми и ситуациями. Все действия рассчитаны на аудиторию. Остроумны, умеют пошутить. Увлекаются рискованными затеями. Безудержные прагматисты – цель оправдывает средства. Незаменимы в организации деятельности многих людей, требующей согласования, переговоров. Отношения с другими непредсказуемы и очень зависят от того, что от них можно получить. Плохо переносят беспокойство и стремятся избегать ситуаций напряженных отношений. | BY8: 2019-11-06 | BZ8: 1963-07-24
A9: Гуннар Мюрдаль | B9: Париж | C9: Chrysler | D9: Начальник департамента взаимозависимости явлений | E9: ГД-2 | F9: Средний | G9: Отчетливого запроса нет. Любит нестандартные неповторяющиеся задачи и развивается по ходу выполнения | H9: Интересно учиться в диалоге, во взаимодействии. Много читает для саморазвития | I9: Менеджер | J9: Не имеет значения | K9: - | L9: Ориентирована на повышение до следующего уровня. В данной должности видит смысл максимум на год | M9: Продажи. Управление услугами. Цифровизация. Использование РИД | N9: "Не где, а с кем и насколько интересно". (Работала в Москве, в англоязычных странах). | O9: Интересный кейс, возможность проявить себя | P9: Ребенок 4 года. Климат локации важен. Новый Порт и аналогичные локации не привлекают | Q9: Мыслит трехлетними периодами. В целом лояльна, но готова к смене карьеры в случае, если здесь станет недостаточно интересных новых задач | R9: 8 из 12 | S9: 2 из 3 | T9: 1 из 3 | U9: 2 из 3 | V9: 3 из 3 | W9: 5.7 | X9: 5.2 | Y9: 6.3 | Z9: 5.6 | AA9: 4.78 | AB9: 5.9 | AC9: 6.05 | AD9: 5.13 | AE9: 5.7 | AF9: 5.5 | AG9: 5 | AH9: 5.1 | AI9: 6.3 | AJ9: 5.6 | AK9: 5.2 | AL9: 3.6 | AM9: 4.5 | AN9: 5.8 | AO9: 5.9 | AP9: 5.8 | AQ9: 6.5 | AR9: 5.8 | AS9: 6.1 | AT9: 5.8 | AU9: 5 | AV9: 6 | AW9: 5.2 | AX9: 3.5 | AY9: 4.8 | AZ9: 5.2 | BA9: 5.5 | BB9: МАРШАЛ / ДЕЛЕЦ / НЕПОСЕДА ESTP: экстраверт, сенсорик, логик, иррационал | BC9: 20 | BD9: 9 | BE9: 17 | BF9: 8 | BG9: 20 | BH9: 4 | BI9: 9 | BJ9: 21 | BK9: Уравновешен, умеет слышать другого, но в ситуациях стресса и неопределенности может теряться, с его слов, ему необходимо взять паузу, чтобы разобраться с фактами | BL9: Взвешенность, конструктивность, готовность слышать и учитывать точки зрения других | BM9: Навыки влияния в коммуникации, особенно с вышестоящими, Стрессоустойчивость в ситуации публичных выступлений. Умение быстро действовать в условиях неопределенности. Возможно - поддержание эмоционального климата в коллективе. | BN9: 0 | BO9: 9 | BP9: 2 | BQ9: 8 | BR9: 8 | BS9: 9 | BT9: 8 | BU9: Варшава | BV9: МАРШАЛ / ДЕЛЕЦ / НЕПОСЕДА | BW9: ESTP: экстраверт, сенсорик, логик, иррационал | BX9: Люди с данной ролью изобретательны. Дружелюбны, привлекательны, с заметным элементом театральности. Социально искусны, прекрасно манипулируют людьми и ситуациями. Все действия рассчитаны на аудиторию. Остроумны, умеют пошутить. Увлекаются рискованными затеями. Безудержные прагматисты – цель оправдывает средства. Незаменимы в организации деятельности многих людей, требующей согласования, переговоров. Отношения с другими непредсказуемы и очень зависят от того, что от них можно получить. Плохо переносят беспокойство и стремятся избегать ситуаций напряженных отношений. | BY9: 2019-11-06 | BZ9: 1963-07-24
A10: Джон Ричард Хикс | B10: Мюнхен | C10: Chevron Corporation | D10: Руководитель направления равновесия и благосостояния | E10: ГД-4 | F10: Средний | G10: 0 | H10: Тренинги. Самообразование. Участие в конференциях (не корпоративных, а с более широким участием, лучше международным). «Посмотреть на инструменты, попробовать» | I10: Лидер | J10: Не имеет значения | K10: - | L10: Через год закрепиться операционным директором. Через 3 года ГД | M10: Едва ли закупки. Интереснее бизнес, управление проектами | N10: В целом готов к переездам, делал это многократно | O10: Интересные задачи. Демотивация — отсутствие возможности принятия решений | P10: Жена привыкла к переездам и готова, многократно переезжали, но сейчас ребенку 4 года. Локация «совсем без цивилизации» не подойдет, потому что важно развитие ребенка | Q10: Создание эффективной системы в большой компании. Интересна роль тренера, спикера для большой аудитории. Работал в разных отраслях, дальше тоже не исключает смены отрасли, если там будет интересно. | R10: 6 из 12 | S10: 2 из 3 | T10: 0 из 3 | U10: 2 из 3 | V10: 2 из 3 | W10: 5.7 | X10: 5.43 | Y10: 5.2 | Z10: 5.3 | AA10: 4.95 | AB10: 6.7 | AC10: 6.23 | AD10: 4.75 | AE10: 5.7 | AF10: 5.6 | AG10: 5.4 | AH10: 5.3 | AI10: 5.2 | AJ10: 5.3 | AK10: 5.8 | AL10: 4.2 | AM10: 4.8 | AN10: 5 | AO10: 6.7 | AP10: 6 | AQ10: 6.2 | AR10: 6.3 | AS10: 6.4 | AT10: 5.4 | AU10: 3.7 | AV10: 5.5 | AW10: 5.2 | AX10: 3.8 | AY10: 5.2 | AZ10: 5 | BA10: 4.2 | BB10: АДМИНИСТРАТОР / РЕАЛИСТ / РУКОВОДИТЕЛЬ ESTJ: экстраверт, сенсорик, логик, рационал | BC10: 16 | BD10: 10 | BE10: 18 | BF10: 5 | BG10: 27 | BH10: 0 | BI10: 21 | BJ10: 7 | BK10: Молодой, проактивный, временами резкий с командой. Готов меняться и развиваться. Больше индивидуалист, чем командный игрок | BL10: Умеет принимать смелые и быстрые решения. Стремится контролировать все ключевые аспекты ситуации. Активно работает над собой и своей эффективностью как лидера. Наиболее продуктивен тогда, когда может принимать решения самостоятельно | BM10: Чувствует себя некомфортно в ситуациях, которые ему неподконтрольны. Может быть резок с подчиненными и демотивировать их своей обратной связью (обозначили как первоочередную зону роста). Недостаточны навыки предоставления позитивной обратной связи и мотивации команды. Также целесообразно усиливать навыки делегирования. Испытывает демотивацию в случае отсутствия интересных задач, при невозможности принимать самостоятельные решения и однообразных задачах | BN10: 0 | BO10: 5 | BP10: 10 | BQ10: 1 | BR10: 10 | BS10: 7 | BT10: 6 | BU10: Афины | BV10: ЭНТУЗИАСТ / ВОСПИТАТЕЛЬ / УЧИТЕЛЬ | BW10: ESFJ: экстраверт, сенсорик, этик, рационал. | BY10: 2011-12-03 | BZ10: 1983-04-12
A11: Джон Ричард Хикс | B11: Мюнхен | C11: Chevron Corporation | D11: Руководитель направления равновесия и благосостояния | E11: ГД-4 | F11: Средний | G11: 0 | H11: Тренинги. Самообразование. Участие в конференциях (не корпоративных, а с более широким участием, лучше международным). «Посмотреть на инструменты, попробовать» | I11: Лидер | J11: Не имеет значения | K11: - | L11: Через год закрепиться операционным директором. Через 3 года ГД | M11: Едва ли закупки. Интереснее бизнес, управление проектами | N11: В целом готов к переездам, делал это многократно | O11: Интересные задачи. Демотивация — отсутствие возможности принятия решений | P11: Жена привыкла к переездам и готова, многократно переезжали, но сейчас ребенку 4 года. Локация «совсем без цивилизации» не подойдет, потому что важно развитие ребенка | Q11: Создание эффективной системы в большой компании. Интересна роль тренера, спикера для большой аудитории. Работал в разных отраслях, дальше тоже не исключает смены отрасли, если там будет интересно. | R11: 6 из 12 | S11: 2 из 3 | T11: 0 из 3 | U11: 2 из 3 | V11: 2 из 3 | W11: 5.7 | X11: 5.43 | Y11: 5.2 | Z11: 5.3 | AA11: 4.95 | AB11: 6.7 | AC11: 6.23 | AD11: 4.75 | AE11: 5.7 | AF11: 5.6 | AG11: 5.4 | AH11: 5.3 | AI11: 5.2 | AJ11: 5.3 | AK11: 5.8 | AL11: 4.2 | AM11: 4.8 | AN11: 5 | AO11: 6.7 | AP11: 6 | AQ11: 6.2 | AR11: 6.3 | AS11: 6.4 | AT11: 5.4 | AU11: 3.7 | AV11: 5.5 | AW11: 5.2 | AX11: 3.8 | AY11: 5.2 | AZ11: 5 | BA11: 4.2 | BB11: АДМИНИСТРАТОР / РЕАЛИСТ / РУКОВОДИТЕЛЬ ESTJ: экстраверт, сенсорик, логик, рационал | BC11: 16 | BD11: 10 | BE11: 18 | BF11: 5 | BG11: 27 | BH11: 0 | BI11: 21 | BJ11: 7 | BK11: Молодой, проактивный, временами резкий с командой. Готов меняться и развиваться. Больше индивидуалист, чем командный игрок | BL11: Умеет принимать смелые и быстрые решения. Стремится контролировать все ключевые аспекты ситуации. Активно работает над собой и своей эффективностью как лидера. Наиболее продуктивен тогда, когда может принимать решения самостоятельно | BM11: Чувствует себя некомфортно в ситуациях, которые ему неподконтрольны. Может быть резок с подчиненными и демотивировать их своей обратной связью (обозначили как первоочередную зону роста). Недостаточны навыки предоставления позитивной обратной связи и мотивации команды. Также целесообразно усиливать навыки делегирования. Испытывает демотивацию в случае отсутствия интересных задач, при невозможности принимать самостоятельные решения и однообразных задачах | BN11: 0 | BO11: 5 | BP11: 10 | BQ11: 1 | BR11: 10 | BS11: 7 | BT11: 6 | BU11: Мадрид | BV11: ЭНТУЗИАСТ / ВОСПИТАТЕЛЬ / УЧИТЕЛЬ | BW11: ESFJ: экстраверт, сенсорик, этик, рационал. | BY11: 2011-12-03 | BZ11: 1983-04-12
A12: Джон Ричард Хикс | B12: Мюнхен | C12: Chevron Corporation | D12: Руководитель направления равновесия и благосостояния | E12: ГД-4 | F12: Средний | G12: 0 | H12: Тренинги. Самообразование. Участие в конференциях (не корпоративных, а с более широким участием, лучше международным). «Посмотреть на инструменты, попробовать» | I12: Лидер | J12: Не имеет значения | K12: - | L12: Через год закрепиться операционным директором. Через 3 года ГД | M12: Едва ли закупки. Интереснее бизнес, управление проектами | N12: В целом готов к переездам, делал это многократно | O12: Интересные задачи. Демотивация — отсутствие возможности принятия решений | P12: Жена привыкла к переездам и готова, многократно переезжали, но сейчас ребенку 4 года. Локация «совсем без цивилизации» не подойдет, потому что важно развитие ребенка | Q12: Создание эффективной системы в большой компании. Интересна роль тренера, спикера для большой аудитории. Работал в разных отраслях, дальше тоже не исключает смены отрасли, если там будет интересно. | R12: 6 из 12 | S12: 2 из 3 | T12: 0 из 3 | U12: 2 из 3 | V12: 2 из 3 | W12: 5.7 | X12: 5.43 | Y12: 5.2 | Z12: 5.3 | AA12: 4.95 | AB12: 6.7 | AC12: 6.23 | AD12: 4.75 | AE12: 5.7 | AF12: 5.6 | AG12: 5.4 | AH12: 5.3 | AI12: 5.2 | AJ12: 5.3 | AK12: 5.8 | AL12: 4.2 | AM12: 4.8 | AN12: 5 | AO12: 6.7 | AP12: 6 | AQ12: 6.2 | AR12: 6.3 | AS12: 6.4 | AT12: 5.4 | AU12: 3.7 | AV12: 5.5 | AW12: 5.2 | AX12: 3.8 | AY12: 5.2 | AZ12: 5 | BA12: 4.2 | BB12: АДМИНИСТРАТОР / РЕАЛИСТ / РУКОВОДИТЕЛЬ ESTJ: экстраверт, сенсорик, логик, рационал | BC12: 16 | BD12: 10 | BE12: 18 | BF12: 5 | BG12: 27 | BH12: 0 | BI12: 21 | BJ12: 7 | BK12: Молодой, проактивный, временами резкий с командой. Готов меняться и развиваться. Больше индивидуалист, чем командный игрок | BL12: Умеет принимать смелые и быстрые решения. Стремится контролировать все ключевые аспекты ситуации. Активно работает над собой и своей эффективностью как лидера. Наиболее продуктивен тогда, когда может принимать решения самостоятельно | BM12: Чувствует себя некомфортно в ситуациях, которые ему неподконтрольны. Может быть резок с подчиненными и демотивировать их своей обратной связью (обозначили как первоочередную зону роста). Недостаточны навыки предоставления позитивной обратной связи и мотивации команды. Также целесообразно усиливать навыки делегирования. Испытывает демотивацию в случае отсутствия интересных задач, при невозможности принимать самостоятельные решения и однообразных задачах | BN12: 0 | BO12: 5 | BP12: 10 | BQ12: 1 | BR12: 10 | BS12: 7 | BT12: 6 | BU12: Рим | BV12: ЭНТУЗИАСТ / ВОСПИТАТЕЛЬ / УЧИТЕЛЬ | BW12: ESFJ: экстраверт, сенсорик, этик, рационал. | BY12: 2011-12-03 | BZ12: 1983-04-12
A13: Кеннет Эрроу | B13: Рим | C13: Pan American | D13: Начальник управления равновесия и благосостояния | E13: ГД-3 | F13: Начальный | G13: Внутренняя уверенность в ходе публичных выступлений | H13: Более эффективно - очное обучение и индивидуальная работа | I13: Менеджер | J13: Дочернее общество | K13: - | L13: ЗГД, начальник управления | M13: Планирование, ценообразование | N13: По возможности хотелось бы сохранить текущую локацию | O13: - | P13: Дети, муж и его карьера. По сути, переезд возможен только "по приказу", как нежелательный на сегодняшний день вариант | Q13: Как вариант - возвращение в производство, | R13: 8 из 12 | S13: 2 из 3 | T13: 2 из 3 | U13: 2 из 3 | V13: 2 из 3 | W13: 6.4 | X13: 5.63 | Y13: 6.2 | Z13: 6.8 | AA13: 5.23 | AB13: 6.9 | AC13: 6.6 | AD13: 5.99 | AE13: 6.4 | AF13: 5.9 | AG13: 5.3 | AH13: 5.7 | AI13: 6.2 | AJ13: 6.8 | AK13: 6.3 | AL13: 5.4 | AM13: 5.2 | AN13: 4 | AO13: 6.9 | AP13: 6.4 | AQ13: 6.8 | AR13: 6.6 | AS13: 6.6 | AT13: 6.4 | AU13: 6.2 | AV13: 7 | AW13: 6 | AX13: 3.8 | AY13: 6.2 | AZ13: 6 | BA13: 6.3 | BB13: ЭНТУЗИАСТ / ВОСПИТАТЕЛЬ / УЧИТЕЛЬ ESFJ: экстраверт, сенсорик, этик, рационал. | BC13: 15 | BD13: 7 | BE13: 14 | BF13: 6 | BG13: 10 | BH13: 11 | BI13: 21 | BJ13: 10 | BK13: Харизматичный лидер. Горит своей работой, вдохновляет и заряжает людей. | BL13: Развивает членов своей команды, успешно «растит» подчиненных, видит в этом много смысла и мотивации для себя. Высокая резистентность к неопределенности, эффективно решает задачи в условиях мгновенных изменений. Заинтересован в собственном развитии и обучении. Честный, искренний во взаимодействии. | BM13: В обратной связи подчиненным больше концентрируется на ошибках, чем на признании заслуг. Также строго относится и к себе. Эмоционален, принимает многие вещи близко к сердцу. Из-за высокой неопределенности в сфере зоной развития считает стратегическое видение. | BO13: 6 | BP13: 5 | BQ13: 6 | BR13: 6 | BS13: 4 | BT13: 8 | BU13: Лондон | BV13: АДМИНИСТРАТОР / РЕАЛИСТ / РУКОВОДИТЕЛЬ | BW13: ESTJ: экстраверт, сенсорик, логик, рационал | BX13: Люди с данной ролью ответственные, пунктуальные, надежные и стойкие. Успешно организуя дела, они любят порядок. Знают свои обязанности и не стремятся увиливать. Следуют установленному порядку, точны, аккуратны. Во взаимоотношениях следуют сложившимся традициям. Практичны, реалистичны, основываются на фактах, их заботит ситуация «здесь и сейчас». Больший интерес у них вызывают новые вещи и предметы, а не новые идеи. При решении возникающих проблем они используют свой прошлый опыт. Люди этого типа любят работать в таких сферах деятельности, где они могут достичь непосредственных, видимых глазом, ощутимых результатов. | BY13: 2015-01-12 | BZ13: 1989-07-17
A14: Кеннет Эрроу | B14: Рим | C14: Pan American | D14: Начальник управления равновесия и благосостояния | E14: ГД-3 | F14: Начальный | G14: Внутренняя уверенность в ходе публичных выступлений | H14: Более эффективно - очное обучение и индивидуальная работа | I14: Менеджер | J14: Дочернее общество | K14: - | L14: ЗГД, начальник управления | M14: Планирование, ценообразование | N14: По возможности хотелось бы сохранить текущую локацию | O14: - | P14: Дети, муж и его карьера. По сути, переезд возможен только "по приказу", как нежелательный на сегодняшний день вариант | Q14: Как вариант - возвращение в производство, | R14: 8 из 12 | S14: 2 из 3 | T14: 2 из 3 | U14: 2 из 3 | V14: 2 из 3 | W14: 6.4 | X14: 5.63 | Y14: 6.2 | Z14: 6.8 | AA14: 5.23 | AB14: 6.9 | AC14: 6.6 | AD14: 5.99 | AE14: 6.4 | AF14: 5.9 | AG14: 5.3 | AH14: 5.7 | AI14: 6.2 | AJ14: 6.8 | AK14: 6.3 | AL14: 5.4 | AM14: 5.2 | AN14: 4 | AO14: 6.9 | AP14: 6.4 | AQ14: 6.8 | AR14: 6.6 | AS14: 6.6 | AT14: 6.4 | AU14: 6.2 | AV14: 7 | AW14: 6 | AX14: 3.8 | AY14: 6.2 | AZ14: 6 | BA14: 6.3 | BB14: ЭНТУЗИАСТ / ВОСПИТАТЕЛЬ / УЧИТЕЛЬ ESFJ: экстраверт, сенсорик, этик, рационал. | BC14: 15 | BD14: 7 | BE14: 14 | BF14: 6 | BG14: 10 | BH14: 11 | BI14: 21 | BJ14: 10 | BK14: Харизматичный лидер. Горит своей работой, вдохновляет и заряжает людей. | BL14: Развивает членов своей команды, успешно «растит» подчиненных, видит в этом много смысла и мотивации для себя. Высокая резистентность к неопределенности, эффективно решает задачи в условиях мгновенных изменений. Заинтересован в собственном развитии и обучении. Честный, искренний во взаимодействии. | BM14: В обратной связи подчиненным больше концентрируется на ошибках, чем на признании заслуг. Также строго относится и к себе. Эмоционален, принимает многие вещи близко к сердцу. Из-за высокой неопределенности в сфере зоной развития считает стратегическое видение. | BO14: 6 | BP14: 5 | BQ14: 6 | BR14: 6 | BS14: 4 | BT14: 8 | BU14: Афины | BV14: АДМИНИСТРАТОР / РЕАЛИСТ / РУКОВОДИТЕЛЬ | BW14: ESTJ: экстраверт, сенсорик, логик, рационал | BX14: Люди с данной ролью ответственные, пунктуальные, надежные и стойкие. Успешно организуя дела, они любят порядок. Знают свои обязанности и не стремятся увиливать. Следуют установленному порядку, точны, аккуратны. Во взаимоотношениях следуют сложившимся традициям. Практичны, реалистичны, основываются на фактах, их заботит ситуация «здесь и сейчас». Больший интерес у них вызывают новые вещи и предметы, а не новые идеи. При решении возникающих проблем они используют свой прошлый опыт. Люди этого типа любят работать в таких сферах деятельности, где они могут достичь непосредственных, видимых глазом, ощутимых результатов. | BY14: 2015-01-12 | BZ14: 1989-07-17
A15: Кеннет Эрроу | B15: Рим | C15: Pan American | D15: Начальник управления равновесия и благосостояния | E15: ГД-3 | F15: Начальный | G15: Внутренняя уверенность в ходе публичных выступлений | H15: Более эффективно - очное обучение и индивидуальная работа | I15: Менеджер | J15: Дочернее общество | K15: - | L15: ЗГД, начальник управления | M15: Планирование, ценообразование | N15: По возможности хотелось бы сохранить текущую локацию | O15: - | P15: Дети, муж и его карьера. По сути, переезд возможен только "по приказу", как нежелательный на сегодняшний день вариант | Q15: Как вариант - возвращение в производство, | R15: 8 из 12 | S15: 2 из 3 | T15: 2 из 3 | U15: 2 из 3 | V15: 2 из 3 | W15: 6.4 | X15: 5.63 | Y15: 6.2 | Z15: 6.8 | AA15: 5.23 | AB15: 6.9 | AC15: 6.6 | AD15: 5.99 | AE15: 6.4 | AF15: 5.9 | AG15: 5.3 | AH15: 5.7 | AI15: 6.2 | AJ15: 6.8 | AK15: 6.3 | AL15: 5.4 | AM15: 5.2 | AN15: 4 | AO15: 6.9 | AP15: 6.4 | AQ15: 6.8 | AR15: 6.6 | AS15: 6.6 | AT15: 6.4 | AU15: 6.2 | AV15: 7 | AW15: 6 | AX15: 3.8 | AY15: 6.2 | AZ15: 6 | BA15: 6.3 | BB15: ЭНТУЗИАСТ / ВОСПИТАТЕЛЬ / УЧИТЕЛЬ ESFJ: экстраверт, сенсорик, этик, рационал. | BC15: 15 | BD15: 7 | BE15: 14 | BF15: 6 | BG15: 10 | BH15: 11 | BI15: 21 | BJ15: 10 | BK15: Харизматичный лидер. Горит своей работой, вдохновляет и заряжает людей. | BL15: Развивает членов своей команды, успешно «растит» подчиненных, видит в этом много смысла и мотивации для себя. Высокая резистентность к неопределенности, эффективно решает задачи в условиях мгновенных изменений. Заинтересован в собственном развитии и обучении. Честный, искренний во взаимодействии. | BM15: В обратной связи подчиненным больше концентрируется на ошибках, чем на признании заслуг. Также строго относится и к себе. Эмоционален, принимает многие вещи близко к сердцу. Из-за высокой неопределенности в сфере зоной развития считает стратегическое видение. | BO15: 6 | BP15: 5 | BQ15: 6 | BR15: 6 | BS15: 4 | BT15: 8 | BU15: Лиссабон | BV15: АДМИНИСТРАТОР / РЕАЛИСТ / РУКОВОДИТЕЛЬ | BW15: ESTJ: экстраверт, сенсорик, логик, рационал | BX15: Люди с данной ролью ответственные, пунктуальные, надежные и стойкие. Успешно организуя дела, они любят порядок. Знают свои обязанности и не стремятся увиливать. Следуют установленному порядку, точны, аккуратны. Во взаимоотношениях следуют сложившимся традициям. Практичны, реалистичны, основываются на фактах, их заботит ситуация «здесь и сейчас». Больший интерес у них вызывают новые вещи и предметы, а не новые идеи. При решении возникающих проблем они используют свой прошлый опыт. Люди этого типа любят работать в таких сферах деятельности, где они могут достичь непосредственных, видимых глазом, ощутимых результатов. | BY15: 2015-01-12 | BZ15: 1989-07-17
A16: Кэрол Грейдер | B16: Москва | C16: Boing | D16: Начальник департамента защиты хромосом теломерами | E16: ГД-2 | F16: Средний | G16: развивать умение убеждать, донести свою точку зрения, эффективные коммуникации, развивать гибкость, умение идти на компромисы | H16: делиться опытом с коллегами, литература, обучение в компании | I16: Лидер | J16: Дочернее общество | K16: - | L16: ЗГД, исполнительный директор | M16: нет | N16: без ограничений | O16: - | P16: нет | Q16: не рассматривает | R16: 5 из 12 | S16: 0 из 3 | T16: 1 из 3 | U16: 2 из 3 | V16: 2 из 3 | W16: 5.7 | X16: 5.67 | Y16: 6 | Z16: 5.3 | AA16: 4.5 | AB16: 5.7 | AC16: 5.9 | AD16: 5.45 | AE16: 5.7 | AF16: 5 | AG16: 5.9 | AH16: 6.1 | AI16: 6 | AJ16: 5.3 | AK16: 5.5 | AL16: 4 | AM16: 4.5 | AN16: 4 | AO16: 5.7 | AP16: 6 | AQ16: 6.5 | AR16: 5.1 | AS16: 6 | AT16: 5.8 | AU16: 6 | AV16: 6.2 | AW16: 5.8 | AX16: 2 | AY16: 5.8 | AZ16: 6 | BA16: 6 | BB16: ИНСПЕКТОР / ОРГАНИЗАТОР / ОПЕКУН ISTJ: интроверт, сенсорик, логик, рационал | BC16: 11 | BD16: 17 | BE16: 23 | BF16: 5 | BG16: 22 | BH16: 2 | BI16: 24 | BJ16: 3 | BK16: Душа компании - направляет, вдохновляет сотрудников, «видит» их. | BL16: Мягкий, гибкий стиль управления. Мастер коммуникации. Выстраивает доброжелательные отношения с подчиненными. Создает комфортные условия для работы, мотивирует без давления. Открыта к развитию. | BM16: Скорее всего, не всегда проявляет ассертивную позицию, когда это требуется. Вероятно, чувствует усталость от высокой неопределенности. | BN16: 0 | BO16: 7 | BP16: 9 | BQ16: 5 | BR16: 1 | BS16: 8 | BT16: 5 | BU16: Рим | BV16: ИНСПЕКТОР / ОРГАНИЗАТОР / ОПЕКУН | BW16: ISTJ: интроверт, сенсорик, логик, рационал | BX16: Люди с данной ролью надежные, спокойные и серьезные. Любят порядок и строгость, глубоко вникают в работу, анализируя информацию с разных сторон. Отличаются некой педантичностью. Реально смотрят на вещи, берутся за дело только если точно знают, что смогут его завершить. Во взаимоотношения предпочитают короткие деловые контакты с другими людьми. Слово «долг» для них значимо. Их поведение ориентировано на конечный результат. Их склонность ко всему, что находится «здесь и сейчас», не позволяет им ничего принимать на веру что-либо. | BY16: 2017-06-29 | BZ16: 1954-03-12
A17: Кэрол Грейдер | B17: Москва | C17: Boing | D17: Начальник департамента защиты хромосом теломерами | E17: ГД-2 | F17: Средний | G17: развивать умение убеждать, донести свою точку зрения, эффективные коммуникации, развивать гибкость, умение идти на компромисы | H17: делиться опытом с коллегами, литература, обучение в компании | I17: Лидер | J17: Дочернее общество | K17: - | L17: ЗГД, исполнительный директор | M17: нет | N17: без ограничений | O17: - | P17: нет | Q17: не рассматривает | R17: 5 из 12 | S17: 0 из 3 | T17: 1 из 3 | U17: 2 из 3 | V17: 2 из 3 | W17: 5.7 | X17: 5.67 | Y17: 6 | Z17: 5.3 | AA17: 4.5 | AB17: 5.7 | AC17: 5.9 | AD17: 5.45 | AE17: 5.7 | AF17: 5 | AG17: 5.9 | AH17: 6.1 | AI17: 6 | AJ17: 5.3 | AK17: 5.5 | AL17: 4 | AM17: 4.5 | AN17: 4 | AO17: 5.7 | AP17: 6 | AQ17: 6.5 | AR17: 5.1 | AS17: 6 | AT17: 5.8 | AU17: 6 | AV17: 6.2 | AW17: 5.8 | AX17: 2 | AY17: 5.8 | AZ17: 6 | BA17: 6 | BB17: ИНСПЕКТОР / ОРГАНИЗАТОР / ОПЕКУН ISTJ: интроверт, сенсорик, логик, рационал | BC17: 11 | BD17: 17 | BE17: 23 | BF17: 5 | BG17: 22 | BH17: 2 | BI17: 24 | BJ17: 3 | BK17: Душа компании - направляет, вдохновляет сотрудников, «видит» их. | BL17: Мягкий, гибкий стиль управления. Мастер коммуникации. Выстраивает доброжелательные отношения с подчиненными. Создает комфортные условия для работы, мотивирует без давления. Открыта к развитию. | BM17: Скорее всего, не всегда проявляет ассертивную позицию, когда это требуется. Вероятно, чувствует усталость от высокой неопределенности. | BN17: 0 | BO17: 7 | BP17: 9 | BQ17: 5 | BR17: 1 | BS17: 8 | BT17: 5 | BU17: Мадрид | BV17: ИНСПЕКТОР / ОРГАНИЗАТОР / ОПЕКУН | BW17: ISTJ: интроверт, сенсорик, логик, рационал | BX17: Люди с данной ролью надежные, спокойные и серьезные. Любят порядок и строгость, глубоко вникают в работу, анализируя информацию с разных сторон. Отличаются некой педантичностью. Реально смотрят на вещи, берутся за дело только если точно знают, что смогут его завершить. Во взаимоотношения предпочитают короткие деловые контакты с другими людьми. Слово «долг» для них значимо. Их поведение ориентировано на конечный результат. Их склонность ко всему, что находится «здесь и сейчас», не позволяет им ничего принимать на веру что-либо. | BY17: 2017-06-29 | BZ17: 1954-03-12
A18: Кэрол Грейдер | B18: Москва | C18: Boing | D18: Начальник департамента защиты хромосом теломерами | E18: ГД-2 | F18: Средний | G18: развивать умение убеждать, донести свою точку зрения, эффективные коммуникации, развивать гибкость, умение идти на компромисы | H18: делиться опытом с коллегами, литература, обучение в компании | I18: Лидер | J18: Дочернее общество | K18: - | L18: ЗГД, исполнительный директор | M18: нет | N18: без ограничений | O18: - | P18: нет | Q18: не рассматривает | R18: 5 из 12 | S18: 0 из 3 | T18: 1 из 3 | U18: 2 из 3 | V18: 2 из 3 | W18: 5.7 | X18: 5.67 | Y18: 6 | Z18: 5.3 | AA18: 4.5 | AB18: 5.7 | AC18: 5.9 | AD18: 5.45 | AE18: 5.7 | AF18: 5 | AG18: 5.9 | AH18: 6.1 | AI18: 6 | AJ18: 5.3 | AK18: 5.5 | AL18: 4 | AM18: 4.5 | AN18: 4 | AO18: 5.7 | AP18: 6 | AQ18: 6.5 | AR18: 5.1 | AS18: 6 | AT18: 5.8 | AU18: 6 | AV18: 6.2 | AW18: 5.8 | AX18: 2 | AY18: 5.8 | AZ18: 6 | BA18: 6 | BB18: ИНСПЕКТОР / ОРГАНИЗАТОР / ОПЕКУН ISTJ: интроверт, сенсорик, логик, рационал | BC18: 11 | BD18: 17 | BE18: 23 | BF18: 5 | BG18: 22 | BH18: 2 | BI18: 24 | BJ18: 3 | BK18: Душа компании - направляет, вдохновляет сотрудников, «видит» их. | BL18: Мягкий, гибкий стиль управления. Мастер коммуникации. Выстраивает доброжелательные отношения с подчиненными. Создает комфортные условия для работы, мотивирует без давления. Открыта к развитию. | BM18: Скорее всего, не всегда проявляет ассертивную позицию, когда это требуется. Вероятно, чувствует усталость от высокой неопределенности. | BN18: 0 | BO18: 7 | BP18: 9 | BQ18: 5 | BR18: 1 | BS18: 8 | BT18: 5 | BU18: Лондон | BV18: ИНСПЕКТОР / ОРГАНИЗАТОР / ОПЕКУН | BW18: ISTJ: интроверт, сенсорик, логик, рационал | BX18: Люди с данной ролью надежные, спокойные и серьезные. Любят порядок и строгость, глубоко вникают в работу, анализируя информацию с разных сторон. Отличаются некой педантичностью. Реально смотрят на вещи, берутся за дело только если точно знают, что смогут его завершить. Во взаимоотношения предпочитают короткие деловые контакты с другими людьми. Слово «долг» для них значимо. Их поведение ориентировано на конечный результат. Их склонность ко всему, что находится «здесь и сейчас», не позволяет им ничего принимать на веру что-либо. | BY18: 2017-06-29 | BZ18: 1954-03-12
A19: Линда Бак | B19: Мадрид | C19: General Electrics | D19: Начальник управления организации системы органов обоняния | E19: ГД-3 | F19: Нулевой | G19: Стеснительность, сложности в отстаивании своих интересов перед руководством | H19: Индивидуальные сессии, тренинги | I19: Менеджер | J19: Дочернее общество | K19: - | L19: ЗГД, ГД | M19: добыча | N19: не готов к переезду | O19: - | P19: Мама, которая нуждается в поддержке | Q19: Вернуться в функцию добычи, восстановить технические знания и быть руководителем там, хотя этот сцеарий кажется не очень вероятным, в силу того, что технологии ушли вперед | R19: 6 из 12 | S19: 1 из 3 | T19: 2 из 3 | U19: 2 из 3 | V19: 1 из 3 | W19: 5.6 | X19: 5.17 | Y19: 5.3 | Z19: 5 | AA19: 4.03 | AB19: 6 | AC19: 5.8 | AD19: 5.48 | AE19: 5.6 | AF19: 5.1 | AG19: 5.3 | AH19: 5.1 | AI19: 5.3 | AJ19: 5 | AK19: 5 | AL19: 2.8 | AM19: 3 | AN19: 5.3 | AO19: 6 | AP19: 5.8 | AQ19: 5.8 | AR19: 5.6 | AS19: 6 | AT19: 6 | AU19: 6 | AV19: 6 | AW19: 6 | AX19: 2 | AY19: 5.8 | AZ19: 6 | BA19: 6 | BB19: ИНСПЕКТОР / ОРГАНИЗАТОР / ОПЕКУН ISTJ: интроверт, сенсорик, логик, рационал | BC19: 5 | BD19: 25 | BE19: 31 | BF19: 2 | BG19: 27 | BH19: 2 | BI19: 24 | BJ19: 2 | BK19: Энергична, позитивна, конструктивно азартна. Любит нестандартные сложные задачи | BL19: Готова браться за нестандартные и сложные задачи, рисковать, находить наилучшие решения. Заинтересована в ситуациях, где можно проявить себя. Ориентирована на максимальный результат, пресекает возможности совершить ошибку. Активно занимается самообразованием | BM19: Может быть резка с собеседниками и не учитывать их особенности. Испытывает раздражение и демотивацию в случае детальной регламентации своих действий и решений и внешних жестких правил (любого ограничения свободы) | BN19: 0 | BO19: 3 | BP19: 1 | BQ19: 10 | BR19: 4 | BS19: 2 | BT19: 6 | BU19: Афины | BV19: ИНСПЕКТОР / ОРГАНИЗАТОР / ОПЕКУН | BW19: ISTJ: интроверт, сенсорик, логик, рационал | BX19: Люди с данной ролью надежные, спокойные и серьезные. Любят порядок и строгость, глубоко вникают в работу, анализируя информацию с разных сторон. Отличаются некой педантичностью. Реально смотрят на вещи, берутся за дело только если точно знают, что смогут его завершить. Во взаимоотношения предпочитают короткие деловые контакты с другими людьми. Слово «долг» для них значимо. Их поведение ориентировано на конечный результат. Их склонность ко всему, что находится «здесь и сейчас», не позволяет им ничего принимать на веру что-либо. | BY19: 2018-11-17 | BZ19: 1964-01-14
A20: Линда Бак | B20: Мадрид | C20: General Electrics | D20: Начальник управления организации системы органов обоняния | E20: ГД-3 | F20: Нулевой | G20: Стеснительность, сложности в отстаивании своих интересов перед руководством | H20: Индивидуальные сессии, тренинги | I20: Менеджер | J20: Дочернее общество | K20: - | L20: ЗГД, ГД | M20: добыча | N20: не готов к переезду | O20: - | P20: Мама, которая нуждается в поддержке | Q20: Вернуться в функцию добычи, восстановить технические знания и быть руководителем там, хотя этот сцеарий кажется не очень вероятным, в силу того, что технологии ушли вперед | R20: 6 из 12 | S20: 1 из 3 | T20: 2 из 3 | U20: 2 из 3 | V20: 1 из 3 | W20: 5.6 | X20: 5.17 | Y20: 5.3 | Z20: 5 | AA20: 4.03 | AB20: 6 | AC20: 5.8 | AD20: 5.48 | AE20: 5.6 | AF20: 5.1 | AG20: 5.3 | AH20: 5.1 | AI20: 5.3 | AJ20: 5 | AK20: 5 | AL20: 2.8 | AM20: 3 | AN20: 5.3 | AO20: 6 | AP20: 5.8 | AQ20: 5.8 | AR20: 5.6 | AS20: 6 | AT20: 6 | AU20: 6 | AV20: 6 | AW20: 6 | AX20: 2 | AY20: 5.8 | AZ20: 6 | BA20: 6 | BB20: ИНСПЕКТОР / ОРГАНИЗАТОР / ОПЕКУН ISTJ: интроверт, сенсорик, логик, рационал | BC20: 5 | BD20: 25 | BE20: 31 | BF20: 2 | BG20: 27 | BH20: 2 | BI20: 24 | BJ20: 2 | BK20: Энергична, позитивна, конструктивно азартна. Любит нестандартные сложные задачи | BL20: Готова браться за нестандартные и сложные задачи, рисковать, находить наилучшие решения. Заинтересована в ситуациях, где можно проявить себя. Ориентирована на максимальный результат, пресекает возможности совершить ошибку. Активно занимается самообразованием | BM20: Может быть резка с собеседниками и не учитывать их особенности. Испытывает раздражение и демотивацию в случае детальной регламентации своих действий и решений и внешних жестких правил (любого ограничения свободы) | BN20: 0 | BO20: 3 | BP20: 1 | BQ20: 10 | BR20: 4 | BS20: 2 | BT20: 6 | BU20: Варшава | BV20: ИНСПЕКТОР / ОРГАНИЗАТОР / ОПЕКУН | BW20: ISTJ: интроверт, сенсорик, логик, рационал | BX20: Люди с данной ролью надежные, спокойные и серьезные. Любят порядок и строгость, глубоко вникают в работу, анализируя информацию с разных сторон. Отличаются некой педантичностью. Реально смотрят на вещи, берутся за дело только если точно знают, что смогут его завершить. Во взаимоотношения предпочитают короткие деловые контакты с другими людьми. Слово «долг» для них значимо. Их поведение ориентировано на конечный результат. Их склонность ко всему, что находится «здесь и сейчас», не позволяет им ничего принимать на веру что-либо. | BY20: 2018-11-17 | BZ20: 1964-01-14
A21: Линда Бак | B21: Мадрид | C21: General Electrics | D21: Начальник управления организации системы органов обоняния | E21: ГД-3 | F21: Нулевой | G21: Стеснительность, сложности в отстаивании своих интересов перед руководством | H21: Индивидуальные сессии, тренинги | I21: Менеджер | J21: Дочернее общество | K21: - | L21: ЗГД, ГД | M21: добыча | N21: не готов к переезду | O21: - | P21: Мама, которая нуждается в поддержке | Q21: Вернуться в функцию добычи, восстановить технические знания и быть руководителем там, хотя этот сцеарий кажется не очень вероятным, в силу того, что технологии ушли вперед | R21: 6 из 12 | S21: 1 из 3 | T21: 2 из 3 | U21: 2 из 3 | V21: 1 из 3 | W21: 5.6 | X21: 5.17 | Y21: 5.3 | Z21: 5 | AA21: 4.03 | AB21: 6 | AC21: 5.8 | AD21: 5.48 | AE21: 5.6 | AF21: 5.1 | AG21: 5.3 | AH21: 5.1 | AI21: 5.3 | AJ21: 5 | AK21: 5 | AL21: 2.8 | AM21: 3 | AN21: 5.3 | AO21: 6 | AP21: 5.8 | AQ21: 5.8 | AR21: 5.6 | AS21: 6 | AT21: 6 | AU21: 6 | AV21: 6 | AW21: 6 | AX21: 2 | AY21: 5.8 | AZ21: 6 | BA21: 6 | BB21: ИНСПЕКТОР / ОРГАНИЗАТОР / ОПЕКУН ISTJ: интроверт, сенсорик, логик, рационал | BC21: 5 | BD21: 25 | BE21: 31 | BF21: 2 | BG21: 27 | BH21: 2 | BI21: 24 | BJ21: 2 | BK21: Энергична, позитивна, конструктивно азартна. Любит нестандартные сложные задачи | BL21: Готова браться за нестандартные и сложные задачи, рисковать, находить наилучшие решения. Заинтересована в ситуациях, где можно проявить себя. Ориентирована на максимальный результат, пресекает возможности совершить ошибку. Активно занимается самообразованием | BM21: Может быть резка с собеседниками и не учитывать их особенности. Испытывает раздражение и демотивацию в случае детальной регламентации своих действий и решений и внешних жестких правил (любого ограничения свободы) | BN21: 0 | BO21: 3 | BP21: 1 | BQ21: 10 | BR21: 4 | BS21: 2 | BT21: 6 | BU21: Мюнхен | BV21: ИНСПЕКТОР / ОРГАНИЗАТОР / ОПЕКУН | BW21: ISTJ: интроверт, сенсорик, логик, рационал | BX21: Люди с данной ролью надежные, спокойные и серьезные. Любят порядок и строгость, глубоко вникают в работу, анализируя информацию с разных сторон. Отличаются некой педантичностью. Реально смотрят на вещи, берутся за дело только если точно знают, что смогут его завершить. Во взаимоотношения предпочитают короткие деловые контакты с другими людьми. Слово «долг» для них значимо. Их поведение ориентировано на конечный результат. Их склонность ко всему, что находится «здесь и сейчас», не позволяет им ничего принимать на веру что-либо. | BY21: 2018-11-17 | BZ21: 1964-01-14
A22: Мэй-Брит Мозер | B22: Лиссабон | C22: Pan American | D22: Начальник департамента систем позиционирования | E22: ГД-2 | F22: Начальный | G22: Принятие высокоуровневых решений с меньшей глубиной погружения в детали. Внутренняя уверенность, расширение границ, личный бренд, готовность к изменениям | H22: Проходит обучение по MBA в SSE. Предпочитает традиционные групповые методы обучения, онлайн не так привлекателен | I22: Лидер | J22: Корпоративный центр | K22: - | L22: Хотела бы двигаться по вертикали, но по результатам переговоров знает, что руководство предпочитает ее ротацию по горизонтали | M22: Выбирает не с точки зрения функции, а по возможностям проектной работы в ней, интересных, новых, нетиповых проектов | N22: Москва, Петербург | O22: Вертикальная карьера. (либо) Более гибкий график, больше возможностей для work‐life balance | P22: Сын подросток с хорошими перспективами в математике и спорте, через 3 года нужно будет обеспечивать ему возможность дальнейшей реализации, а это только крупные города | Q22: Пока не очень понятно. При принятии решений интересы и ценности семьи будут в приоритете | R22: 6 из 12 | S22: 2 из 3 | T22: 0 из 3 | U22: 2 из 3 | V22: 2 из 3 | W22: 6 | X22: 5.9 | Y22: 6 | Z22: 5.5 | AA22: 4.7 | AB22: 6 | AC22: 6.2 | AD22: 5.23 | AE22: 6 | AF22: 5.8 | AG22: 6 | AH22: 5.9 | AI22: 6 | AJ22: 5.5 | AK22: 5 | AL22: 3.6 | AM22: 4.7 | AN22: 5.5 | AO22: 6 | AP22: 5.4 | AQ22: 6.8 | AR22: 6 | AS22: 6.6 | AT22: 6 | AU22: 6 | AV22: 6 | AW22: 5.3 | AX22: 1.8 | AY22: 5.6 | AZ22: 5.8 | BA22: 5.3 | BB22: ИНСПЕКТОР / ОРГАНИЗАТОР / ОПЕКУН ISTJ: интроверт, сенсорик, логик, рационал | BC22: 11 | BD22: 14 | BE22: 19 | BF22: 5 | BG22: 18 | BH22: 6 | BI22: 24 | BJ22: 3 | BK22: Спокойна, рассудительна, склонна к системным решениям. Четкое понимание своих интересов при внешней мягкости | BL22: Умеет принимать системные взвешенные решения с оптимальным балансом внимания к деталям и общей картине. Лояльна к компании. Понимает, как находить баланс интересов различных сторон. Обучается по программе MBA | BM22: Одна из обозначенных ключевых зон роста — усиление способности генерировать идеи. В условиях «стеклянного потолка» дополнительное внимание стоит уделить усилению стрессоустойчивости и навыков личного профессионального самопродвижения | BN22: 0 | BO22: 4 | BP22: 7 | BQ22: 4 | BR22: 5 | BS22: 3 | BT22: 6 | BU22: Лондон | BV22: ИНСПЕКТОР / ОРГАНИЗАТОР / ОПЕКУН | BW22: ISTJ: интроверт, сенсорик, логик, рационал | BX22: Люди с данной ролью надежные, спокойные и серьезные. Любят порядок и строгость, глубоко вникают в работу, анализируя информацию с разных сторон. Отличаются некой педантичностью. Реально смотрят на вещи, берутся за дело только если точно знают, что смогут его завершить. Во взаимоотношения предпочитают короткие деловые контакты с другими людьми. Слово «долг» для них значимо. Их поведение ориентировано на конечный результат. Их склонность ко всему, что находится «здесь и сейчас», не позволяет им ничего принимать на веру что-либо. | BY22: 2015-07-02 | BZ22: 1979-05-23
A23: Мэй-Брит Мозер | B23: Лиссабон | C23: Pan American | D23: Начальник департамента систем позиционирования | E23: ГД-2 | F23: Начальный | G23: Принятие высокоуровневых решений с меньшей глубиной погружения в детали. Внутренняя уверенность, расширение границ, личный бренд, готовность к изменениям | H23: Проходит обучение по MBA в SSE. Предпочитает традиционные групповые методы обучения, онлайн не так привлекателен | I23: Лидер | J23: Корпоративный центр | K23: - | L23: Хотела бы двигаться по вертикали, но по результатам переговоров знает, что руководство предпочитает ее ротацию по горизонтали | M23: Выбирает не с точки зрения функции, а по возможностям проектной работы в ней, интересных, новых, нетиповых проектов | N23: Москва, Петербург | O23: Вертикальная карьера. (либо) Более гибкий график, больше возможностей для work‐life balance | P23: Сын подросток с хорошими перспективами в математике и спорте, через 3 года нужно будет обеспечивать ему возможность дальнейшей реализации, а это только крупные города | Q23: Пока не очень понятно. При принятии решений интересы и ценности семьи будут в приоритете | R23: 6 из 12 | S23: 2 из 3 | T23: 0 из 3 | U23: 2 из 3 | V23: 2 из 3 | W23: 6 | X23: 5.9 | Y23: 6 | Z23: 5.5 | AA23: 4.7 | AB23: 6 | AC23: 6.2 | AD23: 5.23 | AE23: 6 | AF23: 5.8 | AG23: 6 | AH23: 5.9 | AI23: 6 | AJ23: 5.5 | AK23: 5 | AL23: 3.6 | AM23: 4.7 | AN23: 5.5 | AO23: 6 | AP23: 5.4 | AQ23: 6.8 | AR23: 6 | AS23: 6.6 | AT23: 6 | AU23: 6 | AV23: 6 | AW23: 5.3 | AX23: 1.8 | AY23: 5.6 | AZ23: 5.8 | BA23: 5.3 | BB23: ИНСПЕКТОР / ОРГАНИЗАТОР / ОПЕКУН ISTJ: интроверт, сенсорик, логик, рационал | BC23: 11 | BD23: 14 | BE23: 19 | BF23: 5 | BG23: 18 | BH23: 6 | BI23: 24 | BJ23: 3 | BK23: Спокойна, рассудительна, склонна к системным решениям. Четкое понимание своих интересов при внешней мягкости | BL23: Умеет принимать системные взвешенные решения с оптимальным балансом внимания к деталям и общей картине. Лояльна к компании. Понимает, как находить баланс интересов различных сторон. Обучается по программе MBA | BM23: Одна из обозначенных ключевых зон роста — усиление способности генерировать идеи. В условиях «стеклянного потолка» дополнительное внимание стоит уделить усилению стрессоустойчивости и навыков личного профессионального самопродвижения | BN23: 0 | BO23: 4 | BP23: 7 | BQ23: 4 | BR23: 5 | BS23: 3 | BT23: 6 | BU23: Лиссабон | BV23: ИНСПЕКТОР / ОРГАНИЗАТОР / ОПЕКУН | BW23: ISTJ: интроверт, сенсорик, логик, рационал | BX23: Люди с данной ролью надежные, спокойные и серьезные. Любят порядок и строгость, глубоко вникают в работу, анализируя информацию с разных сторон. Отличаются некой педантичностью. Реально смотрят на вещи, берутся за дело только если точно знают, что смогут его завершить. Во взаимоотношения предпочитают короткие деловые контакты с другими людьми. Слово «долг» для них значимо. Их поведение ориентировано на конечный результат. Их склонность ко всему, что находится «здесь и сейчас», не позволяет им ничего принимать на веру что-либо. | BY23: 2015-07-02 | BZ23: 1979-05-23
A24: Мэй-Брит Мозер | B24: Лиссабон | C24: Pan American | D24: Начальник департамента систем позиционирования | E24: ГД-2 | F24: Начальный | G24: Принятие высокоуровневых решений с меньшей глубиной погружения в детали. Внутренняя уверенность, расширение границ, личный бренд, готовность к изменениям | H24: Проходит обучение по MBA в SSE. Предпочитает традиционные групповые методы обучения, онлайн не так привлекателен | I24: Лидер | J24: Корпоративный центр | K24: - | L24: Хотела бы двигаться по вертикали, но по результатам переговоров знает, что руководство предпочитает ее ротацию по горизонтали | M24: Выбирает не с точки зрения функции, а по возможностям проектной работы в ней, интересных, новых, нетиповых проектов | N24: Москва, Петербург | O24: Вертикальная карьера. (либо) Более гибкий график, больше возможностей для work‐life balance | P24: Сын подросток с хорошими перспективами в математике и спорте, через 3 года нужно будет обеспечивать ему возможность дальнейшей реализации, а это только крупные города | Q24: Пока не очень понятно. При принятии решений интересы и ценности семьи будут в приоритете | R24: 6 из 12 | S24: 2 из 3 | T24: 0 из 3 | U24: 2 из 3 | V24: 2 из 3 | W24: 6 | X24: 5.9 | Y24: 6 | Z24: 5.5 | AA24: 4.7 | AB24: 6 | AC24: 6.2 | AD24: 5.23 | AE24: 6 | AF24: 5.8 | AG24: 6 | AH24: 5.9 | AI24: 6 | AJ24: 5.5 | AK24: 5 | AL24: 3.6 | AM24: 4.7 | AN24: 5.5 | AO24: 6 | AP24: 5.4 | AQ24: 6.8 | AR24: 6 | AS24: 6.6 | AT24: 6 | AU24: 6 | AV24: 6 | AW24: 5.3 | AX24: 1.8 | AY24: 5.6 | AZ24: 5.8 | BA24: 5.3 | BB24: ИНСПЕКТОР / ОРГАНИЗАТОР / ОПЕКУН ISTJ: интроверт, сенсорик, логик, рационал | BC24: 11 | BD24: 14 | BE24: 19 | BF24: 5 | BG24: 18 | BH24: 6 | BI24: 24 | BJ24: 3 | BK24: Спокойна, рассудительна, склонна к системным решениям. Четкое понимание своих интересов при внешней мягкости | BL24: Умеет принимать системные взвешенные решения с оптимальным балансом внимания к деталям и общей картине. Лояльна к компании. Понимает, как находить баланс интересов различных сторон. Обучается по программе MBA | BM24: Одна из обозначенных ключевых зон роста — усиление способности генерировать идеи. В условиях «стеклянного потолка» дополнительное внимание стоит уделить усилению стрессоустойчивости и навыков личного профессионального самопродвижения | BN24: 0 | BO24: 4 | BP24: 7 | BQ24: 4 | BR24: 5 | BS24: 3 | BT24: 6 | BU24: Мадрид | BV24: ИНСПЕКТОР / ОРГАНИЗАТОР / ОПЕКУН | BW24: ISTJ: интроверт, сенсорик, логик, рационал | BX24: Люди с данной ролью надежные, спокойные и серьезные. Любят порядок и строгость, глубоко вникают в работу, анализируя информацию с разных сторон. Отличаются некой педантичностью. Реально смотрят на вещи, берутся за дело только если точно знают, что смогут его завершить. Во взаимоотношения предпочитают короткие деловые контакты с другими людьми. Слово «долг» для них значимо. Их поведение ориентировано на конечный результат. Их склонность ко всему, что находится «здесь и сейчас», не позволяет им ничего принимать на веру что-либо. | BY24: 2015-07-02 | BZ24: 1979-05-23
A25: Саймон Кузнец | B25: Варшава | C25: Chrysler | D25: Руководитель направления экономической и социальной структуры | E25: ГД-4 | F25: Свободный | G25: Знание капитального строительства, цепочки поставок в части стратегии закупок, категорийный менеджмент. Умение выстраивать работу команды в части делегирования, повышение мотивации и самостоятельности, активности и инициативности сотрудников. Выстраивание своей авторитетной позиции. Умение эффективно действовать в ситуации конфликта интересов. | H25: У сотрудника уже составлен ИПР, который она заинтересована дополнить. Обучение очно и онлайн, стажировки, участие в проектах, обратная связь от наставника/карьерного консультанта. | I25: Лидер | J25: КЦ либо ДО. Сотрудник планирует стажировку в КЦ ориентировочно в марте, после этого будет решение | K25: - | L25: ЗГД либо руководитель департамента закупок либо team leader в КЦ (название последней должности еще не формализовано) | M25: промышленная безопасность, повышение операционной эффективности, непрерывное улучшение, выстравание бизнес-процессов с заказчиками, продажи | N25: Москва, Санкт-Петербург | O25: Рост по карьерной лестнице, новые проекты, муж в настоящее время работает в Москве. | P25: Ребенок 5,5 лет, переезд потребует адаптации ребенка на новом месте, поиск детского сада | Q25: В целом сотрудник очень широко смотрит на перспективы своего развития, готова развиваться как верикально, так и в смежных функциях, интересует опыт работы в совместных компаниях, с международным опытом. Сама так же обучает сотрудников, проводит внутренее обучение. | R25: 8 из 12 | S25: 2 из 3 | T25: 1 из 3 | U25: 3 из 3 | V25: 2 из 3 | W25: 5.9 | X25: 5.43 | Y25: 5.8 | Z25: 6.1 | AA25: 3.88 | AB25: 7 | AC25: 6.2 | AD25: 5.35 | AE25: 5.9 | AF25: 5.8 | AG25: 5.1 | AH25: 5.4 | AI25: 5.8 | AJ25: 6.1 | AK25: 5.2 | AL25: 1.6 | AM25: 4.2 | AN25: 4.5 | AO25: 7 | AP25: 6.6 | AQ25: 6.5 | AR25: 5.8 | AS25: 5.9 | AT25: 6 | AU25: 6 | AV25: 6.7 | AW25: 5.5 | AX25: 2.5 | AY25: 5.4 | AZ25: 5.4 | BA25: 5.3 | BB25: АДМИНИСТРАТОР / РЕАЛИСТ / РУКОВОДИТЕЛЬ ESTJ: экстраверт, сенсорик, логик, рационал | BC25: 24 | BD25: 3 | BE25: 13 | BF25: 10 | BG25: 17 | BH25: 4 | BI25: 19 | BJ25: 9 | BK25: В работе с командой проявляет себя и как лидер, и как менеджер. Энергичен, стремится к объективному и разностороннему взгляду на ситуацию | BL25: Внимателен к команде, прикладывает усилия к развитию подчиненных и формированию конструктивной атмосферы в коллективе. Уверенный в себе переговорщик, готовый использовать различные методы для отстаивания интересов компании. Стрессоустойчив. Имеет сильную соревновательную мотивацию. При выстраивании работы заинтересован в анализе и учете лучших практик | BM25: Испытывает затруднения при необходимости выступать на публике (большая незнакомая аудитория). Испытывает демотивацию в случае невозможности самостоятельно выстраивать стратегию своей работу и в случае отсутствия новых интересных проектов (расценивает такую ситуацию как стагнацию, в случае продолжительной стагнации не исключает смену карьеры) | BN25: 0 | BO25: 1 | BP25: 6 | BQ25: 2 | BR25: 3 | BS25: 1 | BT25: 8 | BU25: Лиссабон | BV25: АДМИНИСТРАТОР / РЕАЛИСТ / РУКОВОДИТЕЛЬ | BW25: ESTJ: экстраверт, сенсорик, логик, рационал | BX25: Люди с данной ролью ответственные, пунктуальные, надежные и стойкие. Успешно организуя дела, они любят порядок. Знают свои обязанности и не стремятся увиливать. Следуют установленному порядку, точны, аккуратны. Во взаимоотношениях следуют сложившимся традициям. Практичны, реалистичны, основываются на фактах, их заботит ситуация «здесь и сейчас». Больший интерес у них вызывают новые вещи и предметы, а не новые идеи. При решении возникающих проблем они используют свой прошлый опыт. Люди этого типа любят работать в таких сферах деятельности, где они могут достичь непосредственных, видимых глазом, ощутимых результатов. | BY25: 2013-04-09 | BZ25: 1982-06-04
A26: Саймон Кузнец | B26: Варшава | C26: Chrysler | D26: Руководитель направления экономической и социальной структуры | E26: ГД-4 | F26: Свободный | G26: Знание капитального строительства, цепочки поставок в части стратегии закупок, категорийный менеджмент. Умение выстраивать работу команды в части делегирования, повышение мотивации и самостоятельности, активности и инициативности сотрудников. Выстраивание своей авторитетной позиции. Умение эффективно действовать в ситуации конфликта интересов. | H26: У сотрудника уже составлен ИПР, который она заинтересована дополнить. Обучение очно и онлайн, стажировки, участие в проектах, обратная связь от наставника/карьерного консультанта. | I26: Лидер | J26: КЦ либо ДО. Сотрудник планирует стажировку в КЦ ориентировочно в марте, после этого будет решение | K26: - | L26: ЗГД либо руководитель департамента закупок либо team leader в КЦ (название последней должности еще не формализовано) | M26: промышленная безопасность, повышение операционной эффективности, непрерывное улучшение, выстравание бизнес-процессов с заказчиками, продажи | N26: Москва, Санкт-Петербург | O26: Рост по карьерной лестнице, новые проекты, муж в настоящее время работает в Москве. | P26: Ребенок 5,5 лет, переезд потребует адаптации ребенка на новом месте, поиск детского сада | Q26: В целом сотрудник очень широко смотрит на перспективы своего развития, готова развиваться как верикально, так и в смежных функциях, интересует опыт работы в совместных компаниях, с международным опытом. Сама так же обучает сотрудников, проводит внутренее обучение. | R26: 8 из 12 | S26: 2 из 3 | T26: 1 из 3 | U26: 3 из 3 | V26: 2 из 3 | W26: 5.9 | X26: 5.43 | Y26: 5.8 | Z26: 6.1 | AA26: 3.88 | AB26: 7 | AC26: 6.2 | AD26: 5.35 | AE26: 5.9 | AF26: 5.8 | AG26: 5.1 | AH26: 5.4 | AI26: 5.8 | AJ26: 6.1 | AK26: 5.2 | AL26: 1.6 | AM26: 4.2 | AN26: 4.5 | AO26: 7 | AP26: 6.6 | AQ26: 6.5 | AR26: 5.8 | AS26: 5.9 | AT26: 6 | AU26: 6 | AV26: 6.7 | AW26: 5.5 | AX26: 2.5 | AY26: 5.4 | AZ26: 5.4 | BA26: 5.3 | BB26: АДМИНИСТРАТОР / РЕАЛИСТ / РУКОВОДИТЕЛЬ ESTJ: экстраверт, сенсорик, логик, рационал | BC26: 24 | BD26: 3 | BE26: 13 | BF26: 10 | BG26: 17 | BH26: 4 | BI26: 19 | BJ26: 9 | BK26: В работе с командой проявляет себя и как лидер, и как менеджер. Энергичен, стремится к объективному и разностороннему взгляду на ситуацию | BL26: Внимателен к команде, прикладывает усилия к развитию подчиненных и формированию конструктивной атмосферы в коллективе. Уверенный в себе переговорщик, готовый использовать различные методы для отстаивания интересов компании. Стрессоустойчив. Имеет сильную соревновательную мотивацию. При выстраивании работы заинтересован в анализе и учете лучших практик | BM26: Испытывает затруднения при необходимости выступать на публике (большая незнакомая аудитория). Испытывает демотивацию в случае невозможности самостоятельно выстраивать стратегию своей работу и в случае отсутствия новых интересных проектов (расценивает такую ситуацию как стагнацию, в случае продолжительной стагнации не исключает смену карьеры) | BN26: 0 | BO26: 1 | BP26: 6 | BQ26: 2 | BR26: 3 | BS26: 1 | BT26: 8 | BU26: Рим | BV26: АДМИНИСТРАТОР / РЕАЛИСТ / РУКОВОДИТЕЛЬ | BW26: ESTJ: экстраверт, сенсорик, логик, рационал | BX26: Люди с данной ролью ответственные, пунктуальные, надежные и стойкие. Успешно организуя дела, они любят порядок. Знают свои обязанности и не стремятся увиливать. Следуют установленному порядку, точны, аккуратны. Во взаимоотношениях следуют сложившимся традициям. Практичны, реалистичны, основываются на фактах, их заботит ситуация «здесь и сейчас». Больший интерес у них вызывают новые вещи и предметы, а не новые идеи. При решении возникающих проблем они используют свой прошлый опыт. Люди этого типа любят работать в таких сферах деятельности, где они могут достичь непосредственных, видимых глазом, ощутимых результатов. | BY26: 2013-04-09 | BZ26: 1982-06-04
A27: Саймон Кузнец | B27: Варшава | C27: Chrysler | D27: Руководитель направления экономической и социальной структуры | E27: ГД-4 | F27: Свободный | G27: Знание капитального строительства, цепочки поставок в части стратегии закупок, категорийный менеджмент. Умение выстраивать работу команды в части делегирования, повышение мотивации и самостоятельности, активности и инициативности сотрудников. Выстраивание своей авторитетной позиции. Умение эффективно действовать в ситуации конфликта интересов. | H27: У сотрудника уже составлен ИПР, который она заинтересована дополнить. Обучение очно и онлайн, стажировки, участие в проектах, обратная связь от наставника/карьерного консультанта. | I27: Лидер | J27: КЦ либо ДО. Сотрудник планирует стажировку в КЦ ориентировочно в марте, после этого будет решение | K27: - | L27: ЗГД либо руководитель департамента закупок либо team leader в КЦ (название последней должности еще не формализовано) | M27: промышленная безопасность, повышение операционной эффективности, непрерывное улучшение, выстравание бизнес-процессов с заказчиками, продажи | N27: Москва, Санкт-Петербург | O27: Рост по карьерной лестнице, новые проекты, муж в настоящее время работает в Москве. | P27: Ребенок 5,5 лет, переезд потребует адаптации ребенка на новом месте, поиск детского сада | Q27: В целом сотрудник очень широко смотрит на перспективы своего развития, готова развиваться как верикально, так и в смежных функциях, интересует опыт работы в совместных компаниях, с международным опытом. Сама так же обучает сотрудников, проводит внутренее обучение. | R27: 8 из 12 | S27: 2 из 3 | T27: 1 из 3 | U27: 3 из 3 | V27: 2 из 3 | W27: 5.9 | X27: 5.43 | Y27: 5.8 | Z27: 6.1 | AA27: 3.88 | AB27: 7 | AC27: 6.2 | AD27: 5.35 | AE27: 5.9 | AF27: 5.8 | AG27: 5.1 | AH27: 5.4 | AI27: 5.8 | AJ27: 6.1 | AK27: 5.2 | AL27: 1.6 | AM27: 4.2 | AN27: 4.5 | AO27: 7 | AP27: 6.6 | AQ27: 6.5 | AR27: 5.8 | AS27: 5.9 | AT27: 6 | AU27: 6 | AV27: 6.7 | AW27: 5.5 | AX27: 2.5 | AY27: 5.4 | AZ27: 5.4 | BA27: 5.3 | BB27: АДМИНИСТРАТОР / РЕАЛИСТ / РУКОВОДИТЕЛЬ ESTJ: экстраверт, сенсорик, логик, рационал | BC27: 24 | BD27: 3 | BE27: 13 | BF27: 10 | BG27: 17 | BH27: 4 | BI27: 19 | BJ27: 9 | BK27: В работе с командой проявляет себя и как лидер, и как менеджер. Энергичен, стремится к объективному и разностороннему взгляду на ситуацию | BL27: Внимателен к команде, прикладывает усилия к развитию подчиненных и формированию конструктивной атмосферы в коллективе. Уверенный в себе переговорщик, готовый использовать различные методы для отстаивания интересов компании. Стрессоустойчив. Имеет сильную соревновательную мотивацию. При выстраивании работы заинтересован в анализе и учете лучших практик | BM27: Испытывает затруднения при необходимости выступать на публике (большая незнакомая аудитория). Испытывает демотивацию в случае невозможности самостоятельно выстраивать стратегию своей работу и в случае отсутствия новых интересных проектов (расценивает такую ситуацию как стагнацию, в случае продолжительной стагнации не исключает смену карьеры) | BN27: 0 | BO27: 1 | BP27: 6 | BQ27: 2 | BR27: 3 | BS27: 1 | BT27: 8 | BU27: Париж | BV27: АДМИНИСТРАТОР / РЕАЛИСТ / РУКОВОДИТЕЛЬ | BW27: ESTJ: экстраверт, сенсорик, логик, рационал | BX27: Люди с данной ролью ответственные, пунктуальные, надежные и стойкие. Успешно организуя дела, они любят порядок. Знают свои обязанности и не стремятся увиливать. Следуют установленному порядку, точны, аккуратны. Во взаимоотношениях следуют сложившимся традициям. Практичны, реалистичны, основываются на фактах, их заботит ситуация «здесь и сейчас». Больший интерес у них вызывают новые вещи и предметы, а не новые идеи. При решении возникающих проблем они используют свой прошлый опыт. Люди этого типа любят работать в таких сферах деятельности, где они могут достичь непосредственных, видимых глазом, ощутимых результатов. | BY27: 2013-04-09 | BZ27: 1982-06-04
A28: Светлана Алексеевич | B28: Афины | C28: General Electrics | D28: Начальник управления многогласного творчества | E28: ГД-3 | F28: Свободный | G28: Работа с эмоциями, управление стрессом, личная эффективность, эмоциональная гибкость,работа с персоналом, работа с командой | H28: Тренинги, индивидуальные консультации | I28: Эксперт | J28: Корпоративный центр | K28: - | L28: В ближайшие 2-3 года видит себя в текущей должности | M28: Аудит | N28: Тюмень | O28: - | P28: Дочь учится в школе в СПБ. Если после 9 класса уезжает учиться, готова рассматривать варианты релокации. | Q28: Активно не занималась планированием карьеры, текущей должностью и работой довольна. Видит себя на этом месте в ближайшее время. Сама не стала бы искать новую функцию. Если бы пришлось переходить, готова была бы рассматривать функцию Аудит. | R28: 7 из 12 | S28: 1 из 3 | T28: 1 из 3 | U28: 2 из 3 | V28: 3 из 3 | W28: 5.4 | X28: 5.63 | Y28: 6.2 | Z28: 4.6 | AA28: 4.38 | AB28: 5.1 | AC28: 6.05 | AD28: 5.34 | AE28: 5.4 | AF28: 5.8 | AG28: 5 | AH28: 6.1 | AI28: 6.2 | AJ28: 4.6 | AK28: 5.7 | AL28: 2.6 | AM28: 4.5 | AN28: 4.7 | AO28: 5.1 | AP28: 5 | AQ28: 6.5 | AR28: 6.3 | AS28: 6.4 | AT28: 5.4 | AU28: 5 | AV28: 6 | AW28: 6.2 | AX28: 3.5 | AY28: 5 | AZ28: 5.8 | BA28: 5.8 | BB28: АДМИНИСТРАТОР / РЕАЛИСТ / РУКОВОДИТЕЛЬ ESTJ: экстраверт, сенсорик, логик, рационал | BC28: 15 | BD28: 12 | BE28: 13 | BF28: 10 | BG28: 17 | BH28: 4 | BI28: 20 | BJ28: 6 | BK28: Ответственна, готова принимать обратную связь, нацелена на результат. | BL28: Есть понимание, чего хочет от работы, готова вкладываться в развитие команды, если что-то делает, то качественно. | BM28: Возможно, есть элемент выгорания. Это может со временем сказаться на качестве работы, на уровне мотивации и вовлечённости, а также к внутреннему саботажу задач. | BN28: 0 | BO28: 8 | BP28: 8 | BQ28: 7 | BR28: 9 | BS28: 6 | BT28: 7 | BU28: Варшава | BV28: АДМИНИСТРАТОР / РЕАЛИСТ / РУКОВОДИТЕЛЬ | BW28: ESTJ: экстраверт, сенсорик, логик, рационал | BX28: Люди с данной ролью ответственные, пунктуальные, надежные и стойкие. Успешно организуя дела, они любят порядок. Знают свои обязанности и не стремятся увиливать. Следуют установленному порядку, точны, аккуратны. Во взаимоотношениях следуют сложившимся традициям. Практичны, реалистичны, основываются на фактах, их заботит ситуация «здесь и сейчас». Больший интерес у них вызывают новые вещи и предметы, а не новые идеи. При решении возникающих проблем они используют свой прошлый опыт. Люди этого типа любят работать в таких сферах деятельности, где они могут достичь непосредственных, видимых глазом, ощутимых результатов. | BY28: 2013-10-14 | BZ28: 1957-05-31
A29: Светлана Алексеевич | B29: Афины | C29: General Electrics | D29: Начальник управления многогласного творчества | E29: ГД-3 | F29: Свободный | G29: Работа с эмоциями, управление стрессом, личная эффективность, эмоциональная гибкость,работа с персоналом, работа с командой | H29: Тренинги, индивидуальные консультации | I29: Эксперт | J29: Корпоративный центр | K29: - | L29: В ближайшие 2-3 года видит себя в текущей должности | M29: Аудит | N29: Тюмень | O29: - | P29: Дочь учится в школе в СПБ. Если после 9 класса уезжает учиться, готова рассматривать варианты релокации. | Q29: Активно не занималась планированием карьеры, текущей должностью и работой довольна. Видит себя на этом месте в ближайшее время. Сама не стала бы искать новую функцию. Если бы пришлось переходить, готова была бы рассматривать функцию Аудит. | R29: 7 из 12 | S29: 1 из 3 | T29: 1 из 3 | U29: 2 из 3 | V29: 3 из 3 | W29: 5.4 | X29: 5.63 | Y29: 6.2 | Z29: 4.6 | AA29: 4.38 | AB29: 5.1 | AC29: 6.05 | AD29: 5.34 | AE29: 5.4 | AF29: 5.8 | AG29: 5 | AH29: 6.1 | AI29: 6.2 | AJ29: 4.6 | AK29: 5.7 | AL29: 2.6 | AM29: 4.5 | AN29: 4.7 | AO29: 5.1 | AP29: 5 | AQ29: 6.5 | AR29: 6.3 | AS29: 6.4 | AT29: 5.4 | AU29: 5 | AV29: 6 | AW29: 6.2 | AX29: 3.5 | AY29: 5 | AZ29: 5.8 | BA29: 5.8 | BB29: АДМИНИСТРАТОР / РЕАЛИСТ / РУКОВОДИТЕЛЬ ESTJ: экстраверт, сенсорик, логик, рационал | BC29: 15 | BD29: 12 | BE29: 13 | BF29: 10 | BG29: 17 | BH29: 4 | BI29: 20 | BJ29: 6 | BK29: Ответственна, готова принимать обратную связь, нацелена на результат. | BL29: Есть понимание, чего хочет от работы, готова вкладываться в развитие команды, если что-то делает, то качественно. | BM29: Возможно, есть элемент выгорания. Это может со временем сказаться на качестве работы, на уровне мотивации и вовлечённости, а также к внутреннему саботажу задач. | BN29: 0 | BO29: 8 | BP29: 8 | BQ29: 7 | BR29: 9 | BS29: 6 | BT29: 7 | BU29: Москва | BV29: АДМИНИСТРАТОР / РЕАЛИСТ / РУКОВОДИТЕЛЬ | BW29: ESTJ: экстраверт, сенсорик, логик, рационал | BX29: Люди с данной ролью ответственные, пунктуальные, надежные и стойкие. Успешно организуя дела, они любят порядок. Знают свои обязанности и не стремятся увиливать. Следуют установленному порядку, точны, аккуратны. Во взаимоотношениях следуют сложившимся традициям. Практичны, реалистичны, основываются на фактах, их заботит ситуация «здесь и сейчас». Больший интерес у них вызывают новые вещи и предметы, а не новые идеи. При решении возникающих проблем они используют свой прошлый опыт. Люди этого типа любят работать в таких сферах деятельности, где они могут достичь непосредственных, видимых глазом, ощутимых результатов. | BY29: 2013-10-14 | BZ29: 1957-05-31
A30: Светлана Алексеевич | B30: Афины | C30: General Electrics | D30: Начальник управления многогласного творчества | E30: ГД-3 | F30: Свободный | G30: Работа с эмоциями, управление стрессом, личная эффективность, эмоциональная гибкость,работа с персоналом, работа с командой | H30: Тренинги, индивидуальные консультации | I30: Эксперт | J30: Корпоративный центр | K30: - | L30: В ближайшие 2-3 года видит себя в текущей должности | M30: Аудит | N30: Тюмень | O30: - | P30: Дочь учится в школе в СПБ. Если после 9 класса уезжает учиться, готова рассматривать варианты релокации. | Q30: Активно не занималась планированием карьеры, текущей должностью и работой довольна. Видит себя на этом месте в ближайшее время. Сама не стала бы искать новую функцию. Если бы пришлось переходить, готова была бы рассматривать функцию Аудит. | R30: 7 из 12 | S30: 1 из 3 | T30: 1 из 3 | U30: 2 из 3 | V30: 3 из 3 | W30: 5.4 | X30: 5.63 | Y30: 6.2 | Z30: 4.6 | AA30: 4.38 | AB30: 5.1 | AC30: 6.05 | AD30: 5.34 | AE30: 5.4 | AF30: 5.8 | AG30: 5 | AH30: 6.1 | AI30: 6.2 | AJ30: 4.6 | AK30: 5.7 | AL30: 2.6 | AM30: 4.5 | AN30: 4.7 | AO30: 5.1 | AP30: 5 | AQ30: 6.5 | AR30: 6.3 | AS30: 6.4 | AT30: 5.4 | AU30: 5 | AV30: 6 | AW30: 6.2 | AX30: 3.5 | AY30: 5 | AZ30: 5.8 | BA30: 5.8 | BB30: АДМИНИСТРАТОР / РЕАЛИСТ / РУКОВОДИТЕЛЬ ESTJ: экстраверт, сенсорик, логик, рационал | BC30: 15 | BD30: 12 | BE30: 13 | BF30: 10 | BG30: 17 | BH30: 4 | BI30: 20 | BJ30: 6 | BK30: Ответственна, готова принимать обратную связь, нацелена на результат. | BL30: Есть понимание, чего хочет от работы, готова вкладываться в развитие команды, если что-то делает, то качественно. | BM30: Возможно, есть элемент выгорания. Это может со временем сказаться на качестве работы, на уровне мотивации и вовлечённости, а также к внутреннему саботажу задач. | BN30: 0 | BO30: 8 | BP30: 8 | BQ30: 7 | BR30: 9 | BS30: 6 | BT30: 7 | BU30: Париж | BV30: АДМИНИСТРАТОР / РЕАЛИСТ / РУКОВОДИТЕЛЬ | BW30: ESTJ: экстраверт, сенсорик, логик, рационал | BX30: Люди с данной ролью ответственные, пунктуальные, надежные и стойкие. Успешно организуя дела, они любят порядок. Знают свои обязанности и не стремятся увиливать. Следуют установленному порядку, точны, аккуратны. Во взаимоотношениях следуют сложившимся традициям. Практичны, реалистичны, основываются на фактах, их заботит ситуация «здесь и сейчас». Больший интерес у них вызывают новые вещи и предметы, а не новые идеи. При решении возникающих проблем они используют свой прошлый опыт. Люди этого типа любят работать в таких сферах деятельности, где они могут достичь непосредственных, видимых глазом, ощутимых результатов. | BY30: 2013-10-14 | BZ30: 1957-05-31
A31: Эстер Дюфло | B31: Вена | C31: Johnson & Johnson | D31: Начальник департамента борьбы с глобальной бедностью | E31: ГД-2 | F31: Средний | G31: Публичные выступления, навыки презентации, навыки переговоров с вышестоящим руководством, эмоциональный интеллект, работа с конфликтами | H31: Тренинги, онлайн-курсы, чтение литературы | I31: Эксперт | J31: Дочернее общество | K31: Аудит, юридическое направление | L31: Возможно, ЗГД в ДО или в Тюмень, на проект, который объединяет направление закупок | M31: БРД, методология закупок,управление эффективностью, ЦЦИ | N31: Тюмень | O31: Должность, интересный проект, личность руководителя, финансовое вознаграждение | P31: На текущий момент уходит в декрет, на данный момент из ограничений к переезду обозначила только географические факторы - на север и в Томск ехать не готова | Q31: ЗГД в ДО, БРД, интересен проект, который объединяет в себе управление закупок, управление организацией и управление эффективностью, изучила аудит. Готова рассматривать переход в методологию закупок | R31: 7 из 12 | S31: 1 из 3 | T31: 1 из 3 | U31: 2 из 3 | V31: 3 из 3 | W31: 4.9 | X31: 5.1 | Y31: 5.7 | Z31: 5.1 | AA31: 4.4 | AB31: 6 | AC31: 5.38 | AD31: 5.18 | AE31: 4.9 | AF31: 4.6 | AG31: 5.1 | AH31: 5.6 | AI31: 5.7 | AJ31: 5.1 | AK31: 5 | AL31: 3.8 | AM31: 4.3 | AN31: 4.5 | AO31: 6 | AP31: 5.4 | AQ31: 5.2 | AR31: 4.9 | AS31: 6 | AT31: 5.6 | AU31: 6 | AV31: 6.2 | AW31: 5.5 | AX31: 1.8 | AY31: 5 | AZ31: 5.6 | BA31: 5.7 | BB31: АДМИНИСТРАТОР / РЕАЛИСТ / РУКОВОДИТЕЛЬ ESTJ: экстраверт, сенсорик, логик, рационал | BC31: 15 | BD31: 8 | BE31: 16 | BF31: 11 | BG31: 17 | BH31: 5 | BI31: 22 | BJ31: 5 | BK31: "Энерджайзер", активна, мотивирована, амбициозна, готова работать на своё развитие в декрете. | BL31: Развивает свои компетенции, чтобы быть компетентной в своей работе. Работает с командой, есть стремление быть эффективным лидером и руководителем. | BM31: Не всегда чувствует признание своих заслуг вышестоящим руководством. Есть ожидания на проект в Тюмени, который готова возглавить. Возможно, если этого не произойдёт, будет демотивирована. | BN31: 0 | BO31: 2 | BP31: 4 | BQ31: 3 | BR31: 2 | BS31: 5 | BT31: 7 | BU31: Париж | BV31: АДМИНИСТРАТОР / РЕАЛИСТ / РУКОВОДИТЕЛЬ | BW31: ESTJ: экстраверт, сенсорик, логик, рационал | BX31: Люди с данной ролью ответственные, пунктуальные, надежные и стойкие. Успешно организуя дела, они любят порядок. Знают свои обязанности и не стремятся увиливать. Следуют установленному порядку, точны, аккуратны. Во взаимоотношениях следуют сложившимся традициям. Практичны, реалистичны, основываются на фактах, их заботит ситуация «здесь и сейчас». Больший интерес у них вызывают новые вещи и предметы, а не новые идеи. При решении возникающих проблем они используют свой прошлый опыт. Люди этого типа любят работать в таких сферах деятельности, где они могут достичь непосредственных, видимых глазом, ощутимых результатов. | BY31: 2018-02-21 | BZ31: 1973-01-09
A32: Эстер Дюфло | B32: Вена | C32: Johnson & Johnson | D32: Начальник департамента борьбы с глобальной бедностью | E32: ГД-2 | F32: Средний | G32: Публичные выступления, навыки презентации, навыки переговоров с вышестоящим руководством, эмоциональный интеллект, работа с конфликтами | H32: Тренинги, онлайн-курсы, чтение литературы | I32: Эксперт | J32: Дочернее общество | K32: Аудит, юридическое направление | L32: Возможно, ЗГД в ДО или в Тюмень, на проект, который объединяет направление закупок | M32: БРД, методология закупок,управление эффективностью, ЦЦИ | N32: Тюмень | O32: Должность, интересный проект, личность руководителя, финансовое вознаграждение | P32: На текущий момент уходит в декрет, на данный момент из ограничений к переезду обозначила только географические факторы - на север и в Томск ехать не готова | Q32: ЗГД в ДО, БРД, интересен проект, который объединяет в себе управление закупок, управление организацией и управление эффективностью, изучила аудит. Готова рассматривать переход в методологию закупок | R32: 7 из 12 | S32: 1 из 3 | T32: 1 из 3 | U32: 2 из 3 | V32: 3 из 3 | W32: 4.9 | X32: 5.1 | Y32: 5.7 | Z32: 5.1 | AA32: 4.4 | AB32: 6 | AC32: 5.38 | AD32: 5.18 | AE32: 4.9 | AF32: 4.6 | AG32: 5.1 | AH32: 5.6 | AI32: 5.7 | AJ32: 5.1 | AK32: 5 | AL32: 3.8 | AM32: 4.3 | AN32: 4.5 | AO32: 6 | AP32: 5.4 | AQ32: 5.2 | AR32: 4.9 | AS32: 6 | AT32: 5.6 | AU32: 6 | AV32: 6.2 | AW32: 5.5 | AX32: 1.8 | AY32: 5 | AZ32: 5.6 | BA32: 5.7 | BB32: АДМИНИСТРАТОР / РЕАЛИСТ / РУКОВОДИТЕЛЬ ESTJ: экстраверт, сенсорик, логик, рационал | BC32: 15 | BD32: 8 | BE32: 16 | BF32: 11 | BG32: 17 | BH32: 5 | BI32: 22 | BJ32: 5 | BK32: "Энерджайзер", активна, мотивирована, амбициозна, готова работать на своё развитие в декрете. | BL32: Развивает свои компетенции, чтобы быть компетентной в своей работе. Работает с командой, есть стремление быть эффективным лидером и руководителем. | BM32: Не всегда чувствует признание своих заслуг вышестоящим руководством. Есть ожидания на проект в Тюмени, который готова возглавить. Возможно, если этого не произойдёт, будет демотивирована. | BN32: 0 | BO32: 2 | BP32: 4 | BQ32: 3 | BR32: 2 | BS32: 5 | BT32: 7 | BU32: Мадрид | BV32: АДМИНИСТРАТОР / РЕАЛИСТ / РУКОВОДИТЕЛЬ | BW32: ESTJ: экстраверт, сенсорик, логик, рационал | BX32: Люди с данной ролью ответственные, пунктуальные, надежные и стойкие. Успешно организуя дела, они любят порядок. Знают свои обязанности и не стремятся увиливать. Следуют установленному порядку, точны, аккуратны. Во взаимоотношениях следуют сложившимся традициям. Практичны, реалистичны, основываются на фактах, их заботит ситуация «здесь и сейчас». Больший интерес у них вызывают новые вещи и предметы, а не новые идеи. При решении возникающих проблем они используют свой прошлый опыт. Люди этого типа любят работать в таких сферах деятельности, где они могут достичь непосредственных, видимых глазом, ощутимых результатов. | BY32: 2018-02-21 | BZ32: 1973-01-09
A33: Эстер Дюфло | B33: Вена | C33: Johnson & Johnson | D33: Начальник департамента борьбы с глобальной бедностью | E33: ГД-2 | F33: Средний | G33: Публичные выступления, навыки презентации, навыки переговоров с вышестоящим руководством, эмоциональный интеллект, работа с конфликтами | H33: Тренинги, онлайн-курсы, чтение литературы | I33: Эксперт | J33: Дочернее общество | K33: Аудит, юридическое направление | L33: Возможно, ЗГД в ДО или в Тюмень, на проект, который объединяет направление закупок | M33: БРД, методология закупок,управление эффективностью, ЦЦИ | N33: Тюмень | O33: Должность, интересный проект, личность руководителя, финансовое вознаграждение | P33: На текущий момент уходит в декрет, на данный момент из ограничений к переезду обозначила только географические факторы - на север и в Томск ехать не готова | Q33: ЗГД в ДО, БРД, интересен проект, который объединяет в себе управление закупок, управление организацией и управление эффективностью, изучила аудит. Готова рассматривать переход в методологию закупок | R33: 7 из 12 | S33: 1 из 3 | T33: 1 из 3 | U33: 2 из 3 | V33: 3 из 3 | W33: 4.9 | X33: 5.1 | Y33: 5.7 | Z33: 5.1 | AA33: 4.4 | AB33: 6 | AC33: 5.38 | AD33: 5.18 | AE33: 4.9 | AF33: 4.6 | AG33: 5.1 | AH33: 5.6 | AI33: 5.7 | AJ33: 5.1 | AK33: 5 | AL33: 3.8 | AM33: 4.3 | AN33: 4.5 | AO33: 6 | AP33: 5.4 | AQ33: 5.2 | AR33: 4.9 | AS33: 6 | AT33: 5.6 | AU33: 6 | AV33: 6.2 | AW33: 5.5 | AX33: 1.8 | AY33: 5 | AZ33: 5.6 | BA33: 5.7 | BB33: АДМИНИСТРАТОР / РЕАЛИСТ / РУКОВОДИТЕЛЬ ESTJ: экстраверт, сенсорик, логик, рационал | BC33: 15 | BD33: 8 | BE33: 16 | BF33: 11 | BG33: 17 | BH33: 5 | BI33: 22 | BJ33: 5 | BK33: "Энерджайзер", активна, мотивирована, амбициозна, готова работать на своё развитие в декрете. | BL33: Развивает свои компетенции, чтобы быть компетентной в своей работе. Работает с командой, есть стремление быть эффективным лидером и руководителем. | BM33: Не всегда чувствует признание своих заслуг вышестоящим руководством. Есть ожидания на проект в Тюмени, который готова возглавить. Возможно, если этого не произойдёт, будет демотивирована. | BN33: 0 | BO33: 2 | BP33: 4 | BQ33: 3 | BR33: 2 | BS33: 5 | BT33: 7 | BU33: Лондон | BV33: АДМИНИСТРАТОР / РЕАЛИСТ / РУКОВОДИТЕЛЬ | BW33: ESTJ: экстраверт, сенсорик, логик, рационал | BX33: Люди с данной ролью ответственные, пунктуальные, надежные и стойкие. Успешно организуя дела, они любят порядок. Знают свои обязанности и не стремятся увиливать. Следуют установленному порядку, точны, аккуратны. Во взаимоотношениях следуют сложившимся традициям. Практичны, реалистичны, основываются на фактах, их заботит ситуация «здесь и сейчас». Больший интерес у них вызывают новые вещи и предметы, а не новые идеи. При решении возникающих проблем они используют свой прошлый опыт. Люди этого типа любят работать в таких сферах деятельности, где они могут достичь непосредственных, видимых глазом, ощутимых результатов. | BY33: 2018-02-21 | BZ33: 1973-01-09

Sheet Карточка участника
F3: Кеннет Эрроу | I3: НАКОПЛЕННЫЙ РЕЙТИНГ С НАЧАЛА ГОДА
I4: Интегральный рейтинг
F5: Возраст: | G5: =INT(YEARFRAC(VLOOKUP(F3,'Данные для карточки'!A4:EG125,78,FALSE),TODAY())) -> 31
F7: Город проживания: | G7: =VLOOKUP(F3,'Данные для карточки'!A3:BU125,5,FALSE) -> Рим
F8: Семейное положение: | I8: Результативность | M8: Профессиональное и лидерское развитие
F9: Дети: | I9: =VLOOKUP(F3,'Данные для карточки'!A4:BS125,68,FALSE)&" место из 10" -> 5 место из 10 | M9: =VLOOKUP(F3,'Данные для карточки'!A4:BS125,70,FALSE)&" место из 10" -> 6 место из 10
I10: Проактивность | M10: Межкомандное взаимодействие
I11: =VLOOKUP(F3,'Данные для карточки'!A4:BS125,69,FALSE)&" место из 10" -> 6 место из 10 | M11: =VLOOKUP(F3,'Данные для карточки'!A4:BS125,71,FALSE)&" место из 10" -> 4 место из 10
C13: ОБЩАЯ ИНФОРМАЦИЯ | I13: ОЦЕНКА ЛИДЕРСКИХ КОМПЕТЕНЦИЙ
C14: Место работы | F14: Уровень знания английского языка | I14: =VLOOKUP(F3,'Данные для карточки'!A4:BS125,18,FALSE) -> 8 из 12 | M14: Создание эффективной команды | O14: Стратегическое виденье
C15: =VLOOKUP(F3,'Данные для карточки'!A4:BM125,3,FALSE) -> Pan American | F15: =VLOOKUP(F3,'Данные для карточки'!A4:BM125,6,FALSE) -> Начальный | M15: =VLOOKUP(F3,'Данные для карточки'!A4:BS125,19,FALSE) -> 2 из 3 | O15: =VLOOKUP(F3,'Данные для карточки'!A4:BS125,20,FALSE) -> 2 из 3
C17: Должность: | F17: Образование: | M17: Руководящие навыки | O17: Способность действовать в условиях неопределенности
C18: =VLOOKUP(F3,'Данные для карточки'!A4:BM125,4,FALSE)&"."&CHAR(10)&CHAR(10)&"В должности "&IF(INT(YEARFRAC(VLOOKUP(F3,'Данные для карточки'!A4:EG125,77,FALSE),TODAY()))=0,"",INT(YEARFRAC(VLOOKUP(F3,'Данные для карточки'!A4:EG125,77,FALSE),TODAY()))&IF(INT(YEARFRAC(VLOOKUP(F3,'Данные для карточки'!A4:EG125,77,FALSE),TODAY()))=1," год",IF(INT(YEARFRAC(VLOOKUP(F3,'Данные для карточки'!A4:EG125,77,FALSE),TODAY()))=2," года",IF(INT(YEARFRAC(VLOOKUP(F3,'Данные для карточки'!A4:EG125,77,FALSE),TODAY()))=3," года",IF(INT(YEARFRAC(VLOOKUP(F3,'Данные для карточки'!A4:EG125,77,FALSE),TODAY()))=4," года",IF(INT(YEARFRAC(VLOOKUP(F3,'Данные для карточки'!A4:EG125,77,FALSE),TODAY()))>4," лет"))))))&" "&IF(DATEDIF(VLOOKUP(F3,'Данные для карточки'!A4:EG125,77,0),TODAY(),"YM")=0,"",(DATEDIF(VLOOKUP(F3,'Данные для карточки'!A4:EG125,77,0),TODAY(),"YM")&" мес.")) -> Начальник управления равновесия и благосостояния. В должности 5 лет 8 мес. | M18: =VLOOKUP(F3,'Данные для карточки'!A4:BS125,21,FALSE) -> 2 из 3 | O18: =VLOOKUP(F3,'Данные для карточки'!A4:BS125,22,FALSE) -> 2 из 3
C20: ОЦЕНКА КАРЬЕРНОГО КОНСУЛЬТАНТА | I20: САМООЦЕНКА УПРАВЛЕНЧЕСКИХ НАВЫКОВ
C21: Краткая характеристика
C22: =VLOOKUP(F3,'Данные для карточки'!A4:BS125,63,FALSE) -> Харизматичный лидер. Горит своей работой, вдохновляет и заряжает людей.
C26: Сильные стороны, возможности и перспективы участника
C27: =VLOOKUP(F3,'Данные для карточки'!A4:BS125,64,FALSE) -> Развивает членов своей команды, успешно «растит» подчиненных, видит в этом много смысла и мотивации для себя. Высокая резистентность к неопределенности, эффективно решает задачи в условиях мгновенных изменений. Заинтересован в собственном развитии и обучении. Честный, искренний во взаимодействии.
C31: Зоны развития
C32: =VLOOKUP(F3,'Данные для карточки'!A4:BS125,65,FALSE) -> В обратной связи подчиненным больше концентрируется на ошибках, чем на признании заслуг. Также строго относится и к себе. Эмоционален, принимает многие вещи близко к сердцу. Из-за высокой неопределенности в сфере зоной развития считает стратегическое видение.
C39: ЛИЧНОСТНЫЙ ПРОФИЛЬ | I39: ГОТОВНОСТЬ К РЕЛОКАЦИИ
C40: =VLOOKUP(F3,'Данные для карточки'!A3:EG125,74,FALSE) -> АДМИНИСТРАТОР / РЕАЛИСТ / РУКОВОДИТЕЛЬ | I40: Возможные города | L40: Мотивация для переезда | O40: Возможные ограничения для переезда
C41: =VLOOKUP(F3,'Данные для карточки'!A3:EG125,75,FALSE) -> ESTJ: экстраверт, сенсорик, логик, рационал | I41: =VLOOKUP(F3,'Данные для карточки'!A3:BU125,73,FALSE) -> -Лондон -Афины -Лиссабон | L41: =VLOOKUP(F3,'Данные для карточки'!A3:BU125,15,FALSE) -> - | O41: =VLOOKUP(F3,'Данные для карточки'!A3:BU125,16,FALSE) -> Дети, жена и ее карьера. По сути, переезд возможен только "по приказу", как нежелательный на сегодняшний день вариант
C42: Описание роли:
C43: =VLOOKUP(F3,'Данные для карточки'!A3:EG125,76,FALSE) -> Люди с данной ролью ответственные, пунктуальные, надежные и стойкие. Успешно организуя дела, они любят порядок. Знают свои обязанности и не стремятся увиливать. Следуют установленному порядку, точны, аккуратны. Во взаимоотношениях следуют сложившимся традициям. Практичны, реалистичны, основываются на фактах, их заботит ситуация «здесь и сейчас». Больший интерес у них вызывают новые вещи и предметы, а не новые идеи. При решении возникающих проблем они используют свой прошлый опыт. Люди этого типа любят работать в таких сферах деятельности, где они могут достичь непосредственных, видимых глазом, ощутимых результатов.

Sheet РЕЙТИНГ Тех (hidden)
B1: К СОДЕРЖАНИЮ
B2: 1 | C2: 2 | D2: 3 | E2: 4 | F2: 5 | G2: 6 | H2: 7 | I2: 8 | J2: 9 | K2: 10 | L2: 11 | M2: 12 | N2: 13 | O2: 14 | P2: 15 | Q2: 16 | R2: 17 | S2: 18 | T2: 19 | U2: 20 | V2: 21 | W2: 22 | X2: 23 | Y2: 24 | Z2: 25 | AA2: 26 | AB2: 27
B3: УЧАСТНИК | D3: ГОД (Коммулятивный итог) | I3: I КВАРТАЛ | N3: II КВАРТАЛ | S3: III КВАРТАЛ | X3: IV КВАРТАЛ
B4: ФИО | C4: ТИП | D4: ИНТЕГРАЛЬНЫЙ | E4: РЕЗУЛЬТАТИВНОСТЬ | F4: ПРОАКТИВНОСТЬ | G4: ПРОФЕССИОНАЛЬНОЕ РАЗВИТИЕ | H4: ЭФФЕКТИВНОЕ ВЗАИМОДЕЙСТВИЕ | I4: ИНТЕГРАЛЬНЫЙ | J4: РЕЗУЛЬТАТИВНОСТЬ | K4: ПРОАКТИВНОСТЬ | L4: ПРОФЕССИОНАЛЬНОЕ РАЗВИТИЕ | M4: ЭФФЕКТИВНОЕ ВЗАИМОДЕЙСТВИЕ | N4: ИНТЕГРАЛЬНЫЙ | O4: РЕЗУЛЬТАТИВНОСТЬ | P4: ПРОАКТИВНОСТЬ | Q4: ПРОФЕССИОНАЛЬНОЕ РАЗВИТИЕ | R4: ЭФФЕКТИВНОЕ ВЗАИМОДЕЙСТВИЕ | S4: ИНТЕГРАЛЬНЫЙ | T4: РЕЗУЛЬТАТИВНОСТЬ | U4: ПРОАКТИВНОСТЬ | V4: ПРОФЕССИОНАЛЬНОЕ РАЗВИТИЕ | W4: ЭФФЕКТИВНОЕ ВЗАИМОДЕЙСТВИЕ | X4: ИНТЕГРАЛЬНЫЙ | Y4: РЕЗУЛЬТАТИВНОСТЬ | Z4: ПРОАКТИВНОСТЬ | AA4: ПРОФЕССИОНАЛЬНОЕ РАЗВИТИЕ | AB4: ЭФФЕКТИВНОЕ ВЗАИМОДЕЙСТВИЕ
B5: Андреева Анна | C5: ОКР | D5: =VLOOKUP($B5,'Показатели за ГОД'!$A$120:$AS$155,4,FALSE) ->  | E5: =VLOOKUP($B5,'Показатели за ГОД'!$A$120:$AS$155,5,FALSE) ->  | F5: =VLOOKUP($B5,'Показатели за ГОД'!$A$120:$AS$155,8,FALSE) ->  | G5: =VLOOKUP($B5,'Показатели за ГОД'!$A$120:$AS$155,23,FALSE) ->  | H5: =VLOOKUP($B5,'Показатели за ГОД'!$A$120:$AS$155,38,FALSE) ->  | I5: =IF('Сбор показателей I кв'!G11="","-",VLOOKUP($B5,'Сбор показателей I кв'!$B$125:$AU$160,4,FALSE)) ->  | J5: =IF('Сбор показателей I кв'!G11="","-",VLOOKUP($B5,'Сбор показателей I кв'!$B$125:$AU$160,5,FALSE)) ->  | K5: =IF(AND('Сбор показателей I кв'!N11="",'Сбор показателей I кв'!O11="",'Сбор показателей I кв'!P11=""),"-",VLOOKUP($B5,'Сбор показателей I кв'!$B$125:$AU$160,8,FALSE)) ->  | L5: =IF('Сбор показателей I кв'!AJ11="","-",VLOOKUP($B5,'Сбор показателей I кв'!$B$125:$AU$160,23,FALSE)) ->  | M5: =IF(AND('Сбор показателей I кв'!AT11="",'Сбор показателей I кв'!AU11=""),"-",VLOOKUP($B5,'Сбор показателей I кв'!$B$125:$AU$160,38,FALSE)) ->  | N5: =IF('Сбор показателей II кв'!G11="","-",VLOOKUP($B5,'Сбор показателей II кв'!$B$125:$AT$160,4,FALSE)) ->  | O5: =IF('Сбор показателей II кв'!G11="","-",VLOOKUP($B5,'Сбор показателей II кв'!$B$125:$AT$160,5,FALSE)) ->  | P5: =IF(AND('Сбор показателей II кв'!N11="",'Сбор показателей II кв'!O11="",'Сбор показателей II кв'!P11=""),"-",VLOOKUP($B5,'Сбор показателей II кв'!$B$125:$AT$160,8,FALSE)) ->  | Q5: =IF('Сбор показателей II кв'!AJ11="","-",VLOOKUP($B5,'Сбор показателей II кв'!$B$125:$AT$160,23,FALSE)) ->  | R5: =IF(AND('Сбор показателей II кв'!AS11="",'Сбор показателей II кв'!AT11=""),"-",VLOOKUP($B5,'Сбор показателей II кв'!$B$125:$AT$160,38,FALSE)) ->  | S5: =IF('Сбор показателей III кв'!G11="","-",VLOOKUP($B5,'Сбор показателей III кв'!$B$125:$AT$160,4,FALSE)) -> - | T5: =IF('Сбор показателей III кв'!G11="","-",VLOOKUP($B5,'Сбор показателей III кв'!$B$125:$AT$160,5,FALSE)) -> - | U5: =IF(AND('Сбор показателей III кв'!N11="",'Сбор показателей III кв'!O11="",'Сбор показателей III кв'!P11=""),"-",VLOOKUP($B5,'Сбор показателей III кв'!$B$125:$AT$160,8,FALSE)) -> - | V5: =IF('Сбор показателей III кв'!AJ11="","-",VLOOKUP($B5,'Сбор показателей III кв'!$B$125:$AT$160,23,FALSE)) -> - | W5: =IF(AND('Сбор показателей III кв'!AS11="",'Сбор показателей III кв'!AT11=""),"-",VLOOKUP($B5,'Сбор показателей III кв'!$B$125:$AT$160,38,FALSE)) -> - | X5: =IF('Сбор показателей IV кв'!G11="","-",VLOOKUP(B5,'Сбор показателей IV кв'!$B$125:$AT$160,4,FALSE)) -> - | Y5: =IF('Сбор показателей IV кв'!G11="","-",VLOOKUP(B5,'Сбор показателей IV кв'!$B$125:$AT$160,5,FALSE)) -> - | Z5: =IF(AND('Сбор показателей IV кв'!N11="",'Сбор показателей IV кв'!O11="",'Сбор показателей IV кв'!P11=""),"-",VLOOKUP(B5,'Сбор показателей IV кв'!$B$125:$AT$160,8,FALSE)) -> - | AA5: =IF('Сбор показателей IV кв'!AJ11="","-",VLOOKUP(B5,'Сбор показателей IV кв'!$B$125:$AT$160,23,FALSE)) -> - | AB5: =IF(AND('Сбор показателей IV кв'!AS11="",'Сбор показателей IV кв'!AT11=""),"-",VLOOKUP(B5,'Сбор показателей IV кв'!$B$125:$AT$160,38,FALSE)) -> -
B6: Анисимова Марина | C6: ОКР | D6: =VLOOKUP($B6,'Показатели за ГОД'!$A$120:$AS$155,4,FALSE) ->  | E6: =VLOOKUP($B6,'Показатели за ГОД'!$A$120:$AS$155,5,FALSE) ->  | F6: =VLOOKUP($B6,'Показатели за ГОД'!$A$120:$AS$155,8,FALSE) ->  | G6: =VLOOKUP($B6,'Показатели за ГОД'!$A$120:$AS$155,23,FALSE) ->  | H6: =VLOOKUP($B6,'Показатели за ГОД'!$A$120:$AS$155,38,FALSE) ->  | I6: =IF('Сбор показателей I кв'!G12="","-",VLOOKUP($B6,'Сбор показателей I кв'!$B$125:$AU$160,4,FALSE)) ->  | J6: =IF('Сбор показателей I кв'!G12="","-",VLOOKUP($B6,'Сбор показателей I кв'!$B$125:$AU$160,5,FALSE)) ->  | K6: =IF(AND('Сбор показателей I кв'!N12="",'Сбор показателей I кв'!O12="",'Сбор показателей I кв'!P12=""),"-",VLOOKUP($B6,'Сбор показателей I кв'!$B$125:$AU$160,8,FALSE)) ->  | L6: =IF('Сбор показателей I кв'!AJ12="","-",VLOOKUP($B6,'Сбор показателей I кв'!$B$125:$AU$160,23,FALSE)) ->  | M6: =IF(AND('Сбор показателей I кв'!AT12="",'Сбор показателей I кв'!AU12=""),"-",VLOOKUP($B6,'Сбор показателей I кв'!$B$125:$AU$160,38,FALSE)) ->  | N6: =IF('Сбор показателей II кв'!G12="","-",VLOOKUP($B6,'Сбор показателей II кв'!$B$125:$AT$160,4,FALSE)) ->  | O6: =IF('Сбор показателей II кв'!G12="","-",VLOOKUP($B6,'Сбор показателей II кв'!$B$125:$AT$160,5,FALSE)) ->  | P6: =IF(AND('Сбор показателей II кв'!N12="",'Сбор показателей II кв'!O12="",'Сбор показателей II кв'!P12=""),"-",VLOOKUP($B6,'Сбор показателей II кв'!$B$125:$AT$160,8,FALSE)) ->  | Q6: =IF('Сбор показателей II кв'!AJ12="","-",VLOOKUP($B6,'Сбор показателей II кв'!$B$125:$AT$160,23,FALSE)) ->  | R6: =IF(AND('Сбор показателей II кв'!AS12="",'Сбор показателей II кв'!AT12=""),"-",VLOOKUP($B6,'Сбор показателей II кв'!$B$125:$AT$160,38,FALSE)) ->  | S6: =IF('Сбор показателей III кв'!G12="","-",VLOOKUP($B6,'Сбор показателей III кв'!$B$125:$AT$160,4,FALSE)) -> - | T6: =IF('Сбор показателей III кв'!G12="","-",VLOOKUP($B6,'Сбор показателей III кв'!$B$125:$AT$160,5,FALSE)) -> - | U6: =IF(AND('Сбор показателей III кв'!N12="",'Сбор показателей III кв'!O12="",'Сбор показателей III кв'!P12=""),"-",VLOOKUP($B6,'Сбор показателей III кв'!$B$125:$AT$160,8,FALSE)) -> - | V6: =IF('Сбор показателей III кв'!AJ12="","-",VLOOKUP($B6,'Сбор показателей III кв'!$B$125:$AT$160,23,FALSE)) -> - | W6: =IF(AND('Сбор показателей III кв'!AS12="",'Сбор показателей III кв'!AT12=""),"-",VLOOKUP($B6,'Сбор показателей III кв'!$B$125:$AT$160,38,FALSE)) -> - | X6: =IF('Сбор показателей IV кв'!G12="","-",VLOOKUP(B6,'Сбор показателей IV кв'!$B$125:$AT$160,4,FALSE)) -> - | Y6: =IF('Сбор показателей IV кв'!G12="","-",VLOOKUP(B6,'Сбор показателей IV кв'!$B$125:$AT$160,5,FALSE)) -> - | Z6: =IF(AND('Сбор показателей IV кв'!N12="",'Сбор показателей IV кв'!O12="",'Сбор показателей IV кв'!P12=""),"-",VLOOKUP(B6,'Сбор показателей IV кв'!$B$125:$AT$160,8,FALSE)) -> - | AA6: =IF('Сбор показателей IV кв'!AJ12="","-",VLOOKUP(B6,'Сбор показателей IV кв'!$B$125:$AT$160,23,FALSE)) -> - | AB6: =IF(AND('Сбор показателей IV кв'!AS12="",'Сбор показателей IV кв'!AT12=""),"-",VLOOKUP(B6,'Сбор показателей IV кв'!$B$125:$AT$160,38,FALSE)) -> -
B7: Билый Александр | C7: ОКР | D7: =VLOOKUP($B7,'Показатели за ГОД'!$A$120:$AS$155,4,FALSE) ->  | E7: =VLOOKUP($B7,'Показатели за ГОД'!$A$120:$AS$155,5,FALSE) ->  | F7: =VLOOKUP($B7,'Показатели за ГОД'!$A$120:$AS$155,8,FALSE) ->  | G7: =VLOOKUP($B7,'Показатели за ГОД'!$A$120:$AS$155,23,FALSE) ->  | H7: =VLOOKUP($B7,'Показатели за ГОД'!$A$120:$AS$155,38,FALSE) ->  | I7: =IF('Сбор показателей I кв'!G13="","-",VLOOKUP($B7,'Сбор показателей I кв'!$B$125:$AU$160,4,FALSE)) ->  | J7: =IF('Сбор показателей I кв'!G13="","-",VLOOKUP($B7,'Сбор показателей I кв'!$B$125:$AU$160,5,FALSE)) ->  | K7: =IF(AND('Сбор показателей I кв'!N13="",'Сбор показателей I кв'!O13="",'Сбор показателей I кв'!P13=""),"-",VLOOKUP($B7,'Сбор показателей I кв'!$B$125:$AU$160,8,FALSE)) ->  | L7: =IF('Сбор показателей I кв'!AJ13="","-",VLOOKUP($B7,'Сбор показателей I кв'!$B$125:$AU$160,23,FALSE)) ->  | M7: =IF(AND('Сбор показателей I кв'!AT13="",'Сбор показателей I кв'!AU13=""),"-",VLOOKUP($B7,'Сбор показателей I кв'!$B$125:$AU$160,38,FALSE)) ->  | N7: =IF('Сбор показателей II кв'!G13="","-",VLOOKUP($B7,'Сбор показателей II кв'!$B$125:$AT$160,4,FALSE)) ->  | O7: =IF('Сбор показателей II кв'!G13="","-",VLOOKUP($B7,'Сбор показателей II кв'!$B$125:$AT$160,5,FALSE)) ->  | P7: =IF(AND('Сбор показателей II кв'!N13="",'Сбор показателей II кв'!O13="",'Сбор показателей II кв'!P13=""),"-",VLOOKUP($B7,'Сбор показателей II кв'!$B$125:$AT$160,8,FALSE)) ->  | Q7: =IF('Сбор показателей II кв'!AJ13="","-",VLOOKUP($B7,'Сбор показателей II кв'!$B$125:$AT$160,23,FALSE)) ->  | R7: =IF(AND('Сбор показателей II кв'!AS13="",'Сбор показателей II кв'!AT13=""),"-",VLOOKUP($B7,'Сбор показателей II кв'!$B$125:$AT$160,38,FALSE)) ->  | S7: =IF('Сбор показателей III кв'!G13="","-",VLOOKUP($B7,'Сбор показателей III кв'!$B$125:$AT$160,4,FALSE)) -> - | T7: =IF('Сбор показателей III кв'!G13="","-",VLOOKUP($B7,'Сбор показателей III кв'!$B$125:$AT$160,5,FALSE)) -> - | U7: =IF(AND('Сбор показателей III кв'!N13="",'Сбор показателей III кв'!O13="",'Сбор показателей III кв'!P13=""),"-",VLOOKUP($B7,'Сбор показателей III кв'!$B$125:$AT$160,8,FALSE)) -> - | V7: =IF('Сбор показателей III кв'!AJ13="","-",VLOOKUP($B7,'Сбор показателей III кв'!$B$125:$AT$160,23,FALSE)) -> - | W7: =IF(AND('Сбор показателей III кв'!AS13="",'Сбор показателей III кв'!AT13=""),"-",VLOOKUP($B7,'Сбор показателей III кв'!$B$125:$AT$160,38,FALSE)) -> - | X7: =IF('Сбор показателей IV кв'!G13="","-",VLOOKUP(B7,'Сбор показателей IV кв'!$B$125:$AT$160,4,FALSE)) -> - | Y7: =IF('Сбор показателей IV кв'!G13="","-",VLOOKUP(B7,'Сбор показателей IV кв'!$B$125:$AT$160,5,FALSE)) -> - | Z7: =IF(AND('Сбор показателей IV кв'!N13="",'Сбор показателей IV кв'!O13="",'Сбор показателей IV кв'!P13=""),"-",VLOOKUP(B7,'Сбор показателей IV кв'!$B$125:$AT$160,8,FALSE)) -> - | AA7: =IF('Сбор показателей IV кв'!AJ13="","-",VLOOKUP(B7,'Сбор показателей IV кв'!$B$125:$AT$160,23,FALSE)) -> - | AB7: =IF(AND('Сбор показателей IV кв'!AS13="",'Сбор показателей IV кв'!AT13=""),"-",VLOOKUP(B7,'Сбор показателей IV кв'!$B$125:$AT$160,38,FALSE)) -> -
B8: Бильвина Валерия | C8: ОКР | D8: =VLOOKUP($B8,'Показатели за ГОД'!$A$120:$AS$155,4,FALSE) ->  | E8: =VLOOKUP($B8,'Показатели за ГОД'!$A$120:$AS$155,5,FALSE) ->  | F8: =VLOOKUP($B8,'Показатели за ГОД'!$A$120:$AS$155,8,FALSE) ->  | G8: =VLOOKUP($B8,'Показатели за ГОД'!$A$120:$AS$155,23,FALSE) ->  | H8: =VLOOKUP($B8,'Показатели за ГОД'!$A$120:$AS$155,38,FALSE) ->  | I8: =IF('Сбор показателей I кв'!G14="","-",VLOOKUP($B8,'Сбор показателей I кв'!$B$125:$AU$160,4,FALSE)) ->  | J8: =IF('Сбор показателей I кв'!G14="","-",VLOOKUP($B8,'Сбор показателей I кв'!$B$125:$AU$160,5,FALSE)) ->  | K8: =IF(AND('Сбор показателей I кв'!N14="",'Сбор показателей I кв'!O14="",'Сбор показателей I кв'!P14=""),"-",VLOOKUP($B8,'Сбор показателей I кв'!$B$125:$AU$160,8,FALSE)) ->  | L8: =IF('Сбор показателей I кв'!AJ14="","-",VLOOKUP($B8,'Сбор показателей I кв'!$B$125:$AU$160,23,FALSE)) ->  | M8: =IF(AND('Сбор показателей I кв'!AT14="",'Сбор показателей I кв'!AU14=""),"-",VLOOKUP($B8,'Сбор показателей I кв'!$B$125:$AU$160,38,FALSE)) ->  | N8: =IF('Сбор показателей II кв'!G14="","-",VLOOKUP($B8,'Сбор показателей II кв'!$B$125:$AT$160,4,FALSE)) ->  | O8: =IF('Сбор показателей II кв'!G14="","-",VLOOKUP($B8,'Сбор показателей II кв'!$B$125:$AT$160,5,FALSE)) ->  | P8: =IF(AND('Сбор показателей II кв'!N14="",'Сбор показателей II кв'!O14="",'Сбор показателей II кв'!P14=""),"-",VLOOKUP($B8,'Сбор показателей II кв'!$B$125:$AT$160,8,FALSE)) ->  | Q8: =IF('Сбор показателей II кв'!AJ14="","-",VLOOKUP($B8,'Сбор показателей II кв'!$B$125:$AT$160,23,FALSE)) ->  | R8: =IF(AND('Сбор показателей II кв'!AS14="",'Сбор показателей II кв'!AT14=""),"-",VLOOKUP($B8,'Сбор показателей II кв'!$B$125:$AT$160,38,FALSE)) ->  | S8: =IF('Сбор показателей III кв'!G14="","-",VLOOKUP($B8,'Сбор показателей III кв'!$B$125:$AT$160,4,FALSE)) -> - | T8: =IF('Сбор показателей III кв'!G14="","-",VLOOKUP($B8,'Сбор показателей III кв'!$B$125:$AT$160,5,FALSE)) -> - | U8: =IF(AND('Сбор показателей III кв'!N14="",'Сбор показателей III кв'!O14="",'Сбор показателей III кв'!P14=""),"-",VLOOKUP($B8,'Сбор показателей III кв'!$B$125:$AT$160,8,FALSE)) -> - | V8: =IF('Сбор показателей III кв'!AJ14="","-",VLOOKUP($B8,'Сбор показателей III кв'!$B$125:$AT$160,23,FALSE)) -> - | W8: =IF(AND('Сбор показателей III кв'!AS14="",'Сбор показателей III кв'!AT14=""),"-",VLOOKUP($B8,'Сбор показателей III кв'!$B$125:$AT$160,38,FALSE)) -> - | X8: =IF('Сбор показателей IV кв'!G14="","-",VLOOKUP(B8,'Сбор показателей IV кв'!$B$125:$AT$160,4,FALSE)) -> - | Y8: =IF('Сбор показателей IV кв'!G14="","-",VLOOKUP(B8,'Сбор показателей IV кв'!$B$125:$AT$160,5,FALSE)) -> - | Z8: =IF(AND('Сбор показателей IV кв'!N14="",'Сбор показателей IV кв'!O14="",'Сбор показателей IV кв'!P14=""),"-",VLOOKUP(B8,'Сбор показателей IV кв'!$B$125:$AT$160,8,FALSE)) -> - | AA8: =IF('Сбор показателей IV кв'!AJ14="","-",VLOOKUP(B8,'Сбор показателей IV кв'!$B$125:$AT$160,23,FALSE)) -> - | AB8: =IF(AND('Сбор показателей IV кв'!AS14="",'Сбор показателей IV кв'!AT14=""),"-",VLOOKUP(B8,'Сбор показателей IV кв'!$B$125:$AT$160,38,FALSE)) -> -
B9: Борисов Сергей | C9: ОКР | D9: =VLOOKUP($B9,'Показатели за ГОД'!$A$120:$AS$155,4,FALSE) ->  | E9: =VLOOKUP($B9,'Показатели за ГОД'!$A$120:$AS$155,5,FALSE) ->  | F9: =VLOOKUP($B9,'Показатели за ГОД'!$A$120:$AS$155,8,FALSE) ->  | G9: =VLOOKUP($B9,'Показатели за ГОД'!$A$120:$AS$155,23,FALSE) ->  | H9: =VLOOKUP($B9,'Показатели за ГОД'!$A$120:$AS$155,38,FALSE) ->  | I9: =IF('Сбор показателей I кв'!G15="","-",VLOOKUP($B9,'Сбор показателей I кв'!$B$125:$AU$160,4,FALSE)) ->  | J9: =IF('Сбор показателей I кв'!G15="","-",VLOOKUP($B9,'Сбор показателей I кв'!$B$125:$AU$160,5,FALSE)) ->  | K9: =IF(AND('Сбор показателей I кв'!N15="",'Сбор показателей I кв'!O15="",'Сбор показателей I кв'!P15=""),"-",VLOOKUP($B9,'Сбор показателей I кв'!$B$125:$AU$160,8,FALSE)) ->  | L9: =IF('Сбор показателей I кв'!AJ15="","-",VLOOKUP($B9,'Сбор показателей I кв'!$B$125:$AU$160,23,FALSE)) ->  | M9: =IF(AND('Сбор показателей I кв'!AT15="",'Сбор показателей I кв'!AU15=""),"-",VLOOKUP($B9,'Сбор показателей I кв'!$B$125:$AU$160,38,FALSE)) ->  | N9: =IF('Сбор показателей II кв'!G15="","-",VLOOKUP($B9,'Сбор показателей II кв'!$B$125:$AT$160,4,FALSE)) ->  | O9: =IF('Сбор показателей II кв'!G15="","-",VLOOKUP($B9,'Сбор показателей II кв'!$B$125:$AT$160,5,FALSE)) ->  | P9: =IF(AND('Сбор показателей II кв'!N15="",'Сбор показателей II кв'!O15="",'Сбор показателей II кв'!P15=""),"-",VLOOKUP($B9,'Сбор показателей II кв'!$B$125:$AT$160,8,FALSE)) ->  | Q9: =IF('Сбор показателей II кв'!AJ15="","-",VLOOKUP($B9,'Сбор показателей II кв'!$B$125:$AT$160,23,FALSE)) ->  | R9: =IF(AND('Сбор показателей II кв'!AS15="",'Сбор показателей II кв'!AT15=""),"-",VLOOKUP($B9,'Сбор показателей II кв'!$B$125:$AT$160,38,FALSE)) ->  | S9: =IF('Сбор показателей III кв'!G15="","-",VLOOKUP($B9,'Сбор показателей III кв'!$B$125:$AT$160,4,FALSE)) -> - | T9: =IF('Сбор показателей III кв'!G15="","-",VLOOKUP($B9,'Сбор показателей III кв'!$B$125:$AT$160,5,FALSE)) -> - | U9: =IF(AND('Сбор показателей III кв'!N15="",'Сбор показателей III кв'!O15="",'Сбор показателей III кв'!P15=""),"-",VLOOKUP($B9,'Сбор показателей III кв'!$B$125:$AT$160,8,FALSE)) -> - | V9: =IF('Сбор показателей III кв'!AJ15="","-",VLOOKUP($B9,'Сбор показателей III кв'!$B$125:$AT$160,23,FALSE)) -> - | W9: =IF(AND('Сбор показателей III кв'!AS15="",'Сбор показателей III кв'!AT15=""),"-",VLOOKUP($B9,'Сбор показателей III кв'!$B$125:$AT$160,38,FALSE)) -> - | X9: =IF('Сбор показателей IV кв'!G15="","-",VLOOKUP(B9,'Сбор показателей IV кв'!$B$125:$AT$160,4,FALSE)) -> - | Y9: =IF('Сбор показателей IV кв'!G15="","-",VLOOKUP(B9,'Сбор показателей IV кв'!$B$125:$AT$160,5,FALSE)) -> - | Z9: =IF(AND('Сбор показателей IV кв'!N15="",'Сбор показателей IV кв'!O15="",'Сбор показателей IV кв'!P15=""),"-",VLOOKUP(B9,'Сбор показателей IV кв'!$B$125:$AT$160,8,FALSE)) -> - | AA9: =IF('Сбор показателей IV кв'!AJ15="","-",VLOOKUP(B9,'Сбор показателей IV кв'!$B$125:$AT$160,23,FALSE)) -> - | AB9: =IF(AND('Сбор показателей IV кв'!AS15="",'Сбор показателей IV кв'!AT15=""),"-",VLOOKUP(B9,'Сбор показателей IV кв'!$B$125:$AT$160,38,FALSE)) -> -
B10: Булковский Сергей | C10: ЗГД | D10: =VLOOKUP($B10,'Показатели за ГОД'!$A$120:$AS$155,4,FALSE) ->  | E10: =VLOOKUP($B10,'Показатели за ГОД'!$A$120:$AS$155,5,FALSE) ->  | F10: =VLOOKUP($B10,'Показатели за ГОД'!$A$120:$AS$155,8,FALSE) ->  | G10: =VLOOKUP($B10,'Показатели за ГОД'!$A$120:$AS$155,23,FALSE) ->  | H10: =VLOOKUP($B10,'Показатели за ГОД'!$A$120:$AS$155,38,FALSE) ->  | I10: =IF('Сбор показателей I кв'!G16="","-",VLOOKUP($B10,'Сбор показателей I кв'!$B$125:$AU$160,4,FALSE)) ->  | J10: =IF('Сбор показателей I кв'!G16="","-",VLOOKUP($B10,'Сбор показателей I кв'!$B$125:$AU$160,5,FALSE)) ->  | K10: =IF(AND('Сбор показателей I кв'!N16="",'Сбор показателей I кв'!O16="",'Сбор показателей I кв'!P16=""),"-",VLOOKUP($B10,'Сбор показателей I кв'!$B$125:$AU$160,8,FALSE)) ->  | L10: =IF('Сбор показателей I кв'!AJ16="","-",VLOOKUP($B10,'Сбор показателей I кв'!$B$125:$AU$160,23,FALSE)) ->  | M10: =IF(AND('Сбор показателей I кв'!AT16="",'Сбор показателей I кв'!AU16=""),"-",VLOOKUP($B10,'Сбор показателей I кв'!$B$125:$AU$160,38,FALSE)) ->  | N10: =IF('Сбор показателей II кв'!G16="","-",VLOOKUP($B10,'Сбор показателей II кв'!$B$125:$AT$160,4,FALSE)) ->  | O10: =IF('Сбор показателей II кв'!G16="","-",VLOOKUP($B10,'Сбор показателей II кв'!$B$125:$AT$160,5,FALSE)) ->  | P10: =IF(AND('Сбор показателей II кв'!N16="",'Сбор показателей II кв'!O16="",'Сбор показателей II кв'!P16=""),"-",VLOOKUP($B10,'Сбор показателей II кв'!$B$125:$AT$160,8,FALSE)) ->  | Q10: =IF('Сбор показателей II кв'!AJ16="","-",VLOOKUP($B10,'Сбор показателей II кв'!$B$125:$AT$160,23,FALSE)) ->  | R10: =IF(AND('Сбор показателей II кв'!AS16="",'Сбор показателей II кв'!AT16=""),"-",VLOOKUP($B10,'Сбор показателей II кв'!$B$125:$AT$160,38,FALSE)) ->  | S10: =IF('Сбор показателей III кв'!G16="","-",VLOOKUP($B10,'Сбор показателей III кв'!$B$125:$AT$160,4,FALSE)) -> - | T10: =IF('Сбор показателей III кв'!G16="","-",VLOOKUP($B10,'Сбор показателей III кв'!$B$125:$AT$160,5,FALSE)) -> - | U10: =IF(AND('Сбор показателей III кв'!N16="",'Сбор показателей III кв'!O16="",'Сбор показателей III кв'!P16=""),"-",VLOOKUP($B10,'Сбор показателей III кв'!$B$125:$AT$160,8,FALSE)) -> - | V10: =IF('Сбор показателей III кв'!AJ16="","-",VLOOKUP($B10,'Сбор показателей III кв'!$B$125:$AT$160,23,FALSE)) -> - | W10: =IF(AND('Сбор показателей III кв'!AS16="",'Сбор показателей III кв'!AT16=""),"-",VLOOKUP($B10,'Сбор показателей III кв'!$B$125:$AT$160,38,FALSE)) -> - | X10: =IF('Сбор показателей IV кв'!G16="","-",VLOOKUP(B10,'Сбор показателей IV кв'!$B$125:$AT$160,4,FALSE)) -> - | Y10: =IF('Сбор показателей IV кв'!G16="","-",VLOOKUP(B10,'Сбор показателей IV кв'!$B$125:$AT$160,5,FALSE)) -> - | Z10: =IF(AND('Сбор показателей IV кв'!N16="",'Сбор показателей IV кв'!O16="",'Сбор показателей IV кв'!P16=""),"-",VLOOKUP(B10,'Сбор показателей IV кв'!$B$125:$AT$160,8,FALSE)) -> - | AA10: =IF('Сбор показателей IV кв'!AJ16="","-",VLOOKUP(B10,'Сбор показателей IV кв'!$B$125:$AT$160,23,FALSE)) -> - | AB10: =IF(AND('Сбор показателей IV кв'!AS16="",'Сбор показателей IV кв'!AT16=""),"-",VLOOKUP(B10,'Сбор показателей IV кв'!$B$125:$AT$160,38,FALSE)) -> -
B11: Войтюк Юлия | C11: ОКР | D11: =VLOOKUP($B11,'Показатели за ГОД'!$A$120:$AS$155,4,FALSE) ->  | E11: =VLOOKUP($B11,'Показатели за ГОД'!$A$120:$AS$155,5,FALSE) ->  | F11: =VLOOKUP($B11,'Показатели за ГОД'!$A$120:$AS$155,8,FALSE) ->  | G11: =VLOOKUP($B11,'Показатели за ГОД'!$A$120:$AS$155,23,FALSE) ->  | H11: =VLOOKUP($B11,'Показатели за ГОД'!$A$120:$AS$155,38,FALSE) ->  | I11: =IF('Сбор показателей I кв'!G17="","-",VLOOKUP($B11,'Сбор показателей I кв'!$B$125:$AU$160,4,FALSE)) ->  | J11: =IF('Сбор показателей I кв'!G17="","-",VLOOKUP($B11,'Сбор показателей I кв'!$B$125:$AU$160,5,FALSE)) ->  | K11: =IF(AND('Сбор показателей I кв'!N17="",'Сбор показателей I кв'!O17="",'Сбор показателей I кв'!P17=""),"-",VLOOKUP($B11,'Сбор показателей I кв'!$B$125:$AU$160,8,FALSE)) ->  | L11: =IF('Сбор показателей I кв'!AJ17="","-",VLOOKUP($B11,'Сбор показателей I кв'!$B$125:$AU$160,23,FALSE)) ->  | M11: =IF(AND('Сбор показателей I кв'!AT17="",'Сбор показателей I кв'!AU17=""),"-",VLOOKUP($B11,'Сбор показателей I кв'!$B$125:$AU$160,38,FALSE)) ->  | N11: =IF('Сбор показателей II кв'!G17="","-",VLOOKUP($B11,'Сбор показателей II кв'!$B$125:$AT$160,4,FALSE)) ->  | O11: =IF('Сбор показателей II кв'!G17="","-",VLOOKUP($B11,'Сбор показателей II кв'!$B$125:$AT$160,5,FALSE)) ->  | P11: =IF(AND('Сбор показателей II кв'!N17="",'Сбор показателей II кв'!O17="",'Сбор показателей II кв'!P17=""),"-",VLOOKUP($B11,'Сбор показателей II кв'!$B$125:$AT$160,8,FALSE)) ->  | Q11: =IF('Сбор показателей II кв'!AJ17="","-",VLOOKUP($B11,'Сбор показателей II кв'!$B$125:$AT$160,23,FALSE)) ->  | R11: =IF(AND('Сбор показателей II кв'!AS17="",'Сбор показателей II кв'!AT17=""),"-",VLOOKUP($B11,'Сбор показателей II кв'!$B$125:$AT$160,38,FALSE)) ->  | S11: =IF('Сбор показателей III кв'!G17="","-",VLOOKUP($B11,'Сбор показателей III кв'!$B$125:$AT$160,4,FALSE)) -> - | T11: =IF('Сбор показателей III кв'!G17="","-",VLOOKUP($B11,'Сбор показателей III кв'!$B$125:$AT$160,5,FALSE)) -> - | U11: =IF(AND('Сбор показателей III кв'!N17="",'Сбор показателей III кв'!O17="",'Сбор показателей III кв'!P17=""),"-",VLOOKUP($B11,'Сбор показателей III кв'!$B$125:$AT$160,8,FALSE)) -> - | V11: =IF('Сбор показателей III кв'!AJ17="","-",VLOOKUP($B11,'Сбор показателей III кв'!$B$125:$AT$160,23,FALSE)) -> - | W11: =IF(AND('Сбор показателей III кв'!AS17="",'Сбор показателей III кв'!AT17=""),"-",VLOOKUP($B11,'Сбор показателей III кв'!$B$125:$AT$160,38,FALSE)) -> - | X11: =IF('Сбор показателей IV кв'!G17="","-",VLOOKUP(B11,'Сбор показателей IV кв'!$B$125:$AT$160,4,FALSE)) -> - | Y11: =IF('Сбор показателей IV кв'!G17="","-",VLOOKUP(B11,'Сбор показателей IV кв'!$B$125:$AT$160,5,FALSE)) -> - | Z11: =IF(AND('Сбор показателей IV кв'!N17="",'Сбор показателей IV кв'!O17="",'Сбор показателей IV кв'!P17=""),"-",VLOOKUP(B11,'Сбор показателей IV кв'!$B$125:$AT$160,8,FALSE)) -> - | AA11: =IF('Сбор показателей IV кв'!AJ17="","-",VLOOKUP(B11,'Сбор показателей IV кв'!$B$125:$AT$160,23,FALSE)) -> - | AB11: =IF(AND('Сбор показателей IV кв'!AS17="",'Сбор показателей IV кв'!AT17=""),"-",VLOOKUP(B11,'Сбор показателей IV кв'!$B$125:$AT$160,38,FALSE)) -> -
B12: Гудкова Людмила | C12: ОКР (КЦ) | D12: =VLOOKUP($B12,'Показатели за ГОД'!$A$120:$AS$155,4,FALSE) ->  | E12: =VLOOKUP($B12,'Показатели за ГОД'!$A$120:$AS$155,5,FALSE) ->  | F12: =VLOOKUP($B12,'Показатели за ГОД'!$A$120:$AS$155,8,FALSE) ->  | G12: =VLOOKUP($B12,'Показатели за ГОД'!$A$120:$AS$155,23,FALSE) ->  | H12: =VLOOKUP($B12,'Показатели за ГОД'!$A$120:$AS$155,38,FALSE) ->  | I12: =IF('Сбор показателей I кв'!G18="","-",VLOOKUP($B12,'Сбор показателей I кв'!$B$125:$AU$160,4,FALSE)) ->  | J12: =IF('Сбор показателей I кв'!G18="","-",VLOOKUP($B12,'Сбор показателей I кв'!$B$125:$AU$160,5,FALSE)) ->  | K12: =IF(AND('Сбор показателей I кв'!N18="",'Сбор показателей I кв'!O18="",'Сбор показателей I кв'!P18=""),"-",VLOOKUP($B12,'Сбор показателей I кв'!$B$125:$AU$160,8,FALSE)) ->  | L12: =IF('Сбор показателей I кв'!AJ18="","-",VLOOKUP($B12,'Сбор показателей I кв'!$B$125:$AU$160,23,FALSE)) ->  | M12: =IF(AND('Сбор показателей I кв'!AT18="",'Сбор показателей I кв'!AU18=""),"-",VLOOKUP($B12,'Сбор показателей I кв'!$B$125:$AU$160,38,FALSE)) ->  | N12: =IF('Сбор показателей II кв'!G18="","-",VLOOKUP($B12,'Сбор показателей II кв'!$B$125:$AT$160,4,FALSE)) ->  | O12: =IF('Сбор показателей II кв'!G18="","-",VLOOKUP($B12,'Сбор показателей II кв'!$B$125:$AT$160,5,FALSE)) ->  | P12: =IF(AND('Сбор показателей II кв'!N18="",'Сбор показателей II кв'!O18="",'Сбор показателей II кв'!P18=""),"-",VLOOKUP($B12,'Сбор показателей II кв'!$B$125:$AT$160,8,FALSE)) ->  | Q12: =IF('Сбор показателей II кв'!AJ18="","-",VLOOKUP($B12,'Сбор показателей II кв'!$B$125:$AT$160,23,FALSE)) ->  | R12: =IF(AND('Сбор показателей II кв'!AS18="",'Сбор показателей II кв'!AT18=""),"-",VLOOKUP($B12,'Сбор показателей II кв'!$B$125:$AT$160,38,FALSE)) ->  | S12: =IF('Сбор показателей III кв'!G18="","-",VLOOKUP($B12,'Сбор показателей III кв'!$B$125:$AT$160,4,FALSE)) -> - | T12: =IF('Сбор показателей III кв'!G18="","-",VLOOKUP($B12,'Сбор показателей III кв'!$B$125:$AT$160,5,FALSE)) -> - | U12: =IF(AND('Сбор показателей III кв'!N18="",'Сбор показателей III кв'!O18="",'Сбор показателей III кв'!P18=""),"-",VLOOKUP($B12,'Сбор показателей III кв'!$B$125:$AT$160,8,FALSE)) -> - | V12: =IF('Сбор показателей III кв'!AJ18="","-",VLOOKUP($B12,'Сбор показателей III кв'!$B$125:$AT$160,23,FALSE)) -> - | W12: =IF(AND('Сбор показателей III кв'!AS18="",'Сбор показателей III кв'!AT18=""),"-",VLOOKUP($B12,'Сбор показателей III кв'!$B$125:$AT$160,38,FALSE)) -> - | X12: =IF('Сбор показателей IV кв'!G18="","-",VLOOKUP(B12,'Сбор показателей IV кв'!$B$125:$AT$160,4,FALSE)) -> - | Y12: =IF('Сбор показателей IV кв'!G18="","-",VLOOKUP(B12,'Сбор показателей IV кв'!$B$125:$AT$160,5,FALSE)) -> - | Z12: =IF(AND('Сбор показателей IV кв'!N18="",'Сбор показателей IV кв'!O18="",'Сбор показателей IV кв'!P18=""),"-",VLOOKUP(B12,'Сбор показателей IV кв'!$B$125:$AT$160,8,FALSE)) -> - | AA12: =IF('Сбор показателей IV кв'!AJ18="","-",VLOOKUP(B12,'Сбор показателей IV кв'!$B$125:$AT$160,23,FALSE)) -> - | AB12: =IF(AND('Сбор показателей IV кв'!AS18="",'Сбор показателей IV кв'!AT18=""),"-",VLOOKUP(B12,'Сбор показателей IV кв'!$B$125:$AT$160,38,FALSE)) -> -
B13: Гулиев Рагим | C13: ЗГД | D13: =VLOOKUP($B13,'Показатели за ГОД'!$A$120:$AS$155,4,FALSE) ->  | E13: =VLOOKUP($B13,'Показатели за ГОД'!$A$120:$AS$155,5,FALSE) ->  | F13: =VLOOKUP($B13,'Показатели за ГОД'!$A$120:$AS$155,8,FALSE) ->  | G13: =VLOOKUP($B13,'Показатели за ГОД'!$A$120:$AS$155,23,FALSE) ->  | H13: =VLOOKUP($B13,'Показатели за ГОД'!$A$120:$AS$155,38,FALSE) ->  | I13: =IF('Сбор показателей I кв'!G19="","-",VLOOKUP($B13,'Сбор показателей I кв'!$B$125:$AU$160,4,FALSE)) ->  | J13: =IF('Сбор показателей I кв'!G19="","-",VLOOKUP($B13,'Сбор показателей I кв'!$B$125:$AU$160,5,FALSE)) ->  | K13: =IF(AND('Сбор показателей I кв'!N19="",'Сбор показателей I кв'!O19="",'Сбор показателей I кв'!P19=""),"-",VLOOKUP($B13,'Сбор показателей I кв'!$B$125:$AU$160,8,FALSE)) ->  | L13: =IF('Сбор показателей I кв'!AJ19="","-",VLOOKUP($B13,'Сбор показателей I кв'!$B$125:$AU$160,23,FALSE)) ->  | M13: =IF(AND('Сбор показателей I кв'!AT19="",'Сбор показателей I кв'!AU19=""),"-",VLOOKUP($B13,'Сбор показателей I кв'!$B$125:$AU$160,38,FALSE)) ->  | N13: =IF('Сбор показателей II кв'!G19="","-",VLOOKUP($B13,'Сбор показателей II кв'!$B$125:$AT$160,4,FALSE)) ->  | O13: =IF('Сбор показателей II кв'!G19="","-",VLOOKUP($B13,'Сбор показателей II кв'!$B$125:$AT$160,5,FALSE)) ->  | P13: =IF(AND('Сбор показателей II кв'!N19="",'Сбор показателей II кв'!O19="",'Сбор показателей II кв'!P19=""),"-",VLOOKUP($B13,'Сбор показателей II кв'!$B$125:$AT$160,8,FALSE)) ->  | Q13: =IF('Сбор показателей II кв'!AJ19="","-",VLOOKUP($B13,'Сбор показателей II кв'!$B$125:$AT$160,23,FALSE)) ->  | R13: =IF(AND('Сбор показателей II кв'!AS19="",'Сбор показателей II кв'!AT19=""),"-",VLOOKUP($B13,'Сбор показателей II кв'!$B$125:$AT$160,38,FALSE)) ->  | S13: =IF('Сбор показателей III кв'!G19="","-",VLOOKUP($B13,'Сбор показателей III кв'!$B$125:$AT$160,4,FALSE)) -> - | T13: =IF('Сбор показателей III кв'!G19="","-",VLOOKUP($B13,'Сбор показателей III кв'!$B$125:$AT$160,5,FALSE)) -> - | U13: =IF(AND('Сбор показателей III кв'!N19="",'Сбор показателей III кв'!O19="",'Сбор показателей III кв'!P19=""),"-",VLOOKUP($B13,'Сбор показателей III кв'!$B$125:$AT$160,8,FALSE)) -> - | V13: =IF('Сбор показателей III кв'!AJ19="","-",VLOOKUP($B13,'Сбор показателей III кв'!$B$125:$AT$160,23,FALSE)) -> - | W13: =IF(AND('Сбор показателей III кв'!AS19="",'Сбор показателей III кв'!AT19=""),"-",VLOOKUP($B13,'Сбор показателей III кв'!$B$125:$AT$160,38,FALSE)) -> - | X13: =IF('Сбор показателей IV кв'!G19="","-",VLOOKUP(B13,'Сбор показателей IV кв'!$B$125:$AT$160,4,FALSE)) -> - | Y13: =IF('Сбор показателей IV кв'!G19="","-",VLOOKUP(B13,'Сбор показателей IV кв'!$B$125:$AT$160,5,FALSE)) -> - | Z13: =IF(AND('Сбор показателей IV кв'!N19="",'Сбор показателей IV кв'!O19="",'Сбор показателей IV кв'!P19=""),"-",VLOOKUP(B13,'Сбор показателей IV кв'!$B$125:$AT$160,8,FALSE)) -> - | AA13: =IF('Сбор показателей IV кв'!AJ19="","-",VLOOKUP(B13,'Сбор показателей IV кв'!$B$125:$AT$160,23,FALSE)) -> - | AB13: =IF(AND('Сбор показателей IV кв'!AS19="",'Сбор показателей IV кв'!AT19=""),"-",VLOOKUP(B13,'Сбор показателей IV кв'!$B$125:$AT$160,38,FALSE)) -> -
B14: Завьялов Василий | C14: ЗГД | D14: =VLOOKUP($B14,'Показатели за ГОД'!$A$120:$AS$155,4,FALSE) ->  | E14: =VLOOKUP($B14,'Показатели за ГОД'!$A$120:$AS$155,5,FALSE) ->  | F14: =VLOOKUP($B14,'Показатели за ГОД'!$A$120:$AS$155,8,FALSE) ->  | G14: =VLOOKUP($B14,'Показатели за ГОД'!$A$120:$AS$155,23,FALSE) ->  | H14: =VLOOKUP($B14,'Показатели за ГОД'!$A$120:$AS$155,38,FALSE) ->  | I14: =IF('Сбор показателей I кв'!G20="","-",VLOOKUP($B14,'Сбор показателей I кв'!$B$125:$AU$160,4,FALSE)) ->  | J14: =IF('Сбор показателей I кв'!G20="","-",VLOOKUP($B14,'Сбор показателей I кв'!$B$125:$AU$160,5,FALSE)) ->  | K14: =IF(AND('Сбор показателей I кв'!N20="",'Сбор показателей I кв'!O20="",'Сбор показателей I кв'!P20=""),"-",VLOOKUP($B14,'Сбор показателей I кв'!$B$125:$AU$160,8,FALSE)) ->  | L14: =IF('Сбор показателей I кв'!AJ20="","-",VLOOKUP($B14,'Сбор показателей I кв'!$B$125:$AU$160,23,FALSE)) ->  | M14: =IF(AND('Сбор показателей I кв'!AT20="",'Сбор показателей I кв'!AU20=""),"-",VLOOKUP($B14,'Сбор показателей I кв'!$B$125:$AU$160,38,FALSE)) ->  | N14: =IF('Сбор показателей II кв'!G20="","-",VLOOKUP($B14,'Сбор показателей II кв'!$B$125:$AT$160,4,FALSE)) ->  | O14: =IF('Сбор показателей II кв'!G20="","-",VLOOKUP($B14,'Сбор показателей II кв'!$B$125:$AT$160,5,FALSE)) ->  | P14: =IF(AND('Сбор показателей II кв'!N20="",'Сбор показателей II кв'!O20="",'Сбор показателей II кв'!P20=""),"-",VLOOKUP($B14,'Сбор показателей II кв'!$B$125:$AT$160,8,FALSE)) ->  | Q14: =IF('Сбор показателей II кв'!AJ20="","-",VLOOKUP($B14,'Сбор показателей II кв'!$B$125:$AT$160,23,FALSE)) ->  | R14: =IF(AND('Сбор показателей II кв'!AS20="",'Сбор показателей II кв'!AT20=""),"-",VLOOKUP($B14,'Сбор показателей II кв'!$B$125:$AT$160,38,FALSE)) ->  | S14: =IF('Сбор показателей III кв'!G20="","-",VLOOKUP($B14,'Сбор показателей III кв'!$B$125:$AT$160,4,FALSE)) -> - | T14: =IF('Сбор показателей III кв'!G20="","-",VLOOKUP($B14,'Сбор показателей III кв'!$B$125:$AT$160,5,FALSE)) -> - | U14: =IF(AND('Сбор показателей III кв'!N20="",'Сбор показателей III кв'!O20="",'Сбор показателей III кв'!P20=""),"-",VLOOKUP($B14,'Сбор показателей III кв'!$B$125:$AT$160,8,FALSE)) -> - | V14: =IF('Сбор показателей III кв'!AJ20="","-",VLOOKUP($B14,'Сбор показателей III кв'!$B$125:$AT$160,23,FALSE)) -> - | W14: =IF(AND('Сбор показателей III кв'!AS20="",'Сбор показателей III кв'!AT20=""),"-",VLOOKUP($B14,'Сбор показателей III кв'!$B$125:$AT$160,38,FALSE)) -> - | X14: =IF('Сбор показателей IV кв'!G20="","-",VLOOKUP(B14,'Сбор показателей IV кв'!$B$125:$AT$160,4,FALSE)) -> - | Y14: =IF('Сбор показателей IV кв'!G20="","-",VLOOKUP(B14,'Сбор показателей IV кв'!$B$125:$AT$160,5,FALSE)) -> - | Z14: =IF(AND('Сбор показателей IV кв'!N20="",'Сбор показателей IV кв'!O20="",'Сбор показателей IV кв'!P20=""),"-",VLOOKUP(B14,'Сбор показателей IV кв'!$B$125:$AT$160,8,FALSE)) -> - | AA14: =IF('Сбор показателей IV кв'!AJ20="","-",VLOOKUP(B14,'Сбор показателей IV кв'!$B$125:$AT$160,23,FALSE)) -> - | AB14: =IF(AND('Сбор показателей IV кв'!AS20="",'Сбор показателей IV кв'!AT20=""),"-",VLOOKUP(B14,'Сбор показателей IV кв'!$B$125:$AT$160,38,FALSE)) -> -
B15: Коваленко Тамара | C15: ОКР | D15: =VLOOKUP($B15,'Показатели за ГОД'!$A$120:$AS$155,4,FALSE) -> 21 | E15: =VLOOKUP($B15,'Показатели за ГОД'!$A$120:$AS$155,5,FALSE) -> 21 | F15: =VLOOKUP($B15,'Показатели за ГОД'!$A$120:$AS$155,8,FALSE) -> 21 | G15: =VLOOKUP($B15,'Показатели за ГОД'!$A$120:$AS$155,23,FALSE) -> 21 | H15: =VLOOKUP($B15,'Показатели за ГОД'!$A$120:$AS$155,38,FALSE) -> 21 | I15: =IF('Сбор показателей I кв'!G21="","-",VLOOKUP($B15,'Сбор показателей I кв'!$B$125:$AU$160,4,FALSE)) -> - | J15: =IF('Сбор показателей I кв'!G21="","-",VLOOKUP($B15,'Сбор показателей I кв'!$B$125:$AU$160,5,FALSE)) -> - | K15: =IF(AND('Сбор показателей I кв'!N21="",'Сбор показателей I кв'!O21="",'Сбор показателей I кв'!P21=""),"-",VLOOKUP($B15,'Сбор показателей I кв'!$B$125:$AU$160,8,FALSE)) -> - | L15: =IF('Сбор показателей I кв'!AJ21="","-",VLOOKUP($B15,'Сбор показателей I кв'!$B$125:$AU$160,23,FALSE)) -> - | M15: =IF(AND('Сбор показателей I кв'!AT21="",'Сбор показателей I кв'!AU21=""),"-",VLOOKUP($B15,'Сбор показателей I кв'!$B$125:$AU$160,38,FALSE)) -> - | N15: =IF('Сбор показателей II кв'!G21="","-",VLOOKUP($B15,'Сбор показателей II кв'!$B$125:$AT$160,4,FALSE)) -> - | O15: =IF('Сбор показателей II кв'!G21="","-",VLOOKUP($B15,'Сбор показателей II кв'!$B$125:$AT$160,5,FALSE)) -> - | P15: =IF(AND('Сбор показателей II кв'!N21="",'Сбор показателей II кв'!O21="",'Сбор показателей II кв'!P21=""),"-",VLOOKUP($B15,'Сбор показателей II кв'!$B$125:$AT$160,8,FALSE)) -> - | Q15: =IF('Сбор показателей II кв'!AJ21="","-",VLOOKUP($B15,'Сбор показателей II кв'!$B$125:$AT$160,23,FALSE)) -> - | R15: =IF(AND('Сбор показателей II кв'!AS21="",'Сбор показателей II кв'!AT21=""),"-",VLOOKUP($B15,'Сбор показателей II кв'!$B$125:$AT$160,38,FALSE)) -> - | S15: =IF('Сбор показателей III кв'!G21="","-",VLOOKUP($B15,'Сбор показателей III кв'!$B$125:$AT$160,4,FALSE)) -> - | T15: =IF('Сбор показателей III кв'!G21="","-",VLOOKUP($B15,'Сбор показателей III кв'!$B$125:$AT$160,5,FALSE)) -> - | U15: =IF(AND('Сбор показателей III кв'!N21="",'Сбор показателей III кв'!O21="",'Сбор показателей III кв'!P21=""),"-",VLOOKUP($B15,'Сбор показателей III кв'!$B$125:$AT$160,8,FALSE)) -> - | V15: =IF('Сбор показателей III кв'!AJ21="","-",VLOOKUP($B15,'Сбор показателей III кв'!$B$125:$AT$160,23,FALSE)) -> - | W15: =IF(AND('Сбор показателей III кв'!AS21="",'Сбор показателей III кв'!AT21=""),"-",VLOOKUP($B15,'Сбор показателей III кв'!$B$125:$AT$160,38,FALSE)) -> - | X15: =IF('Сбор показателей IV кв'!G21="","-",VLOOKUP(B15,'Сбор показателей IV кв'!$B$125:$AT$160,4,FALSE)) -> - | Y15: =IF('Сбор показателей IV кв'!G21="","-",VLOOKUP(B15,'Сбор показателей IV кв'!$B$125:$AT$160,5,FALSE)) -> - | Z15: =IF(AND('Сбор показателей IV кв'!N21="",'Сбор показателей IV кв'!O21="",'Сбор показателей IV кв'!P21=""),"-",VLOOKUP(B15,'Сбор показателей IV кв'!$B$125:$AT$160,8,FALSE)) -> - | AA15: =IF('Сбор показателей IV кв'!AJ21="","-",VLOOKUP(B15,'Сбор показателей IV кв'!$B$125:$AT$160,23,FALSE)) -> - | AB15: =IF(AND('Сбор показателей IV кв'!AS21="",'Сбор показателей IV кв'!AT21=""),"-",VLOOKUP(B15,'Сбор показателей IV кв'!$B$125:$AT$160,38,FALSE)) -> -
B16: Колесников Сергей | C16: ОКР | D16: =VLOOKUP($B16,'Показатели за ГОД'!$A$120:$AS$155,4,FALSE) -> 21 | E16: =VLOOKUP($B16,'Показатели за ГОД'!$A$120:$AS$155,5,FALSE) -> 21 | F16: =VLOOKUP($B16,'Показатели за ГОД'!$A$120:$AS$155,8,FALSE) -> 21 | G16: =VLOOKUP($B16,'Показатели за ГОД'!$A$120:$AS$155,23,FALSE) -> 21 | H16: =VLOOKUP($B16,'Показатели за ГОД'!$A$120:$AS$155,38,FALSE) -> 21 | I16: =IF('Сбор показателей I кв'!G22="","-",VLOOKUP($B16,'Сбор показателей I кв'!$B$125:$AU$160,4,FALSE)) -> - | J16: =IF('Сбор показателей I кв'!G22="","-",VLOOKUP($B16,'Сбор показателей I кв'!$B$125:$AU$160,5,FALSE)) -> - | K16: =IF(AND('Сбор показателей I кв'!N22="",'Сбор показателей I кв'!O22="",'Сбор показателей I кв'!P22=""),"-",VLOOKUP($B16,'Сбор показателей I кв'!$B$125:$AU$160,8,FALSE)) -> - | L16: =IF('Сбор показателей I кв'!AJ22="","-",VLOOKUP($B16,'Сбор показателей I кв'!$B$125:$AU$160,23,FALSE)) -> - | M16: =IF(AND('Сбор показателей I кв'!AT22="",'Сбор показателей I кв'!AU22=""),"-",VLOOKUP($B16,'Сбор показателей I кв'!$B$125:$AU$160,38,FALSE)) -> - | N16: =IF('Сбор показателей II кв'!G22="","-",VLOOKUP($B16,'Сбор показателей II кв'!$B$125:$AT$160,4,FALSE)) -> - | O16: =IF('Сбор показателей II кв'!G22="","-",VLOOKUP($B16,'Сбор показателей II кв'!$B$125:$AT$160,5,FALSE)) -> - | P16: =IF(AND('Сбор показателей II кв'!N22="",'Сбор показателей II кв'!O22="",'Сбор показателей II кв'!P22=""),"-",VLOOKUP($B16,'Сбор показателей II кв'!$B$125:$AT$160,8,FALSE)) -> - | Q16: =IF('Сбор показателей II кв'!AJ22="","-",VLOOKUP($B16,'Сбор показателей II кв'!$B$125:$AT$160,23,FALSE)) -> - | R16: =IF(AND('Сбор показателей II кв'!AS22="",'Сбор показателей II кв'!AT22=""),"-",VLOOKUP($B16,'Сбор показателей II кв'!$B$125:$AT$160,38,FALSE)) -> - | S16: =IF('Сбор показателей III кв'!G22="","-",VLOOKUP($B16,'Сбор показателей III кв'!$B$125:$AT$160,4,FALSE)) -> - | T16: =IF('Сбор показателей III кв'!G22="","-",VLOOKUP($B16,'Сбор показателей III кв'!$B$125:$AT$160,5,FALSE)) -> - | U16: =IF(AND('Сбор показателей III кв'!N22="",'Сбор показателей III кв'!O22="",'Сбор показателей III кв'!P22=""),"-",VLOOKUP($B16,'Сбор показателей III кв'!$B$125:$AT$160,8,FALSE)) -> - | V16: =IF('Сбор показателей III кв'!AJ22="","-",VLOOKUP($B16,'Сбор показателей III кв'!$B$125:$AT$160,23,FALSE)) -> - | W16: =IF(AND('Сбор показателей III кв'!AS22="",'Сбор показателей III кв'!AT22=""),"-",VLOOKUP($B16,'Сбор показателей III кв'!$B$125:$AT$160,38,FALSE)) -> - | X16: =IF('Сбор показателей IV кв'!G22="","-",VLOOKUP(B16,'Сбор показателей IV кв'!$B$125:$AT$160,4,FALSE)) -> - | Y16: =IF('Сбор показателей IV кв'!G22="","-",VLOOKUP(B16,'Сбор показателей IV кв'!$B$125:$AT$160,5,FALSE)) -> - | Z16: =IF(AND('Сбор показателей IV кв'!N22="",'Сбор показателей IV кв'!O22="",'Сбор показателей IV кв'!P22=""),"-",VLOOKUP(B16,'Сбор показателей IV кв'!$B$125:$AT$160,8,FALSE)) -> - | AA16: =IF('Сбор показателей IV кв'!AJ22="","-",VLOOKUP(B16,'Сбор показателей IV кв'!$B$125:$AT$160,23,FALSE)) -> - | AB16: =IF(AND('Сбор показателей IV кв'!AS22="",'Сбор показателей IV кв'!AT22=""),"-",VLOOKUP(B16,'Сбор показателей IV кв'!$B$125:$AT$160,38,FALSE)) -> -
B17: Коробейников Павел | C17: ЗГД | D17: =VLOOKUP($B17,'Показатели за ГОД'!$A$120:$AS$155,4,FALSE) -> 21 | E17: =VLOOKUP($B17,'Показатели за ГОД'!$A$120:$AS$155,5,FALSE) -> 21 | F17: =VLOOKUP($B17,'Показатели за ГОД'!$A$120:$AS$155,8,FALSE) -> 21 | G17: =VLOOKUP($B17,'Показатели за ГОД'!$A$120:$AS$155,23,FALSE) -> 21 | H17: =VLOOKUP($B17,'Показатели за ГОД'!$A$120:$AS$155,38,FALSE) -> 21 | I17: =IF('Сбор показателей I кв'!G23="","-",VLOOKUP($B17,'Сбор показателей I кв'!$B$125:$AU$160,4,FALSE)) -> - | J17: =IF('Сбор показателей I кв'!G23="","-",VLOOKUP($B17,'Сбор показателей I кв'!$B$125:$AU$160,5,FALSE)) -> - | K17: =IF(AND('Сбор показателей I кв'!N23="",'Сбор показателей I кв'!O23="",'Сбор показателей I кв'!P23=""),"-",VLOOKUP($B17,'Сбор показателей I кв'!$B$125:$AU$160,8,FALSE)) -> - | L17: =IF('Сбор показателей I кв'!AJ23="","-",VLOOKUP($B17,'Сбор показателей I кв'!$B$125:$AU$160,23,FALSE)) -> - | M17: =IF(AND('Сбор показателей I кв'!AT23="",'Сбор показателей I кв'!AU23=""),"-",VLOOKUP($B17,'Сбор показателей I кв'!$B$125:$AU$160,38,FALSE)) -> - | N17: =IF('Сбор показателей II кв'!G23="","-",VLOOKUP($B17,'Сбор показателей II кв'!$B$125:$AT$160,4,FALSE)) -> - | O17: =IF('Сбор показателей II кв'!G23="","-",VLOOKUP($B17,'Сбор показателей II кв'!$B$125:$AT$160,5,FALSE)) -> - | P17: =IF(AND('Сбор показателей II кв'!N23="",'Сбор показателей II кв'!O23="",'Сбор показателей II кв'!P23=""),"-",VLOOKUP($B17,'Сбор показателей II кв'!$B$125:$AT$160,8,FALSE)) -> - | Q17: =IF('Сбор показателей II кв'!AJ23="","-",VLOOKUP($B17,'Сбор показателей II кв'!$B$125:$AT$160,23,FALSE)) -> - | R17: =IF(AND('Сбор показателей II кв'!AS23="",'Сбор показателей II кв'!AT23=""),"-",VLOOKUP($B17,'Сбор показателей II кв'!$B$125:$AT$160,38,FALSE)) -> - | S17: =IF('Сбор показателей III кв'!G23="","-",VLOOKUP($B17,'Сбор показателей III кв'!$B$125:$AT$160,4,FALSE)) -> - | T17: =IF('Сбор показателей III кв'!G23="","-",VLOOKUP($B17,'Сбор показателей III кв'!$B$125:$AT$160,5,FALSE)) -> - | U17: =IF(AND('Сбор показателей III кв'!N23="",'Сбор показателей III кв'!O23="",'Сбор показателей III кв'!P23=""),"-",VLOOKUP($B17,'Сбор показателей III кв'!$B$125:$AT$160,8,FALSE)) -> - | V17: =IF('Сбор показателей III кв'!AJ23="","-",VLOOKUP($B17,'Сбор показателей III кв'!$B$125:$AT$160,23,FALSE)) -> - | W17: =IF(AND('Сбор показателей III кв'!AS23="",'Сбор показателей III кв'!AT23=""),"-",VLOOKUP($B17,'Сбор показателей III кв'!$B$125:$AT$160,38,FALSE)) -> - | X17: =IF('Сбор показателей IV кв'!G23="","-",VLOOKUP(B17,'Сбор показателей IV кв'!$B$125:$AT$160,4,FALSE)) -> - | Y17: =IF('Сбор показателей IV кв'!G23="","-",VLOOKUP(B17,'Сбор показателей IV кв'!$B$125:$AT$160,5,FALSE)) -> - | Z17: =IF(AND('Сбор показателей IV кв'!N23="",'Сбор показателей IV кв'!O23="",'Сбор показателей IV кв'!P23=""),"-",VLOOKUP(B17,'Сбор показателей IV кв'!$B$125:$AT$160,8,FALSE)) -> - | AA17: =IF('Сбор показателей IV кв'!AJ23="","-",VLOOKUP(B17,'Сбор показателей IV кв'!$B$125:$AT$160,23,FALSE)) -> - | AB17: =IF(AND('Сбор показателей IV кв'!AS23="",'Сбор показателей IV кв'!AT23=""),"-",VLOOKUP(B17,'Сбор показателей IV кв'!$B$125:$AT$160,38,FALSE)) -> -
B18: Марченко Лариса | C18: ОКР | D18: =VLOOKUP($B18,'Показатели за ГОД'!$A$120:$AS$155,4,FALSE) -> 21 | E18: =VLOOKUP($B18,'Показатели за ГОД'!$A$120:$AS$155,5,FALSE) -> 21 | F18: =VLOOKUP($B18,'Показатели за ГОД'!$A$120:$AS$155,8,FALSE) -> 21 | G18: =VLOOKUP($B18,'Показатели за ГОД'!$A$120:$AS$155,23,FALSE) -> 21 | H18: =VLOOKUP($B18,'Показатели за ГОД'!$A$120:$AS$155,38,FALSE) -> 21 | I18: =IF('Сбор показателей I кв'!G24="","-",VLOOKUP($B18,'Сбор показателей I кв'!$B$125:$AU$160,4,FALSE)) -> - | J18: =IF('Сбор показателей I кв'!G24="","-",VLOOKUP($B18,'Сбор показателей I кв'!$B$125:$AU$160,5,FALSE)) -> - | K18: =IF(AND('Сбор показателей I кв'!N24="",'Сбор показателей I кв'!O24="",'Сбор показателей I кв'!P24=""),"-",VLOOKUP($B18,'Сбор показателей I кв'!$B$125:$AU$160,8,FALSE)) -> - | L18: =IF('Сбор показателей I кв'!AJ24="","-",VLOOKUP($B18,'Сбор показателей I кв'!$B$125:$AU$160,23,FALSE)) -> - | M18: =IF(AND('Сбор показателей I кв'!AT24="",'Сбор показателей I кв'!AU24=""),"-",VLOOKUP($B18,'Сбор показателей I кв'!$B$125:$AU$160,38,FALSE)) -> - | N18: =IF('Сбор показателей II кв'!G24="","-",VLOOKUP($B18,'Сбор показателей II кв'!$B$125:$AT$160,4,FALSE)) -> - | O18: =IF('Сбор показателей II кв'!G24="","-",VLOOKUP($B18,'Сбор показателей II кв'!$B$125:$AT$160,5,FALSE)) -> - | P18: =IF(AND('Сбор показателей II кв'!N24="",'Сбор показателей II кв'!O24="",'Сбор показателей II кв'!P24=""),"-",VLOOKUP($B18,'Сбор показателей II кв'!$B$125:$AT$160,8,FALSE)) -> - | Q18: =IF('Сбор показателей II кв'!AJ24="","-",VLOOKUP($B18,'Сбор показателей II кв'!$B$125:$AT$160,23,FALSE)) -> - | R18: =IF(AND('Сбор показателей II кв'!AS24="",'Сбор показателей II кв'!AT24=""),"-",VLOOKUP($B18,'Сбор показателей II кв'!$B$125:$AT$160,38,FALSE)) -> - | S18: =IF('Сбор показателей III кв'!G24="","-",VLOOKUP($B18,'Сбор показателей III кв'!$B$125:$AT$160,4,FALSE)) -> - | T18: =IF('Сбор показателей III кв'!G24="","-",VLOOKUP($B18,'Сбор показателей III кв'!$B$125:$AT$160,5,FALSE)) -> - | U18: =IF(AND('Сбор показателей III кв'!N24="",'Сбор показателей III кв'!O24="",'Сбор показателей III кв'!P24=""),"-",VLOOKUP($B18,'Сбор показателей III кв'!$B$125:$AT$160,8,FALSE)) -> - | V18: =IF('Сбор показателей III кв'!AJ24="","-",VLOOKUP($B18,'Сбор показателей III кв'!$B$125:$AT$160,23,FALSE)) -> - | W18: =IF(AND('Сбор показателей III кв'!AS24="",'Сбор показателей III кв'!AT24=""),"-",VLOOKUP($B18,'Сбор показателей III кв'!$B$125:$AT$160,38,FALSE)) -> - | X18: =IF('Сбор показателей IV кв'!G24="","-",VLOOKUP(B18,'Сбор показателей IV кв'!$B$125:$AT$160,4,FALSE)) -> - | Y18: =IF('Сбор показателей IV кв'!G24="","-",VLOOKUP(B18,'Сбор показателей IV кв'!$B$125:$AT$160,5,FALSE)) -> - | Z18: =IF(AND('Сбор показателей IV кв'!N24="",'Сбор показателей IV кв'!O24="",'Сбор показателей IV кв'!P24=""),"-",VLOOKUP(B18,'Сбор показателей IV кв'!$B$125:$AT$160,8,FALSE)) -> - | AA18: =IF('Сбор показателей IV кв'!AJ24="","-",VLOOKUP(B18,'Сбор показателей IV кв'!$B$125:$AT$160,23,FALSE)) -> - | AB18: =IF(AND('Сбор показателей IV кв'!AS24="",'Сбор показателей IV кв'!AT24=""),"-",VLOOKUP(B18,'Сбор показателей IV кв'!$B$125:$AT$160,38,FALSE)) -> -
B19: Мелёхин Денис | C19: ОКР (КЦ) | D19: =VLOOKUP($B19,'Показатели за ГОД'!$A$120:$AS$155,4,FALSE) -> 21 | E19: =VLOOKUP($B19,'Показатели за ГОД'!$A$120:$AS$155,5,FALSE) -> 21 | F19: =VLOOKUP($B19,'Показатели за ГОД'!$A$120:$AS$155,8,FALSE) -> 21 | G19: =VLOOKUP($B19,'Показатели за ГОД'!$A$120:$AS$155,23,FALSE) -> 21 | H19: =VLOOKUP($B19,'Показатели за ГОД'!$A$120:$AS$155,38,FALSE) -> 21 | I19: =IF('Сбор показателей I кв'!G25="","-",VLOOKUP($B19,'Сбор показателей I кв'!$B$125:$AU$160,4,FALSE)) -> - | J19: =IF('Сбор показателей I кв'!G25="","-",VLOOKUP($B19,'Сбор показателей I кв'!$B$125:$AU$160,5,FALSE)) -> - | K19: =IF(AND('Сбор показателей I кв'!N25="",'Сбор показателей I кв'!O25="",'Сбор показателей I кв'!P25=""),"-",VLOOKUP($B19,'Сбор показателей I кв'!$B$125:$AU$160,8,FALSE)) -> - | L19: =IF('Сбор показателей I кв'!AJ25="","-",VLOOKUP($B19,'Сбор показателей I кв'!$B$125:$AU$160,23,FALSE)) -> - | M19: =IF(AND('Сбор показателей I кв'!AT25="",'Сбор показателей I кв'!AU25=""),"-",VLOOKUP($B19,'Сбор показателей I кв'!$B$125:$AU$160,38,FALSE)) -> - | N19: =IF('Сбор показателей II кв'!G25="","-",VLOOKUP($B19,'Сбор показателей II кв'!$B$125:$AT$160,4,FALSE)) -> - | O19: =IF('Сбор показателей II кв'!G25="","-",VLOOKUP($B19,'Сбор показателей II кв'!$B$125:$AT$160,5,FALSE)) -> - | P19: =IF(AND('Сбор показателей II кв'!N25="",'Сбор показателей II кв'!O25="",'Сбор показателей II кв'!P25=""),"-",VLOOKUP($B19,'Сбор показателей II кв'!$B$125:$AT$160,8,FALSE)) -> - | Q19: =IF('Сбор показателей II кв'!AJ25="","-",VLOOKUP($B19,'Сбор показателей II кв'!$B$125:$AT$160,23,FALSE)) -> - | R19: =IF(AND('Сбор показателей II кв'!AS25="",'Сбор показателей II кв'!AT25=""),"-",VLOOKUP($B19,'Сбор показателей II кв'!$B$125:$AT$160,38,FALSE)) -> - | S19: =IF('Сбор показателей III кв'!G25="","-",VLOOKUP($B19,'Сбор показателей III кв'!$B$125:$AT$160,4,FALSE)) -> - | T19: =IF('Сбор показателей III кв'!G25="","-",VLOOKUP($B19,'Сбор показателей III кв'!$B$125:$AT$160,5,FALSE)) -> - | U19: =IF(AND('Сбор показателей III кв'!N25="",'Сбор показателей III кв'!O25="",'Сбор показателей III кв'!P25=""),"-",VLOOKUP($B19,'Сбор показателей III кв'!$B$125:$AT$160,8,FALSE)) -> - | V19: =IF('Сбор показателей III кв'!AJ25="","-",VLOOKUP($B19,'Сбор показателей III кв'!$B$125:$AT$160,23,FALSE)) -> - | W19: =IF(AND('Сбор показателей III кв'!AS25="",'Сбор показателей III кв'!AT25=""),"-",VLOOKUP($B19,'Сбор показателей III кв'!$B$125:$AT$160,38,FALSE)) -> - | X19: =IF('Сбор показателей IV кв'!G25="","-",VLOOKUP(B19,'Сбор показателей IV кв'!$B$125:$AT$160,4,FALSE)) -> - | Y19: =IF('Сбор показателей IV кв'!G25="","-",VLOOKUP(B19,'Сбор показателей IV кв'!$B$125:$AT$160,5,FALSE)) -> - | Z19: =IF(AND('Сбор показателей IV кв'!N25="",'Сбор показателей IV кв'!O25="",'Сбор показателей IV кв'!P25=""),"-",VLOOKUP(B19,'Сбор показателей IV кв'!$B$125:$AT$160,8,FALSE)) -> - | AA19: =IF('Сбор показателей IV кв'!AJ25="","-",VLOOKUP(B19,'Сбор показателей IV кв'!$B$125:$AT$160,23,FALSE)) -> - | AB19: =IF(AND('Сбор показателей IV кв'!AS25="",'Сбор показателей IV кв'!AT25=""),"-",VLOOKUP(B19,'Сбор показателей IV кв'!$B$125:$AT$160,38,FALSE)) -> -
B20: Миняева Ирина | C20: ОКР (КЦ) | D20: =VLOOKUP($B20,'Показатели за ГОД'!$A$120:$AS$155,4,FALSE) -> 21 | E20: =VLOOKUP($B20,'Показатели за ГОД'!$A$120:$AS$155,5,FALSE) -> 21 | F20: =VLOOKUP($B20,'Показатели за ГОД'!$A$120:$AS$155,8,FALSE) -> 21 | G20: =VLOOKUP($B20,'Показатели за ГОД'!$A$120:$AS$155,23,FALSE) -> 21 | H20: =VLOOKUP($B20,'Показатели за ГОД'!$A$120:$AS$155,38,FALSE) -> 21 | I20: =IF('Сбор показателей I кв'!G26="","-",VLOOKUP($B20,'Сбор показателей I кв'!$B$125:$AU$160,4,FALSE)) -> - | J20: =IF('Сбор показателей I кв'!G26="","-",VLOOKUP($B20,'Сбор показателей I кв'!$B$125:$AU$160,5,FALSE)) -> - | K20: =IF(AND('Сбор показателей I кв'!N26="",'Сбор показателей I кв'!O26="",'Сбор показателей I кв'!P26=""),"-",VLOOKUP($B20,'Сбор показателей I кв'!$B$125:$AU$160,8,FALSE)) -> - | L20: =IF('Сбор показателей I кв'!AJ26="","-",VLOOKUP($B20,'Сбор показателей I кв'!$B$125:$AU$160,23,FALSE)) -> - | M20: =IF(AND('Сбор показателей I кв'!AT26="",'Сбор показателей I кв'!AU26=""),"-",VLOOKUP($B20,'Сбор показателей I кв'!$B$125:$AU$160,38,FALSE)) -> - | N20: =IF('Сбор показателей II кв'!G26="","-",VLOOKUP($B20,'Сбор показателей II кв'!$B$125:$AT$160,4,FALSE)) -> - | O20: =IF('Сбор показателей II кв'!G26="","-",VLOOKUP($B20,'Сбор показателей II кв'!$B$125:$AT$160,5,FALSE)) -> - | P20: =IF(AND('Сбор показателей II кв'!N26="",'Сбор показателей II кв'!O26="",'Сбор показателей II кв'!P26=""),"-",VLOOKUP($B20,'Сбор показателей II кв'!$B$125:$AT$160,8,FALSE)) -> - | Q20: =IF('Сбор показателей II кв'!AJ26="","-",VLOOKUP($B20,'Сбор показателей II кв'!$B$125:$AT$160,23,FALSE)) -> - | R20: =IF(AND('Сбор показателей II кв'!AS26="",'Сбор показателей II кв'!AT26=""),"-",VLOOKUP($B20,'Сбор показателей II кв'!$B$125:$AT$160,38,FALSE)) -> - | S20: =IF('Сбор показателей III кв'!G26="","-",VLOOKUP($B20,'Сбор показателей III кв'!$B$125:$AT$160,4,FALSE)) -> - | T20: =IF('Сбор показателей III кв'!G26="","-",VLOOKUP($B20,'Сбор показателей III кв'!$B$125:$AT$160,5,FALSE)) -> - | U20: =IF(AND('Сбор показателей III кв'!N26="",'Сбор показателей III кв'!O26="",'Сбор показателей III кв'!P26=""),"-",VLOOKUP($B20,'Сбор показателей III кв'!$B$125:$AT$160,8,FALSE)) -> - | V20: =IF('Сбор показателей III кв'!AJ26="","-",VLOOKUP($B20,'Сбор показателей III кв'!$B$125:$AT$160,23,FALSE)) -> - | W20: =IF(AND('Сбор показателей III кв'!AS26="",'Сбор показателей III кв'!AT26=""),"-",VLOOKUP($B20,'Сбор показателей III кв'!$B$125:$AT$160,38,FALSE)) -> - | X20: =IF('Сбор показателей IV кв'!G26="","-",VLOOKUP(B20,'Сбор показателей IV кв'!$B$125:$AT$160,4,FALSE)) -> - | Y20: =IF('Сбор показателей IV кв'!G26="","-",VLOOKUP(B20,'Сбор показателей IV кв'!$B$125:$AT$160,5,FALSE)) -> - | Z20: =IF(AND('Сбор показателей IV кв'!N26="",'Сбор показателей IV кв'!O26="",'Сбор показателей IV кв'!P26=""),"-",VLOOKUP(B20,'Сбор показателей IV кв'!$B$125:$AT$160,8,FALSE)) -> - | AA20: =IF('Сбор показателей IV кв'!AJ26="","-",VLOOKUP(B20,'Сбор показателей IV кв'!$B$125:$AT$160,23,FALSE)) -> - | AB20: =IF(AND('Сбор показателей IV кв'!AS26="",'Сбор показателей IV кв'!AT26=""),"-",VLOOKUP(B20,'Сбор показателей IV кв'!$B$125:$AT$160,38,FALSE)) -> -
B21: Мирсаитов Дмитрий | C21: ЗГД | D21: =VLOOKUP($B21,'Показатели за ГОД'!$A$120:$AS$155,4,FALSE) -> 21 | E21: =VLOOKUP($B21,'Показатели за ГОД'!$A$120:$AS$155,5,FALSE) -> 21 | F21: =VLOOKUP($B21,'Показатели за ГОД'!$A$120:$AS$155,8,FALSE) -> 21 | G21: =VLOOKUP($B21,'Показатели за ГОД'!$A$120:$AS$155,23,FALSE) -> 21 | H21: =VLOOKUP($B21,'Показатели за ГОД'!$A$120:$AS$155,38,FALSE) -> 21 | I21: =IF('Сбор показателей I кв'!G27="","-",VLOOKUP($B21,'Сбор показателей I кв'!$B$125:$AU$160,4,FALSE)) -> - | J21: =IF('Сбор показателей I кв'!G27="","-",VLOOKUP($B21,'Сбор показателей I кв'!$B$125:$AU$160,5,FALSE)) -> - | K21: =IF(AND('Сбор показателей I кв'!N27="",'Сбор показателей I кв'!O27="",'Сбор показателей I кв'!P27=""),"-",VLOOKUP($B21,'Сбор показателей I кв'!$B$125:$AU$160,8,FALSE)) -> - | L21: =IF('Сбор показателей I кв'!AJ27="","-",VLOOKUP($B21,'Сбор показателей I кв'!$B$125:$AU$160,23,FALSE)) -> - | M21: =IF(AND('Сбор показателей I кв'!AT27="",'Сбор показателей I кв'!AU27=""),"-",VLOOKUP($B21,'Сбор показателей I кв'!$B$125:$AU$160,38,FALSE)) -> - | N21: =IF('Сбор показателей II кв'!G27="","-",VLOOKUP($B21,'Сбор показателей II кв'!$B$125:$AT$160,4,FALSE)) -> - | O21: =IF('Сбор показателей II кв'!G27="","-",VLOOKUP($B21,'Сбор показателей II кв'!$B$125:$AT$160,5,FALSE)) -> - | P21: =IF(AND('Сбор показателей II кв'!N27="",'Сбор показателей II кв'!O27="",'Сбор показателей II кв'!P27=""),"-",VLOOKUP($B21,'Сбор показателей II кв'!$B$125:$AT$160,8,FALSE)) -> - | Q21: =IF('Сбор показателей II кв'!AJ27="","-",VLOOKUP($B21,'Сбор показателей II кв'!$B$125:$AT$160,23,FALSE)) -> - | R21: =IF(AND('Сбор показателей II кв'!AS27="",'Сбор показателей II кв'!AT27=""),"-",VLOOKUP($B21,'Сбор показателей II кв'!$B$125:$AT$160,38,FALSE)) -> - | S21: =IF('Сбор показателей III кв'!G27="","-",VLOOKUP($B21,'Сбор показателей III кв'!$B$125:$AT$160,4,FALSE)) -> - | T21: =IF('Сбор показателей III кв'!G27="","-",VLOOKUP($B21,'Сбор показателей III кв'!$B$125:$AT$160,5,FALSE)) -> - | U21: =IF(AND('Сбор показателей III кв'!N27="",'Сбор показателей III кв'!O27="",'Сбор показателей III кв'!P27=""),"-",VLOOKUP($B21,'Сбор показателей III кв'!$B$125:$AT$160,8,FALSE)) -> - | V21: =IF('Сбор показателей III кв'!AJ27="","-",VLOOKUP($B21,'Сбор показателей III кв'!$B$125:$AT$160,23,FALSE)) -> - | W21: =IF(AND('Сбор показателей III кв'!AS27="",'Сбор показателей III кв'!AT27=""),"-",VLOOKUP($B21,'Сбор показателей III кв'!$B$125:$AT$160,38,FALSE)) -> - | X21: =IF('Сбор показателей IV кв'!G27="","-",VLOOKUP(B21,'Сбор показателей IV кв'!$B$125:$AT$160,4,FALSE)) -> - | Y21: =IF('Сбор показателей IV кв'!G27="","-",VLOOKUP(B21,'Сбор показателей IV кв'!$B$125:$AT$160,5,FALSE)) -> - | Z21: =IF(AND('Сбор показателей IV кв'!N27="",'Сбор показателей IV кв'!O27="",'Сбор показателей IV кв'!P27=""),"-",VLOOKUP(B21,'Сбор показателей IV кв'!$B$125:$AT$160,8,FALSE)) -> - | AA21: =IF('Сбор показателей IV кв'!AJ27="","-",VLOOKUP(B21,'Сбор показателей IV кв'!$B$125:$AT$160,23,FALSE)) -> - | AB21: =IF(AND('Сбор показателей IV кв'!AS27="",'Сбор показателей IV кв'!AT27=""),"-",VLOOKUP(B21,'Сбор показателей IV кв'!$B$125:$AT$160,38,FALSE)) -> -
B22: Навальнева Евгения | C22: ЗГД | D22: =VLOOKUP($B22,'Показатели за ГОД'!$A$120:$AS$155,4,FALSE) -> 21 | E22: =VLOOKUP($B22,'Показатели за ГОД'!$A$120:$AS$155,5,FALSE) -> 21 | F22: =VLOOKUP($B22,'Показатели за ГОД'!$A$120:$AS$155,8,FALSE) -> 21 | G22: =VLOOKUP($B22,'Показатели за ГОД'!$A$120:$AS$155,23,FALSE) -> 21 | H22: =VLOOKUP($B22,'Показатели за ГОД'!$A$120:$AS$155,38,FALSE) -> 21 | I22: =IF('Сбор показателей I кв'!G28="","-",VLOOKUP($B22,'Сбор показателей I кв'!$B$125:$AU$160,4,FALSE)) -> - | J22: =IF('Сбор показателей I кв'!G28="","-",VLOOKUP($B22,'Сбор показателей I кв'!$B$125:$AU$160,5,FALSE)) -> - | K22: =IF(AND('Сбор показателей I кв'!N28="",'Сбор показателей I кв'!O28="",'Сбор показателей I кв'!P28=""),"-",VLOOKUP($B22,'Сбор показателей I кв'!$B$125:$AU$160,8,FALSE)) -> - | L22: =IF('Сбор показателей I кв'!AJ28="","-",VLOOKUP($B22,'Сбор показателей I кв'!$B$125:$AU$160,23,FALSE)) -> - | M22: =IF(AND('Сбор показателей I кв'!AT28="",'Сбор показателей I кв'!AU28=""),"-",VLOOKUP($B22,'Сбор показателей I кв'!$B$125:$AU$160,38,FALSE)) -> - | N22: =IF('Сбор показателей II кв'!G28="","-",VLOOKUP($B22,'Сбор показателей II кв'!$B$125:$AT$160,4,FALSE)) -> - | O22: =IF('Сбор показателей II кв'!G28="","-",VLOOKUP($B22,'Сбор показателей II кв'!$B$125:$AT$160,5,FALSE)) -> - | P22: =IF(AND('Сбор показателей II кв'!N28="",'Сбор показателей II кв'!O28="",'Сбор показателей II кв'!P28=""),"-",VLOOKUP($B22,'Сбор показателей II кв'!$B$125:$AT$160,8,FALSE)) -> - | Q22: =IF('Сбор показателей II кв'!AJ28="","-",VLOOKUP($B22,'Сбор показателей II кв'!$B$125:$AT$160,23,FALSE)) -> - | R22: =IF(AND('Сбор показателей II кв'!AS28="",'Сбор показателей II кв'!AT28=""),"-",VLOOKUP($B22,'Сбор показателей II кв'!$B$125:$AT$160,38,FALSE)) -> - | S22: =IF('Сбор показателей III кв'!G28="","-",VLOOKUP($B22,'Сбор показателей III кв'!$B$125:$AT$160,4,FALSE)) -> - | T22: =IF('Сбор показателей III кв'!G28="","-",VLOOKUP($B22,'Сбор показателей III кв'!$B$125:$AT$160,5,FALSE)) -> - | U22: =IF(AND('Сбор показателей III кв'!N28="",'Сбор показателей III кв'!O28="",'Сбор показателей III кв'!P28=""),"-",VLOOKUP($B22,'Сбор показателей III кв'!$B$125:$AT$160,8,FALSE)) -> - | V22: =IF('Сбор показателей III кв'!AJ28="","-",VLOOKUP($B22,'Сбор показателей III кв'!$B$125:$AT$160,23,FALSE)) -> - | W22: =IF(AND('Сбор показателей III кв'!AS28="",'Сбор показателей III кв'!AT28=""),"-",VLOOKUP($B22,'Сбор показателей III кв'!$B$125:$AT$160,38,FALSE)) -> - | X22: =IF('Сбор показателей IV кв'!G28="","-",VLOOKUP(B22,'Сбор показателей IV кв'!$B$125:$AT$160,4,FALSE)) -> - | Y22: =IF('Сбор показателей IV кв'!G28="","-",VLOOKUP(B22,'Сбор показателей IV кв'!$B$125:$AT$160,5,FALSE)) -> - | Z22: =IF(AND('Сбор показателей IV кв'!N28="",'Сбор показателей IV кв'!O28="",'Сбор показателей IV кв'!P28=""),"-",VLOOKUP(B22,'Сбор показателей IV кв'!$B$125:$AT$160,8,FALSE)) -> - | AA22: =IF('Сбор показателей IV кв'!AJ28="","-",VLOOKUP(B22,'Сбор показателей IV кв'!$B$125:$AT$160,23,FALSE)) -> - | AB22: =IF(AND('Сбор показателей IV кв'!AS28="",'Сбор показателей IV кв'!AT28=""),"-",VLOOKUP(B22,'Сбор показателей IV кв'!$B$125:$AT$160,38,FALSE)) -> -
B23: Османов Руслан | C23: ЗГД | D23: =VLOOKUP($B23,'Показатели за ГОД'!$A$120:$AS$155,4,FALSE) -> 21 | E23: =VLOOKUP($B23,'Показатели за ГОД'!$A$120:$AS$155,5,FALSE) -> 21 | F23: =VLOOKUP($B23,'Показатели за ГОД'!$A$120:$AS$155,8,FALSE) -> 21 | G23: =VLOOKUP($B23,'Показатели за ГОД'!$A$120:$AS$155,23,FALSE) -> 21 | H23: =VLOOKUP($B23,'Показатели за ГОД'!$A$120:$AS$155,38,FALSE) -> 21 | I23: =IF('Сбор показателей I кв'!G29="","-",VLOOKUP($B23,'Сбор показателей I кв'!$B$125:$AU$160,4,FALSE)) -> - | J23: =IF('Сбор показателей I кв'!G29="","-",VLOOKUP($B23,'Сбор показателей I кв'!$B$125:$AU$160,5,FALSE)) -> - | K23: =IF(AND('Сбор показателей I кв'!N29="",'Сбор показателей I кв'!O29="",'Сбор показателей I кв'!P29=""),"-",VLOOKUP($B23,'Сбор показателей I кв'!$B$125:$AU$160,8,FALSE)) -> - | L23: =IF('Сбор показателей I кв'!AJ29="","-",VLOOKUP($B23,'Сбор показателей I кв'!$B$125:$AU$160,23,FALSE)) -> - | M23: =IF(AND('Сбор показателей I кв'!AT29="",'Сбор показателей I кв'!AU29=""),"-",VLOOKUP($B23,'Сбор показателей I кв'!$B$125:$AU$160,38,FALSE)) -> - | N23: =IF('Сбор показателей II кв'!G29="","-",VLOOKUP($B23,'Сбор показателей II кв'!$B$125:$AT$160,4,FALSE)) -> - | O23: =IF('Сбор показателей II кв'!G29="","-",VLOOKUP($B23,'Сбор показателей II кв'!$B$125:$AT$160,5,FALSE)) -> - | P23: =IF(AND('Сбор показателей II кв'!N29="",'Сбор показателей II кв'!O29="",'Сбор показателей II кв'!P29=""),"-",VLOOKUP($B23,'Сбор показателей II кв'!$B$125:$AT$160,8,FALSE)) -> - | Q23: =IF('Сбор показателей II кв'!AJ29="","-",VLOOKUP($B23,'Сбор показателей II кв'!$B$125:$AT$160,23,FALSE)) -> - | R23: =IF(AND('Сбор показателей II кв'!AS29="",'Сбор показателей II кв'!AT29=""),"-",VLOOKUP($B23,'Сбор показателей II кв'!$B$125:$AT$160,38,FALSE)) -> - | S23: =IF('Сбор показателей III кв'!G29="","-",VLOOKUP($B23,'Сбор показателей III кв'!$B$125:$AT$160,4,FALSE)) -> - | T23: =IF('Сбор показателей III кв'!G29="","-",VLOOKUP($B23,'Сбор показателей III кв'!$B$125:$AT$160,5,FALSE)) -> - | U23: =IF(AND('Сбор показателей III кв'!N29="",'Сбор показателей III кв'!O29="",'Сбор показателей III кв'!P29=""),"-",VLOOKUP($B23,'Сбор показателей III кв'!$B$125:$AT$160,8,FALSE)) -> - | V23: =IF('Сбор показателей III кв'!AJ29="","-",VLOOKUP($B23,'Сбор показателей III кв'!$B$125:$AT$160,23,FALSE)) -> - | W23: =IF(AND('Сбор показателей III кв'!AS29="",'Сбор показателей III кв'!AT29=""),"-",VLOOKUP($B23,'Сбор показателей III кв'!$B$125:$AT$160,38,FALSE)) -> - | X23: =IF('Сбор показателей IV кв'!G29="","-",VLOOKUP(B23,'Сбор показателей IV кв'!$B$125:$AT$160,4,FALSE)) -> - | Y23: =IF('Сбор показателей IV кв'!G29="","-",VLOOKUP(B23,'Сбор показателей IV кв'!$B$125:$AT$160,5,FALSE)) -> - | Z23: =IF(AND('Сбор показателей IV кв'!N29="",'Сбор показателей IV кв'!O29="",'Сбор показателей IV кв'!P29=""),"-",VLOOKUP(B23,'Сбор показателей IV кв'!$B$125:$AT$160,8,FALSE)) -> - | AA23: =IF('Сбор показателей IV кв'!AJ29="","-",VLOOKUP(B23,'Сбор показателей IV кв'!$B$125:$AT$160,23,FALSE)) -> - | AB23: =IF(AND('Сбор показателей IV кв'!AS29="",'Сбор показателей IV кв'!AT29=""),"-",VLOOKUP(B23,'Сбор показателей IV кв'!$B$125:$AT$160,38,FALSE)) -> -
B24: Приймак Андрей | C24: ЗГД | D24: =VLOOKUP($B24,'Показатели за ГОД'!$A$120:$AS$155,4,FALSE) -> 21 | E24: =VLOOKUP($B24,'Показатели за ГОД'!$A$120:$AS$155,5,FALSE) -> 21 | F24: =VLOOKUP($B24,'Показатели за ГОД'!$A$120:$AS$155,8,FALSE) -> 21 | G24: =VLOOKUP($B24,'Показатели за ГОД'!$A$120:$AS$155,23,FALSE) -> 21 | H24: =VLOOKUP($B24,'Показатели за ГОД'!$A$120:$AS$155,38,FALSE) -> 21 | I24: =IF('Сбор показателей I кв'!G30="","-",VLOOKUP($B24,'Сбор показателей I кв'!$B$125:$AU$160,4,FALSE)) -> - | J24: =IF('Сбор показателей I кв'!G30="","-",VLOOKUP($B24,'Сбор показателей I кв'!$B$125:$AU$160,5,FALSE)) -> - | K24: =IF(AND('Сбор показателей I кв'!N30="",'Сбор показателей I кв'!O30="",'Сбор показателей I кв'!P30=""),"-",VLOOKUP($B24,'Сбор показателей I кв'!$B$125:$AU$160,8,FALSE)) -> - | L24: =IF('Сбор показателей I кв'!AJ30="","-",VLOOKUP($B24,'Сбор показателей I кв'!$B$125:$AU$160,23,FALSE)) -> - | M24: =IF(AND('Сбор показателей I кв'!AT30="",'Сбор показателей I кв'!AU30=""),"-",VLOOKUP($B24,'Сбор показателей I кв'!$B$125:$AU$160,38,FALSE)) -> - | N24: =IF('Сбор показателей II кв'!G30="","-",VLOOKUP($B24,'Сбор показателей II кв'!$B$125:$AT$160,4,FALSE)) -> - | O24: =IF('Сбор показателей II кв'!G30="","-",VLOOKUP($B24,'Сбор показателей II кв'!$B$125:$AT$160,5,FALSE)) -> - | P24: =IF(AND('Сбор показателей II кв'!N30="",'Сбор показателей II кв'!O30="",'Сбор показателей II кв'!P30=""),"-",VLOOKUP($B24,'Сбор показателей II кв'!$B$125:$AT$160,8,FALSE)) -> - | Q24: =IF('Сбор показателей II кв'!AJ30="","-",VLOOKUP($B24,'Сбор показателей II кв'!$B$125:$AT$160,23,FALSE)) -> - | R24: =IF(AND('Сбор показателей II кв'!AS30="",'Сбор показателей II кв'!AT30=""),"-",VLOOKUP($B24,'Сбор показателей II кв'!$B$125:$AT$160,38,FALSE)) -> - | S24: =IF('Сбор показателей III кв'!G30="","-",VLOOKUP($B24,'Сбор показателей III кв'!$B$125:$AT$160,4,FALSE)) -> - | T24: =IF('Сбор показателей III кв'!G30="","-",VLOOKUP($B24,'Сбор показателей III кв'!$B$125:$AT$160,5,FALSE)) -> - | U24: =IF(AND('Сбор показателей III кв'!N30="",'Сбор показателей III кв'!O30="",'Сбор показателей III кв'!P30=""),"-",VLOOKUP($B24,'Сбор показателей III кв'!$B$125:$AT$160,8,FALSE)) -> - | V24: =IF('Сбор показателей III кв'!AJ30="","-",VLOOKUP($B24,'Сбор показателей III кв'!$B$125:$AT$160,23,FALSE)) -> - | W24: =IF(AND('Сбор показателей III кв'!AS30="",'Сбор показателей III кв'!AT30=""),"-",VLOOKUP($B24,'Сбор показателей III кв'!$B$125:$AT$160,38,FALSE)) -> - | X24: =IF('Сбор показателей IV кв'!G30="","-",VLOOKUP(B24,'Сбор показателей IV кв'!$B$125:$AT$160,4,FALSE)) -> - | Y24: =IF('Сбор показателей IV кв'!G30="","-",VLOOKUP(B24,'Сбор показателей IV кв'!$B$125:$AT$160,5,FALSE)) -> - | Z24: =IF(AND('Сбор показателей IV кв'!N30="",'Сбор показателей IV кв'!O30="",'Сбор показателей IV кв'!P30=""),"-",VLOOKUP(B24,'Сбор показателей IV кв'!$B$125:$AT$160,8,FALSE)) -> - | AA24: =IF('Сбор показателей IV кв'!AJ30="","-",VLOOKUP(B24,'Сбор показателей IV кв'!$B$125:$AT$160,23,FALSE)) -> - | AB24: =IF(AND('Сбор показателей IV кв'!AS30="",'Сбор показателей IV кв'!AT30=""),"-",VLOOKUP(B24,'Сбор показателей IV кв'!$B$125:$AT$160,38,FALSE)) -> -
B25: Проскуряков Алексей | C25: ОКР | D25: =VLOOKUP($B25,'Показатели за ГОД'!$A$120:$AS$155,4,FALSE) -> 21 | E25: =VLOOKUP($B25,'Показатели за ГОД'!$A$120:$AS$155,5,FALSE) -> 21 | F25: =VLOOKUP($B25,'Показатели за ГОД'!$A$120:$AS$155,8,FALSE) -> 21 | G25: =VLOOKUP($B25,'Показатели за ГОД'!$A$120:$AS$155,23,FALSE) -> 21 | H25: =VLOOKUP($B25,'Показатели за ГОД'!$A$120:$AS$155,38,FALSE) -> 21 | I25: =IF('Сбор показателей I кв'!G31="","-",VLOOKUP($B25,'Сбор показателей I кв'!$B$125:$AU$160,4,FALSE)) -> - | J25: =IF('Сбор показателей I кв'!G31="","-",VLOOKUP($B25,'Сбор показателей I кв'!$B$125:$AU$160,5,FALSE)) -> - | K25: =IF(AND('Сбор показателей I кв'!N31="",'Сбор показателей I кв'!O31="",'Сбор показателей I кв'!P31=""),"-",VLOOKUP($B25,'Сбор показателей I кв'!$B$125:$AU$160,8,FALSE)) -> - | L25: =IF('Сбор показателей I кв'!AJ31="","-",VLOOKUP($B25,'Сбор показателей I кв'!$B$125:$AU$160,23,FALSE)) -> - | M25: =IF(AND('Сбор показателей I кв'!AT31="",'Сбор показателей I кв'!AU31=""),"-",VLOOKUP($B25,'Сбор показателей I кв'!$B$125:$AU$160,38,FALSE)) -> - | N25: =IF('Сбор показателей II кв'!G31="","-",VLOOKUP($B25,'Сбор показателей II кв'!$B$125:$AT$160,4,FALSE)) -> - | O25: =IF('Сбор показателей II кв'!G31="","-",VLOOKUP($B25,'Сбор показателей II кв'!$B$125:$AT$160,5,FALSE)) -> - | P25: =IF(AND('Сбор показателей II кв'!N31="",'Сбор показателей II кв'!O31="",'Сбор показателей II кв'!P31=""),"-",VLOOKUP($B25,'Сбор показателей II кв'!$B$125:$AT$160,8,FALSE)) -> - | Q25: =IF('Сбор показателей II кв'!AJ31="","-",VLOOKUP($B25,'Сбор показателей II кв'!$B$125:$AT$160,23,FALSE)) -> - | R25: =IF(AND('Сбор показателей II кв'!AS31="",'Сбор показателей II кв'!AT31=""),"-",VLOOKUP($B25,'Сбор показателей II кв'!$B$125:$AT$160,38,FALSE)) -> - | S25: =IF('Сбор показателей III кв'!G31="","-",VLOOKUP($B25,'Сбор показателей III кв'!$B$125:$AT$160,4,FALSE)) -> - | T25: =IF('Сбор показателей III кв'!G31="","-",VLOOKUP($B25,'Сбор показателей III кв'!$B$125:$AT$160,5,FALSE)) -> - | U25: =IF(AND('Сбор показателей III кв'!N31="",'Сбор показателей III кв'!O31="",'Сбор показателей III кв'!P31=""),"-",VLOOKUP($B25,'Сбор показателей III кв'!$B$125:$AT$160,8,FALSE)) -> - | V25: =IF('Сбор показателей III кв'!AJ31="","-",VLOOKUP($B25,'Сбор показателей III кв'!$B$125:$AT$160,23,FALSE)) -> - | W25: =IF(AND('Сбор показателей III кв'!AS31="",'Сбор показателей III кв'!AT31=""),"-",VLOOKUP($B25,'Сбор показателей III кв'!$B$125:$AT$160,38,FALSE)) -> - | X25: =IF('Сбор показателей IV кв'!G31="","-",VLOOKUP(B25,'Сбор показателей IV кв'!$B$125:$AT$160,4,FALSE)) -> - | Y25: =IF('Сбор показателей IV кв'!G31="","-",VLOOKUP(B25,'Сбор показателей IV кв'!$B$125:$AT$160,5,FALSE)) -> - | Z25: =IF(AND('Сбор показателей IV кв'!N31="",'Сбор показателей IV кв'!O31="",'Сбор показателей IV кв'!P31=""),"-",VLOOKUP(B25,'Сбор показателей IV кв'!$B$125:$AT$160,8,FALSE)) -> - | AA25: =IF('Сбор показателей IV кв'!AJ31="","-",VLOOKUP(B25,'Сбор показателей IV кв'!$B$125:$AT$160,23,FALSE)) -> - | AB25: =IF(AND('Сбор показателей IV кв'!AS31="",'Сбор показателей IV кв'!AT31=""),"-",VLOOKUP(B25,'Сбор показателей IV кв'!$B$125:$AT$160,38,FALSE)) -> -
B26: Савченко Яна | C26: ОКР (КЦ) | D26: =VLOOKUP($B26,'Показатели за ГОД'!$A$120:$AS$155,4,FALSE) -> 21 | E26: =VLOOKUP($B26,'Показатели за ГОД'!$A$120:$AS$155,5,FALSE) -> 21 | F26: =VLOOKUP($B26,'Показатели за ГОД'!$A$120:$AS$155,8,FALSE) -> 21 | G26: =VLOOKUP($B26,'Показатели за ГОД'!$A$120:$AS$155,23,FALSE) -> 21 | H26: =VLOOKUP($B26,'Показатели за ГОД'!$A$120:$AS$155,38,FALSE) -> 21 | I26: =IF('Сбор показателей I кв'!G32="","-",VLOOKUP($B26,'Сбор показателей I кв'!$B$125:$AU$160,4,FALSE)) -> - | J26: =IF('Сбор показателей I кв'!G32="","-",VLOOKUP($B26,'Сбор показателей I кв'!$B$125:$AU$160,5,FALSE)) -> - | K26: =IF(AND('Сбор показателей I кв'!N32="",'Сбор показателей I кв'!O32="",'Сбор показателей I кв'!P32=""),"-",VLOOKUP($B26,'Сбор показателей I кв'!$B$125:$AU$160,8,FALSE)) -> - | L26: =IF('Сбор показателей I кв'!AJ32="","-",VLOOKUP($B26,'Сбор показателей I кв'!$B$125:$AU$160,23,FALSE)) -> - | M26: =IF(AND('Сбор показателей I кв'!AT32="",'Сбор показателей I кв'!AU32=""),"-",VLOOKUP($B26,'Сбор показателей I кв'!$B$125:$AU$160,38,FALSE)) -> - | N26: =IF('Сбор показателей II кв'!G32="","-",VLOOKUP($B26,'Сбор показателей II кв'!$B$125:$AT$160,4,FALSE)) -> - | O26: =IF('Сбор показателей II кв'!G32="","-",VLOOKUP($B26,'Сбор показателей II кв'!$B$125:$AT$160,5,FALSE)) -> - | P26: =IF(AND('Сбор показателей II кв'!N32="",'Сбор показателей II кв'!O32="",'Сбор показателей II кв'!P32=""),"-",VLOOKUP($B26,'Сбор показателей II кв'!$B$125:$AT$160,8,FALSE)) -> - | Q26: =IF('Сбор показателей II кв'!AJ32="","-",VLOOKUP($B26,'Сбор показателей II кв'!$B$125:$AT$160,23,FALSE)) -> - | R26: =IF(AND('Сбор показателей II кв'!AS32="",'Сбор показателей II кв'!AT32=""),"-",VLOOKUP($B26,'Сбор показателей II кв'!$B$125:$AT$160,38,FALSE)) -> - | S26: =IF('Сбор показателей III кв'!G32="","-",VLOOKUP($B26,'Сбор показателей III кв'!$B$125:$AT$160,4,FALSE)) -> - | T26: =IF('Сбор показателей III кв'!G32="","-",VLOOKUP($B26,'Сбор показателей III кв'!$B$125:$AT$160,5,FALSE)) -> - | U26: =IF(AND('Сбор показателей III кв'!N32="",'Сбор показателей III кв'!O32="",'Сбор показателей III кв'!P32=""),"-",VLOOKUP($B26,'Сбор показателей III кв'!$B$125:$AT$160,8,FALSE)) -> - | V26: =IF('Сбор показателей III кв'!AJ32="","-",VLOOKUP($B26,'Сбор показателей III кв'!$B$125:$AT$160,23,FALSE)) -> - | W26: =IF(AND('Сбор показателей III кв'!AS32="",'Сбор показателей III кв'!AT32=""),"-",VLOOKUP($B26,'Сбор показателей III кв'!$B$125:$AT$160,38,FALSE)) -> - | X26: =IF('Сбор показателей IV кв'!G32="","-",VLOOKUP(B26,'Сбор показателей IV кв'!$B$125:$AT$160,4,FALSE)) -> - | Y26: =IF('Сбор показателей IV кв'!G32="","-",VLOOKUP(B26,'Сбор показателей IV кв'!$B$125:$AT$160,5,FALSE)) -> - | Z26: =IF(AND('Сбор показателей IV кв'!N32="",'Сбор показателей IV кв'!O32="",'Сбор показателей IV кв'!P32=""),"-",VLOOKUP(B26,'Сбор показателей IV кв'!$B$125:$AT$160,8,FALSE)) -> - | AA26: =IF('Сбор показателей IV кв'!AJ32="","-",VLOOKUP(B26,'Сбор показателей IV кв'!$B$125:$AT$160,23,FALSE)) -> - | AB26: =IF(AND('Сбор показателей IV кв'!AS32="",'Сбор показателей IV кв'!AT32=""),"-",VLOOKUP(B26,'Сбор показателей IV кв'!$B$125:$AT$160,38,FALSE)) -> -
B27: Сафиуллин Наиль | C27: ОКР (КЦ) | D27: =VLOOKUP($B27,'Показатели за ГОД'!$A$120:$AS$155,4,FALSE) -> 21 | E27: =VLOOKUP($B27,'Показатели за ГОД'!$A$120:$AS$155,5,FALSE) -> 21 | F27: =VLOOKUP($B27,'Показатели за ГОД'!$A$120:$AS$155,8,FALSE) -> 21 | G27: =VLOOKUP($B27,'Показатели за ГОД'!$A$120:$AS$155,23,FALSE) -> 21 | H27: =VLOOKUP($B27,'Показатели за ГОД'!$A$120:$AS$155,38,FALSE) -> 21 | I27: =IF('Сбор показателей I кв'!G33="","-",VLOOKUP($B27,'Сбор показателей I кв'!$B$125:$AU$160,4,FALSE)) -> - | J27: =IF('Сбор показателей I кв'!G33="","-",VLOOKUP($B27,'Сбор показателей I кв'!$B$125:$AU$160,5,FALSE)) -> - | K27: =IF(AND('Сбор показателей I кв'!N33="",'Сбор показателей I кв'!O33="",'Сбор показателей I кв'!P33=""),"-",VLOOKUP($B27,'Сбор показателей I кв'!$B$125:$AU$160,8,FALSE)) -> - | L27: =IF('Сбор показателей I кв'!AJ33="","-",VLOOKUP($B27,'Сбор показателей I кв'!$B$125:$AU$160,23,FALSE)) -> - | M27: =IF(AND('Сбор показателей I кв'!AT33="",'Сбор показателей I кв'!AU33=""),"-",VLOOKUP($B27,'Сбор показателей I кв'!$B$125:$AU$160,38,FALSE)) -> - | N27: =IF('Сбор показателей II кв'!G33="","-",VLOOKUP($B27,'Сбор показателей II кв'!$B$125:$AT$160,4,FALSE)) -> - | O27: =IF('Сбор показателей II кв'!G33="","-",VLOOKUP($B27,'Сбор показателей II кв'!$B$125:$AT$160,5,FALSE)) -> - | P27: =IF(AND('Сбор показателей II кв'!N33="",'Сбор показателей II кв'!O33="",'Сбор показателей II кв'!P33=""),"-",VLOOKUP($B27,'Сбор показателей II кв'!$B$125:$AT$160,8,FALSE)) -> - | Q27: =IF('Сбор показателей II кв'!AJ33="","-",VLOOKUP($B27,'Сбор показателей II кв'!$B$125:$AT$160,23,FALSE)) -> - | R27: =IF(AND('Сбор показателей II кв'!AS33="",'Сбор показателей II кв'!AT33=""),"-",VLOOKUP($B27,'Сбор показателей II кв'!$B$125:$AT$160,38,FALSE)) -> - | S27: =IF('Сбор показателей III кв'!G33="","-",VLOOKUP($B27,'Сбор показателей III кв'!$B$125:$AT$160,4,FALSE)) -> - | T27: =IF('Сбор показателей III кв'!G33="","-",VLOOKUP($B27,'Сбор показателей III кв'!$B$125:$AT$160,5,FALSE)) -> - | U27: =IF(AND('Сбор показателей III кв'!N33="",'Сбор показателей III кв'!O33="",'Сбор показателей III кв'!P33=""),"-",VLOOKUP($B27,'Сбор показателей III кв'!$B$125:$AT$160,8,FALSE)) -> - | V27: =IF('Сбор показателей III кв'!AJ33="","-",VLOOKUP($B27,'Сбор показателей III кв'!$B$125:$AT$160,23,FALSE)) -> - | W27: =IF(AND('Сбор показателей III кв'!AS33="",'Сбор показателей III кв'!AT33=""),"-",VLOOKUP($B27,'Сбор показателей III кв'!$B$125:$AT$160,38,FALSE)) -> - | X27: =IF('Сбор показателей IV кв'!G33="","-",VLOOKUP(B27,'Сбор показателей IV кв'!$B$125:$AT$160,4,FALSE)) -> - | Y27: =IF('Сбор показателей IV кв'!G33="","-",VLOOKUP(B27,'Сбор показателей IV кв'!$B$125:$AT$160,5,FALSE)) -> - | Z27: =IF(AND('Сбор показателей IV кв'!N33="",'Сбор показателей IV кв'!O33="",'Сбор показателей IV кв'!P33=""),"-",VLOOKUP(B27,'Сбор показателей IV кв'!$B$125:$AT$160,8,FALSE)) -> - | AA27: =IF('Сбор показателей IV кв'!AJ33="","-",VLOOKUP(B27,'Сбор показателей IV кв'!$B$125:$AT$160,23,FALSE)) -> - | AB27: =IF(AND('Сбор показателей IV кв'!AS33="",'Сбор показателей IV кв'!AT33=""),"-",VLOOKUP(B27,'Сбор показателей IV кв'!$B$125:$AT$160,38,FALSE)) -> -
B28: Сметанин Павел | C28: ОКР | D28: =VLOOKUP($B28,'Показатели за ГОД'!$A$120:$AS$155,4,FALSE) -> 21 | E28: =VLOOKUP($B28,'Показатели за ГОД'!$A$120:$AS$155,5,FALSE) -> 21 | F28: =VLOOKUP($B28,'Показатели за ГОД'!$A$120:$AS$155,8,FALSE) -> 21 | G28: =VLOOKUP($B28,'Показатели за ГОД'!$A$120:$AS$155,23,FALSE) -> 21 | H28: =VLOOKUP($B28,'Показатели за ГОД'!$A$120:$AS$155,38,FALSE) -> 21 | I28: =IF('Сбор показателей I кв'!G34="","-",VLOOKUP($B28,'Сбор показателей I кв'!$B$125:$AU$160,4,FALSE)) -> - | J28: =IF('Сбор показателей I кв'!G34="","-",VLOOKUP($B28,'Сбор показателей I кв'!$B$125:$AU$160,5,FALSE)) -> - | K28: =IF(AND('Сбор показателей I кв'!N34="",'Сбор показателей I кв'!O34="",'Сбор показателей I кв'!P34=""),"-",VLOOKUP($B28,'Сбор показателей I кв'!$B$125:$AU$160,8,FALSE)) -> - | L28: =IF('Сбор показателей I кв'!AJ34="","-",VLOOKUP($B28,'Сбор показателей I кв'!$B$125:$AU$160,23,FALSE)) -> - | M28: =IF(AND('Сбор показателей I кв'!AT34="",'Сбор показателей I кв'!AU34=""),"-",VLOOKUP($B28,'Сбор показателей I кв'!$B$125:$AU$160,38,FALSE)) -> - | N28: =IF('Сбор показателей II кв'!G34="","-",VLOOKUP($B28,'Сбор показателей II кв'!$B$125:$AT$160,4,FALSE)) -> - | O28: =IF('Сбор показателей II кв'!G34="","-",VLOOKUP($B28,'Сбор показателей II кв'!$B$125:$AT$160,5,FALSE)) -> - | P28: =IF(AND('Сбор показателей II кв'!N34="",'Сбор показателей II кв'!O34="",'Сбор показателей II кв'!P34=""),"-",VLOOKUP($B28,'Сбор показателей II кв'!$B$125:$AT$160,8,FALSE)) -> - | Q28: =IF('Сбор показателей II кв'!AJ34="","-",VLOOKUP($B28,'Сбор показателей II кв'!$B$125:$AT$160,23,FALSE)) -> - | R28: =IF(AND('Сбор показателей II кв'!AS34="",'Сбор показателей II кв'!AT34=""),"-",VLOOKUP($B28,'Сбор показателей II кв'!$B$125:$AT$160,38,FALSE)) -> - | S28: =IF('Сбор показателей III кв'!G34="","-",VLOOKUP($B28,'Сбор показателей III кв'!$B$125:$AT$160,4,FALSE)) -> - | T28: =IF('Сбор показателей III кв'!G34="","-",VLOOKUP($B28,'Сбор показателей III кв'!$B$125:$AT$160,5,FALSE)) -> - | U28: =IF(AND('Сбор показателей III кв'!N34="",'Сбор показателей III кв'!O34="",'Сбор показателей III кв'!P34=""),"-",VLOOKUP($B28,'Сбор показателей III кв'!$B$125:$AT$160,8,FALSE)) -> - | V28: =IF('Сбор показателей III кв'!AJ34="","-",VLOOKUP($B28,'Сбор показателей III кв'!$B$125:$AT$160,23,FALSE)) -> - | W28: =IF(AND('Сбор показателей III кв'!AS34="",'Сбор показателей III кв'!AT34=""),"-",VLOOKUP($B28,'Сбор показателей III кв'!$B$125:$AT$160,38,FALSE)) -> - | X28: =IF('Сбор показателей IV кв'!G34="","-",VLOOKUP(B28,'Сбор показателей IV кв'!$B$125:$AT$160,4,FALSE)) -> - | Y28: =IF('Сбор показателей IV кв'!G34="","-",VLOOKUP(B28,'Сбор показателей IV кв'!$B$125:$AT$160,5,FALSE)) -> - | Z28: =IF(AND('Сбор показателей IV кв'!N34="",'Сбор показателей IV кв'!O34="",'Сбор показателей IV кв'!P34=""),"-",VLOOKUP(B28,'Сбор показателей IV кв'!$B$125:$AT$160,8,FALSE)) -> - | AA28: =IF('Сбор показателей IV кв'!AJ34="","-",VLOOKUP(B28,'Сбор показателей IV кв'!$B$125:$AT$160,23,FALSE)) -> - | AB28: =IF(AND('Сбор показателей IV кв'!AS34="",'Сбор показателей IV кв'!AT34=""),"-",VLOOKUP(B28,'Сбор показателей IV кв'!$B$125:$AT$160,38,FALSE)) -> -
B29: Степин Константин | C29: ОКР (КЦ) | D29: =VLOOKUP($B29,'Показатели за ГОД'!$A$120:$AS$155,4,FALSE) -> 21 | E29: =VLOOKUP($B29,'Показатели за ГОД'!$A$120:$AS$155,5,FALSE) -> 21 | F29: =VLOOKUP($B29,'Показатели за ГОД'!$A$120:$AS$155,8,FALSE) -> 21 | G29: =VLOOKUP($B29,'Показатели за ГОД'!$A$120:$AS$155,23,FALSE) -> 21 | H29: =VLOOKUP($B29,'Показатели за ГОД'!$A$120:$AS$155,38,FALSE) -> 21 | I29: =IF('Сбор показателей I кв'!G35="","-",VLOOKUP($B29,'Сбор показателей I кв'!$B$125:$AU$160,4,FALSE)) -> - | J29: =IF('Сбор показателей I кв'!G35="","-",VLOOKUP($B29,'Сбор показателей I кв'!$B$125:$AU$160,5,FALSE)) -> - | K29: =IF(AND('Сбор показателей I кв'!N35="",'Сбор показателей I кв'!O35="",'Сбор показателей I кв'!P35=""),"-",VLOOKUP($B29,'Сбор показателей I кв'!$B$125:$AU$160,8,FALSE)) -> - | L29: =IF('Сбор показателей I кв'!AJ35="","-",VLOOKUP($B29,'Сбор показателей I кв'!$B$125:$AU$160,23,FALSE)) -> - | M29: =IF(AND('Сбор показателей I кв'!AT35="",'Сбор показателей I кв'!AU35=""),"-",VLOOKUP($B29,'Сбор показателей I кв'!$B$125:$AU$160,38,FALSE)) -> - | N29: =IF('Сбор показателей II кв'!G35="","-",VLOOKUP($B29,'Сбор показателей II кв'!$B$125:$AT$160,4,FALSE)) -> - | O29: =IF('Сбор показателей II кв'!G35="","-",VLOOKUP($B29,'Сбор показателей II кв'!$B$125:$AT$160,5,FALSE)) -> - | P29: =IF(AND('Сбор показателей II кв'!N35="",'Сбор показателей II кв'!O35="",'Сбор показателей II кв'!P35=""),"-",VLOOKUP($B29,'Сбор показателей II кв'!$B$125:$AT$160,8,FALSE)) -> - | Q29: =IF('Сбор показателей II кв'!AJ35="","-",VLOOKUP($B29,'Сбор показателей II кв'!$B$125:$AT$160,23,FALSE)) -> - | R29: =IF(AND('Сбор показателей II кв'!AS35="",'Сбор показателей II кв'!AT35=""),"-",VLOOKUP($B29,'Сбор показателей II кв'!$B$125:$AT$160,38,FALSE)) -> - | S29: =IF('Сбор показателей III кв'!G35="","-",VLOOKUP($B29,'Сбор показателей III кв'!$B$125:$AT$160,4,FALSE)) -> - | T29: =IF('Сбор показателей III кв'!G35="","-",VLOOKUP($B29,'Сбор показателей III кв'!$B$125:$AT$160,5,FALSE)) -> - | U29: =IF(AND('Сбор показателей III кв'!N35="",'Сбор показателей III кв'!O35="",'Сбор показателей III кв'!P35=""),"-",VLOOKUP($B29,'Сбор показателей III кв'!$B$125:$AT$160,8,FALSE)) -> - | V29: =IF('Сбор показателей III кв'!AJ35="","-",VLOOKUP($B29,'Сбор показателей III кв'!$B$125:$AT$160,23,FALSE)) -> - | W29: =IF(AND('Сбор показателей III кв'!AS35="",'Сбор показателей III кв'!AT35=""),"-",VLOOKUP($B29,'Сбор показателей III кв'!$B$125:$AT$160,38,FALSE)) -> - | X29: =IF('Сбор показателей IV кв'!G35="","-",VLOOKUP(B29,'Сбор показателей IV кв'!$B$125:$AT$160,4,FALSE)) -> - | Y29: =IF('Сбор показателей IV кв'!G35="","-",VLOOKUP(B29,'Сбор показателей IV кв'!$B$125:$AT$160,5,FALSE)) -> - | Z29: =IF(AND('Сбор показателей IV кв'!N35="",'Сбор показателей IV кв'!O35="",'Сбор показателей IV кв'!P35=""),"-",VLOOKUP(B29,'Сбор показателей IV кв'!$B$125:$AT$160,8,FALSE)) -> - | AA29: =IF('Сбор показателей IV кв'!AJ35="","-",VLOOKUP(B29,'Сбор показателей IV кв'!$B$125:$AT$160,23,FALSE)) -> - | AB29: =IF(AND('Сбор показателей IV кв'!AS35="",'Сбор показателей IV кв'!AT35=""),"-",VLOOKUP(B29,'Сбор показателей IV кв'!$B$125:$AT$160,38,FALSE)) -> -
B30: Титов Александр | C30: ЗГД | D30: =VLOOKUP($B30,'Показатели за ГОД'!$A$120:$AS$155,4,FALSE) -> 21 | E30: =VLOOKUP($B30,'Показатели за ГОД'!$A$120:$AS$155,5,FALSE) -> 21 | F30: =VLOOKUP($B30,'Показатели за ГОД'!$A$120:$AS$155,8,FALSE) -> 21 | G30: =VLOOKUP($B30,'Показатели за ГОД'!$A$120:$AS$155,23,FALSE) -> 21 | H30: =VLOOKUP($B30,'Показатели за ГОД'!$A$120:$AS$155,38,FALSE) -> 21 | I30: =IF('Сбор показателей I кв'!G36="","-",VLOOKUP($B30,'Сбор показателей I кв'!$B$125:$AU$160,4,FALSE)) -> - | J30: =IF('Сбор показателей I кв'!G36="","-",VLOOKUP($B30,'Сбор показателей I кв'!$B$125:$AU$160,5,FALSE)) -> - | K30: =IF(AND('Сбор показателей I кв'!N36="",'Сбор показателей I кв'!O36="",'Сбор показателей I кв'!P36=""),"-",VLOOKUP($B30,'Сбор показателей I кв'!$B$125:$AU$160,8,FALSE)) -> - | L30: =IF('Сбор показателей I кв'!AJ36="","-",VLOOKUP($B30,'Сбор показателей I кв'!$B$125:$AU$160,23,FALSE)) -> - | M30: =IF(AND('Сбор показателей I кв'!AT36="",'Сбор показателей I кв'!AU36=""),"-",VLOOKUP($B30,'Сбор показателей I кв'!$B$125:$AU$160,38,FALSE)) -> - | N30: =IF('Сбор показателей II кв'!G36="","-",VLOOKUP($B30,'Сбор показателей II кв'!$B$125:$AT$160,4,FALSE)) -> - | O30: =IF('Сбор показателей II кв'!G36="","-",VLOOKUP($B30,'Сбор показателей II кв'!$B$125:$AT$160,5,FALSE)) -> - | P30: =IF(AND('Сбор показателей II кв'!N36="",'Сбор показателей II кв'!O36="",'Сбор показателей II кв'!P36=""),"-",VLOOKUP($B30,'Сбор показателей II кв'!$B$125:$AT$160,8,FALSE)) -> - | Q30: =IF('Сбор показателей II кв'!AJ36="","-",VLOOKUP($B30,'Сбор показателей II кв'!$B$125:$AT$160,23,FALSE)) -> - | R30: =IF(AND('Сбор показателей II кв'!AS36="",'Сбор показателей II кв'!AT36=""),"-",VLOOKUP($B30,'Сбор показателей II кв'!$B$125:$AT$160,38,FALSE)) -> - | S30: =IF('Сбор показателей III кв'!G36="","-",VLOOKUP($B30,'Сбор показателей III кв'!$B$125:$AT$160,4,FALSE)) -> - | T30: =IF('Сбор показателей III кв'!G36="","-",VLOOKUP($B30,'Сбор показателей III кв'!$B$125:$AT$160,5,FALSE)) -> - | U30: =IF(AND('Сбор показателей III кв'!N36="",'Сбор показателей III кв'!O36="",'Сбор показателей III кв'!P36=""),"-",VLOOKUP($B30,'Сбор показателей III кв'!$B$125:$AT$160,8,FALSE)) -> - | V30: =IF('Сбор показателей III кв'!AJ36="","-",VLOOKUP($B30,'Сбор показателей III кв'!$B$125:$AT$160,23,FALSE)) -> - | W30: =IF(AND('Сбор показателей III кв'!AS36="",'Сбор показателей III кв'!AT36=""),"-",VLOOKUP($B30,'Сбор показателей III кв'!$B$125:$AT$160,38,FALSE)) -> - | X30: =IF('Сбор показателей IV кв'!G36="","-",VLOOKUP(B30,'Сбор показателей IV кв'!$B$125:$AT$160,4,FALSE)) -> - | Y30: =IF('Сбор показателей IV кв'!G36="","-",VLOOKUP(B30,'Сбор показателей IV кв'!$B$125:$AT$160,5,FALSE)) -> - | Z30: =IF(AND('Сбор показателей IV кв'!N36="",'Сбор показателей IV кв'!O36="",'Сбор показателей IV кв'!P36=""),"-",VLOOKUP(B30,'Сбор показателей IV кв'!$B$125:$AT$160,8,FALSE)) -> - | AA30: =IF('Сбор показателей IV кв'!AJ36="","-",VLOOKUP(B30,'Сбор показателей IV кв'!$B$125:$AT$160,23,FALSE)) -> - | AB30: =IF(AND('Сбор показателей IV кв'!AS36="",'Сбор показателей IV кв'!AT36=""),"-",VLOOKUP(B30,'Сбор показателей IV кв'!$B$125:$AT$160,38,FALSE)) -> -
B31: Фирсов Владимир | C31: ОКР | D31: =VLOOKUP($B31,'Показатели за ГОД'!$A$120:$AS$155,4,FALSE) -> 21 | E31: =VLOOKUP($B31,'Показатели за ГОД'!$A$120:$AS$155,5,FALSE) -> 21 | F31: =VLOOKUP($B31,'Показатели за ГОД'!$A$120:$AS$155,8,FALSE) -> 21 | G31: =VLOOKUP($B31,'Показатели за ГОД'!$A$120:$AS$155,23,FALSE) -> 21 | H31: =VLOOKUP($B31,'Показатели за ГОД'!$A$120:$AS$155,38,FALSE) -> 21 | I31: =IF('Сбор показателей I кв'!G37="","-",VLOOKUP($B31,'Сбор показателей I кв'!$B$125:$AU$160,4,FALSE)) -> - | J31: =IF('Сбор показателей I кв'!G37="","-",VLOOKUP($B31,'Сбор показателей I кв'!$B$125:$AU$160,5,FALSE)) -> - | K31: =IF(AND('Сбор показателей I кв'!N37="",'Сбор показателей I кв'!O37="",'Сбор показателей I кв'!P37=""),"-",VLOOKUP($B31,'Сбор показателей I кв'!$B$125:$AU$160,8,FALSE)) -> - | L31: =IF('Сбор показателей I кв'!AJ37="","-",VLOOKUP($B31,'Сбор показателей I кв'!$B$125:$AU$160,23,FALSE)) -> - | M31: =IF(AND('Сбор показателей I кв'!AT37="",'Сбор показателей I кв'!AU37=""),"-",VLOOKUP($B31,'Сбор показателей I кв'!$B$125:$AU$160,38,FALSE)) -> - | N31: =IF('Сбор показателей II кв'!G37="","-",VLOOKUP($B31,'Сбор показателей II кв'!$B$125:$AT$160,4,FALSE)) -> - | O31: =IF('Сбор показателей II кв'!G37="","-",VLOOKUP($B31,'Сбор показателей II кв'!$B$125:$AT$160,5,FALSE)) -> - | P31: =IF(AND('Сбор показателей II кв'!N37="",'Сбор показателей II кв'!O37="",'Сбор показателей II кв'!P37=""),"-",VLOOKUP($B31,'Сбор показателей II кв'!$B$125:$AT$160,8,FALSE)) -> - | Q31: =IF('Сбор показателей II кв'!AJ37="","-",VLOOKUP($B31,'Сбор показателей II кв'!$B$125:$AT$160,23,FALSE)) -> - | R31: =IF(AND('Сбор показателей II кв'!AS37="",'Сбор показателей II кв'!AT37=""),"-",VLOOKUP($B31,'Сбор показателей II кв'!$B$125:$AT$160,38,FALSE)) -> - | S31: =IF('Сбор показателей III кв'!G37="","-",VLOOKUP($B31,'Сбор показателей III кв'!$B$125:$AT$160,4,FALSE)) -> - | T31: =IF('Сбор показателей III кв'!G37="","-",VLOOKUP($B31,'Сбор показателей III кв'!$B$125:$AT$160,5,FALSE)) -> - | U31: =IF(AND('Сбор показателей III кв'!N37="",'Сбор показателей III кв'!O37="",'Сбор показателей III кв'!P37=""),"-",VLOOKUP($B31,'Сбор показателей III кв'!$B$125:$AT$160,8,FALSE)) -> - | V31: =IF('Сбор показателей III кв'!AJ37="","-",VLOOKUP($B31,'Сбор показателей III кв'!$B$125:$AT$160,23,FALSE)) -> - | W31: =IF(AND('Сбор показателей III кв'!AS37="",'Сбор показателей III кв'!AT37=""),"-",VLOOKUP($B31,'Сбор показателей III кв'!$B$125:$AT$160,38,FALSE)) -> - | X31: =IF('Сбор показателей IV кв'!G37="","-",VLOOKUP(B31,'Сбор показателей IV кв'!$B$125:$AT$160,4,FALSE)) -> - | Y31: =IF('Сбор показателей IV кв'!G37="","-",VLOOKUP(B31,'Сбор показателей IV кв'!$B$125:$AT$160,5,FALSE)) -> - | Z31: =IF(AND('Сбор показателей IV кв'!N37="",'Сбор показателей IV кв'!O37="",'Сбор показателей IV кв'!P37=""),"-",VLOOKUP(B31,'Сбор показателей IV кв'!$B$125:$AT$160,8,FALSE)) -> - | AA31: =IF('Сбор показателей IV кв'!AJ37="","-",VLOOKUP(B31,'Сбор показателей IV кв'!$B$125:$AT$160,23,FALSE)) -> - | AB31: =IF(AND('Сбор показателей IV кв'!AS37="",'Сбор показателей IV кв'!AT37=""),"-",VLOOKUP(B31,'Сбор показателей IV кв'!$B$125:$AT$160,38,FALSE)) -> -
B32: Чунц Илья | C32: ЗГД | D32: =VLOOKUP($B32,'Показатели за ГОД'!$A$120:$AS$155,4,FALSE) -> 21 | E32: =VLOOKUP($B32,'Показатели за ГОД'!$A$120:$AS$155,5,FALSE) -> 21 | F32: =VLOOKUP($B32,'Показатели за ГОД'!$A$120:$AS$155,8,FALSE) -> 21 | G32: =VLOOKUP($B32,'Показатели за ГОД'!$A$120:$AS$155,23,FALSE) -> 21 | H32: =VLOOKUP($B32,'Показатели за ГОД'!$A$120:$AS$155,38,FALSE) -> 21 | I32: =IF('Сбор показателей I кв'!G38="","-",VLOOKUP($B32,'Сбор показателей I кв'!$B$125:$AU$160,4,FALSE)) -> - | J32: =IF('Сбор показателей I кв'!G38="","-",VLOOKUP($B32,'Сбор показателей I кв'!$B$125:$AU$160,5,FALSE)) -> - | K32: =IF(AND('Сбор показателей I кв'!N38="",'Сбор показателей I кв'!O38="",'Сбор показателей I кв'!P38=""),"-",VLOOKUP($B32,'Сбор показателей I кв'!$B$125:$AU$160,8,FALSE)) -> - | L32: =IF('Сбор показателей I кв'!AJ38="","-",VLOOKUP($B32,'Сбор показателей I кв'!$B$125:$AU$160,23,FALSE)) -> - | M32: =IF(AND('Сбор показателей I кв'!AT38="",'Сбор показателей I кв'!AU38=""),"-",VLOOKUP($B32,'Сбор показателей I кв'!$B$125:$AU$160,38,FALSE)) -> - | N32: =IF('Сбор показателей II кв'!G38="","-",VLOOKUP($B32,'Сбор показателей II кв'!$B$125:$AT$160,4,FALSE)) -> - | O32: =IF('Сбор показателей II кв'!G38="","-",VLOOKUP($B32,'Сбор показателей II кв'!$B$125:$AT$160,5,FALSE)) -> - | P32: =IF(AND('Сбор показателей II кв'!N38="",'Сбор показателей II кв'!O38="",'Сбор показателей II кв'!P38=""),"-",VLOOKUP($B32,'Сбор показателей II кв'!$B$125:$AT$160,8,FALSE)) -> - | Q32: =IF('Сбор показателей II кв'!AJ38="","-",VLOOKUP($B32,'Сбор показателей II кв'!$B$125:$AT$160,23,FALSE)) -> - | R32: =IF(AND('Сбор показателей II кв'!AS38="",'Сбор показателей II кв'!AT38=""),"-",VLOOKUP($B32,'Сбор показателей II кв'!$B$125:$AT$160,38,FALSE)) -> - | S32: =IF('Сбор показателей III кв'!G38="","-",VLOOKUP($B32,'Сбор показателей III кв'!$B$125:$AT$160,4,FALSE)) -> - | T32: =IF('Сбор показателей III кв'!G38="","-",VLOOKUP($B32,'Сбор показателей III кв'!$B$125:$AT$160,5,FALSE)) -> - | U32: =IF(AND('Сбор показателей III кв'!N38="",'Сбор показателей III кв'!O38="",'Сбор показателей III кв'!P38=""),"-",VLOOKUP($B32,'Сбор показателей III кв'!$B$125:$AT$160,8,FALSE)) -> - | V32: =IF('Сбор показателей III кв'!AJ38="","-",VLOOKUP($B32,'Сбор показателей III кв'!$B$125:$AT$160,23,FALSE)) -> - | W32: =IF(AND('Сбор показателей III кв'!AS38="",'Сбор показателей III кв'!AT38=""),"-",VLOOKUP($B32,'Сбор показателей III кв'!$B$125:$AT$160,38,FALSE)) -> - | X32: =IF('Сбор показателей IV кв'!G38="","-",VLOOKUP(B32,'Сбор показателей IV кв'!$B$125:$AT$160,4,FALSE)) -> - | Y32: =IF('Сбор показателей IV кв'!G38="","-",VLOOKUP(B32,'Сбор показателей IV кв'!$B$125:$AT$160,5,FALSE)) -> - | Z32: =IF(AND('Сбор показателей IV кв'!N38="",'Сбор показателей IV кв'!O38="",'Сбор показателей IV кв'!P38=""),"-",VLOOKUP(B32,'Сбор показателей IV кв'!$B$125:$AT$160,8,FALSE)) -> - | AA32: =IF('Сбор показателей IV кв'!AJ38="","-",VLOOKUP(B32,'Сбор показателей IV кв'!$B$125:$AT$160,23,FALSE)) -> - | AB32: =IF(AND('Сбор показателей IV кв'!AS38="",'Сбор показателей IV кв'!AT38=""),"-",VLOOKUP(B32,'Сбор показателей IV кв'!$B$125:$AT$160,38,FALSE)) -> -
B33: Шепляков Алексей | C33: ЗГД | D33: =VLOOKUP($B33,'Показатели за ГОД'!$A$120:$AS$155,4,FALSE) -> 21 | E33: =VLOOKUP($B33,'Показатели за ГОД'!$A$120:$AS$155,5,FALSE) -> 21 | F33: =VLOOKUP($B33,'Показатели за ГОД'!$A$120:$AS$155,8,FALSE) -> 21 | G33: =VLOOKUP($B33,'Показатели за ГОД'!$A$120:$AS$155,23,FALSE) -> 21 | H33: =VLOOKUP($B33,'Показатели за ГОД'!$A$120:$AS$155,38,FALSE) -> 21 | I33: =IF('Сбор показателей I кв'!G39="","-",VLOOKUP($B33,'Сбор показателей I кв'!$B$125:$AU$160,4,FALSE)) -> - | J33: =IF('Сбор показателей I кв'!G39="","-",VLOOKUP($B33,'Сбор показателей I кв'!$B$125:$AU$160,5,FALSE)) -> - | K33: =IF(AND('Сбор показателей I кв'!N39="",'Сбор показателей I кв'!O39="",'Сбор показателей I кв'!P39=""),"-",VLOOKUP($B33,'Сбор показателей I кв'!$B$125:$AU$160,8,FALSE)) -> - | L33: =IF('Сбор показателей I кв'!AJ39="","-",VLOOKUP($B33,'Сбор показателей I кв'!$B$125:$AU$160,23,FALSE)) -> - | M33: =IF(AND('Сбор показателей I кв'!AT39="",'Сбор показателей I кв'!AU39=""),"-",VLOOKUP($B33,'Сбор показателей I кв'!$B$125:$AU$160,38,FALSE)) -> - | N33: =IF('Сбор показателей II кв'!G39="","-",VLOOKUP($B33,'Сбор показателей II кв'!$B$125:$AT$160,4,FALSE)) -> - | O33: =IF('Сбор показателей II кв'!G39="","-",VLOOKUP($B33,'Сбор показателей II кв'!$B$125:$AT$160,5,FALSE)) -> - | P33: =IF(AND('Сбор показателей II кв'!N39="",'Сбор показателей II кв'!O39="",'Сбор показателей II кв'!P39=""),"-",VLOOKUP($B33,'Сбор показателей II кв'!$B$125:$AT$160,8,FALSE)) -> - | Q33: =IF('Сбор показателей II кв'!AJ39="","-",VLOOKUP($B33,'Сбор показателей II кв'!$B$125:$AT$160,23,FALSE)) -> - | R33: =IF(AND('Сбор показателей II кв'!AS39="",'Сбор показателей II кв'!AT39=""),"-",VLOOKUP($B33,'Сбор показателей II кв'!$B$125:$AT$160,38,FALSE)) -> - | S33: =IF('Сбор показателей III кв'!G39="","-",VLOOKUP($B33,'Сбор показателей III кв'!$B$125:$AT$160,4,FALSE)) -> - | T33: =IF('Сбор показателей III кв'!G39="","-",VLOOKUP($B33,'Сбор показателей III кв'!$B$125:$AT$160,5,FALSE)) -> - | U33: =IF(AND('Сбор показателей III кв'!N39="",'Сбор показателей III кв'!O39="",'Сбор показателей III кв'!P39=""),"-",VLOOKUP($B33,'Сбор показателей III кв'!$B$125:$AT$160,8,FALSE)) -> - | V33: =IF('Сбор показателей III кв'!AJ39="","-",VLOOKUP($B33,'Сбор показателей III кв'!$B$125:$AT$160,23,FALSE)) -> - | W33: =IF(AND('Сбор показателей III кв'!AS39="",'Сбор показателей III кв'!AT39=""),"-",VLOOKUP($B33,'Сбор показателей III кв'!$B$125:$AT$160,38,FALSE)) -> - | X33: =IF('Сбор показателей IV кв'!G39="","-",VLOOKUP(B33,'Сбор показателей IV кв'!$B$125:$AT$160,4,FALSE)) -> - | Y33: =IF('Сбор показателей IV кв'!G39="","-",VLOOKUP(B33,'Сбор показателей IV кв'!$B$125:$AT$160,5,FALSE)) -> - | Z33: =IF(AND('Сбор показателей IV кв'!N39="",'Сбор показателей IV кв'!O39="",'Сбор показателей IV кв'!P39=""),"-",VLOOKUP(B33,'Сбор показателей IV кв'!$B$125:$AT$160,8,FALSE)) -> - | AA33: =IF('Сбор показателей IV кв'!AJ39="","-",VLOOKUP(B33,'Сбор показателей IV кв'!$B$125:$AT$160,23,FALSE)) -> - | AB33: =IF(AND('Сбор показателей IV кв'!AS39="",'Сбор показателей IV кв'!AT39=""),"-",VLOOKUP(B33,'Сбор показателей IV кв'!$B$125:$AT$160,38,FALSE)) -> -
B34: Шестаков Антон | C34: ЗГД | D34: =VLOOKUP($B34,'Показатели за ГОД'!$A$120:$AS$155,4,FALSE) -> 21 | E34: =VLOOKUP($B34,'Показатели за ГОД'!$A$120:$AS$155,5,FALSE) -> 21 | F34: =VLOOKUP($B34,'Показатели за ГОД'!$A$120:$AS$155,8,FALSE) -> 21 | G34: =VLOOKUP($B34,'Показатели за ГОД'!$A$120:$AS$155,23,FALSE) -> 21 | H34: =VLOOKUP($B34,'Показатели за ГОД'!$A$120:$AS$155,38,FALSE) -> 21 | I34: =IF('Сбор показателей I кв'!G40="","-",VLOOKUP($B34,'Сбор показателей I кв'!$B$125:$AU$160,4,FALSE)) -> - | J34: =IF('Сбор показателей I кв'!G40="","-",VLOOKUP($B34,'Сбор показателей I кв'!$B$125:$AU$160,5,FALSE)) -> - | K34: =IF(AND('Сбор показателей I кв'!N40="",'Сбор показателей I кв'!O40="",'Сбор показателей I кв'!P40=""),"-",VLOOKUP($B34,'Сбор показателей I кв'!$B$125:$AU$160,8,FALSE)) -> - | L34: =IF('Сбор показателей I кв'!AJ40="","-",VLOOKUP($B34,'Сбор показателей I кв'!$B$125:$AU$160,23,FALSE)) -> - | M34: =IF(AND('Сбор показателей I кв'!AT40="",'Сбор показателей I кв'!AU40=""),"-",VLOOKUP($B34,'Сбор показателей I кв'!$B$125:$AU$160,38,FALSE)) -> - | N34: =IF('Сбор показателей II кв'!G40="","-",VLOOKUP($B34,'Сбор показателей II кв'!$B$125:$AT$160,4,FALSE)) -> - | O34: =IF('Сбор показателей II кв'!G40="","-",VLOOKUP($B34,'Сбор показателей II кв'!$B$125:$AT$160,5,FALSE)) -> - | P34: =IF(AND('Сбор показателей II кв'!N40="",'Сбор показателей II кв'!O40="",'Сбор показателей II кв'!P40=""),"-",VLOOKUP($B34,'Сбор показателей II кв'!$B$125:$AT$160,8,FALSE)) -> - | Q34: =IF('Сбор показателей II кв'!AJ40="","-",VLOOKUP($B34,'Сбор показателей II кв'!$B$125:$AT$160,23,FALSE)) -> - | R34: =IF(AND('Сбор показателей II кв'!AS40="",'Сбор показателей II кв'!AT40=""),"-",VLOOKUP($B34,'Сбор показателей II кв'!$B$125:$AT$160,38,FALSE)) -> - | S34: =IF('Сбор показателей III кв'!G40="","-",VLOOKUP($B34,'Сбор показателей III кв'!$B$125:$AT$160,4,FALSE)) -> - | T34: =IF('Сбор показателей III кв'!G40="","-",VLOOKUP($B34,'Сбор показателей III кв'!$B$125:$AT$160,5,FALSE)) -> - | U34: =IF(AND('Сбор показателей III кв'!N40="",'Сбор показателей III кв'!O40="",'Сбор показателей III кв'!P40=""),"-",VLOOKUP($B34,'Сбор показателей III кв'!$B$125:$AT$160,8,FALSE)) -> - | V34: =IF('Сбор показателей III кв'!AJ40="","-",VLOOKUP($B34,'Сбор показателей III кв'!$B$125:$AT$160,23,FALSE)) -> - | W34: =IF(AND('Сбор показателей III кв'!AS40="",'Сбор показателей III кв'!AT40=""),"-",VLOOKUP($B34,'Сбор показателей III кв'!$B$125:$AT$160,38,FALSE)) -> - | X34: =IF('Сбор показателей IV кв'!G40="","-",VLOOKUP(B34,'Сбор показателей IV кв'!$B$125:$AT$160,4,FALSE)) -> - | Y34: =IF('Сбор показателей IV кв'!G40="","-",VLOOKUP(B34,'Сбор показателей IV кв'!$B$125:$AT$160,5,FALSE)) -> - | Z34: =IF(AND('Сбор показателей IV кв'!N40="",'Сбор показателей IV кв'!O40="",'Сбор показателей IV кв'!P40=""),"-",VLOOKUP(B34,'Сбор показателей IV кв'!$B$125:$AT$160,8,FALSE)) -> - | AA34: =IF('Сбор показателей IV кв'!AJ40="","-",VLOOKUP(B34,'Сбор показателей IV кв'!$B$125:$AT$160,23,FALSE)) -> - | AB34: =IF(AND('Сбор показателей IV кв'!AS40="",'Сбор показателей IV кв'!AT40=""),"-",VLOOKUP(B34,'Сбор показателей IV кв'!$B$125:$AT$160,38,FALSE)) -> -
B35: Ялымов Денис | C35: ОКР | D35: =VLOOKUP($B35,'Показатели за ГОД'!$A$120:$AS$155,4,FALSE) -> 21 | E35: =VLOOKUP($B35,'Показатели за ГОД'!$A$120:$AS$155,5,FALSE) -> 21 | F35: =VLOOKUP($B35,'Показатели за ГОД'!$A$120:$AS$155,8,FALSE) -> 21 | G35: =VLOOKUP($B35,'Показатели за ГОД'!$A$120:$AS$155,23,FALSE) -> 21 | H35: =VLOOKUP($B35,'Показатели за ГОД'!$A$120:$AS$155,38,FALSE) -> 21 | I35: =IF('Сбор показателей I кв'!G41="","-",VLOOKUP($B35,'Сбор показателей I кв'!$B$125:$AU$160,4,FALSE)) -> - | J35: =IF('Сбор показателей I кв'!G41="","-",VLOOKUP($B35,'Сбор показателей I кв'!$B$125:$AU$160,5,FALSE)) -> - | K35: =IF(AND('Сбор показателей I кв'!N41="",'Сбор показателей I кв'!O41="",'Сбор показателей I кв'!P41=""),"-",VLOOKUP($B35,'Сбор показателей I кв'!$B$125:$AU$160,8,FALSE)) -> - | L35: =IF('Сбор показателей I кв'!AJ41="","-",VLOOKUP($B35,'Сбор показателей I кв'!$B$125:$AU$160,23,FALSE)) -> - | M35: =IF(AND('Сбор показателей I кв'!AT41="",'Сбор показателей I кв'!AU41=""),"-",VLOOKUP($B35,'Сбор показателей I кв'!$B$125:$AU$160,38,FALSE)) -> - | N35: =IF('Сбор показателей II кв'!G41="","-",VLOOKUP($B35,'Сбор показателей II кв'!$B$125:$AT$160,4,FALSE)) -> - | O35: =IF('Сбор показателей II кв'!G41="","-",VLOOKUP($B35,'Сбор показателей II кв'!$B$125:$AT$160,5,FALSE)) -> - | P35: =IF(AND('Сбор показателей II кв'!N41="",'Сбор показателей II кв'!O41="",'Сбор показателей II кв'!P41=""),"-",VLOOKUP($B35,'Сбор показателей II кв'!$B$125:$AT$160,8,FALSE)) -> - | Q35: =IF('Сбор показателей II кв'!AJ41="","-",VLOOKUP($B35,'Сбор показателей II кв'!$B$125:$AT$160,23,FALSE)) -> - | R35: =IF(AND('Сбор показателей II кв'!AS41="",'Сбор показателей II кв'!AT41=""),"-",VLOOKUP($B35,'Сбор показателей II кв'!$B$125:$AT$160,38,FALSE)) -> - | S35: =IF('Сбор показателей III кв'!G41="","-",VLOOKUP($B35,'Сбор показателей III кв'!$B$125:$AT$160,4,FALSE)) -> - | T35: =IF('Сбор показателей III кв'!G41="","-",VLOOKUP($B35,'Сбор показателей III кв'!$B$125:$AT$160,5,FALSE)) -> - | U35: =IF(AND('Сбор показателей III кв'!N41="",'Сбор показателей III кв'!O41="",'Сбор показателей III кв'!P41=""),"-",VLOOKUP($B35,'Сбор показателей III кв'!$B$125:$AT$160,8,FALSE)) -> - | V35: =IF('Сбор показателей III кв'!AJ41="","-",VLOOKUP($B35,'Сбор показателей III кв'!$B$125:$AT$160,23,FALSE)) -> - | W35: =IF(AND('Сбор показателей III кв'!AS41="",'Сбор показателей III кв'!AT41=""),"-",VLOOKUP($B35,'Сбор показателей III кв'!$B$125:$AT$160,38,FALSE)) -> - | X35: =IF('Сбор показателей IV кв'!G41="","-",VLOOKUP(B35,'Сбор показателей IV кв'!$B$125:$AT$160,4,FALSE)) -> - | Y35: =IF('Сбор показателей IV кв'!G41="","-",VLOOKUP(B35,'Сбор показателей IV кв'!$B$125:$AT$160,5,FALSE)) -> - | Z35: =IF(AND('Сбор показателей IV кв'!N41="",'Сбор показателей IV кв'!O41="",'Сбор показателей IV кв'!P41=""),"-",VLOOKUP(B35,'Сбор показателей IV кв'!$B$125:$AT$160,8,FALSE)) -> - | AA35: =IF('Сбор показателей IV кв'!AJ41="","-",VLOOKUP(B35,'Сбор показателей IV кв'!$B$125:$AT$160,23,FALSE)) -> - | AB35: =IF(AND('Сбор показателей IV кв'!AS41="",'Сбор показателей IV кв'!AT41=""),"-",VLOOKUP(B35,'Сбор показателей IV кв'!$B$125:$AT$160,38,FALSE)) -> -
B36: Винокурова Елена | C36: КЦ | D36: =VLOOKUP($B36,'Показатели за ГОД'!$A$120:$AS$155,4,FALSE) -> 3 | E36: =VLOOKUP($B36,'Показатели за ГОД'!$A$120:$AS$155,5,FALSE) -> 3 | F36: =VLOOKUP($B36,'Показатели за ГОД'!$A$120:$AS$155,8,FALSE) -> 3 | G36: =VLOOKUP($B36,'Показатели за ГОД'!$A$120:$AS$155,23,FALSE) -> 3 | H36: =VLOOKUP($B36,'Показатели за ГОД'!$A$120:$AS$155,38,FALSE) -> 3 | I36: =IF('Сбор показателей I кв'!G42="","-",VLOOKUP($B36,'Сбор показателей I кв'!$B$125:$AU$160,4,FALSE)) -> - | J36: =IF('Сбор показателей I кв'!G42="","-",VLOOKUP($B36,'Сбор показателей I кв'!$B$125:$AU$160,5,FALSE)) -> - | K36: =IF(AND('Сбор показателей I кв'!N42="",'Сбор показателей I кв'!O42="",'Сбор показателей I кв'!P42=""),"-",VLOOKUP($B36,'Сбор показателей I кв'!$B$125:$AU$160,8,FALSE)) -> - | L36: =IF('Сбор показателей I кв'!AJ42="","-",VLOOKUP($B36,'Сбор показателей I кв'!$B$125:$AU$160,23,FALSE)) -> - | M36: =IF(AND('Сбор показателей I кв'!AT42="",'Сбор показателей I кв'!AU42=""),"-",VLOOKUP($B36,'Сбор показателей I кв'!$B$125:$AU$160,38,FALSE)) -> - | N36: =IF('Сбор показателей II кв'!G42="","-",VLOOKUP($B36,'Сбор показателей II кв'!$B$125:$AT$160,4,FALSE)) -> - | O36: =IF('Сбор показателей II кв'!G42="","-",VLOOKUP($B36,'Сбор показателей II кв'!$B$125:$AT$160,5,FALSE)) -> - | P36: =IF(AND('Сбор показателей II кв'!N42="",'Сбор показателей II кв'!O42="",'Сбор показателей II кв'!P42=""),"-",VLOOKUP($B36,'Сбор показателей II кв'!$B$125:$AT$160,8,FALSE)) -> - | Q36: =IF('Сбор показателей II кв'!AJ42="","-",VLOOKUP($B36,'Сбор показателей II кв'!$B$125:$AT$160,23,FALSE)) -> - | R36: =IF(AND('Сбор показателей II кв'!AS42="",'Сбор показателей II кв'!AT42=""),"-",VLOOKUP($B36,'Сбор показателей II кв'!$B$125:$AT$160,38,FALSE)) -> - | S36: =IF('Сбор показателей III кв'!G42="","-",VLOOKUP($B36,'Сбор показателей III кв'!$B$125:$AT$160,4,FALSE)) -> - | T36: =IF('Сбор показателей III кв'!G42="","-",VLOOKUP($B36,'Сбор показателей III кв'!$B$125:$AT$160,5,FALSE)) -> - | U36: =IF(AND('Сбор показателей III кв'!N42="",'Сбор показателей III кв'!O42="",'Сбор показателей III кв'!P42=""),"-",VLOOKUP($B36,'Сбор показателей III кв'!$B$125:$AT$160,8,FALSE)) -> - | V36: =IF('Сбор показателей III кв'!AJ42="","-",VLOOKUP($B36,'Сбор показателей III кв'!$B$125:$AT$160,23,FALSE)) -> - | W36: =IF(AND('Сбор показателей III кв'!AS42="",'Сбор показателей III кв'!AT42=""),"-",VLOOKUP($B36,'Сбор показателей III кв'!$B$125:$AT$160,38,FALSE)) -> - | X36: =IF('Сбор показателей IV кв'!G42="","-",VLOOKUP(B36,'Сбор показателей IV кв'!$B$125:$AT$160,4,FALSE)) -> - | Y36: =IF('Сбор показателей IV кв'!G42="","-",VLOOKUP(B36,'Сбор показателей IV кв'!$B$125:$AT$160,5,FALSE)) -> - | Z36: =IF(AND('Сбор показателей IV кв'!N42="",'Сбор показателей IV кв'!O42="",'Сбор показателей IV кв'!P42=""),"-",VLOOKUP(B36,'Сбор показателей IV кв'!$B$125:$AT$160,8,FALSE)) -> - | AA36: =IF('Сбор показателей IV кв'!AJ42="","-",VLOOKUP(B36,'Сбор показателей IV кв'!$B$125:$AT$160,23,FALSE)) -> - | AB36: =IF(AND('Сбор показателей IV кв'!AS42="",'Сбор показателей IV кв'!AT42=""),"-",VLOOKUP(B36,'Сбор показателей IV кв'!$B$125:$AT$160,38,FALSE)) -> -
B37: Горбунова Татьяна | C37: КЦ | D37: =VLOOKUP($B37,'Показатели за ГОД'!$A$120:$AS$155,4,FALSE) -> 3 | E37: =VLOOKUP($B37,'Показатели за ГОД'!$A$120:$AS$155,5,FALSE) -> 3 | F37: =VLOOKUP($B37,'Показатели за ГОД'!$A$120:$AS$155,8,FALSE) -> 3 | G37: =VLOOKUP($B37,'Показатели за ГОД'!$A$120:$AS$155,23,FALSE) -> 3 | H37: =VLOOKUP($B37,'Показатели за ГОД'!$A$120:$AS$155,38,FALSE) -> 3 | I37: =IF('Сбор показателей I кв'!G43="","-",VLOOKUP($B37,'Сбор показателей I кв'!$B$125:$AU$160,4,FALSE)) -> - | J37: =IF('Сбор показателей I кв'!G43="","-",VLOOKUP($B37,'Сбор показателей I кв'!$B$125:$AU$160,5,FALSE)) -> - | K37: =IF(AND('Сбор показателей I кв'!N43="",'Сбор показателей I кв'!O43="",'Сбор показателей I кв'!P43=""),"-",VLOOKUP($B37,'Сбор показателей I кв'!$B$125:$AU$160,8,FALSE)) -> - | L37: =IF('Сбор показателей I кв'!AJ43="","-",VLOOKUP($B37,'Сбор показателей I кв'!$B$125:$AU$160,23,FALSE)) -> - | M37: =IF(AND('Сбор показателей I кв'!AT43="",'Сбор показателей I кв'!AU43=""),"-",VLOOKUP($B37,'Сбор показателей I кв'!$B$125:$AU$160,38,FALSE)) -> - | N37: =IF('Сбор показателей II кв'!G43="","-",VLOOKUP($B37,'Сбор показателей II кв'!$B$125:$AT$160,4,FALSE)) -> - | O37: =IF('Сбор показателей II кв'!G43="","-",VLOOKUP($B37,'Сбор показателей II кв'!$B$125:$AT$160,5,FALSE)) -> - | P37: =IF(AND('Сбор показателей II кв'!N43="",'Сбор показателей II кв'!O43="",'Сбор показателей II кв'!P43=""),"-",VLOOKUP($B37,'Сбор показателей II кв'!$B$125:$AT$160,8,FALSE)) -> - | Q37: =IF('Сбор показателей II кв'!AJ43="","-",VLOOKUP($B37,'Сбор показателей II кв'!$B$125:$AT$160,23,FALSE)) -> - | R37: =IF(AND('Сбор показателей II кв'!AS43="",'Сбор показателей II кв'!AT43=""),"-",VLOOKUP($B37,'Сбор показателей II кв'!$B$125:$AT$160,38,FALSE)) -> - | S37: =IF('Сбор показателей III кв'!G43="","-",VLOOKUP($B37,'Сбор показателей III кв'!$B$125:$AT$160,4,FALSE)) -> - | T37: =IF('Сбор показателей III кв'!G43="","-",VLOOKUP($B37,'Сбор показателей III кв'!$B$125:$AT$160,5,FALSE)) -> - | U37: =IF(AND('Сбор показателей III кв'!N43="",'Сбор показателей III кв'!O43="",'Сбор показателей III кв'!P43=""),"-",VLOOKUP($B37,'Сбор показателей III кв'!$B$125:$AT$160,8,FALSE)) -> - | V37: =IF('Сбор показателей III кв'!AJ43="","-",VLOOKUP($B37,'Сбор показателей III кв'!$B$125:$AT$160,23,FALSE)) -> - | W37: =IF(AND('Сбор показателей III кв'!AS43="",'Сбор показателей III кв'!AT43=""),"-",VLOOKUP($B37,'Сбор показателей III кв'!$B$125:$AT$160,38,FALSE)) -> - | X37: =IF('Сбор показателей IV кв'!G43="","-",VLOOKUP(B37,'Сбор показателей IV кв'!$B$125:$AT$160,4,FALSE)) -> - | Y37: =IF('Сбор показателей IV кв'!G43="","-",VLOOKUP(B37,'Сбор показателей IV кв'!$B$125:$AT$160,5,FALSE)) -> - | Z37: =IF(AND('Сбор показателей IV кв'!N43="",'Сбор показателей IV кв'!O43="",'Сбор показателей IV кв'!P43=""),"-",VLOOKUP(B37,'Сбор показателей IV кв'!$B$125:$AT$160,8,FALSE)) -> - | AA37: =IF('Сбор показателей IV кв'!AJ43="","-",VLOOKUP(B37,'Сбор показателей IV кв'!$B$125:$AT$160,23,FALSE)) -> - | AB37: =IF(AND('Сбор показателей IV кв'!AS43="",'Сбор показателей IV кв'!AT43=""),"-",VLOOKUP(B37,'Сбор показателей IV кв'!$B$125:$AT$160,38,FALSE)) -> -
B38: Давыденков Евгений | C38: КЦ | D38: =VLOOKUP($B38,'Показатели за ГОД'!$A$120:$AS$155,4,FALSE) -> 3 | E38: =VLOOKUP($B38,'Показатели за ГОД'!$A$120:$AS$155,5,FALSE) -> 3 | F38: =VLOOKUP($B38,'Показатели за ГОД'!$A$120:$AS$155,8,FALSE) -> 3 | G38: =VLOOKUP($B38,'Показатели за ГОД'!$A$120:$AS$155,23,FALSE) -> 3 | H38: =VLOOKUP($B38,'Показатели за ГОД'!$A$120:$AS$155,38,FALSE) -> 3 | I38: =IF('Сбор показателей I кв'!G44="","-",VLOOKUP($B38,'Сбор показателей I кв'!$B$125:$AU$160,4,FALSE)) -> - | J38: =IF('Сбор показателей I кв'!G44="","-",VLOOKUP($B38,'Сбор показателей I кв'!$B$125:$AU$160,5,FALSE)) -> - | K38: =IF(AND('Сбор показателей I кв'!N44="",'Сбор показателей I кв'!O44="",'Сбор показателей I кв'!P44=""),"-",VLOOKUP($B38,'Сбор показателей I кв'!$B$125:$AU$160,8,FALSE)) -> - | L38: =IF('Сбор показателей I кв'!AJ44="","-",VLOOKUP($B38,'Сбор показателей I кв'!$B$125:$AU$160,23,FALSE)) -> - | M38: =IF(AND('Сбор показателей I кв'!AT44="",'Сбор показателей I кв'!AU44=""),"-",VLOOKUP($B38,'Сбор показателей I кв'!$B$125:$AU$160,38,FALSE)) -> - | N38: =IF('Сбор показателей II кв'!G44="","-",VLOOKUP($B38,'Сбор показателей II кв'!$B$125:$AT$160,4,FALSE)) -> - | O38: =IF('Сбор показателей II кв'!G44="","-",VLOOKUP($B38,'Сбор показателей II кв'!$B$125:$AT$160,5,FALSE)) -> - | P38: =IF(AND('Сбор показателей II кв'!N44="",'Сбор показателей II кв'!O44="",'Сбор показателей II кв'!P44=""),"-",VLOOKUP($B38,'Сбор показателей II кв'!$B$125:$AT$160,8,FALSE)) -> - | Q38: =IF('Сбор показателей II кв'!AJ44="","-",VLOOKUP($B38,'Сбор показателей II кв'!$B$125:$AT$160,23,FALSE)) -> - | R38: =IF(AND('Сбор показателей II кв'!AS44="",'Сбор показателей II кв'!AT44=""),"-",VLOOKUP($B38,'Сбор показателей II кв'!$B$125:$AT$160,38,FALSE)) -> - | S38: =IF('Сбор показателей III кв'!G44="","-",VLOOKUP($B38,'Сбор показателей III кв'!$B$125:$AT$160,4,FALSE)) -> - | T38: =IF('Сбор показателей III кв'!G44="","-",VLOOKUP($B38,'Сбор показателей III кв'!$B$125:$AT$160,5,FALSE)) -> - | U38: =IF(AND('Сбор показателей III кв'!N44="",'Сбор показателей III кв'!O44="",'Сбор показателей III кв'!P44=""),"-",VLOOKUP($B38,'Сбор показателей III кв'!$B$125:$AT$160,8,FALSE)) -> - | V38: =IF('Сбор показателей III кв'!AJ44="","-",VLOOKUP($B38,'Сбор показателей III кв'!$B$125:$AT$160,23,FALSE)) -> - | W38: =IF(AND('Сбор показателей III кв'!AS44="",'Сбор показателей III кв'!AT44=""),"-",VLOOKUP($B38,'Сбор показателей III кв'!$B$125:$AT$160,38,FALSE)) -> - | X38: =IF('Сбор показателей IV кв'!G44="","-",VLOOKUP(B38,'Сбор показателей IV кв'!$B$125:$AT$160,4,FALSE)) -> - | Y38: =IF('Сбор показателей IV кв'!G44="","-",VLOOKUP(B38,'Сбор показателей IV кв'!$B$125:$AT$160,5,FALSE)) -> - | Z38: =IF(AND('Сбор показателей IV кв'!N44="",'Сбор показателей IV кв'!O44="",'Сбор показателей IV кв'!P44=""),"-",VLOOKUP(B38,'Сбор показателей IV кв'!$B$125:$AT$160,8,FALSE)) -> - | AA38: =IF('Сбор показателей IV кв'!AJ44="","-",VLOOKUP(B38,'Сбор показателей IV кв'!$B$125:$AT$160,23,FALSE)) -> - | AB38: =IF(AND('Сбор показателей IV кв'!AS44="",'Сбор показателей IV кв'!AT44=""),"-",VLOOKUP(B38,'Сбор показателей IV кв'!$B$125:$AT$160,38,FALSE)) -> -
B39: Журавлев Сергей | C39: КЦ | D39: =VLOOKUP($B39,'Показатели за ГОД'!$A$120:$AS$155,4,FALSE) -> 3 | E39: =VLOOKUP($B39,'Показатели за ГОД'!$A$120:$AS$155,5,FALSE) -> 3 | F39: =VLOOKUP($B39,'Показатели за ГОД'!$A$120:$AS$155,8,FALSE) -> 3 | G39: =VLOOKUP($B39,'Показатели за ГОД'!$A$120:$AS$155,23,FALSE) -> 3 | H39: =VLOOKUP($B39,'Показатели за ГОД'!$A$120:$AS$155,38,FALSE) -> 3 | I39: =IF('Сбор показателей I кв'!G45="","-",VLOOKUP($B39,'Сбор показателей I кв'!$B$125:$AU$160,4,FALSE)) -> - | J39: =IF('Сбор показателей I кв'!G45="","-",VLOOKUP($B39,'Сбор показателей I кв'!$B$125:$AU$160,5,FALSE)) -> - | K39: =IF(AND('Сбор показателей I кв'!N45="",'Сбор показателей I кв'!O45="",'Сбор показателей I кв'!P45=""),"-",VLOOKUP($B39,'Сбор показателей I кв'!$B$125:$AU$160,8,FALSE)) -> - | L39: =IF('Сбор показателей I кв'!AJ45="","-",VLOOKUP($B39,'Сбор показателей I кв'!$B$125:$AU$160,23,FALSE)) -> - | M39: =IF(AND('Сбор показателей I кв'!AT45="",'Сбор показателей I кв'!AU45=""),"-",VLOOKUP($B39,'Сбор показателей I кв'!$B$125:$AU$160,38,FALSE)) -> - | N39: =IF('Сбор показателей II кв'!G45="","-",VLOOKUP($B39,'Сбор показателей II кв'!$B$125:$AT$160,4,FALSE)) -> - | O39: =IF('Сбор показателей II кв'!G45="","-",VLOOKUP($B39,'Сбор показателей II кв'!$B$125:$AT$160,5,FALSE)) -> - | P39: =IF(AND('Сбор показателей II кв'!N45="",'Сбор показателей II кв'!O45="",'Сбор показателей II кв'!P45=""),"-",VLOOKUP($B39,'Сбор показателей II кв'!$B$125:$AT$160,8,FALSE)) -> - | Q39: =IF('Сбор показателей II кв'!AJ45="","-",VLOOKUP($B39,'Сбор показателей II кв'!$B$125:$AT$160,23,FALSE)) -> - | R39: =IF(AND('Сбор показателей II кв'!AS45="",'Сбор показателей II кв'!AT45=""),"-",VLOOKUP($B39,'Сбор показателей II кв'!$B$125:$AT$160,38,FALSE)) -> - | S39: =IF('Сбор показателей III кв'!G45="","-",VLOOKUP($B39,'Сбор показателей III кв'!$B$125:$AT$160,4,FALSE)) -> - | T39: =IF('Сбор показателей III кв'!G45="","-",VLOOKUP($B39,'Сбор показателей III кв'!$B$125:$AT$160,5,FALSE)) -> - | U39: =IF(AND('Сбор показателей III кв'!N45="",'Сбор показателей III кв'!O45="",'Сбор показателей III кв'!P45=""),"-",VLOOKUP($B39,'Сбор показателей III кв'!$B$125:$AT$160,8,FALSE)) -> - | V39: =IF('Сбор показателей III кв'!AJ45="","-",VLOOKUP($B39,'Сбор показателей III кв'!$B$125:$AT$160,23,FALSE)) -> - | W39: =IF(AND('Сбор показателей III кв'!AS45="",'Сбор показателей III кв'!AT45=""),"-",VLOOKUP($B39,'Сбор показателей III кв'!$B$125:$AT$160,38,FALSE)) -> - | X39: =IF('Сбор показателей IV кв'!G45="","-",VLOOKUP(B39,'Сбор показателей IV кв'!$B$125:$AT$160,4,FALSE)) -> - | Y39: =IF('Сбор показателей IV кв'!G45="","-",VLOOKUP(B39,'Сбор показателей IV кв'!$B$125:$AT$160,5,FALSE)) -> - | Z39: =IF(AND('Сбор показателей IV кв'!N45="",'Сбор показателей IV кв'!O45="",'Сбор показателей IV кв'!P45=""),"-",VLOOKUP(B39,'Сбор показателей IV кв'!$B$125:$AT$160,8,FALSE)) -> - | AA39: =IF('Сбор показателей IV кв'!AJ45="","-",VLOOKUP(B39,'Сбор показателей IV кв'!$B$125:$AT$160,23,FALSE)) -> - | AB39: =IF(AND('Сбор показателей IV кв'!AS45="",'Сбор показателей IV кв'!AT45=""),"-",VLOOKUP(B39,'Сбор показателей IV кв'!$B$125:$AT$160,38,FALSE)) -> -
B40: Ульданов Динар | C40: КЦ | D40: =VLOOKUP($B40,'Показатели за ГОД'!$A$120:$AS$155,4,FALSE) -> 3 | E40: =VLOOKUP($B40,'Показатели за ГОД'!$A$120:$AS$155,5,FALSE) -> 3 | F40: =VLOOKUP($B40,'Показатели за ГОД'!$A$120:$AS$155,8,FALSE) -> 3 | G40: =VLOOKUP($B40,'Показатели за ГОД'!$A$120:$AS$155,23,FALSE) -> 3 | H40: =VLOOKUP($B40,'Показатели за ГОД'!$A$120:$AS$155,38,FALSE) -> 3 | I40: =IF('Сбор показателей I кв'!G46="","-",VLOOKUP($B40,'Сбор показателей I кв'!$B$125:$AU$160,4,FALSE)) -> - | J40: =IF('Сбор показателей I кв'!G46="","-",VLOOKUP($B40,'Сбор показателей I кв'!$B$125:$AU$160,5,FALSE)) -> - | K40: =IF(AND('Сбор показателей I кв'!N46="",'Сбор показателей I кв'!O46="",'Сбор показателей I кв'!P46=""),"-",VLOOKUP($B40,'Сбор показателей I кв'!$B$125:$AU$160,8,FALSE)) -> - | L40: =IF('Сбор показателей I кв'!AJ46="","-",VLOOKUP($B40,'Сбор показателей I кв'!$B$125:$AU$160,23,FALSE)) -> - | M40: =IF(AND('Сбор показателей I кв'!AT46="",'Сбор показателей I кв'!AU46=""),"-",VLOOKUP($B40,'Сбор показателей I кв'!$B$125:$AU$160,38,FALSE)) -> - | N40: =IF('Сбор показателей II кв'!G46="","-",VLOOKUP($B40,'Сбор показателей II кв'!$B$125:$AT$160,4,FALSE)) -> - | O40: =IF('Сбор показателей II кв'!G46="","-",VLOOKUP($B40,'Сбор показателей II кв'!$B$125:$AT$160,5,FALSE)) -> - | P40: =IF(AND('Сбор показателей II кв'!N46="",'Сбор показателей II кв'!O46="",'Сбор показателей II кв'!P46=""),"-",VLOOKUP($B40,'Сбор показателей II кв'!$B$125:$AT$160,8,FALSE)) -> - | Q40: =IF('Сбор показателей II кв'!AJ46="","-",VLOOKUP($B40,'Сбор показателей II кв'!$B$125:$AT$160,23,FALSE)) -> - | R40: =IF(AND('Сбор показателей II кв'!AS46="",'Сбор показателей II кв'!AT46=""),"-",VLOOKUP($B40,'Сбор показателей II кв'!$B$125:$AT$160,38,FALSE)) -> - | S40: =IF('Сбор показателей III кв'!G46="","-",VLOOKUP($B40,'Сбор показателей III кв'!$B$125:$AT$160,4,FALSE)) -> - | T40: =IF('Сбор показателей III кв'!G46="","-",VLOOKUP($B40,'Сбор показателей III кв'!$B$125:$AT$160,5,FALSE)) -> - | U40: =IF(AND('Сбор показателей III кв'!N46="",'Сбор показателей III кв'!O46="",'Сбор показателей III кв'!P46=""),"-",VLOOKUP($B40,'Сбор показателей III кв'!$B$125:$AT$160,8,FALSE)) -> - | V40: =IF('Сбор показателей III кв'!AJ46="","-",VLOOKUP($B40,'Сбор показателей III кв'!$B$125:$AT$160,23,FALSE)) -> - | W40: =IF(AND('Сбор показателей III кв'!AS46="",'Сбор показателей III кв'!AT46=""),"-",VLOOKUP($B40,'Сбор показателей III кв'!$B$125:$AT$160,38,FALSE)) -> - | X40: =IF('Сбор показателей IV кв'!G46="","-",VLOOKUP(B40,'Сбор показателей IV кв'!$B$125:$AT$160,4,FALSE)) -> - | Y40: =IF('Сбор показателей IV кв'!G46="","-",VLOOKUP(B40,'Сбор показателей IV кв'!$B$125:$AT$160,5,FALSE)) -> - | Z40: =IF(AND('Сбор показателей IV кв'!N46="",'Сбор показателей IV кв'!O46="",'Сбор показателей IV кв'!P46=""),"-",VLOOKUP(B40,'Сбор показателей IV кв'!$B$125:$AT$160,8,FALSE)) -> - | AA40: =IF('Сбор показателей IV кв'!AJ46="","-",VLOOKUP(B40,'Сбор показателей IV кв'!$B$125:$AT$160,23,FALSE)) -> - | AB40: =IF(AND('Сбор показателей IV кв'!AS46="",'Сбор показателей IV кв'!AT46=""),"-",VLOOKUP(B40,'Сбор показателей IV кв'!$B$125:$AT$160,38,FALSE)) -> -

Sheet Фото (hidden)
B2: Василий Леонтьев
B3: Гуннар Мюрдаль
B4: Джон Ричард Хикс
B5: Кеннет Эрроу
B6: Кэрол Грейдер
B7: Линда Бак
B8: Мэй-Брит Мозер
B9: Саймон Кузнец
B10: Светлана Алексеевич
B11: Эстер Дюфло
A20: Лондон | B20: 1 | C20: Василий Леонтьев | E20: =RANDBETWEEN(1,10) -> 10 | F20: =RANDBETWEEN(1,10) -> 3 | G20: =RANDBETWEEN(1,10) -> 5 | H20: -Париж -Варшава -Мадрид
A21: Париж | B21: 2 | C21: Гуннар Мюрдаль | E21: =RANDBETWEEN(1,10) -> 4 | F21: 2 | G21: 6 | H21: -Мадрид -Афины -Варшава
A22: Мюнхен | B22: 3 | C22: Джон Ричард Хикс | E22: 5 | F22: 6 | G22: 9 | H22: -Афины -Мадрид -Рим
A23: Рим | B23: 4 | C23: Кеннет Эрроу | E23: 1 | F23: 1 | G23: 2 | H23: -Лондон -Афины -Лиссабон
A24: Москва | B24: 5 | C24: Кэрол Грейдер | E24: 6 | F24: 7 | G24: 7 | H24: -Рим -Мадрид -Лондон
A25: Мадрид | B25: 6 | C25: Линда Бак | E25: 1 | F25: 10 | G25: 5 | H25: -Афины -Варшава -Мюнхен
A26: Лиссабон | B26: 7 | C26: Мэй-Брит Мозер | E26: 3 | F26: 3 | G26: 2 | H26: -Лондон -Лиссабон -Мадрид
A27: Варшава | B27: 8 | C27: Саймон Кузнец | E27: 8 | F27: 7 | G27: 3 | H27: -Лиссабон -Рим -Париж
A28: Афины | B28: 9 | C28: Светлана Алексеевич | E28: 3 | F28: 3 | G28: 10 | H28: -Варшава -Москва -Париж
A29: Вена | B29: 10 | C29: Эстер Дюфло | E29: 7 | F29: 7 | G29: 10 | H29: -Париж -Мадрид -Лондон

Sheet Данные для карточки (hidden)
B1: 2 | C1: 3 | D1: 4 | E1: 5 | F1: 6 | G1: 7 | H1: 8 | I1: 9 | J1: 10 | K1: 11 | L1: 12 | M1: 13 | N1: 14 | O1: 15 | P1: 16 | Q1: 17 | R1: 18 | S1: 19 | T1: 20 | U1: 21 | V1: 22 | W1: 23 | X1: 24 | Y1: 25 | Z1: 26 | AA1: 27 | AB1: 28 | AC1: 29 | AD1: 30 | AE1: 31 | AF1: 32 | AG1: 33 | AH1: 34 | AI1: 35 | AJ1: 36 | AK1: 37 | AL1: 38 | AM1: 39 | AN1: 40 | AO1: 41 | AP1: 42 | AQ1: 43 | AR1: 44 | AS1: 45 | AT1: 46 | AU1: 47 | AV1: 48 | AW1: 49 | AX1: 50 | AY1: 51 | AZ1: 52 | BA1: 53 | BB1: 54 | BC1: 55 | BD1: 56 | BE1: 57 | BF1: 58 | BG1: 59 | BH1: 60 | BI1: 61 | BJ1: 62 | BK1: 63 | BL1: 64 | BM1: 65 | BN1: 66 | BO1: 67 | BP1: 68 | BQ1: 69 | BR1: 70 | BS1: 71 | BT1: 72 | BU1: 73 | BV1: 74 | BW1: 75 | BX1: 76 | BY1: 77 | BZ1: 78 | CA1: 79 | CB1: 80 | CC1: 81 | CD1: 82 | CE1: 83 | CF1: 84 | CG1: 85 | CH1: 86 | CI1: 87 | CJ1: 88 | CK1: 89 | CL1: 90 | CM1: 91 | CN1: 92 | CO1: 93 | CP1: 94 | CQ1: 95 | CR1: 96 | CS1: 97 | CT1: 98 | CU1: 99 | CV1: 100 | CW1: 101 | CX1: 102 | CY1: 103 | CZ1: 104 | DA1: 105 | DB1: 106 | DC1: 107 | DD1: 108 | DE1: 109 | DF1: 110 | DG1: 111 | DH1: 112 | DI1: 113 | DJ1: 114 | DK1: 115 | DL1: 116 | DM1: 117 | DN1: 118 | DO1: 119 | DP1: 120 | DQ1: 121 | DR1: 122 | DS1: 123 | DT1: 124 | DU1: 125 | DV1: 126 | DW1: 127 | DX1: 128 | DY1: 129 | DZ1: 130 | EA1: 131 | EB1: 132 | EC1: 133 | ED1: 134 | EE1: 135 | EF1: 136 | EG1: 137 | EH1: 138 | EI1: 139 | EJ1: 140 | EK1: 141 | EL1: 142 | EM1: 143 | EN1: 144 | EO1: 145 | EP1: 146
B2: Данные | G2: Диалоги о развитии | R2: Профиль компетенций ЗГД по закупкам (Lominger) min - 0 баллов max - 3 балла | W2: Индивидуальный профиль руководителя ОЦЕНКИ ПО БЛОКАМ НАВЫКОВ min - 1 max -7 | AE2: Индивидуальный профиль руководителя ОЦЕНКИ ПО ОТДЕЛЬНЫМ ШКАЛАМ min - 1 max -7 | BB2: Личностный опросник | BK2: Впечатления карьерного консультанта | BO2: Рейтингование
B3: Город | C3: ДО | D3: Должность | F3: Уровень владения Английским языком | G3: Ближайшие зоны развития | H3: Способы развития | I3: Предпочитаемая позиция | J3: Перейти в КЦ или продолжить в ДО? | K3: Возможная зона экспертизы | L3: Желаемый уровень должности | M3: Возможная Функция (Если не Закупки) | N3: География возможного переезда | O3: Мотивация для переезда | P3: Семейные обстоятельства, возможные ограничения | Q3: Альтернативный сценарий развития | R3: Общая оценка по профилю компетенций | S3: Создание эффективной команды | T3: Стратегическое видение | U3: Руководящие навыки | V3: Способность действовать в условиях неопределенности | W3: Блок I. Постановка целей и задач | X3: Блок II. Планирование и решение проблем | Y3: Блок III. Создание необходимых условий для выполнения работы | Z3: Блок IV. Обеспечение обратной связи | AA3: Блок V. Позитивный контроль | AB3: Блок VI. Признание заслуг | AC3: Блок VII. Эффективное взаимодействие с подчиненными | AD3: Блок VIII. Создание мотивирующей рабочей среды | AE3: A. Разъяснение целей и задач | AF3: B. Коммуникация с подчиненными | AG3: C. Тщательное планирование рабочего процесса | AH3: D. Знание особенностей конкретной компании | AI3: E. Обеспечение подчиненных ресурсами и информацией | AJ3: F. Предоставление обратной связи | AK3: G. Контроль времени (своевременное достижение поставленных задач) | AL3: H. Контроль деталей | AM3: I. Мотивация подчиненных на достижение целей | AN3: J. Делегирование полномочий | AO3: K. Поощрение за хорошо выполненную работу | AP3: L. Ориентация на людей (открытость и дружелюбие) | AQ3: M. Координация работы подчиненных | AR3: N. Создание условий для профессионального роста подчиненных | AS3: O. Наличие доверия подчиненных и руководства | AT3: P. Умение сделать работу интересной для подчиненных | AU3: Q. Профессиональная компетентность подчиненных | AV3: R. Создание сплоченной команды | AW3: S. Создание условий для должностного роста подчиненных | AX3: T. Уровень напряженности в коллективе | AY3: U. Забота о подчиненных | AZ3: V. Нематериальная мотивация | BA3: W. Мотивация подчиненных на качественное выполнение работы | BB3: Роль | BC3: E (Экстраверсия) человек получает энергию из внешнего мира через общение с людьми или совместную деятельность | BD3: I (Интроверсия) человек получает энергию из своего внутреннего мира: размышлений и визуализации | BE3: S (Ощущение) человек склонен обращать внимание на факты, детали окружающую действительность | BF3: N (Интуиция) человек склонен обращать внимание на взаимосвязи, теории и будущие возможности | BG3: T (Мышление) человек принимает решения, исходя из логического, объективного анализа | BH3: F (Чувство) человек склонен принимать решения, ориентируясь на личностные ценности, чтобы достичь гармонии | BI3: J (Суждение) человек склонен к организованности, порядку и быстрому принятию решений | BJ3: P (Восприятие) человек склонен к гибкости, адаптируется к изменениям и оттягивает принятие окончательного решения | BK3: Самая яркая черта участника | BL3: Сильные стороны участника, его возможности и перспективы | BM3: Зоны риска (короткими бизнесовыми предложениями. Если есть лишь предположение/гипотеза об участнике, используйте слова "возможно" и т.п.) | BN3: Зоны развития (то, что попало в ИПР, описать буллитами) | BO3: ИНТЕГРАЛЬНЫЙ | BP3: РЕЗУЛЬТАТИВНОСТЬ | BQ3: ПРОАКТИВНОСТЬ | BR3: ПРОФЕССИОНАЛЬНОЕ РАЗВИТИЕ | BS3: ЭФФЕКТИВНОЕ ВЗАИМОДЕЙСТВИЕ | BT3: Общее значение компетенции | BU3: Список городов | BV3: Роль | BW3: Состав | BX3: Описание | BY3: Дата вступления в должность | BZ3: Дата рождения
A4: Василий Леонтьев | B4: Лондон | C4: Johnson & Johnson | D4: Начальник управления межотраслевого анализа | E4: Лондон | F4: Средний | G4: коммуникации, эмоциональная устойчивость, самомотивация, "освежить" лидерство и мотивацию людей. А также разбираться лучше в логистике и складском учете. | H4: тренинги, коучинг, обмен опытом, книги | I4: Лидер | J4: Дочернее общество | K4: - | L4: руководитель | M4: кросс- функции, бизнес-девеломпент, HR, консалтинг, проектное управление, HSE | N4: Санкт-Петербург, НЕ регионы | O4: - | P4: нет | Q4: может продолжить в своей функции, так и рассматривает другие варианты. Интересно- кросс-функции, консалтинг, проектное управление , бизнес-девеломпент, HR, HSE | R4: 6 из 12 | S4: 1 из 3 | T4: 0 из 3 | U4: 2 из 3 | V4: 3 из 3 | W4: 4.3 | X4: 4.63 | Y4: 5.7 | Z4: 4.8 | AA4: 3.85 | AB4: 5.6 | AC4: 5.75 | AD4: 4.64 | AE4: 4.3 | AF4: 5.3 | AG4: 3.6 | AH4: 5 | AI4: 5.7 | AJ4: 4.8 | AK4: 4.3 | AL4: 2.6 | AM4: 3.2 | AN4: 5.3 | AO4: 5.6 | AP4: 6.2 | AQ4: 6 | AR4: 5.3 | AS4: 5.5 | AT4: 4.8 | AU4: 5.5 | AV4: 6.2 | AW4: 3.3 | AX4: 3.5 | AY4: 3.6 | AZ4: 5.2 | BA4: 5 | BB4: МАСТЕР / УМЕЛЕЦ / ВИРТУОЗ ISTP: интроверт, сенсорик, логик, иррационал | BC4: 10 | BD4: 19 | BE4: 13 | BF4: 12 | BG4: 11 | BH4: 7 | BI4: 11 | BJ4: 18 | BK4: Консервативный лидер. Очень опытный, сбалансированный, спокойный. | BL4: Ответственный. Способен выстраивать хорошие отношения с командой. Четкий, структурированный, устойчивый и в хорошем смысле предсказуемый. «Нет предела совершенству» - всегда готов учиться и развиваться. | BM4: Иногда излишне контролирует подчиненных, чтобы не приходилось их наказывать за ошибки. Эмоционален. Вероятно, иногда отстаивает свое мнение слишком настойчиво. Считает своей зоной развития - гибкость. | BN4: 0 | BO4: 10 | BP4: 3 | BQ4: 9 | BR4: 7 | BS4: 10 | BT4: 6 | BU4: -Париж -Варшава -Мадрид | BV4: МАСТЕР / УМЕЛЕЦ / ВИРТУОЗ | BW4: ISTP: интроверт, сенсорик, логик, иррационал | BX4: Люди с данной ролью, более расположены выжидать, анализировать ситуацию, нежели сразу предлагать свое решение и бросаться в бой. Сосредоточенные на себе, склонные к объективности в принятии решений. Проявляют эмпатию, тонко чувствуют других людей, отвергают искусственность и фальшь. Отличаются техническим складом ума, любят работать руками, при этом всегда укладываясь в нужные сроки. Обычно бывают терпеливы, аккуратны. Свято верят в принцип экономии усилий; большим достоинством является умение тщательно рассчитать, сколько усилий необходимо затратить, и поступить в соответствии с ситуацией. | BY4: 2013-04-19 | BZ4: 1986-07-23
A5: Гуннар Мюрдаль | B5: Париж | C5: Chrysler | D5: Начальник департамента взаимозависимости явлений | E5: Париж | F5: Средний | G5: Отчетливого запроса нет. Любит нестандартные неповторяющиеся задачи и развивается по ходу выполнения | H5: Интересно учиться в диалоге, во взаимодействии. Много читает для саморазвития | I5: Менеджер | J5: Не имеет значения | K5: - | L5: Ориентирована на повышение до следующего уровня. В данной должности видит смысл максимум на год | M5: Продажи. Управление услугами. Цифровизация. Использование РИД | N5: "Не где, а с кем и насколько интересно". (Работала в Москве, в англоязычных странах). | O5: Интересный кейс, возможность проявить себя | P5: Ребенок 4 года. Климат локации важен. Лондон и аналогичные локации не привлекают | Q5: Мыслит трехлетними периодами. В целом лояльна, но готова к смене карьеры в случае, если здесь станет недостаточно интересных новых задач | R5: 8 из 12 | S5: 2 из 3 | T5: 1 из 3 | U5: 2 из 3 | V5: 3 из 3 | W5: 5.7 | X5: 5.2 | Y5: 6.3 | Z5: 5.6 | AA5: 4.78 | AB5: 5.9 | AC5: 6.05 | AD5: 5.13 | AE5: 5.7 | AF5: 5.5 | AG5: 5 | AH5: 5.1 | AI5: 6.3 | AJ5: 5.6 | AK5: 5.2 | AL5: 3.6 | AM5: 4.5 | AN5: 5.8 | AO5: 5.9 | AP5: 5.8 | AQ5: 6.5 | AR5: 5.8 | AS5: 6.1 | AT5: 5.8 | AU5: 5 | AV5: 6 | AW5: 5.2 | AX5: 3.5 | AY5: 4.8 | AZ5: 5.2 | BA5: 5.5 | BB5: МАРШАЛ / ДЕЛЕЦ / НЕПОСЕДА ESTP: экстраверт, сенсорик, логик, иррационал | BC5: 20 | BD5: 9 | BE5: 17 | BF5: 8 | BG5: 20 | BH5: 4 | BI5: 9 | BJ5: 21 | BK5: Уравновешен, умеет слышать другого, но в ситуациях стресса и неопределенности может теряться, с его слов, ему необходимо взять паузу, чтобы разобраться с фактами | BL5: Взвешенность, конструктивность, готовность слышать и учитывать точки зрения других | BM5: Навыки влияния в коммуникации, особенно с вышестоящими, Стрессоустойчивость в ситуации публичных выступлений. Умение быстро действовать в условиях неопределенности. Возможно - поддержание эмоционального климата в коллективе. | BN5: 0 | BO5: 9 | BP5: 2 | BQ5: 8 | BR5: 8 | BS5: 9 | BT5: 8 | BU5: -Мадрид -Афины -Варшава | BV5: МАРШАЛ / ДЕЛЕЦ / НЕПОСЕДА | BW5: ESTP: экстраверт, сенсорик, логик, иррационал | BX5: Люди с данной ролью изобретательны. Дружелюбны, привлекательны, с заметным элементом театральности. Социально искусны, прекрасно манипулируют людьми и ситуациями. Все действия рассчитаны на аудиторию. Остроумны, умеют пошутить. Увлекаются рискованными затеями. Безудержные прагматисты – цель оправдывает средства. Незаменимы в организации деятельности многих людей, требующей согласования, переговоров. Отношения с другими непредсказуемы и очень зависят от того, что от них можно получить. Плохо переносят беспокойство и стремятся избегать ситуаций напряженных отношений. | BY5: 2019-11-06 | BZ5: 1963-07-24
A6: Джон Ричард Хикс | B6: Мюнхен | C6: Chevron Corporation | D6: Руководитель направления равновесия и благосостояния | E6: Мюнхен | F6: Средний | G6: 0 | H6: Тренинги. Самообразование. Участие в конференциях (не корпоративных, а с более широким участием, лучше международным). «Посмотреть на инструменты, попробовать» | I6: Лидер | J6: Не имеет значения | K6: - | L6: Через год закрепиться операционным директором. Через 3 года ГД | M6: Едва ли закупки. Интереснее бизнес, управление проектами | N6: В целом готов к переездам, делал это многократно | O6: Интересные задачи. Демотивация — отсутствие возможности принятия решений | P6: Жена привыкла к переездам и готова, многократно переезжали, но сейчас ребенку 4 года. Локация «совсем без цивилизации» не подойдет, потому что важно развитие ребенка | Q6: Создание эффективной системы в большой компании. Интересна роль тренера, спикера для большой аудитории. Работал в разных отраслях, дальше тоже не исключает смены отрасли, если там будет интересно. | R6: 6 из 12 | S6: 2 из 3 | T6: 0 из 3 | U6: 2 из 3 | V6: 2 из 3 | W6: 5.7 | X6: 5.43 | Y6: 5.2 | Z6: 5.3 | AA6: 4.95 | AB6: 6.7 | AC6: 6.23 | AD6: 4.75 | AE6: 5.7 | AF6: 5.6 | AG6: 5.4 | AH6: 5.3 | AI6: 5.2 | AJ6: 5.3 | AK6: 5.8 | AL6: 4.2 | AM6: 4.8 | AN6: 5 | AO6: 6.7 | AP6: 6 | AQ6: 6.2 | AR6: 6.3 | AS6: 6.4 | AT6: 5.4 | AU6: 3.7 | AV6: 5.5 | AW6: 5.2 | AX6: 3.8 | AY6: 5.2 | AZ6: 5 | BA6: 4.2 | BB6: АДМИНИСТРАТОР / РЕАЛИСТ / РУКОВОДИТЕЛЬ ESTJ: экстраверт, сенсорик, логик, рационал | BC6: 16 | BD6: 10 | BE6: 18 | BF6: 5 | BG6: 27 | BH6: 0 | BI6: 21 | BJ6: 7 | BK6: Молодой, проактивный, временами резкий с командой. Готов меняться и развиваться. Больше индивидуалист, чем командный игрок | BL6: Умеет принимать смелые и быстрые решения. Стремится контролировать все ключевые аспекты ситуации. Активно работает над собой и своей эффективностью как лидера. Наиболее продуктивен тогда, когда может принимать решения самостоятельно | BM6: Чувствует себя некомфортно в ситуациях, которые ему неподконтрольны. Может быть резок с подчиненными и демотивировать их своей обратной связью (обозначили как первоочередную зону роста). Недостаточны навыки предоставления позитивной обратной связи и мотивации команды. Также целесообразно усиливать навыки делегирования. Испытывает демотивацию в случае отсутствия интересных задач, при невозможности принимать самостоятельные решения и однообразных задачах | BN6: 0 | BO6: 5 | BP6: 10 | BQ6: 1 | BR6: 10 | BS6: 7 | BT6: 6 | BU6: -Афины -Мадрид -Рим | BV6: ЭНТУЗИАСТ / ВОСПИТАТЕЛЬ / УЧИТЕЛЬ | BW6: ESFJ: экстраверт, сенсорик, этик, рационал. | BY6: 2011-12-03 | BZ6: 1983-04-12
A7: Кеннет Эрроу | B7: Рим | C7: Pan American | D7: Начальник управления равновесия и благосостояния | E7: Рим | F7: Начальный | G7: Внутренняя уверенность в ходе публичных выступлений | H7: Более эффективно - очное обучение и индивидуальная работа | I7: Менеджер | J7: Дочернее общество | K7: - | L7: ЗГД, начальник управления | M7: Планирование, ценообразование | N7: По возможности хотелось бы сохранить текущую локацию | O7: - | P7: Дети, жена и ее карьера. По сути, переезд возможен только "по приказу", как нежелательный на сегодняшний день вариант | Q7: Как вариант - возвращение в производство, | R7: 8 из 12 | S7: 2 из 3 | T7: 2 из 3 | U7: 2 из 3 | V7: 2 из 3 | W7: 6.4 | X7: 5.63 | Y7: 6.2 | Z7: 6.8 | AA7: 5.23 | AB7: 6.9 | AC7: 6.6 | AD7: 5.99 | AE7: 6.4 | AF7: 5.9 | AG7: 5.3 | AH7: 5.7 | AI7: 6.2 | AJ7: 6.8 | AK7: 6.3 | AL7: 5.4 | AM7: 5.2 | AN7: 4 | AO7: 6.9 | AP7: 6.4 | AQ7: 6.8 | AR7: 6.6 | AS7: 6.6 | AT7: 6.4 | AU7: 6.2 | AV7: 7 | AW7: 6 | AX7: 3.8 | AY7: 6.2 | AZ7: 6 | BA7: 6.3 | BB7: ЭНТУЗИАСТ / ВОСПИТАТЕЛЬ / УЧИТЕЛЬ ESFJ: экстраверт, сенсорик, этик, рационал. | BC7: 15 | BD7: 7 | BE7: 14 | BF7: 6 | BG7: 10 | BH7: 11 | BI7: 21 | BJ7: 10 | BK7: Харизматичный лидер. Горит своей работой, вдохновляет и заряжает людей. | BL7: Развивает членов своей команды, успешно «растит» подчиненных, видит в этом много смысла и мотивации для себя. Высокая резистентность к неопределенности, эффективно решает задачи в условиях мгновенных изменений. Заинтересован в собственном развитии и обучении. Честный, искренний во взаимодействии. | BM7: В обратной связи подчиненным больше концентрируется на ошибках, чем на признании заслуг. Также строго относится и к себе. Эмоционален, принимает многие вещи близко к сердцу. Из-за высокой неопределенности в сфере зоной развития считает стратегическое видение. | BO7: 6 | BP7: 5 | BQ7: 6 | BR7: 6 | BS7: 4 | BT7: 8 | BU7: -Лондон -Афины -Лиссабон | BV7: АДМИНИСТРАТОР / РЕАЛИСТ / РУКОВОДИТЕЛЬ | BW7: ESTJ: экстраверт, сенсорик, логик, рационал | BX7: Люди с данной ролью ответственные, пунктуальные, надежные и стойкие. Успешно организуя дела, они любят порядок. Знают свои обязанности и не стремятся увиливать. Следуют установленному порядку, точны, аккуратны. Во взаимоотношениях следуют сложившимся традициям. Практичны, реалистичны, основываются на фактах, их заботит ситуация «здесь и сейчас». Больший интерес у них вызывают новые вещи и предметы, а не новые идеи. При решении возникающих проблем они используют свой прошлый опыт. Люди этого типа любят работать в таких сферах деятельности, где они могут достичь непосредственных, видимых глазом, ощутимых результатов. | BY7: 2015-01-12 | BZ7: 1989-07-17
A8: Кэрол Грейдер | B8: Москва | C8: Boing | D8: Начальник департамента защиты хромосом теломерами | E8: Москва | F8: Средний | G8: развивать умение убеждать, донести свою точку зрения, эффективные коммуникации, развивать гибкость, умение идти на компромисы | H8: делиться опытом с коллегами, литература, обучение в компании | I8: Лидер | J8: Дочернее общество | K8: - | L8: ЗГД, исполнительный директор | M8: нет | N8: без ограничений | O8: - | P8: нет | Q8: не рассматривает | R8: 5 из 12 | S8: 0 из 3 | T8: 1 из 3 | U8: 2 из 3 | V8: 2 из 3 | W8: 5.7 | X8: 5.67 | Y8: 6 | Z8: 5.3 | AA8: 4.5 | AB8: 5.7 | AC8: 5.9 | AD8: 5.45 | AE8: 5.7 | AF8: 5 | AG8: 5.9 | AH8: 6.1 | AI8: 6 | AJ8: 5.3 | AK8: 5.5 | AL8: 4 | AM8: 4.5 | AN8: 4 | AO8: 5.7 | AP8: 6 | AQ8: 6.5 | AR8: 5.1 | AS8: 6 | AT8: 5.8 | AU8: 6 | AV8: 6.2 | AW8: 5.8 | AX8: 2 | AY8: 5.8 | AZ8: 6 | BA8: 6 | BB8: ИНСПЕКТОР / ОРГАНИЗАТОР / ОПЕКУН ISTJ: интроверт, сенсорик, логик, рационал | BC8: 11 | BD8: 17 | BE8: 23 | BF8: 5 | BG8: 22 | BH8: 2 | BI8: 24 | BJ8: 3 | BK8: Душа компании - направляет, вдохновляет сотрудников, «видит» их. | BL8: Мягкий, гибкий стиль управления. Мастер коммуникации. Выстраивает доброжелательные отношения с подчиненными. Создает комфортные условия для работы, мотивирует без давления. Открыта к развитию. | BM8: Скорее всего, не всегда проявляет ассертивную позицию, когда это требуется. Вероятно, чувствует усталость от высокой неопределенности. | BN8: 0 | BO8: 7 | BP8: 9 | BQ8: 5 | BR8: 1 | BS8: 8 | BT8: 5 | BU8: -Рим -Мадрид -Лондон | BV8: ИНСПЕКТОР / ОРГАНИЗАТОР / ОПЕКУН | BW8: ISTJ: интроверт, сенсорик, логик, рационал | BX8: Люди с данной ролью надежные, спокойные и серьезные. Любят порядок и строгость, глубоко вникают в работу, анализируя информацию с разных сторон. Отличаются некой педантичностью. Реально смотрят на вещи, берутся за дело только если точно знают, что смогут его завершить. Во взаимоотношения предпочитают короткие деловые контакты с другими людьми. Слово «долг» для них значимо. Их поведение ориентировано на конечный результат. Их склонность ко всему, что находится «здесь и сейчас», не позволяет им ничего принимать на веру что-либо. | BY8: 2017-06-29 | BZ8: 1954-03-12
A9: Линда Бак | B9: Мадрид | C9: General Electrics | D9: Начальник управления организации органов обоняния | E9: Мадрид | F9: Нулевой | G9: Стеснительность, сложности в отстаивании своих интересов перед руководством | H9: Индивидуальные сессии, тренинги | I9: Менеджер | J9: Дочернее общество | K9: - | L9: ЗГД, ГД | M9: добыча | N9: не готов к переезду | O9: - | P9: Мама, которая нуждается в поддержке | Q9: Вернуться в функцию добычи, восстановить технические знания и быть руководителем там, хотя этот сцеарий кажется не очень вероятным, в силу того, что технологии ушли вперед | R9: 6 из 12 | S9: 1 из 3 | T9: 2 из 3 | U9: 2 из 3 | V9: 1 из 3 | W9: 5.6 | X9: 5.17 | Y9: 5.3 | Z9: 5 | AA9: 4.03 | AB9: 6 | AC9: 5.8 | AD9: 5.48 | AE9: 5.6 | AF9: 5.1 | AG9: 5.3 | AH9: 5.1 | AI9: 5.3 | AJ9: 5 | AK9: 5 | AL9: 2.8 | AM9: 3 | AN9: 5.3 | AO9: 6 | AP9: 5.8 | AQ9: 5.8 | AR9: 5.6 | AS9: 6 | AT9: 6 | AU9: 6 | AV9: 6 | AW9: 6 | AX9: 2 | AY9: 5.8 | AZ9: 6 | BA9: 6 | BB9: ИНСПЕКТОР / ОРГАНИЗАТОР / ОПЕКУН ISTJ: интроверт, сенсорик, логик, рационал | BC9: 5 | BD9: 25 | BE9: 31 | BF9: 2 | BG9: 27 | BH9: 2 | BI9: 24 | BJ9: 2 | BK9: Энергична, позитивна, конструктивно азартна. Любит нестандартные сложные задачи | BL9: Готова браться за нестандартные и сложные задачи, рисковать, находить наилучшие решения. Заинтересована в ситуациях, где можно проявить себя. Ориентирована на максимальный результат, пресекает возможности совершить ошибку. Активно занимается самообразованием | BM9: Может быть резка с собеседниками и не учитывать их особенности. Испытывает раздражение и демотивацию в случае детальной регламентации своих действий и решений и внешних жестких правил (любого ограничения свободы) | BN9: 0 | BO9: 3 | BP9: 1 | BQ9: 10 | BR9: 4 | BS9: 2 | BT9: 6 | BU9: -Афины -Варшава -Мюнхен | BV9: ИНСПЕКТОР / ОРГАНИЗАТОР / ОПЕКУН | BW9: ISTJ: интроверт, сенсорик, логик, рационал | BX9: Люди с данной ролью надежные, спокойные и серьезные. Любят порядок и строгость, глубоко вникают в работу, анализируя информацию с разных сторон. Отличаются некой педантичностью. Реально смотрят на вещи, берутся за дело только если точно знают, что смогут его завершить. Во взаимоотношения предпочитают короткие деловые контакты с другими людьми. Слово «долг» для них значимо. Их поведение ориентировано на конечный результат. Их склонность ко всему, что находится «здесь и сейчас», не позволяет им ничего принимать на веру что-либо. | BY9: 2018-11-17 | BZ9: 1964-01-14
A10: Мэй-Брит Мозер | B10: Лиссабон | C10: Pan American | D10: Начальник департамента систем позиционирования | E10: Лиссабон | F10: Начальный | G10: Принятие высокоуровневых решений с меньшей глубиной погружения в детали. Внутренняя уверенность, расширение границ, личный бренд, готовность к изменениям | H10: Проходит обучение по MBA в SSE. Предпочитает традиционные групповые методы обучения, онлайн не так привлекателен | I10: Лидер | J10: Корпоративный центр | K10: - | L10: Хотела бы двигаться по вертикали, но по результатам переговоров знает, что руководство предпочитает ее ротацию по горизонтали | M10: Выбирает не с точки зрения функции, а по возможностям проектной работы в ней, интересных, новых, нетиповых проектов | N10: Москва, Петербург | O10: Вертикальная карьера. (либо) Более гибкий график, больше возможностей для work‐life balance | P10: Сын подросток с хорошими перспективами в математике и спорте, через 3 года нужно будет обеспечивать ему возможность дальнейшей реализации, а это только крупные города | Q10: Пока не очень понятно. При принятии решений интересы и ценности семьи будут в приоритете | R10: 6 из 12 | S10: 2 из 3 | T10: 0 из 3 | U10: 2 из 3 | V10: 2 из 3 | W10: 6 | X10: 5.9 | Y10: 6 | Z10: 5.5 | AA10: 4.7 | AB10: 6 | AC10: 6.2 | AD10: 5.23 | AE10: 6 | AF10: 5.8 | AG10: 6 | AH10: 5.9 | AI10: 6 | AJ10: 5.5 | AK10: 5 | AL10: 3.6 | AM10: 4.7 | AN10: 5.5 | AO10: 6 | AP10: 5.4 | AQ10: 6.8 | AR10: 6 | AS10: 6.6 | AT10: 6 | AU10: 6 | AV10: 6 | AW10: 5.3 | AX10: 1.8 | AY10: 5.6 | AZ10: 5.8 | BA10: 5.3 | BB10: ИНСПЕКТОР / ОРГАНИЗАТОР / ОПЕКУН ISTJ: интроверт, сенсорик, логик, рационал | BC10: 11 | BD10: 14 | BE10: 19 | BF10: 5 | BG10: 18 | BH10: 6 | BI10: 24 | BJ10: 3 | BK10: Спокойна, рассудительна, склонна к системным решениям. Четкое понимание своих интересов при внешней мягкости | BL10: Умеет принимать системные взвешенные решения с оптимальным балансом внимания к деталям и общей картине. Лояльна к компании. Понимает, как находить баланс интересов различных сторон. Обучается по программе MBA | BM10: Одна из обозначенных ключевых зон роста — усиление способности генерировать идеи. В условиях «стеклянного потолка» дополнительное внимание стоит уделить усилению стрессоустойчивости и навыков личного профессионального самопродвижения | BN10: 0 | BO10: 4 | BP10: 7 | BQ10: 4 | BR10: 5 | BS10: 3 | BT10: 6 | BU10: -Лондон -Лиссабон -Мадрид | BV10: ИНСПЕКТОР / ОРГАНИЗАТОР / ОПЕКУН | BW10: ISTJ: интроверт, сенсорик, логик, рационал | BX10: Люди с данной ролью надежные, спокойные и серьезные. Любят порядок и строгость, глубоко вникают в работу, анализируя информацию с разных сторон. Отличаются некой педантичностью. Реально смотрят на вещи, берутся за дело только если точно знают, что смогут его завершить. Во взаимоотношения предпочитают короткие деловые контакты с другими людьми. Слово «долг» для них значимо. Их поведение ориентировано на конечный результат. Их склонность ко всему, что находится «здесь и сейчас», не позволяет им ничего принимать на веру что-либо. | BY10: 2015-07-02 | BZ10: 1979-05-23
A11: Саймон Кузнец | B11: Варшава | C11: Chrysler | D11: Руководитель направления социальной структуры | E11: Варшава | F11: Свободный | G11: Знание капитального строительства, цепочки поставок в части стратегии закупок, категорийный менеджмент. Умение выстраивать работу команды в части делегирования, повышение мотивации и самостоятельности, активности и инициативности сотрудников. Выстраивание своей авторитетной позиции. Умение эффективно действовать в ситуации конфликта интересов. | H11: У сотрудника уже составлен ИПР, который она заинтересована дополнить. Обучение очно и онлайн, стажировки, участие в проектах, обратная связь от наставника/карьерного консультанта. | I11: Лидер | J11: КЦ либо ДО. Сотрудник планирует стажировку в КЦ ориентировочно в марте, после этого будет решение | K11: - | L11: ЗГД либо руководитель департамента закупок либо team leader в КЦ (название последней должности еще не формализовано) | M11: промышленная безопасность, повышение операционной эффективности, непрерывное улучшение, выстравание бизнес-процессов с заказчиками, продажи | N11: Москва, Санкт-Петербург | O11: Рост по карьерной лестнице, новые проекты, жена в настоящее время работает в Москве. | P11: Ребенок 5,5 лет, переезд потребует адаптации ребенка на новом месте, поиск детского сада | Q11: В целом сотрудник очень широко смотрит на перспективы своего развития, готова развиваться как верикально, так и в смежных функциях, интересует опыт работы в совместных компаниях, с международным опытом. Сама так же обучает сотрудников, проводит внутренее обучение. | R11: 8 из 12 | S11: 2 из 3 | T11: 1 из 3 | U11: 3 из 3 | V11: 2 из 3 | W11: 5.9 | X11: 5.43 | Y11: 5.8 | Z11: 6.1 | AA11: 3.88 | AB11: 7 | AC11: 6.2 | AD11: 5.35 | AE11: 5.9 | AF11: 5.8 | AG11: 5.1 | AH11: 5.4 | AI11: 5.8 | AJ11: 6.1 | AK11: 5.2 | AL11: 1.6 | AM11: 4.2 | AN11: 4.5 | AO11: 7 | AP11: 6.6 | AQ11: 6.5 | AR11: 5.8 | AS11: 5.9 | AT11: 6 | AU11: 6 | AV11: 6.7 | AW11: 5.5 | AX11: 2.5 | AY11: 5.4 | AZ11: 5.4 | BA11: 5.3 | BB11: АДМИНИСТРАТОР / РЕАЛИСТ / РУКОВОДИТЕЛЬ ESTJ: экстраверт, сенсорик, логик, рационал | BC11: 24 | BD11: 3 | BE11: 13 | BF11: 10 | BG11: 17 | BH11: 4 | BI11: 19 | BJ11: 9 | BK11: В работе с командой проявляет себя и как лидер, и как менеджер. Энергичен, стремится к объективному и разностороннему взгляду на ситуацию | BL11: Внимателен к команде, прикладывает усилия к развитию подчиненных и формированию конструктивной атмосферы в коллективе. Уверенный в себе переговорщик, готовый использовать различные методы для отстаивания интересов компании. Стрессоустойчив. Имеет сильную соревновательную мотивацию. При выстраивании работы заинтересован в анализе и учете лучших практик | BM11: Испытывает затруднения при необходимости выступать на публике (большая незнакомая аудитория). Испытывает демотивацию в случае невозможности самостоятельно выстраивать стратегию своей работу и в случае отсутствия новых интересных проектов (расценивает такую ситуацию как стагнацию, в случае продолжительной стагнации не исключает смену карьеры) | BN11: 0 | BO11: 1 | BP11: 6 | BQ11: 2 | BR11: 3 | BS11: 1 | BT11: 8 | BU11: -Лиссабон -Рим -Париж | BV11: АДМИНИСТРАТОР / РЕАЛИСТ / РУКОВОДИТЕЛЬ | BW11: ESTJ: экстраверт, сенсорик, логик, рационал | BX11: Люди с данной ролью ответственные, пунктуальные, надежные и стойкие. Успешно организуя дела, они любят порядок. Знают свои обязанности и не стремятся увиливать. Следуют установленному порядку, точны, аккуратны. Во взаимоотношениях следуют сложившимся традициям. Практичны, реалистичны, основываются на фактах, их заботит ситуация «здесь и сейчас». Больший интерес у них вызывают новые вещи и предметы, а не новые идеи. При решении возникающих проблем они используют свой прошлый опыт. Люди этого типа любят работать в таких сферах деятельности, где они могут достичь непосредственных, видимых глазом, ощутимых результатов. | BY11: 2013-04-09 | BZ11: 1982-06-04
A12: Светлана Алексеевич | B12: Афины | C12: General Electrics | D12: Начальник управления многогласного творчества | E12: Афины | F12: 0 | G12: Работа с эмоциями, управление стрессом, личная эффективность, эмоциональная гибкость,работа с персоналом, работа с командой | H12: Тренинги, индивидуальные консультации | I12: Эксперт | J12: Корпоративный центр | K12: - | L12: В ближайшие 2-3 года видит себя в текущей должности | M12: Аудит | N12: Тюмень | O12: - | P12: Дочь учится в школе в СПБ. Если после 9 класса уезжает учиться, готова рассматривать варианты релокации. | Q12: Активно не занималась планированием карьеры, текущей должностью и работой довольна. Видит себя на этом месте в ближайшее время. Сама не стала бы искать новую функцию. Если бы пришлось переходить, готова была бы рассматривать функцию Аудит. | R12: 7 из 12 | S12: 1 из 3 | T12: 1 из 3 | U12: 2 из 3 | V12: 3 из 3 | W12: 5.4 | X12: 5.63 | Y12: 6.2 | Z12: 4.6 | AA12: 4.38 | AB12: 5.1 | AC12: 6.05 | AD12: 5.34 | AE12: 5.4 | AF12: 5.8 | AG12: 5 | AH12: 6.1 | AI12: 6.2 | AJ12: 4.6 | AK12: 5.7 | AL12: 2.6 | AM12: 4.5 | AN12: 4.7 | AO12: 5.1 | AP12: 5 | AQ12: 6.5 | AR12: 6.3 | AS12: 6.4 | AT12: 5.4 | AU12: 5 | AV12: 6 | AW12: 6.2 | AX12: 3.5 | AY12: 5 | AZ12: 5.8 | BA12: 5.8 | BB12: АДМИНИСТРАТОР / РЕАЛИСТ / РУКОВОДИТЕЛЬ ESTJ: экстраверт, сенсорик, логик, рационал | BC12: 15 | BD12: 12 | BE12: 13 | BF12: 10 | BG12: 17 | BH12: 4 | BI12: 20 | BJ12: 6 | BK12: Ответственна, готова принимать обратную связь, нацелена на результат. | BL12: Есть понимание, чего хочет от работы, готова вкладываться в развитие команды, если что-то делает, то качественно. | BM12: Возможно, есть элемент выгорания. Это может со временем сказаться на качестве работы, на уровне мотивации и вовлечённости, а также к внутреннему саботажу задач. | BN12: 0 | BO12: 8 | BP12: 8 | BQ12: 7 | BR12: 9 | BS12: 6 | BT12: 7 | BU12: -Варшава -Москва -Париж | BV12: АДМИНИСТРАТОР / РЕАЛИСТ / РУКОВОДИТЕЛЬ | BW12: ESTJ: экстраверт, сенсорик, логик, рационал | BX12: Люди с данной ролью ответственные, пунктуальные, надежные и стойкие. Успешно организуя дела, они любят порядок. Знают свои обязанности и не стремятся увиливать. Следуют установленному порядку, точны, аккуратны. Во взаимоотношениях следуют сложившимся традициям. Практичны, реалистичны, основываются на фактах, их заботит ситуация «здесь и сейчас». Больший интерес у них вызывают новые вещи и предметы, а не новые идеи. При решении возникающих проблем они используют свой прошлый опыт. Люди этого типа любят работать в таких сферах деятельности, где они могут достичь непосредственных, видимых глазом, ощутимых результатов. | BY12: 2013-10-14 | BZ12: 1957-05-31
A13: Эстер Дюфло | B13: Вена | C13: Johnson & Johnson | D13: Начальник департамента борьбы с глобальной бедностью | E13: Вена | F13: Средний | G13: Публичные выступления, навыки презентации, навыки переговоров с вышестоящим руководством, эмоциональный интеллект, работа с конфликтами | H13: Тренинги, онлайн-курсы, чтение литературы | I13: Эксперт | J13: Дочернее общество | K13: Аудит, юридическое направление | L13: Возможно, ЗГД в ДО или в Тюмень, на проект, который объединяет направление закупок | M13: БРД, методология закупок,управление эффективностью, ЦЦИ | N13: Тюмень | O13: Должность, интересный проект, личность руководителя, финансовое вознаграждение | P13: На текущий момент уходит в декрет, на данный момент из ограничений к переезду обозначила только географические факторы - на север и в Томск ехать не готова | Q13: ЗГД в ДО, БРД, интересен проект, который объединяет в себе управление закупок, управление организацией и управление эффективностью, изучила аудит. Готова рассматривать переход в методологию закупок | R13: 7 из 12 | S13: 1 из 3 | T13: 1 из 3 | U13: 2 из 3 | V13: 3 из 3 | W13: 4.9 | X13: 5.1 | Y13: 5.7 | Z13: 5.1 | AA13: 4.4 | AB13: 6 | AC13: 5.38 | AD13: 5.18 | AE13: 4.9 | AF13: 4.6 | AG13: 5.1 | AH13: 5.6 | AI13: 5.7 | AJ13: 5.1 | AK13: 5 | AL13: 3.8 | AM13: 4.3 | AN13: 4.5 | AO13: 6 | AP13: 5.4 | AQ13: 5.2 | AR13: 4.9 | AS13: 6 | AT13: 5.6 | AU13: 6 | AV13: 6.2 | AW13: 5.5 | AX13: 1.8 | AY13: 5 | AZ13: 5.6 | BA13: 5.7 | BB13: АДМИНИСТРАТОР / РЕАЛИСТ / РУКОВОДИТЕЛЬ ESTJ: экстраверт, сенсорик, логик, рационал | BC13: 15 | BD13: 8 | BE13: 16 | BF13: 11 | BG13: 17 | BH13: 5 | BI13: 22 | BJ13: 5 | BK13: "Энерджайзер", активна, мотивирована, амбициозна, готова работать на своё развитие в декрете. | BL13: Развивает свои компетенции, чтобы быть компетентной в своей работе. Работает с командой, есть стремление быть эффективным лидером и руководителем. | BM13: Не всегда чувствует признание своих заслуг вышестоящим руководством. Есть ожидания на проект в Тюмени, который готова возглавить. Возможно, если этого не произойдёт, будет демотивирована. | BN13: 0 | BO13: 2 | BP13: 4 | BQ13: 3 | BR13: 2 | BS13: 5 | BT13: 7 | BU13: -Париж -Мадрид -Лондон | BV13: АДМИНИСТРАТОР / РЕАЛИСТ / РУКОВОДИТЕЛЬ | BW13: ESTJ: экстраверт, сенсорик, логик, рационал | BX13: Люди с данной ролью ответственные, пунктуальные, надежные и стойкие. Успешно организуя дела, они любят порядок. Знают свои обязанности и не стремятся увиливать. Следуют установленному порядку, точны, аккуратны. Во взаимоотношениях следуют сложившимся традициям. Практичны, реалистичны, основываются на фактах, их заботит ситуация «здесь и сейчас». Больший интерес у них вызывают новые вещи и предметы, а не новые идеи. При решении возникающих проблем они используют свой прошлый опыт. Люди этого типа любят работать в таких сферах деятельности, где они могут достичь непосредственных, видимых глазом, ощутимых результатов. | BY13: 2018-02-21 | BZ13: 1973-01-09

Sheet Паспорт показателей (hidden)
B1: К СОДЕРЖАНИЮ
B3: БЛОК | C3: ПОКАЗАТЕЛЬ | D3: ПЕРИОДИЧНОСТЬ СБОРА | E3: ВЕС В ИНТЕГРАЛЬНОМ РЕЙТИНГЕ | F3: ВЕС В РЕЙТИНГЕ ПО БЛОКУ | G3: Пересчет для годовых результатов | H3: МЕТОД РАСЧЕТА ПОКАЗАТЕЛЯ | I3: ИСТОЧНИК ДАННЫХ | J3: ФОРМАТ ПРЕДОСТАВЛЕНИЯ ДАННЫХ | K3: СРОК ПРЕДОСТАВЛЕНИЯ ДАННЫХ
B4: РЕЗУЛЬТАТИВНОСТЬ | C4: Выполнение УПЦ | D4: Раз в квартал | E4: 0.1 | F4: 1 | G4: Среднее выполнение по году | H4: Процент выполнения УПЦ * Коэфициент оценки вклада | I4: Карта УПЦ участника | J4: Карта УПЦ | K4: 2ая неделя после начала квартал
B5: ПРОАКТИВНОСТЬ | C5: Поданные инициативы | D5: Раз в квартал | E5: 0.1 | F5: 0.5 | G5: Среднее число по году по всем 3 каналам вместе | H5: (Число инициатив, поданных сотрудниками подразделения участника в ЛИНиЯ + Число инициатив, поданных сотрудниками подразделения в И.Д.Е.Я.) / число сотрудников в подразделении участника | I5: Аналитика И.Д.Е.Я, ЛИНиЯ | J5: Выгрузка отчета по подразделению в формате Excel | K5: 1ая неделя после начала квартала
H6: или
H7: Число инициатив, поданных сотрудниками подразделения (при отсутствии программ ЛИНиЯ и/или И.Д.Е.Я.) / Число сотрудников в подразделении участника | I7: Отчет участника в свободной форме | J7: Отчет участника в свободной форме | K7: 1ая неделя после начала квартала
C8: Одобренные инициативы | D8: Раз в квартал | E8: 0.1 | F8: 0.5 | G8: Сумма по году | H8: (Число инициатив, поданных сотрудниками подразделения участника в ЛИНиЯ, получивших одобрение к реализации + Число инициатив, поданных сотрудниками подразделения в И.Д.Е.Я. И получивших одобрение к реализации) / число сотрудников в подразделении участника | I8: Аналитика И.Д.Е.Я, ЛИНиЯ | J8: Выгрузка отчета по подразделению в формате Excel | K8: 1ая неделя после начала квартала
H9: или
G10: Сумма по году | H10: Число инициатив, поданных сотрудниками подразделения (при отсутствии программ ЛИНиЯ и/или И.Д.Е.Я.) и получивших одобрение к реализации / Число сотрудников в подразделении участника | I10: Отчет участника в свободной форме | J10: Отчет участника в свободной форме | K10: 1ая неделя после начала квартала
B11: ПРОФЕССИОНАЛЬНОЕ И ЛИДЕРСКОЕ РАЗВИТИЕ | C11: Выполнение ИПР участником | D11: Раз в пол года | E11: 0.1 | F11: 0.25 | G11: Среднее выполнение по году | H11: Процент выполнения ИПР | I11: Отчет участника, подтвержденный HR ДО | J11: Отчет участника в свободной форме | K11: 1ая неделя после начала полугодия
C12: Выполнение ИПР подчиненными | D12: Раз в пол года | E12: 0.1 | F12: 0.25 | G12: Среднее выполнение по году | H12: Медиана по процентному выполнению ИПР по непосредственным подчиненным участника | I12: Отчет участника, подтвержденный HR ДО | J12: Отчет участника в свободной форме | K12: 1ая неделя после начала полугодия
C13: Наполнение Кадрового резерва функции | D13: Раз в год | E13: 0.1 | F13: 0.25 | G13: -
C14: - Оперативный кадровый резерв | H14: Число сотрудников в ОКР * 5 / Число сотрудников в подразделении участника | I14: Решение Кадрового комитета / Отчет участника, подтвержденный HR ДО | J14: Протокол решения кадрового комитета | K14: 2ая неделя со дня проведения кадрового комитета
C15: - Перспективный кадровый резерв | H15: Число сотрудников в ПКР * 2 / Число сотрудников в подразделении участника | I15: Решение Кадрового комитета / Отчет участника, подтвержденный HR ДО | J15: Протокол решения кадрового комитета | K15: 2ая неделя со дня проведения кадрового комитета
C16: Управление знаниями функции | D16: Раз в квартал | E16: 0.1 | F16: 0.25 | G16: Среднее число по году
C17: - Внутренние тренеры | H17: Число внутренних тренеров в подразделении участника / Число сотрудников в подразделении участника | I17: Отчет участника, подтвержденный HR ДО | J17: Отчет участника | K17: 1ая неделя после начала квартала
C18: - Курсы внутренних тренеров | H18: Число курсов внутреннего обучения, проведенных сотрудниками подразделения участника, исключая Институт Закупки / Число внутренних тренеров | I18: Отчет участника, подтвержденный HR ДО | J18: Отчет участника в свободной форме | K18: 1ая неделя после начала квартала
H19: Число курсов внутреннего обучения, проведенных сотрудниками подразделения участника в рамках Института Закупки * 2 / Число внутренних тренеров
B20: ЭФФЕКТИВНОЕ ВЗАИМОДЕЙСТВИЕ | C20: Обратная связь от подрядчиков | D20: Раз в пол года | E20: 0.1 | F20: 0.33 | G20: Среднее значение по году | H20: Средний процент положительной ОС | I20: Короткий опрос на DA (?) | J20: Выгрузка отчета с портала DA | K20: До конца полугодия
C21: Обратная связь от прямых подчиненных | D21: Раз в пол года | E21: 0.1 | F21: 0.33 | G21: Среднее значение по году | H21: Средний процент положительной ОС | I21: Короткий опрос на DA (?) | J21: Выгрузка отчета с портала DA | K21: До конца полугодия
C22: Работа кросс-функциональных команд | D22: Раз в квартал | E22: 0.1 | F22: 0.33 | G22: Сумма по году
C23: Инициация кросс-функциональных команд | H23: Число кросс-функциональных команд, инициированных участником / Число сотрудников в подразделении участника | I23: Отчет участника, подтвержденный HR ДО | J23: Отчет участника в свободной форме | K23: 1ая неделя после начала квартала
C24: Участие в кросс-функциональных командах | H24: Число сотрудников подразделения, переданных в кросс-функциональную команду решением участника / Число сотрудников в подразделении участника | I24: Отчет участника, подтвержденный HR ДО | J24: Отчет участника в свободной форме | K24: 1ая неделя после начала квартала

Sheet РЕЙТИНГ (hidden)
B3: К СОДЕРЖАНИЮ
B5: ОБЩИЙ РЕЙТИНГ УЧАСТНИКОВ
B7: УЧАСТНИК | C7: =IF(AA9="-","ГОД (Кумулятивный итог)","ГОД") -> ГОД (Кумулятивный итог) | H7: I КВАРТАЛ | M7: II КВАРТАЛ | R7: III КВАРТАЛ | W7: IV КВАРТАЛ
B8: ФИО | C8: ИНТЕГРАЛЬНЫЙ | D8: РЕЗУЛЬТАТИВНОСТЬ | E8: ПРОАКТИВНОСТЬ | F8: ЛИДЕРСКОЕ РАЗВИТИЕ | G8: МЕЖКОМАНДНОЕ ВЗАИМОДЕЙСТВИЕ | H8: ИНТЕГРАЛЬНЫЙ | I8: РЕЗУЛЬТАТИВНОСТЬ | J8: ПРОАКТИВНОСТЬ | K8: ЛИДЕРСКОЕ РАЗВИТИЕ | L8: МЕЖКОМАНДНОЕ ВЗАИМОДЕЙСТВИЕ | M8: ИНТЕГРАЛЬНЫЙ | N8: РЕЗУЛЬТАТИВНОСТЬ | O8: ПРОАКТИВНОСТЬ | P8: ЛИДЕРСКОЕ РАЗВИТИЕ | Q8: МЕЖКОМАНДНОЕ ВЗАИМОДЕЙСТВИЕ | R8: ИНТЕГРАЛЬНЫЙ | S8: РЕЗУЛЬТАТИВНОСТЬ | T8: ПРОАКТИВНОСТЬ | U8: ЛИДЕРСКОЕ РАЗВИТИЕ | V8: МЕЖКОМАНДНОЕ ВЗАИМОДЕЙСТВИЕ | W8: ИНТЕГРАЛЬНЫЙ | X8: РЕЗУЛЬТАТИВНОСТЬ | Y8: ПРОАКТИВНОСТЬ | Z8: ПРОФЕССИОНАЛЬНОЕ РАЗВИТИЕ | AA8: ЭФФЕКТИВНОЕ ВЗАИМОДЕЙСТВИЕ
B9: Василий Леонтьев | C9: =VLOOKUP($B9,'Показатели за ГОД'!$A$120:$AS$155,4,FALSE) -> 10 | D9: =VLOOKUP($B9,'Показатели за ГОД'!$A$120:$AS$155,5,FALSE) -> 3 | E9: =VLOOKUP($B9,'Показатели за ГОД'!$A$120:$AS$155,8,FALSE) -> 9 | F9: =VLOOKUP($B9,'Показатели за ГОД'!$A$120:$AS$155,23,FALSE) -> 7 | G9: =VLOOKUP($B9,'Показатели за ГОД'!$A$120:$AS$155,38,FALSE) -> 10 | H9: =IF('Сбор показателей I кв'!G11="","-",VLOOKUP($B9,'Сбор показателей I кв'!$B$125:$AU$160,4,FALSE)) -> 8 | I9: =IF('Сбор показателей I кв'!G11="","-",VLOOKUP($B9,'Сбор показателей I кв'!$B$125:$AU$160,5,FALSE)) -> 4 | J9: =IF('Сбор показателей I кв'!G11="","-",VLOOKUP($B9,'Сбор показателей I кв'!$B$125:$AU$160,8,FALSE)) -> 7 | K9: =IF('Сбор показателей I кв'!G11="","-",VLOOKUP($B9,'Сбор показателей I кв'!$B$125:$AU$160,23,FALSE)) -> 5 | L9: =IF('Сбор показателей I кв'!G11="","-",VLOOKUP($B9,'Сбор показателей I кв'!$B$125:$AU$160,38,FALSE)) -> 8 | M9: =IF('Сбор показателей II кв'!G11="","-",VLOOKUP($B9,'Сбор показателей II кв'!$B$125:$AT$160,4,FALSE)) -> 10 | N9: =IF('Сбор показателей II кв'!G11="","-",VLOOKUP($B9,'Сбор показателей II кв'!$B$125:$AT$160,5,FALSE)) -> 3 | O9: =IF('Сбор показателей II кв'!G11="","-",VLOOKUP($B9,'Сбор показателей II кв'!$B$125:$AT$160,8,FALSE)) -> 9 | P9: =IF('Сбор показателей II кв'!G11="","-",VLOOKUP($B9,'Сбор показателей II кв'!$B$125:$AT$160,23,FALSE)) -> 7 | Q9: =IF('Сбор показателей II кв'!G11="","-",VLOOKUP($B9,'Сбор показателей II кв'!$B$125:$AT$160,38,FALSE)) -> 10 | R9: =IF('Сбор показателей III кв'!G11="","-",VLOOKUP($B9,'Сбор показателей III кв'!$B$125:$AT$160,4,FALSE)) -> - | S9: =IF('Сбор показателей III кв'!G11="","-",VLOOKUP($B9,'Сбор показателей III кв'!$B$125:$AT$160,5,FALSE)) -> - | T9: =IF('Сбор показателей III кв'!G11="","-",VLOOKUP($B9,'Сбор показателей III кв'!$B$125:$AT$160,8,FALSE)) -> - | U9: =IF('Сбор показателей III кв'!G11="","-",VLOOKUP($B9,'Сбор показателей III кв'!$B$125:$AT$160,23,FALSE)) -> - | V9: =IF('Сбор показателей III кв'!G11="","-",VLOOKUP($B9,'Сбор показателей III кв'!$B$125:$AT$160,38,FALSE)) -> - | W9: =IF('Сбор показателей IV кв'!G11="","-",VLOOKUP(B9,'Сбор показателей IV кв'!$B$125:$AT$160,4,FALSE)) -> - | X9: =IF('Сбор показателей IV кв'!G11="","-",VLOOKUP(B9,'Сбор показателей IV кв'!$B$125:$AT$160,5,FALSE)) -> - | Y9: =IF('Сбор показателей IV кв'!G11="","-",VLOOKUP(B9,'Сбор показателей IV кв'!$B$125:$AT$160,8,FALSE)) -> - | Z9: =IF('Сбор показателей IV кв'!G11="","-",VLOOKUP(B9,'Сбор показателей IV кв'!$B$125:$AT$160,23,FALSE)) -> - | AA9: =IF('Сбор показателей IV кв'!G11="","-",VLOOKUP(B9,'Сбор показателей IV кв'!$B$125:$AT$160,38,FALSE)) -> -
